Workbook

Sheet Help (hidden)
C3: Content (Click on topic to view) | D3: Description
C5: 1. Introduction and Background
C8: 2. Model Overview
C11: 3. Scope of Application
C14: 4. Assumptions sheet
C17: 5. Results (1)
C20: 6. Results (2)
C23: 7. Departmental Personnel Profile
C26: 8. About this Tool
C29: 9. FTE and Unit Cost Explained

Sheet HRBP_Data (hidden)
A1: VoteNo | B1: Department | C1: Programme No | D1: Salary level | E1: ="Establishment: Number of funded posts as at 31 March "&LEFT(FY0,4) -> Establishment: Number of funded posts as at 31 March 2023 | F1: ="Establishment: Number of funded posts additional to the establishment" -> Establishment: Number of funded posts additional to the establishment | G1: =$AY$2&" "&Results!F26 -> 2022/23 FTE Headcount | H1: =$AY$2&" "&Results!G26 -> 2022/23 Unit Costs | I1: =$AY$2&" "&Results!H26 -> 2022/23 of which: Once-off Payments per person | J1: =$AY$2&" "&Results!I26 -> 2022/23 Total Annual Cost | K1: =$AY$3&" "&Results!J26 -> 2023/24 Initial Headcount | L1: =$AY$3&" "&Results!K26 -> 2023/24 Unit Costs | M1: =$AY$3&" "&RIGHT(Results!L26,LEN(Results!L26)-9) -> 2023/24 Once-off Payments per person | N1: =$AY$3&" "&Results!M26 -> 2023/24 Vacant funded posts to be filled | O1: =$AY$3&" "&Results!N26 -> 2023/24 Headcount reductions to be made | P1: =$AY$3&" "&Results!O26 -> 2023/24 Revised Headcount | Q1: =$AY$3&" "&Results!P26 -> 2023/24 Cost of vacant posts to be filled | R1: =$AY$3&" "&Results!Q26 -> 2023/24 Savings from headcount reductions | S1: =$AY$3&" "&Results!R26 -> 2023/24 Projected Annual Cost | T1: =$AY$4&" "&Results!S26 -> 2024/25 Initial Headcount | U1: =$AY$4&" "&Results!T26 -> 2024/25 Unit Costs | V1: =$AY$4&" "&RIGHT(Results!U26,LEN(Results!U26)-9) -> 2024/25 Once-off Payments per person | W1: =$AY$4&" "&Results!V26 -> 2024/25 Vacant funded posts to be filled | X1: =$AY$4&" "&Results!W26 -> 2024/25 Headcount reductions to be made | Y1: =$AY$4&" "&Results!X26 -> 2024/25 Revised Headcount | Z1: =$AY$4&" "&Results!Y26 -> 2024/25 Cost of vacant posts to be filled | AA1: =$AY$4&" "&Results!Z26 -> 2024/25 Savings from headcount reductions | AB1: =$AY$4&" "&Results!AA26 -> 2024/25 Projected Annual Cost | AC1: =$AY$5&" "&Results!AB26 -> 2025/26 Initial Headcount | AD1: =$AY$5&" "&Results!AC26 -> 2025/26 Unit Costs | AE1: =$AY$5&" "&RIGHT(Results!AD26,LEN(Results!AD26)-9) -> 2025/26 Once-off Payments per person | AF1: =$AY$5&" "&Results!AE26 -> 2025/26 Vacant funded posts to be filled | AG1: =$AY$5&" "&Results!AF26 -> 2025/26 Headcount reductions to be made | AH1: =$AY$5&" "&Results!AG26 -> 2025/26 Revised Headcount | AI1: =$AY$5&" "&Results!AH26 -> 2025/26 Cost of vacant posts to be filled | AJ1: =$AY$5&" "&Results!AI26 -> 2025/26 Savings from headcount reductions | AK1: =$AY$5&" "&Results!AJ26 -> 2025/26 Projected Annual Cost | AL1: =$AY$6&" "&Results!AK26 -> 2026/27 Initial Headcount | AM1: =$AY$6&" "&Results!AL26 -> 2026/27 Unit Costs | AN1: =$AY$6&" "&RIGHT(Results!AM26,LEN(Results!AM26)-9) -> 2026/27 Once-off Payments per person | AO1: =$AY$6&" "&Results!AN26 -> 2026/27 Vacant funded posts to be filled | AP1: =$AY$6&" "&Results!AO26 -> 2026/27 Headcount reductions to be made | AQ1: =$AY$6&" "&Results!AP26 -> 2026/27 Revised Headcount | AR1: =$AY$6&" "&Results!AQ26 -> 2026/27 Cost of vacant posts to be filled | AS1: =$AY$6&" "&Results!AR26 -> 2026/27 Savings from headcount reductions | AT1: =$AY$6&" "&Results!AS26 -> 2026/27 Projected Annual Cost | AU1: ValueIndi | AY1: FinYears
A2: =LEFT(MyDept,7) -> Vote 01 | B2: =RIGHT(Results!$D$5,LEN(Results!$D$5)-9) -> The Presidency | C2: 1 | D2: 1 | E2: =Results!D59 -> 0 | F2: =Results!E59 -> 0 | G2: =Results!F59 -> 0 | H2: =Results!G59 -> 0 | I2: =Results!H59 -> 14.64 | J2: =Results!I59 -> 0 | K2: =Results!J59 -> 0 | L2: =Results!K59 -> -0.7327463407 | M2: =Results!L59 -> 0 | N2: =Results!M59 -> 0 | O2: =Results!N59 -> 0 | P2: =Results!O59 -> 0 | Q2: =Results!P59 -> 0 | R2: =Results!Q59 -> 0 | S2: =Results!R59 -> 0 | T2: =Results!S59 -> 0 | U2: =Results!T59 -> -0.7783963549 | V2: =Results!U59 -> 0 | W2: =Results!V59 -> 0 | X2: =Results!W59 -> 0 | Y2: =Results!X59 -> 0 | Z2: =Results!Y59 -> 0 | AA2: =Results!Z59 -> 0 | AB2: =Results!AA59 -> 0 | AC2: =Results!AB59 -> 0 | AD2: =Results!AC59 -> -0.8260012942 | AE2: =Results!AD59 -> 0 | AF2: =Results!AE59 -> 0 | AG2: =Results!AF59 -> 0 | AH2: =Results!AG59 -> 0 | AI2: =Results!AH59 -> 0 | AJ2: =Results!AI59 -> 0 | AK2: =Results!AJ59 -> 0 | AL2: =Results!AK59 -> 0 | AM2: =Results!AL59 -> -0.8755214437 | AN2: =Results!AM59 -> 0 | AO2: =Results!AN59 -> 0 | AP2: =Results!AO59 -> 0 | AQ2: =Results!AP59 -> 0 | AR2: =Results!AQ59 -> 0 | AS2: =Results!AR59 -> 0 | AT2: =Results!AS59 -> 0 | AU2: =IF(COUNTIF(E2:AT2,0)=42,0,1) -> 1 | AY2: =Results!F25 -> 2022/23
A3: Vote 01 | B3: =RIGHT(Results!$D$5,LEN(Results!$D$5)-9) -> The Presidency | C3: 1 | D3: 2 | E3: =Results!D60 -> 0 | F3: =Results!E60 -> 0 | G3: =Results!F60 -> 0 | H3: =Results!G60 -> 0 | I3: =Results!H60 -> 14.64 | J3: =Results!I60 -> 0 | K3: =Results!J60 -> 0 | L3: =Results!K60 -> -0.75852768 | M3: =Results!L60 -> 0 | N3: =Results!M60 -> 0 | O3: =Results!N60 -> 0 | P3: =Results!O60 -> 0 | Q3: =Results!P60 -> 0 | R3: =Results!Q60 -> 0 | S3: =Results!R60 -> 0 | T3: =Results!S60 -> 0 | U3: =Results!T60 -> -0.8033717507 | V3: =Results!U60 -> 0 | W3: =Results!V60 -> 0 | X3: =Results!W60 -> 0 | Y3: =Results!X60 -> 0 | Z3: =Results!Y60 -> 0 | AA3: =Results!Z60 -> 0 | AB3: =Results!AA60 -> 0 | AC3: =Results!AB60 -> 0 | AD3: =Results!AC60 -> -0.8499494059 | AE3: =Results!AD60 -> 0 | AF3: =Results!AE60 -> 0 | AG3: =Results!AF60 -> 0 | AH3: =Results!AG60 -> 0 | AI3: =Results!AH60 -> 0 | AJ3: =Results!AI60 -> 0 | AK3: =Results!AJ60 -> 0 | AL3: =Results!AK60 -> 0 | AM3: =Results!AL60 -> -0.8982024454 | AN3: =Results!AM60 -> 0 | AO3: =Results!AN60 -> 0 | AP3: =Results!AO60 -> 0 | AQ3: =Results!AP60 -> 0 | AR3: =Results!AQ60 -> 0 | AS3: =Results!AR60 -> 0 | AT3: =Results!AS60 -> 0 | AU3: =IF(COUNTIF(E3:AT3,0)=42,0,1) -> 1 | AY3: =FY0 -> 2023/24
A4: Vote 01 | B4: =RIGHT(Results!$D$5,LEN(Results!$D$5)-9) -> The Presidency | C4: 1 | D4: 3 | E4: =Results!D61 -> 0 | F4: =Results!E61 -> 0 | G4: =Results!F61 -> 0 | H4: =Results!G61 -> 0 | I4: =Results!H61 -> 14.64 | J4: =Results!I61 -> 0 | K4: =Results!J61 -> 0 | L4: =Results!K61 -> -0.75003648 | M4: =Results!L61 -> 0 | N4: =Results!M61 -> 0 | O4: =Results!N61 -> 0 | P4: =Results!O61 -> 0 | Q4: =Results!P61 -> 0 | R4: =Results!Q61 -> 0 | S4: =Results!R61 -> 0 | T4: =Results!S61 -> 0 | U4: =Results!T61 -> -0.7945455851 | V4: =Results!U61 -> 0 | W4: =Results!V61 -> 0 | X4: =Results!W61 -> 0 | Y4: =Results!X61 -> 0 | Z4: =Results!Y61 -> 0 | AA4: =Results!Z61 -> 0 | AB4: =Results!AA61 -> 0 | AC4: =Results!AB61 -> 0 | AD4: =Results!AC61 -> -0.8407893723 | AE4: =Results!AD61 -> 0 | AF4: =Results!AE61 -> 0 | AG4: =Results!AF61 -> 0 | AH4: =Results!AG61 -> 0 | AI4: =Results!AH61 -> 0 | AJ4: =Results!AI61 -> 0 | AK4: =Results!AJ61 -> 0 | AL4: =Results!AK61 -> 0 | AM4: =Results!AL61 -> -0.8887115998 | AN4: =Results!AM61 -> 0 | AO4: =Results!AN61 -> 0 | AP4: =Results!AO61 -> 0 | AQ4: =Results!AP61 -> 0 | AR4: =Results!AQ61 -> 0 | AS4: =Results!AR61 -> 0 | AT4: =Results!AS61 -> 0 | AU4: 1 | AY4: =MTEF1 -> 2024/25
A5: Vote 01 | B5: =RIGHT(Results!$D$5,LEN(Results!$D$5)-9) -> The Presidency | C5: 1 | D5: 4 | E5: =Results!D62 -> 0 | F5: =Results!E62 -> 0 | G5: =Results!F62 -> 0 | H5: =Results!G62 -> 0 | I5: =Results!H62 -> 14.64 | J5: =Results!I62 -> 0 | K5: =Results!J62 -> 0 | L5: =Results!K62 -> -0.76264152 | M5: =Results!L62 -> 0 | N5: =Results!M62 -> 0 | O5: =Results!N62 -> 0 | P5: =Results!O62 -> 0 | Q5: =Results!P62 -> 0 | R5: =Results!Q62 -> 0 | S5: =Results!R62 -> 0 | T5: =Results!S62 -> 0 | U5: =Results!T62 -> -0.8081749457 | V5: =Results!U62 -> 0 | W5: =Results!V62 -> 0 | X5: =Results!W62 -> 0 | Y5: =Results!X62 -> 0 | Z5: =Results!Y62 -> 0 | AA5: =Results!Z62 -> 0 | AB5: =Results!AA62 -> 0 | AC5: =Results!AB62 -> 0 | AD5: =Results!AC62 -> -0.8555038615 | AE5: =Results!AD62 -> 0 | AF5: =Results!AE62 -> 0 | AG5: =Results!AF62 -> 0 | AH5: =Results!AG62 -> 0 | AI5: =Results!AH62 -> 0 | AJ5: =Results!AI62 -> 0 | AK5: =Results!AJ62 -> 0 | AL5: =Results!AK62 -> 0 | AM5: =Results!AL62 -> -0.9045727065 | AN5: =Results!AM62 -> 0 | AO5: =Results!AN62 -> 0 | AP5: =Results!AO62 -> 0 | AQ5: =Results!AP62 -> 0 | AR5: =Results!AQ62 -> 0 | AS5: =Results!AR62 -> 0 | AT5: =Results!AS62 -> 0 | AU5: 1 | AY5: =MTEF2 -> 2025/26
A6: Vote 01 | B6: =RIGHT(Results!$D$5,LEN(Results!$D$5)-9) -> The Presidency | C6: 1 | D6: 5 | E6: =Results!D63 -> 0 | F6: =Results!E63 -> 0 | G6: =Results!F63 -> 0 | H6: =Results!G63 -> 0 | I6: =Results!H63 -> 14.64 | J6: =Results!I63 -> 0 | K6: =Results!J63 -> 0 | L6: =Results!K63 -> -0.77221608 | M6: =Results!L63 -> 0 | N6: =Results!M63 -> 0 | O6: =Results!N63 -> 0 | P6: =Results!O63 -> 0 | Q6: =Results!P63 -> 0 | R6: =Results!Q63 -> 0 | S6: =Results!R63 -> 0 | T6: =Results!S63 -> 0 | U6: =Results!T63 -> -0.8187711242 | V6: =Results!U63 -> 0 | W6: =Results!V63 -> 0 | X6: =Results!W63 -> 0 | Y6: =Results!X63 -> 0 | Z6: =Results!Y63 -> 0 | AA6: =Results!Z63 -> 0 | AB6: =Results!AA63 -> 0 | AC6: =Results!AB63 -> 0 | AD6: =Results!AC63 -> -0.8671986141 | AE6: =Results!AD63 -> 0 | AF6: =Results!AE63 -> 0 | AG6: =Results!AF63 -> 0 | AH6: =Results!AG63 -> 0 | AI6: =Results!AH63 -> 0 | AJ6: =Results!AI63 -> 0 | AK6: =Results!AJ63 -> 0 | AL6: =Results!AK63 -> 0 | AM6: =Results!AL63 -> -0.9174455841 | AN6: =Results!AM63 -> 0 | AO6: =Results!AN63 -> 0 | AP6: =Results!AO63 -> 0 | AQ6: =Results!AP63 -> 0 | AR6: =Results!AQ63 -> 0 | AS6: =Results!AR63 -> 0 | AT6: =Results!AS63 -> 0 | AU6: 1 | AY6: =MTEF3 -> 2026/27
A7: Vote 01 | B7: =RIGHT(Results!$D$5,LEN(Results!$D$5)-9) -> The Presidency | C7: 1 | D7: 6 | E7: =Results!D64 -> 0 | F7: =Results!E64 -> 0 | G7: =Results!F64 -> 0 | H7: =Results!G64 -> 0 | I7: =Results!H64 -> 16.224 | J7: =Results!I64 -> 0 | K7: =Results!J64 -> 0 | L7: =Results!K64 -> -0.838148064 | M7: =Results!L64 -> 0 | N7: =Results!M64 -> 0 | O7: =Results!N64 -> 0 | P7: =Results!O64 -> 0 | Q7: =Results!P64 -> 0 | R7: =Results!Q64 -> 0 | S7: =Results!R64 -> 0 | T7: =Results!S64 -> 0 | U7: =Results!T64 -> -0.8888307827 | V7: =Results!U64 -> 0 | W7: =Results!V64 -> 0 | X7: =Results!W64 -> 0 | Y7: =Results!X64 -> 0 | Z7: =Results!Y64 -> 0 | AA7: =Results!Z64 -> 0 | AB7: =Results!AA64 -> 0 | AC7: =Results!AB64 -> 0 | AD7: =Results!AC64 -> -0.9415630785 | AE7: =Results!AD64 -> 0 | AF7: =Results!AE64 -> 0 | AG7: =Results!AF64 -> 0 | AH7: =Results!AG64 -> 0 | AI7: =Results!AH64 -> 0 | AJ7: =Results!AI64 -> 0 | AK7: =Results!AJ64 -> 0 | AL7: =Results!AK64 -> 0 | AM7: =Results!AL64 -> -0.9962882885 | AN7: =Results!AM64 -> 0 | AO7: =Results!AN64 -> 0 | AP7: =Results!AO64 -> 0 | AQ7: =Results!AP64 -> 0 | AR7: =Results!AQ64 -> 0 | AS7: =Results!AR64 -> 0 | AT7: =Results!AS64 -> 0 | AU7: 1
A8: Vote 01 | B8: =RIGHT(Results!$D$5,LEN(Results!$D$5)-9) -> The Presidency | C8: 1 | D8: 7 | E8: =Results!D65 -> 0 | F8: =Results!E65 -> 0 | G8: =Results!F65 -> 0 | H8: =Results!G65 -> 0 | I8: =Results!H65 -> 16.224 | J8: =Results!I65 -> 0 | K8: =Results!J65 -> 0 | L8: =Results!K65 -> -0.831674688 | M8: =Results!L65 -> 0 | N8: =Results!M65 -> 0 | O8: =Results!N65 -> 0 | P8: =Results!O65 -> 0 | Q8: =Results!P65 -> 0 | R8: =Results!Q65 -> 0 | S8: =Results!R65 -> 0 | T8: =Results!S65 -> 0 | U8: =Results!T65 -> -0.8822029897 | V8: =Results!U65 -> 0 | W8: =Results!V65 -> 0 | X8: =Results!W65 -> 0 | Y8: =Results!X65 -> 0 | Z8: =Results!Y65 -> 0 | AA8: =Results!Z65 -> 0 | AB8: =Results!AA65 -> 0 | AC8: =Results!AB65 -> 0 | AD8: =Results!AC65 -> -0.9347935015 | AE8: =Results!AD65 -> 0 | AF8: =Results!AE65 -> 0 | AG8: =Results!AF65 -> 0 | AH8: =Results!AG65 -> 0 | AI8: =Results!AH65 -> 0 | AJ8: =Results!AI65 -> 0 | AK8: =Results!AJ65 -> 0 | AL8: =Results!AK65 -> 0 | AM8: =Results!AL65 -> -0.9893916686 | AN8: =Results!AM65 -> 0 | AO8: =Results!AN65 -> 0 | AP8: =Results!AO65 -> 0 | AQ8: =Results!AP65 -> 0 | AR8: =Results!AQ65 -> 0 | AS8: =Results!AR65 -> 0 | AT8: =Results!AS65 -> 0 | AU8: 1
A9: Vote 01 | B9: =RIGHT(Results!$D$5,LEN(Results!$D$5)-9) -> The Presidency | C9: 1 | D9: 8 | E9: =Results!D66 -> 0 | F9: =Results!E66 -> 0 | G9: =Results!F66 -> 0 | H9: =Results!G66 -> 0 | I9: =Results!H66 -> 17.4 | J9: =Results!I66 -> 0 | K9: =Results!J66 -> 0 | L9: =Results!K66 -> -0.8827716 | M9: =Results!L66 -> 0 | N9: =Results!M66 -> 0 | O9: =Results!N66 -> 0 | P9: =Results!O66 -> 0 | Q9: =Results!P66 -> 0 | R9: =Results!Q66 -> 0 | S9: =Results!R66 -> 0 | T9: =Results!S66 -> 0 | U9: =Results!T66 -> -0.9363910472 | V9: =Results!U66 -> 0 | W9: =Results!V66 -> 0 | X9: =Results!W66 -> 0 | Y9: =Results!X66 -> 0 | Z9: =Results!Y66 -> 0 | AA9: =Results!Z66 -> 0 | AB9: =Results!AA66 -> 0 | AC9: =Results!AB66 -> 0 | AD9: =Results!AC66 -> -0.9921978102 | AE9: =Results!AD66 -> 0 | AF9: =Results!AE66 -> 0 | AG9: =Results!AF66 -> 0 | AH9: =Results!AG66 -> 0 | AI9: =Results!AH66 -> 0 | AJ9: =Results!AI66 -> 0 | AK9: =Results!AJ66 -> 0 | AL9: =Results!AK66 -> 0 | AM9: =Results!AL66 -> -1.050133888 | AN9: =Results!AM66 -> 0 | AO9: =Results!AN66 -> 0 | AP9: =Results!AO66 -> 0 | AQ9: =Results!AP66 -> 0 | AR9: =Results!AQ66 -> 0 | AS9: =Results!AR66 -> 0 | AT9: =Results!AS66 -> 0 | AU9: 1
A10: Vote 01 | B10: =RIGHT(Results!$D$5,LEN(Results!$D$5)-9) -> The Presidency | C10: 1 | D10: 9 | E10: =Results!D67 -> 0 | F10: =Results!E67 -> 0 | G10: =Results!F67 -> 0 | H10: =Results!G67 -> 0 | I10: =Results!H67 -> 17.4 | J10: =Results!I67 -> 0 | K10: =Results!J67 -> 0 | L10: =Results!K67 -> -0.8920632 | M10: =Results!L67 -> 0 | N10: =Results!M67 -> 0 | O10: =Results!N67 -> 0 | P10: =Results!O67 -> 0 | Q10: =Results!P67 -> 0 | R10: =Results!Q67 -> 0 | S10: =Results!R67 -> 0 | T10: =Results!S67 -> 0 | U10: =Results!T67 -> -0.9465835933 | V10: =Results!U67 -> 0 | W10: =Results!V67 -> 0 | X10: =Results!W67 -> 0 | Y10: =Results!X67 -> 0 | Z10: =Results!Y67 -> 0 | AA10: =Results!Z67 -> 0 | AB10: =Results!AA67 -> 0 | AC10: =Results!AB67 -> 0 | AD10: =Results!AC67 -> -1.003353873 | AE10: =Results!AD67 -> 0 | AF10: =Results!AE67 -> 0 | AG10: =Results!AF67 -> 0 | AH10: =Results!AG67 -> 0 | AI10: =Results!AH67 -> 0 | AJ10: =Results!AI67 -> 0 | AK10: =Results!AJ67 -> 0 | AL10: =Results!AK67 -> 0 | AM10: =Results!AL67 -> -1.062317582 | AN10: =Results!AM67 -> 0 | AO10: =Results!AN67 -> 0 | AP10: =Results!AO67 -> 0 | AQ10: =Results!AP67 -> 0 | AR10: =Results!AQ67 -> 0 | AS10: =Results!AR67 -> 0 | AT10: =Results!AS67 -> 0 | AU10: 1
A11: Vote 01 | B11: =RIGHT(Results!$D$5,LEN(Results!$D$5)-9) -> The Presidency | C11: 1 | D11: 10 | E11: =Results!D68 -> 0 | F11: =Results!E68 -> 0 | G11: =Results!F68 -> 0 | H11: =Results!G68 -> 0 | I11: =Results!H68 -> 19.68 | J11: =Results!I68 -> 0 | K11: =Results!J68 -> 0 | L11: =Results!K68 -> -0.98457072 | M11: =Results!L68 -> 0 | N11: =Results!M68 -> 0 | O11: =Results!N68 -> 0 | P11: =Results!O68 -> 0 | Q11: =Results!P68 -> 0 | R11: =Results!Q68 -> 0 | S11: =Results!R68 -> 0 | T11: =Results!S68 -> 0 | U11: =Results!T68 -> -1.045040284 | V11: =Results!U68 -> 0 | W11: =Results!V68 -> 0 | X11: =Results!W68 -> 0 | Y11: =Results!X68 -> 0 | Z11: =Results!Y68 -> 0 | AA11: =Results!Z68 -> 0 | AB11: =Results!AA68 -> 0 | AC11: =Results!AB68 -> 0 | AD11: =Results!AC68 -> -1.108028905 | AE11: =Results!AD68 -> 0 | AF11: =Results!AE68 -> 0 | AG11: =Results!AF68 -> 0 | AH11: =Results!AG68 -> 0 | AI11: =Results!AH68 -> 0 | AJ11: =Results!AI68 -> 0 | AK11: =Results!AJ68 -> 0 | AL11: =Results!AK68 -> 0 | AM11: =Results!AL68 -> -1.173476419 | AN11: =Results!AM68 -> 0 | AO11: =Results!AN68 -> 0 | AP11: =Results!AO68 -> 0 | AQ11: =Results!AP68 -> 0 | AR11: =Results!AQ68 -> 0 | AS11: =Results!AR68 -> 0 | AT11: =Results!AS68 -> 0 | AU11: 1
A12: Vote 01 | B12: =RIGHT(Results!$D$5,LEN(Results!$D$5)-9) -> The Presidency | C12: 1 | D12: 11 | E12: =Results!D69 -> 0 | F12: =Results!E69 -> 0 | G12: =Results!F69 -> 0 | H12: =Results!G69 -> 0 | I12: =Results!H69 -> 19.68 | J12: =Results!I69 -> 0 | K12: =Results!J69 -> 0 | L12: =Results!K69 -> -0.97124736 | M12: =Results!L69 -> 0 | N12: =Results!M69 -> 0 | O12: =Results!N69 -> 0 | P12: =Results!O69 -> 0 | Q12: =Results!P69 -> 0 | R12: =Results!Q69 -> 0 | S12: =Results!R69 -> 0 | T12: =Results!S69 -> 0 | U12: =Results!T69 -> -1.031578902 | V12: =Results!U69 -> 0 | W12: =Results!V69 -> 0 | X12: =Results!W69 -> 0 | Y12: =Results!X69 -> 0 | Z12: =Results!Y69 -> 0 | AA12: =Results!Z69 -> 0 | AB12: =Results!AA69 -> 0 | AC12: =Results!AB69 -> 0 | AD12: =Results!AC69 -> -1.094481028 | AE12: =Results!AD69 -> 0 | AF12: =Results!AE69 -> 0 | AG12: =Results!AF69 -> 0 | AH12: =Results!AG69 -> 0 | AI12: =Results!AH69 -> 0 | AJ12: =Results!AI69 -> 0 | AK12: =Results!AJ69 -> 0 | AL12: =Results!AK69 -> 0 | AM12: =Results!AL69 -> -1.15990003 | AN12: =Results!AM69 -> 0 | AO12: =Results!AN69 -> 0 | AP12: =Results!AO69 -> 0 | AQ12: =Results!AP69 -> 0 | AR12: =Results!AQ69 -> 0 | AS12: =Results!AR69 -> 0 | AT12: =Results!AS69 -> 0 | AU12: 1
A13: Vote 01 | B13: =RIGHT(Results!$D$5,LEN(Results!$D$5)-9) -> The Presidency | C13: 1 | D13: 12 | E13: =Results!D70 -> 0 | F13: =Results!E70 -> 0 | G13: =Results!F70 -> 0 | H13: =Results!G70 -> 0 | I13: =Results!H70 -> 20.34 | J13: =Results!I70 -> 0 | K13: =Results!J70 -> 0 | L13: =Results!K70 -> -0.98844264 | M13: =Results!L70 -> 0 | N13: =Results!M70 -> 0 | O13: =Results!N70 -> 0 | P13: =Results!O70 -> 0 | Q13: =Results!P70 -> 0 | R13: =Results!Q70 -> 0 | S13: =Results!R70 -> 0 | T13: =Results!S70 -> 0 | U13: =Results!T70 -> -1.049827485 | V13: =Results!U70 -> 0 | W13: =Results!V70 -> 0 | X13: =Results!W70 -> 0 | Y13: =Results!X70 -> 0 | Z13: =Results!Y70 -> 0 | AA13: =Results!Z70 -> 0 | AB13: =Results!AA70 -> 0 | AC13: =Results!AB70 -> 0 | AD13: =Results!AC70 -> -1.113826599 | AE13: =Results!AD70 -> 0 | AF13: =Results!AE70 -> 0 | AG13: =Results!AF70 -> 0 | AH13: =Results!AG70 -> 0 | AI13: =Results!AH70 -> 0 | AJ13: =Results!AI70 -> 0 | AK13: =Results!AJ70 -> 0 | AL13: =Results!AK70 -> 0 | AM13: =Results!AL70 -> -1.180385212 | AN13: =Results!AM70 -> 0 | AO13: =Results!AN70 -> 0 | AP13: =Results!AO70 -> 0 | AQ13: =Results!AP70 -> 0 | AR13: =Results!AQ70 -> 0 | AS13: =Results!AR70 -> 0 | AT13: =Results!AS70 -> 0 | AU13: 1
A14: Vote 01 | B14: =RIGHT(Results!$D$5,LEN(Results!$D$5)-9) -> The Presidency | C14: 1 | D14: 13 | E14: =Results!D71 -> 0 | F14: =Results!E71 -> 0 | G14: =Results!F71 -> 0 | H14: =Results!G71 -> 0 | I14: =Results!H71 -> 20.34 | J14: =Results!I71 -> 0 | K14: =Results!J71 -> 0 | L14: =Results!K71 -> -0.98712054 | M14: =Results!L71 -> 0 | N14: =Results!M71 -> 0 | O14: =Results!N71 -> 0 | P14: =Results!O71 -> 0 | Q14: =Results!P71 -> 0 | R14: =Results!Q71 -> 0 | S14: =Results!R71 -> 0 | T14: =Results!S71 -> 0 | U14: =Results!T71 -> -1.048410743 | V14: =Results!U71 -> 0 | W14: =Results!V71 -> 0 | X14: =Results!W71 -> 0 | Y14: =Results!X71 -> 0 | Z14: =Results!Y71 -> 0 | AA14: =Results!Z71 -> 0 | AB14: =Results!AA71 -> 0 | AC14: =Results!AB71 -> 0 | AD14: =Results!AC71 -> -1.112308978 | AE14: =Results!AD71 -> 0 | AF14: =Results!AE71 -> 0 | AG14: =Results!AF71 -> 0 | AH14: =Results!AG71 -> 0 | AI14: =Results!AH71 -> 0 | AJ14: =Results!AI71 -> 0 | AK14: =Results!AJ71 -> 0 | AL14: =Results!AK71 -> 0 | AM14: =Results!AL71 -> -1.178760164 | AN14: =Results!AM71 -> 0 | AO14: =Results!AN71 -> 0 | AP14: =Results!AO71 -> 0 | AQ14: =Results!AP71 -> 0 | AR14: =Results!AQ71 -> 0 | AS14: =Results!AR71 -> 0 | AT14: =Results!AS71 -> 0 | AU14: 1
A15: Vote 01 | B15: =RIGHT(Results!$D$5,LEN(Results!$D$5)-9) -> The Presidency | C15: 1 | D15: 14 | E15: =Results!D72 -> 0 | F15: =Results!E72 -> 0 | G15: =Results!F72 -> 0 | H15: =Results!G72 -> 0 | I15: =Results!H72 -> 20.34 | J15: =Results!I72 -> 0 | K15: =Results!J72 -> 0 | L15: =Results!K72 -> -0.98463906 | M15: =Results!L72 -> 0 | N15: =Results!M72 -> 0 | O15: =Results!N72 -> 0 | P15: =Results!O72 -> 0 | Q15: =Results!P72 -> 0 | R15: =Results!Q72 -> 0 | S15: =Results!R72 -> 0 | T15: =Results!S72 -> 0 | U15: =Results!T72 -> -1.045804727 | V15: =Results!U72 -> 0 | W15: =Results!V72 -> 0 | X15: =Results!W72 -> 0 | Y15: =Results!X72 -> 0 | Z15: =Results!Y72 -> 0 | AA15: =Results!Z72 -> 0 | AB15: =Results!AA72 -> 0 | AC15: =Results!AB72 -> 0 | AD15: =Results!AC72 -> -1.109575506 | AE15: =Results!AD72 -> 0 | AF15: =Results!AE72 -> 0 | AG15: =Results!AF72 -> 0 | AH15: =Results!AG72 -> 0 | AI15: =Results!AH72 -> 0 | AJ15: =Results!AI72 -> 0 | AK15: =Results!AJ72 -> 0 | AL15: =Results!AK72 -> 0 | AM15: =Results!AL72 -> -1.175896676 | AN15: =Results!AM72 -> 0 | AO15: =Results!AN72 -> 0 | AP15: =Results!AO72 -> 0 | AQ15: =Results!AP72 -> 0 | AR15: =Results!AQ72 -> 0 | AS15: =Results!AR72 -> 0 | AT15: =Results!AS72 -> 0 | AU15: 1
A16: Vote 01 | B16: =RIGHT(Results!$D$5,LEN(Results!$D$5)-9) -> The Presidency | C16: 1 | D16: 15 | E16: =Results!D73 -> 0 | F16: =Results!E73 -> 0 | G16: =Results!F73 -> 0 | H16: =Results!G73 -> 0 | I16: =Results!H73 -> 20.34 | J16: =Results!I73 -> 0 | K16: =Results!J73 -> 0 | L16: =Results!K73 -> -0.98858502 | M16: =Results!L73 -> 0 | N16: =Results!M73 -> 0 | O16: =Results!N73 -> 0 | P16: =Results!O73 -> 0 | Q16: =Results!P73 -> 0 | R16: =Results!Q73 -> 0 | S16: =Results!R73 -> 0 | T16: =Results!S73 -> 0 | U16: =Results!T73 -> -1.050023194 | V16: =Results!U73 -> 0 | W16: =Results!V73 -> 0 | X16: =Results!W73 -> 0 | Y16: =Results!X73 -> 0 | Z16: =Results!Y73 -> 0 | AA16: =Results!Z73 -> 0 | AB16: =Results!AA73 -> 0 | AC16: =Results!AB73 -> 0 | AD16: =Results!AC73 -> -1.11408149 | AE16: =Results!AD73 -> 0 | AF16: =Results!AE73 -> 0 | AG16: =Results!AF73 -> 0 | AH16: =Results!AG73 -> 0 | AI16: =Results!AH73 -> 0 | AJ16: =Results!AI73 -> 0 | AK16: =Results!AJ73 -> 0 | AL16: =Results!AK73 -> 0 | AM16: =Results!AL73 -> -1.180705467 | AN16: =Results!AM73 -> 0 | AO16: =Results!AN73 -> 0 | AP16: =Results!AO73 -> 0 | AQ16: =Results!AP73 -> 0 | AR16: =Results!AQ73 -> 0 | AS16: =Results!AR73 -> 0 | AT16: =Results!AS73 -> 0 | AU16: 1
A17: Vote 01 | B17: =RIGHT(Results!$D$5,LEN(Results!$D$5)-9) -> The Presidency | C17: 1 | D17: 16 | E17: =Results!D74 -> 0 | F17: =Results!E74 -> 0 | G17: =Results!F74 -> 0 | H17: =Results!G74 -> 0 | I17: =Results!H74 -> 21.816 | J17: =Results!I74 -> 0 | K17: =Results!J74 -> 0 | L17: =Results!K74 -> -1.04684076 | M17: =Results!L74 -> 0 | N17: =Results!M74 -> 0 | O17: =Results!N74 -> 0 | P17: =Results!O74 -> 0 | Q17: =Results!P74 -> 0 | R17: =Results!Q74 -> 0 | S17: =Results!R74 -> 0 | T17: =Results!S74 -> 0 | U17: =Results!T74 -> -1.112043118 | V17: =Results!U74 -> 0 | W17: =Results!V74 -> 0 | X17: =Results!W74 -> 0 | Y17: =Results!X74 -> 0 | Z17: =Results!Y74 -> 0 | AA17: =Results!Z74 -> 0 | AB17: =Results!AA74 -> 0 | AC17: =Results!AB74 -> 0 | AD17: =Results!AC74 -> -1.180036449 | AE17: =Results!AD74 -> 0 | AF17: =Results!AE74 -> 0 | AG17: =Results!AF74 -> 0 | AH17: =Results!AG74 -> 0 | AI17: =Results!AH74 -> 0 | AJ17: =Results!AI74 -> 0 | AK17: =Results!AJ74 -> 0 | AL17: =Results!AK74 -> 0 | AM17: =Results!AL74 -> -1.250763894 | AN17: =Results!AM74 -> 0 | AO17: =Results!AN74 -> 0 | AP17: =Results!AO74 -> 0 | AQ17: =Results!AP74 -> 0 | AR17: =Results!AQ74 -> 0 | AS17: =Results!AR74 -> 0 | AT17: =Results!AS74 -> 0 | AU17: 1
A18: Vote 01 | B18: =RIGHT(Results!$D$5,LEN(Results!$D$5)-9) -> The Presidency | C18: 1 | D18: Deputy Minister | E18: =Results!D75 -> 0 | F18: =Results!E75 -> 0 | G18: =Results!F75 -> 0 | H18: =Results!G75 -> 0 | I18: =Results!H75 -> 0 | J18: =Results!I75 -> 0 | K18: =Results!J75 -> 0 | L18: =Results!K75 -> 0 | M18: =Results!L75 -> 0 | N18: =Results!M75 -> 0 | O18: =Results!N75 -> 0 | P18: =Results!O75 -> 0 | Q18: =Results!P75 -> 0 | R18: =Results!Q75 -> 0 | S18: =Results!R75 -> 0 | T18: =Results!S75 -> 0 | U18: =Results!T75 -> 0 | V18: =Results!U75 -> 0 | W18: =Results!V75 -> 0 | X18: =Results!W75 -> 0 | Y18: =Results!X75 -> 0 | Z18: =Results!Y75 -> 0 | AA18: =Results!Z75 -> 0 | AB18: =Results!AA75 -> 0 | AC18: =Results!AB75 -> 0 | AD18: =Results!AC75 -> 0 | AE18: =Results!AD75 -> 0 | AF18: =Results!AE75 -> 0 | AG18: =Results!AF75 -> 0 | AH18: =Results!AG75 -> 0 | AI18: =Results!AH75 -> 0 | AJ18: =Results!AI75 -> 0 | AK18: =Results!AJ75 -> 0 | AL18: =Results!AK75 -> 0 | AM18: =Results!AL75 -> 0 | AN18: =Results!AM75 -> 0 | AO18: =Results!AN75 -> 0 | AP18: =Results!AO75 -> 0 | AQ18: =Results!AP75 -> 0 | AR18: =Results!AQ75 -> 0 | AS18: =Results!AR75 -> 0 | AT18: =Results!AS75 -> 0 | AU18: 0
A19: Vote 01 | B19: =RIGHT(Results!$D$5,LEN(Results!$D$5)-9) -> The Presidency | C19: 1 | D19: Minister | E19: =Results!D76 -> 0 | F19: =Results!E76 -> 0 | G19: =Results!F76 -> 0 | H19: =Results!G76 -> 0 | I19: =Results!H76 -> 0 | J19: =Results!I76 -> 0 | K19: =Results!J76 -> 0 | L19: =Results!K76 -> 0 | M19: =Results!L76 -> 0 | N19: =Results!M76 -> 0 | O19: =Results!N76 -> 0 | P19: =Results!O76 -> 0 | Q19: =Results!P76 -> 0 | R19: =Results!Q76 -> 0 | S19: =Results!R76 -> 0 | T19: =Results!S76 -> 0 | U19: =Results!T76 -> 0 | V19: =Results!U76 -> 0 | W19: =Results!V76 -> 0 | X19: =Results!W76 -> 0 | Y19: =Results!X76 -> 0 | Z19: =Results!Y76 -> 0 | AA19: =Results!Z76 -> 0 | AB19: =Results!AA76 -> 0 | AC19: =Results!AB76 -> 0 | AD19: =Results!AC76 -> 0 | AE19: =Results!AD76 -> 0 | AF19: =Results!AE76 -> 0 | AG19: =Results!AF76 -> 0 | AH19: =Results!AG76 -> 0 | AI19: =Results!AH76 -> 0 | AJ19: =Results!AI76 -> 0 | AK19: =Results!AJ76 -> 0 | AL19: =Results!AK76 -> 0 | AM19: =Results!AL76 -> 0 | AN19: =Results!AM76 -> 0 | AO19: =Results!AN76 -> 0 | AP19: =Results!AO76 -> 0 | AQ19: =Results!AP76 -> 0 | AR19: =Results!AQ76 -> 0 | AS19: =Results!AR76 -> 0 | AT19: =Results!AS76 -> 0 | AU19: 0
A20: Vote 01 | B20: =RIGHT(Results!$D$5,LEN(Results!$D$5)-9) -> The Presidency | C20: 1 | D20: Intern | E20: =Results!D77 -> 0 | F20: =Results!E77 -> 0 | G20: =Results!F77 -> 0 | H20: =Results!G77 -> 0 | I20: =Results!H77 -> 0 | J20: =Results!I77 -> 0 | K20: =Results!J77 -> 0 | L20: =Results!K77 -> 14.64 | M20: =Results!L77 -> 0 | N20: =Results!M77 -> 0 | O20: =Results!N77 -> 0 | P20: =Results!O77 -> 0 | Q20: =Results!P77 -> 0 | R20: =Results!Q77 -> 0 | S20: =Results!R77 -> 0 | T20: =Results!S77 -> 0 | U20: =Results!T77 -> 15.55207035 | V20: =Results!U77 -> 0 | W20: =Results!V77 -> 0 | X20: =Results!W77 -> 0 | Y20: =Results!X77 -> 0 | Z20: =Results!Y77 -> 0 | AA20: =Results!Z77 -> 0 | AB20: =Results!AA77 -> 0 | AC20: =Results!AB77 -> 0 | AD20: =Results!AC77 -> 16.50319937 | AE20: =Results!AD77 -> 0 | AF20: =Results!AE77 -> 0 | AG20: =Results!AF77 -> 0 | AH20: =Results!AG77 -> 0 | AI20: =Results!AH77 -> 0 | AJ20: =Results!AI77 -> 0 | AK20: =Results!AJ77 -> 0 | AL20: =Results!AK77 -> 0 | AM20: =Results!AL77 -> 17.49259358 | AN20: =Results!AM77 -> 0 | AO20: =Results!AN77 -> 0 | AP20: =Results!AO77 -> 0 | AQ20: =Results!AP77 -> 0 | AR20: =Results!AQ77 -> 0 | AS20: =Results!AR77 -> 0 | AT20: =Results!AS77 -> 0 | AU20: 1
A21: Vote 01 | B21: =RIGHT(Results!$D$5,LEN(Results!$D$5)-9) -> The Presidency | C21: 1 | D21: Other | E21: =Results!D78 -> 0 | F21: =Results!E78 -> 0 | G21: =Results!F78 -> 0 | H21: =Results!G78 -> 0 | I21: =Results!H78 -> 0 | J21: =Results!I78 -> 0 | K21: =Results!J78 -> 0 | L21: =Results!K78 -> 14.64 | M21: =Results!L78 -> 0 | N21: =Results!M78 -> 0 | O21: =Results!N78 -> 0 | P21: =Results!O78 -> 0 | Q21: =Results!P78 -> 0 | R21: =Results!Q78 -> 0 | S21: =Results!R78 -> 0 | T21: =Results!S78 -> 0 | U21: =Results!T78 -> 15.55207035 | V21: =Results!U78 -> 0 | W21: =Results!V78 -> 0 | X21: =Results!W78 -> 0 | Y21: =Results!X78 -> 0 | Z21: =Results!Y78 -> 0 | AA21: =Results!Z78 -> 0 | AB21: =Results!AA78 -> 0 | AC21: =Results!AB78 -> 0 | AD21: =Results!AC78 -> 16.50319937 | AE21: =Results!AD78 -> 0 | AF21: =Results!AE78 -> 0 | AG21: =Results!AF78 -> 0 | AH21: =Results!AG78 -> 0 | AI21: =Results!AH78 -> 0 | AJ21: =Results!AI78 -> 0 | AK21: =Results!AJ78 -> 0 | AL21: =Results!AK78 -> 0 | AM21: =Results!AL78 -> 17.49259358 | AN21: =Results!AM78 -> 0 | AO21: =Results!AN78 -> 0 | AP21: =Results!AO78 -> 0 | AQ21: =Results!AP78 -> 0 | AR21: =Results!AQ78 -> 0 | AS21: =Results!AR78 -> 0 | AT21: =Results!AS78 -> 0 | AU21: 1
A22: Vote 01 | B22: =RIGHT(Results!$D$5,LEN(Results!$D$5)-9) -> The Presidency | C22: 2 | D22: 1 | E22: =Results!D88 -> 0 | F22: =Results!E88 -> 0 | G22: =Results!F88 -> 0 | H22: =Results!G88 -> 0 | I22: =Results!H88 -> 14.64 | J22: =Results!I88 -> 0 | K22: =Results!J88 -> 0 | L22: =Results!K88 -> -0.7327463407 | M22: =Results!L88 -> 0 | N22: =Results!M88 -> 0 | O22: =Results!N88 -> 0 | P22: =Results!O88 -> 0 | Q22: =Results!P88 -> 0 | R22: =Results!Q88 -> 0 | S22: =Results!R88 -> 0 | T22: =Results!S88 -> 0 | U22: =Results!T88 -> -0.7783963549 | V22: =Results!U88 -> 0 | W22: =Results!V88 -> 0 | X22: =Results!W88 -> 0 | Y22: =Results!X88 -> 0 | Z22: =Results!Y88 -> 0 | AA22: =Results!Z88 -> 0 | AB22: =Results!AA88 -> 0 | AC22: =Results!AB88 -> 0 | AD22: =Results!AC88 -> -0.8260012942 | AE22: =Results!AD88 -> 0 | AF22: =Results!AE88 -> 0 | AG22: =Results!AF88 -> 0 | AH22: =Results!AG88 -> 0 | AI22: =Results!AH88 -> 0 | AJ22: =Results!AI88 -> 0 | AK22: =Results!AJ88 -> 0 | AL22: =Results!AK88 -> 0 | AM22: =Results!AL88 -> -0.8755214437 | AN22: =Results!AM88 -> 0 | AO22: =Results!AN88 -> 0 | AP22: =Results!AO88 -> 0 | AQ22: =Results!AP88 -> 0 | AR22: =Results!AQ88 -> 0 | AS22: =Results!AR88 -> 0 | AT22: =Results!AS88 -> 0 | AU22: 1
A23: Vote 01 | B23: =RIGHT(Results!$D$5,LEN(Results!$D$5)-9) -> The Presidency | C23: 2 | D23: 2 | E23: =Results!D89 -> 0 | F23: =Results!E89 -> 0 | G23: =Results!F89 -> 0 | H23: =Results!G89 -> 0 | I23: =Results!H89 -> 14.64 | J23: =Results!I89 -> 0 | K23: =Results!J89 -> 0 | L23: =Results!K89 -> -0.75852768 | M23: =Results!L89 -> 0 | N23: =Results!M89 -> 0 | O23: =Results!N89 -> 0 | P23: =Results!O89 -> 0 | Q23: =Results!P89 -> 0 | R23: =Results!Q89 -> 0 | S23: =Results!R89 -> 0 | T23: =Results!S89 -> 0 | U23: =Results!T89 -> -0.8033717507 | V23: =Results!U89 -> 0 | W23: =Results!V89 -> 0 | X23: =Results!W89 -> 0 | Y23: =Results!X89 -> 0 | Z23: =Results!Y89 -> 0 | AA23: =Results!Z89 -> 0 | AB23: =Results!AA89 -> 0 | AC23: =Results!AB89 -> 0 | AD23: =Results!AC89 -> -0.8499494059 | AE23: =Results!AD89 -> 0 | AF23: =Results!AE89 -> 0 | AG23: =Results!AF89 -> 0 | AH23: =Results!AG89 -> 0 | AI23: =Results!AH89 -> 0 | AJ23: =Results!AI89 -> 0 | AK23: =Results!AJ89 -> 0 | AL23: =Results!AK89 -> 0 | AM23: =Results!AL89 -> -0.8982024454 | AN23: =Results!AM89 -> 0 | AO23: =Results!AN89 -> 0 | AP23: =Results!AO89 -> 0 | AQ23: =Results!AP89 -> 0 | AR23: =Results!AQ89 -> 0 | AS23: =Results!AR89 -> 0 | AT23: =Results!AS89 -> 0 | AU23: 1
A24: Vote 01 | B24: =RIGHT(Results!$D$5,LEN(Results!$D$5)-9) -> The Presidency | C24: 2 | D24: 3 | E24: =Results!D90 -> 0 | F24: =Results!E90 -> 0 | G24: =Results!F90 -> 0 | H24: =Results!G90 -> 0 | I24: =Results!H90 -> 14.64 | J24: =Results!I90 -> 0 | K24: =Results!J90 -> 0 | L24: =Results!K90 -> -0.75003648 | M24: =Results!L90 -> 0 | N24: =Results!M90 -> 0 | O24: =Results!N90 -> 0 | P24: =Results!O90 -> 0 | Q24: =Results!P90 -> 0 | R24: =Results!Q90 -> 0 | S24: =Results!R90 -> 0 | T24: =Results!S90 -> 0 | U24: =Results!T90 -> -0.7945455851 | V24: =Results!U90 -> 0 | W24: =Results!V90 -> 0 | X24: =Results!W90 -> 0 | Y24: =Results!X90 -> 0 | Z24: =Results!Y90 -> 0 | AA24: =Results!Z90 -> 0 | AB24: =Results!AA90 -> 0 | AC24: =Results!AB90 -> 0 | AD24: =Results!AC90 -> -0.8407893723 | AE24: =Results!AD90 -> 0 | AF24: =Results!AE90 -> 0 | AG24: =Results!AF90 -> 0 | AH24: =Results!AG90 -> 0 | AI24: =Results!AH90 -> 0 | AJ24: =Results!AI90 -> 0 | AK24: =Results!AJ90 -> 0 | AL24: =Results!AK90 -> 0 | AM24: =Results!AL90 -> -0.8887115998 | AN24: =Results!AM90 -> 0 | AO24: =Results!AN90 -> 0 | AP24: =Results!AO90 -> 0 | AQ24: =Results!AP90 -> 0 | AR24: =Results!AQ90 -> 0 | AS24: =Results!AR90 -> 0 | AT24: =Results!AS90 -> 0 | AU24: 1
A25: Vote 01 | B25: =RIGHT(Results!$D$5,LEN(Results!$D$5)-9) -> The Presidency | C25: 2 | D25: 4 | E25: =Results!D91 -> 0 | F25: =Results!E91 -> 0 | G25: =Results!F91 -> 0 | H25: =Results!G91 -> 0 | I25: =Results!H91 -> 14.64 | J25: =Results!I91 -> 0 | K25: =Results!J91 -> 0 | L25: =Results!K91 -> -0.76264152 | M25: =Results!L91 -> 0 | N25: =Results!M91 -> 0 | O25: =Results!N91 -> 0 | P25: =Results!O91 -> 0 | Q25: =Results!P91 -> 0 | R25: =Results!Q91 -> 0 | S25: =Results!R91 -> 0 | T25: =Results!S91 -> 0 | U25: =Results!T91 -> -0.8081749457 | V25: =Results!U91 -> 0 | W25: =Results!V91 -> 0 | X25: =Results!W91 -> 0 | Y25: =Results!X91 -> 0 | Z25: =Results!Y91 -> 0 | AA25: =Results!Z91 -> 0 | AB25: =Results!AA91 -> 0 | AC25: =Results!AB91 -> 0 | AD25: =Results!AC91 -> -0.8555038615 | AE25: =Results!AD91 -> 0 | AF25: =Results!AE91 -> 0 | AG25: =Results!AF91 -> 0 | AH25: =Results!AG91 -> 0 | AI25: =Results!AH91 -> 0 | AJ25: =Results!AI91 -> 0 | AK25: =Results!AJ91 -> 0 | AL25: =Results!AK91 -> 0 | AM25: =Results!AL91 -> -0.9045727065 | AN25: =Results!AM91 -> 0 | AO25: =Results!AN91 -> 0 | AP25: =Results!AO91 -> 0 | AQ25: =Results!AP91 -> 0 | AR25: =Results!AQ91 -> 0 | AS25: =Results!AR91 -> 0 | AT25: =Results!AS91 -> 0 | AU25: 1
A26: Vote 01 | B26: =RIGHT(Results!$D$5,LEN(Results!$D$5)-9) -> The Presidency | C26: 2 | D26: 5 | E26: =Results!D92 -> 0 | F26: =Results!E92 -> 0 | G26: =Results!F92 -> 0 | H26: =Results!G92 -> 0 | I26: =Results!H92 -> 14.64 | J26: =Results!I92 -> 0 | K26: =Results!J92 -> 0 | L26: =Results!K92 -> -0.77221608 | M26: =Results!L92 -> 0 | N26: =Results!M92 -> 0 | O26: =Results!N92 -> 0 | P26: =Results!O92 -> 0 | Q26: =Results!P92 -> 0 | R26: =Results!Q92 -> 0 | S26: =Results!R92 -> 0 | T26: =Results!S92 -> 0 | U26: =Results!T92 -> -0.8187711242 | V26: =Results!U92 -> 0 | W26: =Results!V92 -> 0 | X26: =Results!W92 -> 0 | Y26: =Results!X92 -> 0 | Z26: =Results!Y92 -> 0 | AA26: =Results!Z92 -> 0 | AB26: =Results!AA92 -> 0 | AC26: =Results!AB92 -> 0 | AD26: =Results!AC92 -> -0.8671986141 | AE26: =Results!AD92 -> 0 | AF26: =Results!AE92 -> 0 | AG26: =Results!AF92 -> 0 | AH26: =Results!AG92 -> 0 | AI26: =Results!AH92 -> 0 | AJ26: =Results!AI92 -> 0 | AK26: =Results!AJ92 -> 0 | AL26: =Results!AK92 -> 0 | AM26: =Results!AL92 -> -0.9174455841 | AN26: =Results!AM92 -> 0 | AO26: =Results!AN92 -> 0 | AP26: =Results!AO92 -> 0 | AQ26: =Results!AP92 -> 0 | AR26: =Results!AQ92 -> 0 | AS26: =Results!AR92 -> 0 | AT26: =Results!AS92 -> 0 | AU26: 1
A27: Vote 01 | B27: =RIGHT(Results!$D$5,LEN(Results!$D$5)-9) -> The Presidency | C27: 2 | D27: 6 | E27: =Results!D93 -> 0 | F27: =Results!E93 -> 0 | G27: =Results!F93 -> 0 | H27: =Results!G93 -> 0 | I27: =Results!H93 -> 16.224 | J27: =Results!I93 -> 0 | K27: =Results!J93 -> 0 | L27: =Results!K93 -> -0.838148064 | M27: =Results!L93 -> 0 | N27: =Results!M93 -> 0 | O27: =Results!N93 -> 0 | P27: =Results!O93 -> 0 | Q27: =Results!P93 -> 0 | R27: =Results!Q93 -> 0 | S27: =Results!R93 -> 0 | T27: =Results!S93 -> 0 | U27: =Results!T93 -> -0.8888307827 | V27: =Results!U93 -> 0 | W27: =Results!V93 -> 0 | X27: =Results!W93 -> 0 | Y27: =Results!X93 -> 0 | Z27: =Results!Y93 -> 0 | AA27: =Results!Z93 -> 0 | AB27: =Results!AA93 -> 0 | AC27: =Results!AB93 -> 0 | AD27: =Results!AC93 -> -0.9415630785 | AE27: =Results!AD93 -> 0 | AF27: =Results!AE93 -> 0 | AG27: =Results!AF93 -> 0 | AH27: =Results!AG93 -> 0 | AI27: =Results!AH93 -> 0 | AJ27: =Results!AI93 -> 0 | AK27: =Results!AJ93 -> 0 | AL27: =Results!AK93 -> 0 | AM27: =Results!AL93 -> -0.9962882885 | AN27: =Results!AM93 -> 0 | AO27: =Results!AN93 -> 0 | AP27: =Results!AO93 -> 0 | AQ27: =Results!AP93 -> 0 | AR27: =Results!AQ93 -> 0 | AS27: =Results!AR93 -> 0 | AT27: =Results!AS93 -> 0 | AU27: 1
A28: Vote 01 | B28: =RIGHT(Results!$D$5,LEN(Results!$D$5)-9) -> The Presidency | C28: 2 | D28: 7 | E28: =Results!D94 -> 0 | F28: =Results!E94 -> 0 | G28: =Results!F94 -> 0 | H28: =Results!G94 -> 0 | I28: =Results!H94 -> 16.224 | J28: =Results!I94 -> 0 | K28: =Results!J94 -> 0 | L28: =Results!K94 -> -0.831674688 | M28: =Results!L94 -> 0 | N28: =Results!M94 -> 0 | O28: =Results!N94 -> 0 | P28: =Results!O94 -> 0 | Q28: =Results!P94 -> 0 | R28: =Results!Q94 -> 0 | S28: =Results!R94 -> 0 | T28: =Results!S94 -> 0 | U28: =Results!T94 -> -0.8822029897 | V28: =Results!U94 -> 0 | W28: =Results!V94 -> 0 | X28: =Results!W94 -> 0 | Y28: =Results!X94 -> 0 | Z28: =Results!Y94 -> 0 | AA28: =Results!Z94 -> 0 | AB28: =Results!AA94 -> 0 | AC28: =Results!AB94 -> 0 | AD28: =Results!AC94 -> -0.9347935015 | AE28: =Results!AD94 -> 0 | AF28: =Results!AE94 -> 0 | AG28: =Results!AF94 -> 0 | AH28: =Results!AG94 -> 0 | AI28: =Results!AH94 -> 0 | AJ28: =Results!AI94 -> 0 | AK28: =Results!AJ94 -> 0 | AL28: =Results!AK94 -> 0 | AM28: =Results!AL94 -> -0.9893916686 | AN28: =Results!AM94 -> 0 | AO28: =Results!AN94 -> 0 | AP28: =Results!AO94 -> 0 | AQ28: =Results!AP94 -> 0 | AR28: =Results!AQ94 -> 0 | AS28: =Results!AR94 -> 0 | AT28: =Results!AS94 -> 0 | AU28: 1
A29: Vote 01 | B29: =RIGHT(Results!$D$5,LEN(Results!$D$5)-9) -> The Presidency | C29: 2 | D29: 8 | E29: =Results!D95 -> 0 | F29: =Results!E95 -> 0 | G29: =Results!F95 -> 0 | H29: =Results!G95 -> 0 | I29: =Results!H95 -> 17.4 | J29: =Results!I95 -> 0 | K29: =Results!J95 -> 0 | L29: =Results!K95 -> -0.8827716 | M29: =Results!L95 -> 0 | N29: =Results!M95 -> 0 | O29: =Results!N95 -> 0 | P29: =Results!O95 -> 0 | Q29: =Results!P95 -> 0 | R29: =Results!Q95 -> 0 | S29: =Results!R95 -> 0 | T29: =Results!S95 -> 0 | U29: =Results!T95 -> -0.9363910472 | V29: =Results!U95 -> 0 | W29: =Results!V95 -> 0 | X29: =Results!W95 -> 0 | Y29: =Results!X95 -> 0 | Z29: =Results!Y95 -> 0 | AA29: =Results!Z95 -> 0 | AB29: =Results!AA95 -> 0 | AC29: =Results!AB95 -> 0 | AD29: =Results!AC95 -> -0.9921978102 | AE29: =Results!AD95 -> 0 | AF29: =Results!AE95 -> 0 | AG29: =Results!AF95 -> 0 | AH29: =Results!AG95 -> 0 | AI29: =Results!AH95 -> 0 | AJ29: =Results!AI95 -> 0 | AK29: =Results!AJ95 -> 0 | AL29: =Results!AK95 -> 0 | AM29: =Results!AL95 -> -1.050133888 | AN29: =Results!AM95 -> 0 | AO29: =Results!AN95 -> 0 | AP29: =Results!AO95 -> 0 | AQ29: =Results!AP95 -> 0 | AR29: =Results!AQ95 -> 0 | AS29: =Results!AR95 -> 0 | AT29: =Results!AS95 -> 0 | AU29: 1
A30: Vote 01 | B30: =RIGHT(Results!$D$5,LEN(Results!$D$5)-9) -> The Presidency | C30: 2 | D30: 9 | E30: =Results!D96 -> 0 | F30: =Results!E96 -> 0 | G30: =Results!F96 -> 0 | H30: =Results!G96 -> 0 | I30: =Results!H96 -> 17.4 | J30: =Results!I96 -> 0 | K30: =Results!J96 -> 0 | L30: =Results!K96 -> -0.8920632 | M30: =Results!L96 -> 0 | N30: =Results!M96 -> 0 | O30: =Results!N96 -> 0 | P30: =Results!O96 -> 0 | Q30: =Results!P96 -> 0 | R30: =Results!Q96 -> 0 | S30: =Results!R96 -> 0 | T30: =Results!S96 -> 0 | U30: =Results!T96 -> -0.9465835933 | V30: =Results!U96 -> 0 | W30: =Results!V96 -> 0 | X30: =Results!W96 -> 0 | Y30: =Results!X96 -> 0 | Z30: =Results!Y96 -> 0 | AA30: =Results!Z96 -> 0 | AB30: =Results!AA96 -> 0 | AC30: =Results!AB96 -> 0 | AD30: =Results!AC96 -> -1.003353873 | AE30: =Results!AD96 -> 0 | AF30: =Results!AE96 -> 0 | AG30: =Results!AF96 -> 0 | AH30: =Results!AG96 -> 0 | AI30: =Results!AH96 -> 0 | AJ30: =Results!AI96 -> 0 | AK30: =Results!AJ96 -> 0 | AL30: =Results!AK96 -> 0 | AM30: =Results!AL96 -> -1.062317582 | AN30: =Results!AM96 -> 0 | AO30: =Results!AN96 -> 0 | AP30: =Results!AO96 -> 0 | AQ30: =Results!AP96 -> 0 | AR30: =Results!AQ96 -> 0 | AS30: =Results!AR96 -> 0 | AT30: =Results!AS96 -> 0 | AU30: 1
A31: Vote 01 | B31: =RIGHT(Results!$D$5,LEN(Results!$D$5)-9) -> The Presidency | C31: 2 | D31: 10 | E31: =Results!D97 -> 0 | F31: =Results!E97 -> 0 | G31: =Results!F97 -> 0 | H31: =Results!G97 -> 0 | I31: =Results!H97 -> 19.68 | J31: =Results!I97 -> 0 | K31: =Results!J97 -> 0 | L31: =Results!K97 -> -0.98457072 | M31: =Results!L97 -> 0 | N31: =Results!M97 -> 0 | O31: =Results!N97 -> 0 | P31: =Results!O97 -> 0 | Q31: =Results!P97 -> 0 | R31: =Results!Q97 -> 0 | S31: =Results!R97 -> 0 | T31: =Results!S97 -> 0 | U31: =Results!T97 -> -1.045040284 | V31: =Results!U97 -> 0 | W31: =Results!V97 -> 0 | X31: =Results!W97 -> 0 | Y31: =Results!X97 -> 0 | Z31: =Results!Y97 -> 0 | AA31: =Results!Z97 -> 0 | AB31: =Results!AA97 -> 0 | AC31: =Results!AB97 -> 0 | AD31: =Results!AC97 -> -1.108028905 | AE31: =Results!AD97 -> 0 | AF31: =Results!AE97 -> 0 | AG31: =Results!AF97 -> 0 | AH31: =Results!AG97 -> 0 | AI31: =Results!AH97 -> 0 | AJ31: =Results!AI97 -> 0 | AK31: =Results!AJ97 -> 0 | AL31: =Results!AK97 -> 0 | AM31: =Results!AL97 -> -1.173476419 | AN31: =Results!AM97 -> 0 | AO31: =Results!AN97 -> 0 | AP31: =Results!AO97 -> 0 | AQ31: =Results!AP97 -> 0 | AR31: =Results!AQ97 -> 0 | AS31: =Results!AR97 -> 0 | AT31: =Results!AS97 -> 0 | AU31: 1
A32: Vote 01 | B32: =RIGHT(Results!$D$5,LEN(Results!$D$5)-9) -> The Presidency | C32: 2 | D32: 11 | E32: =Results!D98 -> 0 | F32: =Results!E98 -> 0 | G32: =Results!F98 -> 0 | H32: =Results!G98 -> 0 | I32: =Results!H98 -> 19.68 | J32: =Results!I98 -> 0 | K32: =Results!J98 -> 0 | L32: =Results!K98 -> -0.97124736 | M32: =Results!L98 -> 0 | N32: =Results!M98 -> 0 | O32: =Results!N98 -> 0 | P32: =Results!O98 -> 0 | Q32: =Results!P98 -> 0 | R32: =Results!Q98 -> 0 | S32: =Results!R98 -> 0 | T32: =Results!S98 -> 0 | U32: =Results!T98 -> -1.031578902 | V32: =Results!U98 -> 0 | W32: =Results!V98 -> 0 | X32: =Results!W98 -> 0 | Y32: =Results!X98 -> 0 | Z32: =Results!Y98 -> 0 | AA32: =Results!Z98 -> 0 | AB32: =Results!AA98 -> 0 | AC32: =Results!AB98 -> 0 | AD32: =Results!AC98 -> -1.094481028 | AE32: =Results!AD98 -> 0 | AF32: =Results!AE98 -> 0 | AG32: =Results!AF98 -> 0 | AH32: =Results!AG98 -> 0 | AI32: =Results!AH98 -> 0 | AJ32: =Results!AI98 -> 0 | AK32: =Results!AJ98 -> 0 | AL32: =Results!AK98 -> 0 | AM32: =Results!AL98 -> -1.15990003 | AN32: =Results!AM98 -> 0 | AO32: =Results!AN98 -> 0 | AP32: =Results!AO98 -> 0 | AQ32: =Results!AP98 -> 0 | AR32: =Results!AQ98 -> 0 | AS32: =Results!AR98 -> 0 | AT32: =Results!AS98 -> 0 | AU32: 1
A33: Vote 01 | B33: =RIGHT(Results!$D$5,LEN(Results!$D$5)-9) -> The Presidency | C33: 2 | D33: 12 | E33: =Results!D99 -> 0 | F33: =Results!E99 -> 0 | G33: =Results!F99 -> 0 | H33: =Results!G99 -> 0 | I33: =Results!H99 -> 20.34 | J33: =Results!I99 -> 0 | K33: =Results!J99 -> 0 | L33: =Results!K99 -> -0.98844264 | M33: =Results!L99 -> 0 | N33: =Results!M99 -> 0 | O33: =Results!N99 -> 0 | P33: =Results!O99 -> 0 | Q33: =Results!P99 -> 0 | R33: =Results!Q99 -> 0 | S33: =Results!R99 -> 0 | T33: =Results!S99 -> 0 | U33: =Results!T99 -> -1.049827485 | V33: =Results!U99 -> 0 | W33: =Results!V99 -> 0 | X33: =Results!W99 -> 0 | Y33: =Results!X99 -> 0 | Z33: =Results!Y99 -> 0 | AA33: =Results!Z99 -> 0 | AB33: =Results!AA99 -> 0 | AC33: =Results!AB99 -> 0 | AD33: =Results!AC99 -> -1.113826599 | AE33: =Results!AD99 -> 0 | AF33: =Results!AE99 -> 0 | AG33: =Results!AF99 -> 0 | AH33: =Results!AG99 -> 0 | AI33: =Results!AH99 -> 0 | AJ33: =Results!AI99 -> 0 | AK33: =Results!AJ99 -> 0 | AL33: =Results!AK99 -> 0 | AM33: =Results!AL99 -> -1.180385212 | AN33: =Results!AM99 -> 0 | AO33: =Results!AN99 -> 0 | AP33: =Results!AO99 -> 0 | AQ33: =Results!AP99 -> 0 | AR33: =Results!AQ99 -> 0 | AS33: =Results!AR99 -> 0 | AT33: =Results!AS99 -> 0 | AU33: 1
A34: Vote 01 | B34: =RIGHT(Results!$D$5,LEN(Results!$D$5)-9) -> The Presidency | C34: 2 | D34: 13 | E34: =Results!D100 -> 0 | F34: =Results!E100 -> 0 | G34: =Results!F100 -> 0 | H34: =Results!G100 -> 0 | I34: =Results!H100 -> 20.34 | J34: =Results!I100 -> 0 | K34: =Results!J100 -> 0 | L34: =Results!K100 -> -0.98712054 | M34: =Results!L100 -> 0 | N34: =Results!M100 -> 0 | O34: =Results!N100 -> 0 | P34: =Results!O100 -> 0 | Q34: =Results!P100 -> 0 | R34: =Results!Q100 -> 0 | S34: =Results!R100 -> 0 | T34: =Results!S100 -> 0 | U34: =Results!T100 -> -1.048410743 | V34: =Results!U100 -> 0 | W34: =Results!V100 -> 0 | X34: =Results!W100 -> 0 | Y34: =Results!X100 -> 0 | Z34: =Results!Y100 -> 0 | AA34: =Results!Z100 -> 0 | AB34: =Results!AA100 -> 0 | AC34: =Results!AB100 -> 0 | AD34: =Results!AC100 -> -1.112308978 | AE34: =Results!AD100 -> 0 | AF34: =Results!AE100 -> 0 | AG34: =Results!AF100 -> 0 | AH34: =Results!AG100 -> 0 | AI34: =Results!AH100 -> 0 | AJ34: =Results!AI100 -> 0 | AK34: =Results!AJ100 -> 0 | AL34: =Results!AK100 -> 0 | AM34: =Results!AL100 -> -1.178760164 | AN34: =Results!AM100 -> 0 | AO34: =Results!AN100 -> 0 | AP34: =Results!AO100 -> 0 | AQ34: =Results!AP100 -> 0 | AR34: =Results!AQ100 -> 0 | AS34: =Results!AR100 -> 0 | AT34: =Results!AS100 -> 0 | AU34: 1
A35: Vote 01 | B35: =RIGHT(Results!$D$5,LEN(Results!$D$5)-9) -> The Presidency | C35: 2 | D35: 14 | E35: =Results!D101 -> 0 | F35: =Results!E101 -> 0 | G35: =Results!F101 -> 0 | H35: =Results!G101 -> 0 | I35: =Results!H101 -> 20.34 | J35: =Results!I101 -> 0 | K35: =Results!J101 -> 0 | L35: =Results!K101 -> -0.98463906 | M35: =Results!L101 -> 0 | N35: =Results!M101 -> 0 | O35: =Results!N101 -> 0 | P35: =Results!O101 -> 0 | Q35: =Results!P101 -> 0 | R35: =Results!Q101 -> 0 | S35: =Results!R101 -> 0 | T35: =Results!S101 -> 0 | U35: =Results!T101 -> -1.045804727 | V35: =Results!U101 -> 0 | W35: =Results!V101 -> 0 | X35: =Results!W101 -> 0 | Y35: =Results!X101 -> 0 | Z35: =Results!Y101 -> 0 | AA35: =Results!Z101 -> 0 | AB35: =Results!AA101 -> 0 | AC35: =Results!AB101 -> 0 | AD35: =Results!AC101 -> -1.109575506 | AE35: =Results!AD101 -> 0 | AF35: =Results!AE101 -> 0 | AG35: =Results!AF101 -> 0 | AH35: =Results!AG101 -> 0 | AI35: =Results!AH101 -> 0 | AJ35: =Results!AI101 -> 0 | AK35: =Results!AJ101 -> 0 | AL35: =Results!AK101 -> 0 | AM35: =Results!AL101 -> -1.175896676 | AN35: =Results!AM101 -> 0 | AO35: =Results!AN101 -> 0 | AP35: =Results!AO101 -> 0 | AQ35: =Results!AP101 -> 0 | AR35: =Results!AQ101 -> 0 | AS35: =Results!AR101 -> 0 | AT35: =Results!AS101 -> 0 | AU35: 1
A36: Vote 01 | B36: =RIGHT(Results!$D$5,LEN(Results!$D$5)-9) -> The Presidency | C36: 2 | D36: 15 | E36: =Results!D102 -> 0 | F36: =Results!E102 -> 0 | G36: =Results!F102 -> 0 | H36: =Results!G102 -> 0 | I36: =Results!H102 -> 20.34 | J36: =Results!I102 -> 0 | K36: =Results!J102 -> 0 | L36: =Results!K102 -> -0.98858502 | M36: =Results!L102 -> 0 | N36: =Results!M102 -> 0 | O36: =Results!N102 -> 0 | P36: =Results!O102 -> 0 | Q36: =Results!P102 -> 0 | R36: =Results!Q102 -> 0 | S36: =Results!R102 -> 0 | T36: =Results!S102 -> 0 | U36: =Results!T102 -> -1.050023194 | V36: =Results!U102 -> 0 | W36: =Results!V102 -> 0 | X36: =Results!W102 -> 0 | Y36: =Results!X102 -> 0 | Z36: =Results!Y102 -> 0 | AA36: =Results!Z102 -> 0 | AB36: =Results!AA102 -> 0 | AC36: =Results!AB102 -> 0 | AD36: =Results!AC102 -> -1.11408149 | AE36: =Results!AD102 -> 0 | AF36: =Results!AE102 -> 0 | AG36: =Results!AF102 -> 0 | AH36: =Results!AG102 -> 0 | AI36: =Results!AH102 -> 0 | AJ36: =Results!AI102 -> 0 | AK36: =Results!AJ102 -> 0 | AL36: =Results!AK102 -> 0 | AM36: =Results!AL102 -> -1.180705467 | AN36: =Results!AM102 -> 0 | AO36: =Results!AN102 -> 0 | AP36: =Results!AO102 -> 0 | AQ36: =Results!AP102 -> 0 | AR36: =Results!AQ102 -> 0 | AS36: =Results!AR102 -> 0 | AT36: =Results!AS102 -> 0 | AU36: 1
A37: Vote 01 | B37: =RIGHT(Results!$D$5,LEN(Results!$D$5)-9) -> The Presidency | C37: 2 | D37: 16 | E37: =Results!D103 -> 0 | F37: =Results!E103 -> 0 | G37: =Results!F103 -> 0 | H37: =Results!G103 -> 0 | I37: =Results!H103 -> 21.816 | J37: =Results!I103 -> 0 | K37: =Results!J103 -> 0 | L37: =Results!K103 -> -1.04684076 | M37: =Results!L103 -> 0 | N37: =Results!M103 -> 0 | O37: =Results!N103 -> 0 | P37: =Results!O103 -> 0 | Q37: =Results!P103 -> 0 | R37: =Results!Q103 -> 0 | S37: =Results!R103 -> 0 | T37: =Results!S103 -> 0 | U37: =Results!T103 -> -1.112043118 | V37: =Results!U103 -> 0 | W37: =Results!V103 -> 0 | X37: =Results!W103 -> 0 | Y37: =Results!X103 -> 0 | Z37: =Results!Y103 -> 0 | AA37: =Results!Z103 -> 0 | AB37: =Results!AA103 -> 0 | AC37: =Results!AB103 -> 0 | AD37: =Results!AC103 -> -1.180036449 | AE37: =Results!AD103 -> 0 | AF37: =Results!AE103 -> 0 | AG37: =Results!AF103 -> 0 | AH37: =Results!AG103 -> 0 | AI37: =Results!AH103 -> 0 | AJ37: =Results!AI103 -> 0 | AK37: =Results!AJ103 -> 0 | AL37: =Results!AK103 -> 0 | AM37: =Results!AL103 -> -1.250763894 | AN37: =Results!AM103 -> 0 | AO37: =Results!AN103 -> 0 | AP37: =Results!AO103 -> 0 | AQ37: =Results!AP103 -> 0 | AR37: =Results!AQ103 -> 0 | AS37: =Results!AR103 -> 0 | AT37: =Results!AS103 -> 0 | AU37: 1
A38: Vote 01 | B38: =RIGHT(Results!$D$5,LEN(Results!$D$5)-9) -> The Presidency | C38: 2 | D38: Deputy Minister | E38: =Results!D104 -> 0 | F38: =Results!E104 -> 0 | G38: =Results!F104 -> 0 | H38: =Results!G104 -> 0 | I38: =Results!H104 -> 0 | J38: =Results!I104 -> 0 | K38: =Results!J104 -> 0 | L38: =Results!K104 -> 14.64 | M38: =Results!L104 -> 0 | N38: =Results!M104 -> 0 | O38: =Results!N104 -> 0 | P38: =Results!O104 -> 0 | Q38: =Results!P104 -> 0 | R38: =Results!Q104 -> 0 | S38: =Results!R104 -> 0 | T38: =Results!S104 -> 0 | U38: =Results!T104 -> 15.55207035 | V38: =Results!U104 -> 0 | W38: =Results!V104 -> 0 | X38: =Results!W104 -> 0 | Y38: =Results!X104 -> 0 | Z38: =Results!Y104 -> 0 | AA38: =Results!Z104 -> 0 | AB38: =Results!AA104 -> 0 | AC38: =Results!AB104 -> 0 | AD38: =Results!AC104 -> 16.50319937 | AE38: =Results!AD104 -> 0 | AF38: =Results!AE104 -> 0 | AG38: =Results!AF104 -> 0 | AH38: =Results!AG104 -> 0 | AI38: =Results!AH104 -> 0 | AJ38: =Results!AI104 -> 0 | AK38: =Results!AJ104 -> 0 | AL38: =Results!AK104 -> 0 | AM38: =Results!AL104 -> 17.49259358 | AN38: =Results!AM104 -> 0 | AO38: =Results!AN104 -> 0 | AP38: =Results!AO104 -> 0 | AQ38: =Results!AP104 -> 0 | AR38: =Results!AQ104 -> 0 | AS38: =Results!AR104 -> 0 | AT38: =Results!AS104 -> 0 | AU38: 1
A39: Vote 01 | B39: =RIGHT(Results!$D$5,LEN(Results!$D$5)-9) -> The Presidency | C39: 2 | D39: Minister | E39: =Results!D105 -> 0 | F39: =Results!E105 -> 0 | G39: =Results!F105 -> 0 | H39: =Results!G105 -> 0 | I39: =Results!H105 -> 0 | J39: =Results!I105 -> 0 | K39: =Results!J105 -> 0 | L39: =Results!K105 -> 14.64 | M39: =Results!L105 -> 0 | N39: =Results!M105 -> 0 | O39: =Results!N105 -> 0 | P39: =Results!O105 -> 0 | Q39: =Results!P105 -> 0 | R39: =Results!Q105 -> 0 | S39: =Results!R105 -> 0 | T39: =Results!S105 -> 0 | U39: =Results!T105 -> 15.55207035 | V39: =Results!U105 -> 0 | W39: =Results!V105 -> 0 | X39: =Results!W105 -> 0 | Y39: =Results!X105 -> 0 | Z39: =Results!Y105 -> 0 | AA39: =Results!Z105 -> 0 | AB39: =Results!AA105 -> 0 | AC39: =Results!AB105 -> 0 | AD39: =Results!AC105 -> 16.50319937 | AE39: =Results!AD105 -> 0 | AF39: =Results!AE105 -> 0 | AG39: =Results!AF105 -> 0 | AH39: =Results!AG105 -> 0 | AI39: =Results!AH105 -> 0 | AJ39: =Results!AI105 -> 0 | AK39: =Results!AJ105 -> 0 | AL39: =Results!AK105 -> 0 | AM39: =Results!AL105 -> 17.49259358 | AN39: =Results!AM105 -> 0 | AO39: =Results!AN105 -> 0 | AP39: =Results!AO105 -> 0 | AQ39: =Results!AP105 -> 0 | AR39: =Results!AQ105 -> 0 | AS39: =Results!AR105 -> 0 | AT39: =Results!AS105 -> 0 | AU39: 1
A40: Vote 01 | B40: =RIGHT(Results!$D$5,LEN(Results!$D$5)-9) -> The Presidency | C40: 2 | D40: Intern | E40: =Results!D106 -> 0 | F40: =Results!E106 -> 0 | G40: =Results!F106 -> 0 | H40: =Results!G106 -> 0 | I40: =Results!H106 -> 0 | J40: =Results!I106 -> 0 | K40: =Results!J106 -> 0 | L40: =Results!K106 -> 14.64 | M40: =Results!L106 -> 0 | N40: =Results!M106 -> 0 | O40: =Results!N106 -> 0 | P40: =Results!O106 -> 0 | Q40: =Results!P106 -> 0 | R40: =Results!Q106 -> 0 | S40: =Results!R106 -> 0 | T40: =Results!S106 -> 0 | U40: =Results!T106 -> 15.55207035 | V40: =Results!U106 -> 0 | W40: =Results!V106 -> 0 | X40: =Results!W106 -> 0 | Y40: =Results!X106 -> 0 | Z40: =Results!Y106 -> 0 | AA40: =Results!Z106 -> 0 | AB40: =Results!AA106 -> 0 | AC40: =Results!AB106 -> 0 | AD40: =Results!AC106 -> 16.50319937 | AE40: =Results!AD106 -> 0 | AF40: =Results!AE106 -> 0 | AG40: =Results!AF106 -> 0 | AH40: =Results!AG106 -> 0 | AI40: =Results!AH106 -> 0 | AJ40: =Results!AI106 -> 0 | AK40: =Results!AJ106 -> 0 | AL40: =Results!AK106 -> 0 | AM40: =Results!AL106 -> 17.49259358 | AN40: =Results!AM106 -> 0 | AO40: =Results!AN106 -> 0 | AP40: =Results!AO106 -> 0 | AQ40: =Results!AP106 -> 0 | AR40: =Results!AQ106 -> 0 | AS40: =Results!AR106 -> 0 | AT40: =Results!AS106 -> 0 | AU40: 1
A41: Vote 01 | B41: =RIGHT(Results!$D$5,LEN(Results!$D$5)-9) -> The Presidency | C41: 2 | D41: Other | E41: =Results!D107 -> 0 | F41: =Results!E107 -> 0 | G41: =Results!F107 -> 0 | H41: =Results!G107 -> 0 | I41: =Results!H107 -> 0 | J41: =Results!I107 -> 0 | K41: =Results!J107 -> 0 | L41: =Results!K107 -> 14.64 | M41: =Results!L107 -> 0 | N41: =Results!M107 -> 0 | O41: =Results!N107 -> 0 | P41: =Results!O107 -> 0 | Q41: =Results!P107 -> 0 | R41: =Results!Q107 -> 0 | S41: =Results!R107 -> 0 | T41: =Results!S107 -> 0 | U41: =Results!T107 -> 15.55207035 | V41: =Results!U107 -> 0 | W41: =Results!V107 -> 0 | X41: =Results!W107 -> 0 | Y41: =Results!X107 -> 0 | Z41: =Results!Y107 -> 0 | AA41: =Results!Z107 -> 0 | AB41: =Results!AA107 -> 0 | AC41: =Results!AB107 -> 0 | AD41: =Results!AC107 -> 16.50319937 | AE41: =Results!AD107 -> 0 | AF41: =Results!AE107 -> 0 | AG41: =Results!AF107 -> 0 | AH41: =Results!AG107 -> 0 | AI41: =Results!AH107 -> 0 | AJ41: =Results!AI107 -> 0 | AK41: =Results!AJ107 -> 0 | AL41: =Results!AK107 -> 0 | AM41: =Results!AL107 -> 17.49259358 | AN41: =Results!AM107 -> 0 | AO41: =Results!AN107 -> 0 | AP41: =Results!AO107 -> 0 | AQ41: =Results!AP107 -> 0 | AR41: =Results!AQ107 -> 0 | AS41: =Results!AR107 -> 0 | AT41: =Results!AS107 -> 0 | AU41: 1
A42: Vote 01 | B42: =RIGHT(Results!$D$5,LEN(Results!$D$5)-9) -> The Presidency | C42: 3 | D42: 1 | E42: =Results!D117 -> 0 | F42: =Results!E117 -> 0 | G42: =Results!F117 -> 0 | H42: =Results!G117 -> 0 | I42: =Results!H117 -> 14.64 | J42: =Results!I117 -> 0 | K42: =Results!J117 -> 0 | L42: =Results!K117 -> -0.7327463407 | M42: =Results!L117 -> 0 | N42: =Results!M117 -> 0 | O42: =Results!N117 -> 0 | P42: =Results!O117 -> 0 | Q42: =Results!P117 -> 0 | R42: =Results!Q117 -> 0 | S42: =Results!R117 -> 0 | T42: =Results!S117 -> 0 | U42: =Results!T117 -> -0.7783963549 | V42: =Results!U117 -> 0 | W42: =Results!V117 -> 0 | X42: =Results!W117 -> 0 | Y42: =Results!X117 -> 0 | Z42: =Results!Y117 -> 0 | AA42: =Results!Z117 -> 0 | AB42: =Results!AA117 -> 0 | AC42: =Results!AB117 -> 0 | AD42: =Results!AC117 -> -0.8260012942 | AE42: =Results!AD117 -> 0 | AF42: =Results!AE117 -> 0 | AG42: =Results!AF117 -> 0 | AH42: =Results!AG117 -> 0 | AI42: =Results!AH117 -> 0 | AJ42: =Results!AI117 -> 0 | AK42: =Results!AJ117 -> 0 | AL42: =Results!AK117 -> 0 | AM42: =Results!AL117 -> -0.8755214437 | AN42: =Results!AM117 -> 0 | AO42: =Results!AN117 -> 0 | AP42: =Results!AO117 -> 0 | AQ42: =Results!AP117 -> 0 | AR42: =Results!AQ117 -> 0 | AS42: =Results!AR117 -> 0 | AT42: =Results!AS117 -> 0 | AU42: 1
A43: Vote 01 | B43: =RIGHT(Results!$D$5,LEN(Results!$D$5)-9) -> The Presidency | C43: 3 | D43: 2 | E43: =Results!D118 -> 0 | F43: =Results!E118 -> 0 | G43: =Results!F118 -> 0 | H43: =Results!G118 -> 0 | I43: =Results!H118 -> 14.64 | J43: =Results!I118 -> 0 | K43: =Results!J118 -> 0 | L43: =Results!K118 -> -0.75852768 | M43: =Results!L118 -> 0 | N43: =Results!M118 -> 0 | O43: =Results!N118 -> 0 | P43: =Results!O118 -> 0 | Q43: =Results!P118 -> 0 | R43: =Results!Q118 -> 0 | S43: =Results!R118 -> 0 | T43: =Results!S118 -> 0 | U43: =Results!T118 -> -0.8033717507 | V43: =Results!U118 -> 0 | W43: =Results!V118 -> 0 | X43: =Results!W118 -> 0 | Y43: =Results!X118 -> 0 | Z43: =Results!Y118 -> 0 | AA43: =Results!Z118 -> 0 | AB43: =Results!AA118 -> 0 | AC43: =Results!AB118 -> 0 | AD43: =Results!AC118 -> -0.8499494059 | AE43: =Results!AD118 -> 0 | AF43: =Results!AE118 -> 0 | AG43: =Results!AF118 -> 0 | AH43: =Results!AG118 -> 0 | AI43: =Results!AH118 -> 0 | AJ43: =Results!AI118 -> 0 | AK43: =Results!AJ118 -> 0 | AL43: =Results!AK118 -> 0 | AM43: =Results!AL118 -> -0.8982024454 | AN43: =Results!AM118 -> 0 | AO43: =Results!AN118 -> 0 | AP43: =Results!AO118 -> 0 | AQ43: =Results!AP118 -> 0 | AR43: =Results!AQ118 -> 0 | AS43: =Results!AR118 -> 0 | AT43: =Results!AS118 -> 0 | AU43: 1
A44: Vote 01 | B44: =RIGHT(Results!$D$5,LEN(Results!$D$5)-9) -> The Presidency | C44: 3 | D44: 3 | E44: =Results!D119 -> 0 | F44: =Results!E119 -> 0 | G44: =Results!F119 -> 0 | H44: =Results!G119 -> 0 | I44: =Results!H119 -> 14.64 | J44: =Results!I119 -> 0 | K44: =Results!J119 -> 0 | L44: =Results!K119 -> -0.75003648 | M44: =Results!L119 -> 0 | N44: =Results!M119 -> 0 | O44: =Results!N119 -> 0 | P44: =Results!O119 -> 0 | Q44: =Results!P119 -> 0 | R44: =Results!Q119 -> 0 | S44: =Results!R119 -> 0 | T44: =Results!S119 -> 0 | U44: =Results!T119 -> -0.7945455851 | V44: =Results!U119 -> 0 | W44: =Results!V119 -> 0 | X44: =Results!W119 -> 0 | Y44: =Results!X119 -> 0 | Z44: =Results!Y119 -> 0 | AA44: =Results!Z119 -> 0 | AB44: =Results!AA119 -> 0 | AC44: =Results!AB119 -> 0 | AD44: =Results!AC119 -> -0.8407893723 | AE44: =Results!AD119 -> 0 | AF44: =Results!AE119 -> 0 | AG44: =Results!AF119 -> 0 | AH44: =Results!AG119 -> 0 | AI44: =Results!AH119 -> 0 | AJ44: =Results!AI119 -> 0 | AK44: =Results!AJ119 -> 0 | AL44: =Results!AK119 -> 0 | AM44: =Results!AL119 -> -0.8887115998 | AN44: =Results!AM119 -> 0 | AO44: =Results!AN119 -> 0 | AP44: =Results!AO119 -> 0 | AQ44: =Results!AP119 -> 0 | AR44: =Results!AQ119 -> 0 | AS44: =Results!AR119 -> 0 | AT44: =Results!AS119 -> 0 | AU44: 1
A45: Vote 01 | B45: =RIGHT(Results!$D$5,LEN(Results!$D$5)-9) -> The Presidency | C45: 3 | D45: 4 | E45: =Results!D120 -> 0 | F45: =Results!E120 -> 0 | G45: =Results!F120 -> 0 | H45: =Results!G120 -> 0 | I45: =Results!H120 -> 14.64 | J45: =Results!I120 -> 0 | K45: =Results!J120 -> 0 | L45: =Results!K120 -> -0.76264152 | M45: =Results!L120 -> 0 | N45: =Results!M120 -> 0 | O45: =Results!N120 -> 0 | P45: =Results!O120 -> 0 | Q45: =Results!P120 -> 0 | R45: =Results!Q120 -> 0 | S45: =Results!R120 -> 0 | T45: =Results!S120 -> 0 | U45: =Results!T120 -> -0.8081749457 | V45: =Results!U120 -> 0 | W45: =Results!V120 -> 0 | X45: =Results!W120 -> 0 | Y45: =Results!X120 -> 0 | Z45: =Results!Y120 -> 0 | AA45: =Results!Z120 -> 0 | AB45: =Results!AA120 -> 0 | AC45: =Results!AB120 -> 0 | AD45: =Results!AC120 -> -0.8555038615 | AE45: =Results!AD120 -> 0 | AF45: =Results!AE120 -> 0 | AG45: =Results!AF120 -> 0 | AH45: =Results!AG120 -> 0 | AI45: =Results!AH120 -> 0 | AJ45: =Results!AI120 -> 0 | AK45: =Results!AJ120 -> 0 | AL45: =Results!AK120 -> 0 | AM45: =Results!AL120 -> -0.9045727065 | AN45: =Results!AM120 -> 0 | AO45: =Results!AN120 -> 0 | AP45: =Results!AO120 -> 0 | AQ45: =Results!AP120 -> 0 | AR45: =Results!AQ120 -> 0 | AS45: =Results!AR120 -> 0 | AT45: =Results!AS120 -> 0 | AU45: 1
A46: Vote 01 | B46: =RIGHT(Results!$D$5,LEN(Results!$D$5)-9) -> The Presidency | C46: 3 | D46: 5 | E46: =Results!D121 -> 0 | F46: =Results!E121 -> 0 | G46: =Results!F121 -> 0 | H46: =Results!G121 -> 0 | I46: =Results!H121 -> 14.64 | J46: =Results!I121 -> 0 | K46: =Results!J121 -> 0 | L46: =Results!K121 -> -0.77221608 | M46: =Results!L121 -> 0 | N46: =Results!M121 -> 0 | O46: =Results!N121 -> 0 | P46: =Results!O121 -> 0 | Q46: =Results!P121 -> 0 | R46: =Results!Q121 -> 0 | S46: =Results!R121 -> 0 | T46: =Results!S121 -> 0 | U46: =Results!T121 -> -0.8187711242 | V46: =Results!U121 -> 0 | W46: =Results!V121 -> 0 | X46: =Results!W121 -> 0 | Y46: =Results!X121 -> 0 | Z46: =Results!Y121 -> 0 | AA46: =Results!Z121 -> 0 | AB46: =Results!AA121 -> 0 | AC46: =Results!AB121 -> 0 | AD46: =Results!AC121 -> -0.8671986141 | AE46: =Results!AD121 -> 0 | AF46: =Results!AE121 -> 0 | AG46: =Results!AF121 -> 0 | AH46: =Results!AG121 -> 0 | AI46: =Results!AH121 -> 0 | AJ46: =Results!AI121 -> 0 | AK46: =Results!AJ121 -> 0 | AL46: =Results!AK121 -> 0 | AM46: =Results!AL121 -> -0.9174455841 | AN46: =Results!AM121 -> 0 | AO46: =Results!AN121 -> 0 | AP46: =Results!AO121 -> 0 | AQ46: =Results!AP121 -> 0 | AR46: =Results!AQ121 -> 0 | AS46: =Results!AR121 -> 0 | AT46: =Results!AS121 -> 0 | AU46: 1
A47: Vote 01 | B47: =RIGHT(Results!$D$5,LEN(Results!$D$5)-9) -> The Presidency | C47: 3 | D47: 6 | E47: =Results!D122 -> 0 | F47: =Results!E122 -> 0 | G47: =Results!F122 -> 0 | H47: =Results!G122 -> 0 | I47: =Results!H122 -> 16.224 | J47: =Results!I122 -> 0 | K47: =Results!J122 -> 0 | L47: =Results!K122 -> -0.838148064 | M47: =Results!L122 -> 0 | N47: =Results!M122 -> 0 | O47: =Results!N122 -> 0 | P47: =Results!O122 -> 0 | Q47: =Results!P122 -> 0 | R47: =Results!Q122 -> 0 | S47: =Results!R122 -> 0 | T47: =Results!S122 -> 0 | U47: =Results!T122 -> -0.8888307827 | V47: =Results!U122 -> 0 | W47: =Results!V122 -> 0 | X47: =Results!W122 -> 0 | Y47: =Results!X122 -> 0 | Z47: =Results!Y122 -> 0 | AA47: =Results!Z122 -> 0 | AB47: =Results!AA122 -> 0 | AC47: =Results!AB122 -> 0 | AD47: =Results!AC122 -> -0.9415630785 | AE47: =Results!AD122 -> 0 | AF47: =Results!AE122 -> 0 | AG47: =Results!AF122 -> 0 | AH47: =Results!AG122 -> 0 | AI47: =Results!AH122 -> 0 | AJ47: =Results!AI122 -> 0 | AK47: =Results!AJ122 -> 0 | AL47: =Results!AK122 -> 0 | AM47: =Results!AL122 -> -0.9962882885 | AN47: =Results!AM122 -> 0 | AO47: =Results!AN122 -> 0 | AP47: =Results!AO122 -> 0 | AQ47: =Results!AP122 -> 0 | AR47: =Results!AQ122 -> 0 | AS47: =Results!AR122 -> 0 | AT47: =Results!AS122 -> 0 | AU47: 1
A48: Vote 01 | B48: =RIGHT(Results!$D$5,LEN(Results!$D$5)-9) -> The Presidency | C48: 3 | D48: 7 | E48: =Results!D123 -> 0 | F48: =Results!E123 -> 0 | G48: =Results!F123 -> 0 | H48: =Results!G123 -> 0 | I48: =Results!H123 -> 16.224 | J48: =Results!I123 -> 0 | K48: =Results!J123 -> 0 | L48: =Results!K123 -> -0.831674688 | M48: =Results!L123 -> 0 | N48: =Results!M123 -> 0 | O48: =Results!N123 -> 0 | P48: =Results!O123 -> 0 | Q48: =Results!P123 -> 0 | R48: =Results!Q123 -> 0 | S48: =Results!R123 -> 0 | T48: =Results!S123 -> 0 | U48: =Results!T123 -> -0.8822029897 | V48: =Results!U123 -> 0 | W48: =Results!V123 -> 0 | X48: =Results!W123 -> 0 | Y48: =Results!X123 -> 0 | Z48: =Results!Y123 -> 0 | AA48: =Results!Z123 -> 0 | AB48: =Results!AA123 -> 0 | AC48: =Results!AB123 -> 0 | AD48: =Results!AC123 -> -0.9347935015 | AE48: =Results!AD123 -> 0 | AF48: =Results!AE123 -> 0 | AG48: =Results!AF123 -> 0 | AH48: =Results!AG123 -> 0 | AI48: =Results!AH123 -> 0 | AJ48: =Results!AI123 -> 0 | AK48: =Results!AJ123 -> 0 | AL48: =Results!AK123 -> 0 | AM48: =Results!AL123 -> -0.9893916686 | AN48: =Results!AM123 -> 0 | AO48: =Results!AN123 -> 0 | AP48: =Results!AO123 -> 0 | AQ48: =Results!AP123 -> 0 | AR48: =Results!AQ123 -> 0 | AS48: =Results!AR123 -> 0 | AT48: =Results!AS123 -> 0 | AU48: 1
A49: Vote 01 | B49: =RIGHT(Results!$D$5,LEN(Results!$D$5)-9) -> The Presidency | C49: 3 | D49: 8 | E49: =Results!D124 -> 0 | F49: =Results!E124 -> 0 | G49: =Results!F124 -> 0 | H49: =Results!G124 -> 0 | I49: =Results!H124 -> 17.4 | J49: =Results!I124 -> 0 | K49: =Results!J124 -> 0 | L49: =Results!K124 -> -0.8827716 | M49: =Results!L124 -> 0 | N49: =Results!M124 -> 0 | O49: =Results!N124 -> 0 | P49: =Results!O124 -> 0 | Q49: =Results!P124 -> 0 | R49: =Results!Q124 -> 0 | S49: =Results!R124 -> 0 | T49: =Results!S124 -> 0 | U49: =Results!T124 -> -0.9363910472 | V49: =Results!U124 -> 0 | W49: =Results!V124 -> 0 | X49: =Results!W124 -> 0 | Y49: =Results!X124 -> 0 | Z49: =Results!Y124 -> 0 | AA49: =Results!Z124 -> 0 | AB49: =Results!AA124 -> 0 | AC49: =Results!AB124 -> 0 | AD49: =Results!AC124 -> -0.9921978102 | AE49: =Results!AD124 -> 0 | AF49: =Results!AE124 -> 0 | AG49: =Results!AF124 -> 0 | AH49: =Results!AG124 -> 0 | AI49: =Results!AH124 -> 0 | AJ49: =Results!AI124 -> 0 | AK49: =Results!AJ124 -> 0 | AL49: =Results!AK124 -> 0 | AM49: =Results!AL124 -> -1.050133888 | AN49: =Results!AM124 -> 0 | AO49: =Results!AN124 -> 0 | AP49: =Results!AO124 -> 0 | AQ49: =Results!AP124 -> 0 | AR49: =Results!AQ124 -> 0 | AS49: =Results!AR124 -> 0 | AT49: =Results!AS124 -> 0 | AU49: 1
A50: Vote 01 | B50: =RIGHT(Results!$D$5,LEN(Results!$D$5)-9) -> The Presidency | C50: 3 | D50: 9 | E50: =Results!D125 -> 0 | F50: =Results!E125 -> 0 | G50: =Results!F125 -> 0 | H50: =Results!G125 -> 0 | I50: =Results!H125 -> 17.4 | J50: =Results!I125 -> 0 | K50: =Results!J125 -> 0 | L50: =Results!K125 -> -0.8920632 | M50: =Results!L125 -> 0 | N50: =Results!M125 -> 0 | O50: =Results!N125 -> 0 | P50: =Results!O125 -> 0 | Q50: =Results!P125 -> 0 | R50: =Results!Q125 -> 0 | S50: =Results!R125 -> 0 | T50: =Results!S125 -> 0 | U50: =Results!T125 -> -0.9465835933 | V50: =Results!U125 -> 0 | W50: =Results!V125 -> 0 | X50: =Results!W125 -> 0 | Y50: =Results!X125 -> 0 | Z50: =Results!Y125 -> 0 | AA50: =Results!Z125 -> 0 | AB50: =Results!AA125 -> 0 | AC50: =Results!AB125 -> 0 | AD50: =Results!AC125 -> -1.003353873 | AE50: =Results!AD125 -> 0 | AF50: =Results!AE125 -> 0 | AG50: =Results!AF125 -> 0 | AH50: =Results!AG125 -> 0 | AI50: =Results!AH125 -> 0 | AJ50: =Results!AI125 -> 0 | AK50: =Results!AJ125 -> 0 | AL50: =Results!AK125 -> 0 | AM50: =Results!AL125 -> -1.062317582 | AN50: =Results!AM125 -> 0 | AO50: =Results!AN125 -> 0 | AP50: =Results!AO125 -> 0 | AQ50: =Results!AP125 -> 0 | AR50: =Results!AQ125 -> 0 | AS50: =Results!AR125 -> 0 | AT50: =Results!AS125 -> 0 | AU50: 1
A51: Vote 01 | B51: =RIGHT(Results!$D$5,LEN(Results!$D$5)-9) -> The Presidency | C51: 3 | D51: 10 | E51: =Results!D126 -> 0 | F51: =Results!E126 -> 0 | G51: =Results!F126 -> 0 | H51: =Results!G126 -> 0 | I51: =Results!H126 -> 19.68 | J51: =Results!I126 -> 0 | K51: =Results!J126 -> 0 | L51: =Results!K126 -> -0.98457072 | M51: =Results!L126 -> 0 | N51: =Results!M126 -> 0 | O51: =Results!N126 -> 0 | P51: =Results!O126 -> 0 | Q51: =Results!P126 -> 0 | R51: =Results!Q126 -> 0 | S51: =Results!R126 -> 0 | T51: =Results!S126 -> 0 | U51: =Results!T126 -> -1.045040284 | V51: =Results!U126 -> 0 | W51: =Results!V126 -> 0 | X51: =Results!W126 -> 0 | Y51: =Results!X126 -> 0 | Z51: =Results!Y126 -> 0 | AA51: =Results!Z126 -> 0 | AB51: =Results!AA126 -> 0 | AC51: =Results!AB126 -> 0 | AD51: =Results!AC126 -> -1.108028905 | AE51: =Results!AD126 -> 0 | AF51: =Results!AE126 -> 0 | AG51: =Results!AF126 -> 0 | AH51: =Results!AG126 -> 0 | AI51: =Results!AH126 -> 0 | AJ51: =Results!AI126 -> 0 | AK51: =Results!AJ126 -> 0 | AL51: =Results!AK126 -> 0 | AM51: =Results!AL126 -> -1.173476419 | AN51: =Results!AM126 -> 0 | AO51: =Results!AN126 -> 0 | AP51: =Results!AO126 -> 0 | AQ51: =Results!AP126 -> 0 | AR51: =Results!AQ126 -> 0 | AS51: =Results!AR126 -> 0 | AT51: =Results!AS126 -> 0 | AU51: 1
A52: Vote 01 | B52: =RIGHT(Results!$D$5,LEN(Results!$D$5)-9) -> The Presidency | C52: 3 | D52: 11 | E52: =Results!D127 -> 0 | F52: =Results!E127 -> 0 | G52: =Results!F127 -> 0 | H52: =Results!G127 -> 0 | I52: =Results!H127 -> 19.68 | J52: =Results!I127 -> 0 | K52: =Results!J127 -> 0 | L52: =Results!K127 -> -0.97124736 | M52: =Results!L127 -> 0 | N52: =Results!M127 -> 0 | O52: =Results!N127 -> 0 | P52: =Results!O127 -> 0 | Q52: =Results!P127 -> 0 | R52: =Results!Q127 -> 0 | S52: =Results!R127 -> 0 | T52: =Results!S127 -> 0 | U52: =Results!T127 -> -1.031578902 | V52: =Results!U127 -> 0 | W52: =Results!V127 -> 0 | X52: =Results!W127 -> 0 | Y52: =Results!X127 -> 0 | Z52: =Results!Y127 -> 0 | AA52: =Results!Z127 -> 0 | AB52: =Results!AA127 -> 0 | AC52: =Results!AB127 -> 0 | AD52: =Results!AC127 -> -1.094481028 | AE52: =Results!AD127 -> 0 | AF52: =Results!AE127 -> 0 | AG52: =Results!AF127 -> 0 | AH52: =Results!AG127 -> 0 | AI52: =Results!AH127 -> 0 | AJ52: =Results!AI127 -> 0 | AK52: =Results!AJ127 -> 0 | AL52: =Results!AK127 -> 0 | AM52: =Results!AL127 -> -1.15990003 | AN52: =Results!AM127 -> 0 | AO52: =Results!AN127 -> 0 | AP52: =Results!AO127 -> 0 | AQ52: =Results!AP127 -> 0 | AR52: =Results!AQ127 -> 0 | AS52: =Results!AR127 -> 0 | AT52: =Results!AS127 -> 0 | AU52: 1
A53: Vote 01 | B53: =RIGHT(Results!$D$5,LEN(Results!$D$5)-9) -> The Presidency | C53: 3 | D53: 12 | E53: =Results!D128 -> 0 | F53: =Results!E128 -> 0 | G53: =Results!F128 -> 0 | H53: =Results!G128 -> 0 | I53: =Results!H128 -> 20.34 | J53: =Results!I128 -> 0 | K53: =Results!J128 -> 0 | L53: =Results!K128 -> -0.98844264 | M53: =Results!L128 -> 0 | N53: =Results!M128 -> 0 | O53: =Results!N128 -> 0 | P53: =Results!O128 -> 0 | Q53: =Results!P128 -> 0 | R53: =Results!Q128 -> 0 | S53: =Results!R128 -> 0 | T53: =Results!S128 -> 0 | U53: =Results!T128 -> -1.049827485 | V53: =Results!U128 -> 0 | W53: =Results!V128 -> 0 | X53: =Results!W128 -> 0 | Y53: =Results!X128 -> 0 | Z53: =Results!Y128 -> 0 | AA53: =Results!Z128 -> 0 | AB53: =Results!AA128 -> 0 | AC53: =Results!AB128 -> 0 | AD53: =Results!AC128 -> -1.113826599 | AE53: =Results!AD128 -> 0 | AF53: =Results!AE128 -> 0 | AG53: =Results!AF128 -> 0 | AH53: =Results!AG128 -> 0 | AI53: =Results!AH128 -> 0 | AJ53: =Results!AI128 -> 0 | AK53: =Results!AJ128 -> 0 | AL53: =Results!AK128 -> 0 | AM53: =Results!AL128 -> -1.180385212 | AN53: =Results!AM128 -> 0 | AO53: =Results!AN128 -> 0 | AP53: =Results!AO128 -> 0 | AQ53: =Results!AP128 -> 0 | AR53: =Results!AQ128 -> 0 | AS53: =Results!AR128 -> 0 | AT53: =Results!AS128 -> 0 | AU53: 1
A54: Vote 01 | B54: =RIGHT(Results!$D$5,LEN(Results!$D$5)-9) -> The Presidency | C54: 3 | D54: 13 | E54: =Results!D129 -> 0 | F54: =Results!E129 -> 0 | G54: =Results!F129 -> 0 | H54: =Results!G129 -> 0 | I54: =Results!H129 -> 20.34 | J54: =Results!I129 -> 0 | K54: =Results!J129 -> 0 | L54: =Results!K129 -> -0.98712054 | M54: =Results!L129 -> 0 | N54: =Results!M129 -> 0 | O54: =Results!N129 -> 0 | P54: =Results!O129 -> 0 | Q54: =Results!P129 -> 0 | R54: =Results!Q129 -> 0 | S54: =Results!R129 -> 0 | T54: =Results!S129 -> 0 | U54: =Results!T129 -> -1.048410743 | V54: =Results!U129 -> 0 | W54: =Results!V129 -> 0 | X54: =Results!W129 -> 0 | Y54: =Results!X129 -> 0 | Z54: =Results!Y129 -> 0 | AA54: =Results!Z129 -> 0 | AB54: =Results!AA129 -> 0 | AC54: =Results!AB129 -> 0 | AD54: =Results!AC129 -> -1.112308978 | AE54: =Results!AD129 -> 0 | AF54: =Results!AE129 -> 0 | AG54: =Results!AF129 -> 0 | AH54: =Results!AG129 -> 0 | AI54: =Results!AH129 -> 0 | AJ54: =Results!AI129 -> 0 | AK54: =Results!AJ129 -> 0 | AL54: =Results!AK129 -> 0 | AM54: =Results!AL129 -> -1.178760164 | AN54: =Results!AM129 -> 0 | AO54: =Results!AN129 -> 0 | AP54: =Results!AO129 -> 0 | AQ54: =Results!AP129 -> 0 | AR54: =Results!AQ129 -> 0 | AS54: =Results!AR129 -> 0 | AT54: =Results!AS129 -> 0 | AU54: 1
A55: Vote 01 | B55: =RIGHT(Results!$D$5,LEN(Results!$D$5)-9) -> The Presidency | C55: 3 | D55: 14 | E55: =Results!D130 -> 0 | F55: =Results!E130 -> 0 | G55: =Results!F130 -> 0 | H55: =Results!G130 -> 0 | I55: =Results!H130 -> 20.34 | J55: =Results!I130 -> 0 | K55: =Results!J130 -> 0 | L55: =Results!K130 -> -0.98463906 | M55: =Results!L130 -> 0 | N55: =Results!M130 -> 0 | O55: =Results!N130 -> 0 | P55: =Results!O130 -> 0 | Q55: =Results!P130 -> 0 | R55: =Results!Q130 -> 0 | S55: =Results!R130 -> 0 | T55: =Results!S130 -> 0 | U55: =Results!T130 -> -1.045804727 | V55: =Results!U130 -> 0 | W55: =Results!V130 -> 0 | X55: =Results!W130 -> 0 | Y55: =Results!X130 -> 0 | Z55: =Results!Y130 -> 0 | AA55: =Results!Z130 -> 0 | AB55: =Results!AA130 -> 0 | AC55: =Results!AB130 -> 0 | AD55: =Results!AC130 -> -1.109575506 | AE55: =Results!AD130 -> 0 | AF55: =Results!AE130 -> 0 | AG55: =Results!AF130 -> 0 | AH55: =Results!AG130 -> 0 | AI55: =Results!AH130 -> 0 | AJ55: =Results!AI130 -> 0 | AK55: =Results!AJ130 -> 0 | AL55: =Results!AK130 -> 0 | AM55: =Results!AL130 -> -1.175896676 | AN55: =Results!AM130 -> 0 | AO55: =Results!AN130 -> 0 | AP55: =Results!AO130 -> 0 | AQ55: =Results!AP130 -> 0 | AR55: =Results!AQ130 -> 0 | AS55: =Results!AR130 -> 0 | AT55: =Results!AS130 -> 0 | AU55: 1
A56: Vote 01 | B56: =RIGHT(Results!$D$5,LEN(Results!$D$5)-9) -> The Presidency | C56: 3 | D56: 15 | E56: =Results!D131 -> 0 | F56: =Results!E131 -> 0 | G56: =Results!F131 -> 0 | H56: =Results!G131 -> 0 | I56: =Results!H131 -> 20.34 | J56: =Results!I131 -> 0 | K56: =Results!J131 -> 0 | L56: =Results!K131 -> -0.98858502 | M56: =Results!L131 -> 0 | N56: =Results!M131 -> 0 | O56: =Results!N131 -> 0 | P56: =Results!O131 -> 0 | Q56: =Results!P131 -> 0 | R56: =Results!Q131 -> 0 | S56: =Results!R131 -> 0 | T56: =Results!S131 -> 0 | U56: =Results!T131 -> -1.050023194 | V56: =Results!U131 -> 0 | W56: =Results!V131 -> 0 | X56: =Results!W131 -> 0 | Y56: =Results!X131 -> 0 | Z56: =Results!Y131 -> 0 | AA56: =Results!Z131 -> 0 | AB56: =Results!AA131 -> 0 | AC56: =Results!AB131 -> 0 | AD56: =Results!AC131 -> -1.11408149 | AE56: =Results!AD131 -> 0 | AF56: =Results!AE131 -> 0 | AG56: =Results!AF131 -> 0 | AH56: =Results!AG131 -> 0 | AI56: =Results!AH131 -> 0 | AJ56: =Results!AI131 -> 0 | AK56: =Results!AJ131 -> 0 | AL56: =Results!AK131 -> 0 | AM56: =Results!AL131 -> -1.180705467 | AN56: =Results!AM131 -> 0 | AO56: =Results!AN131 -> 0 | AP56: =Results!AO131 -> 0 | AQ56: =Results!AP131 -> 0 | AR56: =Results!AQ131 -> 0 | AS56: =Results!AR131 -> 0 | AT56: =Results!AS131 -> 0 | AU56: 1
A57: Vote 01 | B57: =RIGHT(Results!$D$5,LEN(Results!$D$5)-9) -> The Presidency | C57: 3 | D57: 16 | E57: =Results!D132 -> 0 | F57: =Results!E132 -> 0 | G57: =Results!F132 -> 0 | H57: =Results!G132 -> 0 | I57: =Results!H132 -> 21.816 | J57: =Results!I132 -> 0 | K57: =Results!J132 -> 0 | L57: =Results!K132 -> -1.04684076 | M57: =Results!L132 -> 0 | N57: =Results!M132 -> 0 | O57: =Results!N132 -> 0 | P57: =Results!O132 -> 0 | Q57: =Results!P132 -> 0 | R57: =Results!Q132 -> 0 | S57: =Results!R132 -> 0 | T57: =Results!S132 -> 0 | U57: =Results!T132 -> -1.112043118 | V57: =Results!U132 -> 0 | W57: =Results!V132 -> 0 | X57: =Results!W132 -> 0 | Y57: =Results!X132 -> 0 | Z57: =Results!Y132 -> 0 | AA57: =Results!Z132 -> 0 | AB57: =Results!AA132 -> 0 | AC57: =Results!AB132 -> 0 | AD57: =Results!AC132 -> -1.180036449 | AE57: =Results!AD132 -> 0 | AF57: =Results!AE132 -> 0 | AG57: =Results!AF132 -> 0 | AH57: =Results!AG132 -> 0 | AI57: =Results!AH132 -> 0 | AJ57: =Results!AI132 -> 0 | AK57: =Results!AJ132 -> 0 | AL57: =Results!AK132 -> 0 | AM57: =Results!AL132 -> -1.250763894 | AN57: =Results!AM132 -> 0 | AO57: =Results!AN132 -> 0 | AP57: =Results!AO132 -> 0 | AQ57: =Results!AP132 -> 0 | AR57: =Results!AQ132 -> 0 | AS57: =Results!AR132 -> 0 | AT57: =Results!AS132 -> 0 | AU57: 1
A58: Vote 01 | B58: =RIGHT(Results!$D$5,LEN(Results!$D$5)-9) -> The Presidency | C58: 3 | D58: Deputy Minister | E58: =Results!D133 -> 0 | F58: =Results!E133 -> 0 | G58: =Results!F133 -> 0 | H58: =Results!G133 -> 0 | I58: =Results!H133 -> 0 | J58: =Results!I133 -> 0 | K58: =Results!J133 -> 0 | L58: =Results!K133 -> 14.64 | M58: =Results!L133 -> 0 | N58: =Results!M133 -> 0 | O58: =Results!N133 -> 0 | P58: =Results!O133 -> 0 | Q58: =Results!P133 -> 0 | R58: =Results!Q133 -> 0 | S58: =Results!R133 -> 0 | T58: =Results!S133 -> 0 | U58: =Results!T133 -> 15.55207035 | V58: =Results!U133 -> 0 | W58: =Results!V133 -> 0 | X58: =Results!W133 -> 0 | Y58: =Results!X133 -> 0 | Z58: =Results!Y133 -> 0 | AA58: =Results!Z133 -> 0 | AB58: =Results!AA133 -> 0 | AC58: =Results!AB133 -> 0 | AD58: =Results!AC133 -> 16.50319937 | AE58: =Results!AD133 -> 0 | AF58: =Results!AE133 -> 0 | AG58: =Results!AF133 -> 0 | AH58: =Results!AG133 -> 0 | AI58: =Results!AH133 -> 0 | AJ58: =Results!AI133 -> 0 | AK58: =Results!AJ133 -> 0 | AL58: =Results!AK133 -> 0 | AM58: =Results!AL133 -> 17.49259358 | AN58: =Results!AM133 -> 0 | AO58: =Results!AN133 -> 0 | AP58: =Results!AO133 -> 0 | AQ58: =Results!AP133 -> 0 | AR58: =Results!AQ133 -> 0 | AS58: =Results!AR133 -> 0 | AT58: =Results!AS133 -> 0 | AU58: 1
A59: Vote 01 | B59: =RIGHT(Results!$D$5,LEN(Results!$D$5)-9) -> The Presidency | C59: 3 | D59: Minister | E59: =Results!D134 -> 0 | F59: =Results!E134 -> 0 | G59: =Results!F134 -> 0 | H59: =Results!G134 -> 0 | I59: =Results!H134 -> 0 | J59: =Results!I134 -> 0 | K59: =Results!J134 -> 0 | L59: =Results!K134 -> 14.64 | M59: =Results!L134 -> 0 | N59: =Results!M134 -> 0 | O59: =Results!N134 -> 0 | P59: =Results!O134 -> 0 | Q59: =Results!P134 -> 0 | R59: =Results!Q134 -> 0 | S59: =Results!R134 -> 0 | T59: =Results!S134 -> 0 | U59: =Results!T134 -> 15.55207035 | V59: =Results!U134 -> 0 | W59: =Results!V134 -> 0 | X59: =Results!W134 -> 0 | Y59: =Results!X134 -> 0 | Z59: =Results!Y134 -> 0 | AA59: =Results!Z134 -> 0 | AB59: =Results!AA134 -> 0 | AC59: =Results!AB134 -> 0 | AD59: =Results!AC134 -> 16.50319937 | AE59: =Results!AD134 -> 0 | AF59: =Results!AE134 -> 0 | AG59: =Results!AF134 -> 0 | AH59: =Results!AG134 -> 0 | AI59: =Results!AH134 -> 0 | AJ59: =Results!AI134 -> 0 | AK59: =Results!AJ134 -> 0 | AL59: =Results!AK134 -> 0 | AM59: =Results!AL134 -> 17.49259358 | AN59: =Results!AM134 -> 0 | AO59: =Results!AN134 -> 0 | AP59: =Results!AO134 -> 0 | AQ59: =Results!AP134 -> 0 | AR59: =Results!AQ134 -> 0 | AS59: =Results!AR134 -> 0 | AT59: =Results!AS134 -> 0 | AU59: 1
A60: Vote 01 | B60: =RIGHT(Results!$D$5,LEN(Results!$D$5)-9) -> The Presidency | C60: 3 | D60: Intern | E60: =Results!D135 -> 0 | F60: =Results!E135 -> 0 | G60: =Results!F135 -> 0 | H60: =Results!G135 -> 0 | I60: =Results!H135 -> 0 | J60: =Results!I135 -> 0 | K60: =Results!J135 -> 0 | L60: =Results!K135 -> 14.64 | M60: =Results!L135 -> 0 | N60: =Results!M135 -> 0 | O60: =Results!N135 -> 0 | P60: =Results!O135 -> 0 | Q60: =Results!P135 -> 0 | R60: =Results!Q135 -> 0 | S60: =Results!R135 -> 0 | T60: =Results!S135 -> 0 | U60: =Results!T135 -> 15.55207035 | V60: =Results!U135 -> 0 | W60: =Results!V135 -> 0 | X60: =Results!W135 -> 0 | Y60: =Results!X135 -> 0 | Z60: =Results!Y135 -> 0 | AA60: =Results!Z135 -> 0 | AB60: =Results!AA135 -> 0 | AC60: =Results!AB135 -> 0 | AD60: =Results!AC135 -> 16.50319937 | AE60: =Results!AD135 -> 0 | AF60: =Results!AE135 -> 0 | AG60: =Results!AF135 -> 0 | AH60: =Results!AG135 -> 0 | AI60: =Results!AH135 -> 0 | AJ60: =Results!AI135 -> 0 | AK60: =Results!AJ135 -> 0 | AL60: =Results!AK135 -> 0 | AM60: =Results!AL135 -> 17.49259358 | AN60: =Results!AM135 -> 0 | AO60: =Results!AN135 -> 0 | AP60: =Results!AO135 -> 0 | AQ60: =Results!AP135 -> 0 | AR60: =Results!AQ135 -> 0 | AS60: =Results!AR135 -> 0 | AT60: =Results!AS135 -> 0 | AU60: 1
A61: Vote 01 | B61: =RIGHT(Results!$D$5,LEN(Results!$D$5)-9) -> The Presidency | C61: 3 | D61: Other | E61: =Results!D136 -> 0 | F61: =Results!E136 -> 0 | G61: =Results!F136 -> 0 | H61: =Results!G136 -> 0 | I61: =Results!H136 -> 0 | J61: =Results!I136 -> 0 | K61: =Results!J136 -> 0 | L61: =Results!K136 -> 14.64 | M61: =Results!L136 -> 0 | N61: =Results!M136 -> 0 | O61: =Results!N136 -> 0 | P61: =Results!O136 -> 0 | Q61: =Results!P136 -> 0 | R61: =Results!Q136 -> 0 | S61: =Results!R136 -> 0 | T61: =Results!S136 -> 0 | U61: =Results!T136 -> 15.55207035 | V61: =Results!U136 -> 0 | W61: =Results!V136 -> 0 | X61: =Results!W136 -> 0 | Y61: =Results!X136 -> 0 | Z61: =Results!Y136 -> 0 | AA61: =Results!Z136 -> 0 | AB61: =Results!AA136 -> 0 | AC61: =Results!AB136 -> 0 | AD61: =Results!AC136 -> 16.50319937 | AE61: =Results!AD136 -> 0 | AF61: =Results!AE136 -> 0 | AG61: =Results!AF136 -> 0 | AH61: =Results!AG136 -> 0 | AI61: =Results!AH136 -> 0 | AJ61: =Results!AI136 -> 0 | AK61: =Results!AJ136 -> 0 | AL61: =Results!AK136 -> 0 | AM61: =Results!AL136 -> 17.49259358 | AN61: =Results!AM136 -> 0 | AO61: =Results!AN136 -> 0 | AP61: =Results!AO136 -> 0 | AQ61: =Results!AP136 -> 0 | AR61: =Results!AQ136 -> 0 | AS61: =Results!AR136 -> 0 | AT61: =Results!AS136 -> 0 | AU61: 1
A62: Vote 01 | B62: =RIGHT(Results!$D$5,LEN(Results!$D$5)-9) -> The Presidency | C62: 4 | D62: 1 | E62: =Results!D146 -> 0 | F62: =Results!E146 -> 0 | G62: =Results!F146 -> 0 | H62: =Results!G146 -> 0 | I62: =Results!H146 -> 14.64 | J62: =Results!I146 -> 0 | K62: =Results!J146 -> 0 | L62: =Results!K146 -> -0.7327463407 | M62: =Results!L146 -> 0 | N62: =Results!M146 -> 0 | O62: =Results!N146 -> 0 | P62: =Results!O146 -> 0 | Q62: =Results!P146 -> 0 | R62: =Results!Q146 -> 0 | S62: =Results!R146 -> 0 | T62: =Results!S146 -> 0 | U62: =Results!T146 -> -0.7783963549 | V62: =Results!U146 -> 0 | W62: =Results!V146 -> 0 | X62: =Results!W146 -> 0 | Y62: =Results!X146 -> 0 | Z62: =Results!Y146 -> 0 | AA62: =Results!Z146 -> 0 | AB62: =Results!AA146 -> 0 | AC62: =Results!AB146 -> 0 | AD62: =Results!AC146 -> -0.8260012942 | AE62: =Results!AD146 -> 0 | AF62: =Results!AE146 -> 0 | AG62: =Results!AF146 -> 0 | AH62: =Results!AG146 -> 0 | AI62: =Results!AH146 -> 0 | AJ62: =Results!AI146 -> 0 | AK62: =Results!AJ146 -> 0 | AL62: =Results!AK146 -> 0 | AM62: =Results!AL146 -> -0.8755214437 | AN62: =Results!AM146 -> 0 | AO62: =Results!AN146 -> 0 | AP62: =Results!AO146 -> 0 | AQ62: =Results!AP146 -> 0 | AR62: =Results!AQ146 -> 0 | AS62: =Results!AR146 -> 0 | AT62: =Results!AS146 -> 0 | AU62: 1
A63: Vote 01 | B63: =RIGHT(Results!$D$5,LEN(Results!$D$5)-9) -> The Presidency | C63: 4 | D63: 2 | E63: =Results!D147 -> 0 | F63: =Results!E147 -> 0 | G63: =Results!F147 -> 0 | H63: =Results!G147 -> 0 | I63: =Results!H147 -> 14.64 | J63: =Results!I147 -> 0 | K63: =Results!J147 -> 0 | L63: =Results!K147 -> -0.75852768 | M63: =Results!L147 -> 0 | N63: =Results!M147 -> 0 | O63: =Results!N147 -> 0 | P63: =Results!O147 -> 0 | Q63: =Results!P147 -> 0 | R63: =Results!Q147 -> 0 | S63: =Results!R147 -> 0 | T63: =Results!S147 -> 0 | U63: =Results!T147 -> -0.8033717507 | V63: =Results!U147 -> 0 | W63: =Results!V147 -> 0 | X63: =Results!W147 -> 0 | Y63: =Results!X147 -> 0 | Z63: =Results!Y147 -> 0 | AA63: =Results!Z147 -> 0 | AB63: =Results!AA147 -> 0 | AC63: =Results!AB147 -> 0 | AD63: =Results!AC147 -> -0.8499494059 | AE63: =Results!AD147 -> 0 | AF63: =Results!AE147 -> 0 | AG63: =Results!AF147 -> 0 | AH63: =Results!AG147 -> 0 | AI63: =Results!AH147 -> 0 | AJ63: =Results!AI147 -> 0 | AK63: =Results!AJ147 -> 0 | AL63: =Results!AK147 -> 0 | AM63: =Results!AL147 -> -0.8982024454 | AN63: =Results!AM147 -> 0 | AO63: =Results!AN147 -> 0 | AP63: =Results!AO147 -> 0 | AQ63: =Results!AP147 -> 0 | AR63: =Results!AQ147 -> 0 | AS63: =Results!AR147 -> 0 | AT63: =Results!AS147 -> 0 | AU63: 1
A64: Vote 01 | B64: =RIGHT(Results!$D$5,LEN(Results!$D$5)-9) -> The Presidency | C64: 4 | D64: 3 | E64: =Results!D148 -> 0 | F64: =Results!E148 -> 0 | G64: =Results!F148 -> 0 | H64: =Results!G148 -> 0 | I64: =Results!H148 -> 14.64 | J64: =Results!I148 -> 0 | K64: =Results!J148 -> 0 | L64: =Results!K148 -> -0.75003648 | M64: =Results!L148 -> 0 | N64: =Results!M148 -> 0 | O64: =Results!N148 -> 0 | P64: =Results!O148 -> 0 | Q64: =Results!P148 -> 0 | R64: =Results!Q148 -> 0 | S64: =Results!R148 -> 0 | T64: =Results!S148 -> 0 | U64: =Results!T148 -> -0.7945455851 | V64: =Results!U148 -> 0 | W64: =Results!V148 -> 0 | X64: =Results!W148 -> 0 | Y64: =Results!X148 -> 0 | Z64: =Results!Y148 -> 0 | AA64: =Results!Z148 -> 0 | AB64: =Results!AA148 -> 0 | AC64: =Results!AB148 -> 0 | AD64: =Results!AC148 -> -0.8407893723 | AE64: =Results!AD148 -> 0 | AF64: =Results!AE148 -> 0 | AG64: =Results!AF148 -> 0 | AH64: =Results!AG148 -> 0 | AI64: =Results!AH148 -> 0 | AJ64: =Results!AI148 -> 0 | AK64: =Results!AJ148 -> 0 | AL64: =Results!AK148 -> 0 | AM64: =Results!AL148 -> -0.8887115998 | AN64: =Results!AM148 -> 0 | AO64: =Results!AN148 -> 0 | AP64: =Results!AO148 -> 0 | AQ64: =Results!AP148 -> 0 | AR64: =Results!AQ148 -> 0 | AS64: =Results!AR148 -> 0 | AT64: =Results!AS148 -> 0 | AU64: 1
A65: Vote 01 | B65: =RIGHT(Results!$D$5,LEN(Results!$D$5)-9) -> The Presidency | C65: 4 | D65: 4 | E65: =Results!D149 -> 0 | F65: =Results!E149 -> 0 | G65: =Results!F149 -> 0 | H65: =Results!G149 -> 0 | I65: =Results!H149 -> 14.64 | J65: =Results!I149 -> 0 | K65: =Results!J149 -> 0 | L65: =Results!K149 -> -0.76264152 | M65: =Results!L149 -> 0 | N65: =Results!M149 -> 0 | O65: =Results!N149 -> 0 | P65: =Results!O149 -> 0 | Q65: =Results!P149 -> 0 | R65: =Results!Q149 -> 0 | S65: =Results!R149 -> 0 | T65: =Results!S149 -> 0 | U65: =Results!T149 -> -0.8081749457 | V65: =Results!U149 -> 0 | W65: =Results!V149 -> 0 | X65: =Results!W149 -> 0 | Y65: =Results!X149 -> 0 | Z65: =Results!Y149 -> 0 | AA65: =Results!Z149 -> 0 | AB65: =Results!AA149 -> 0 | AC65: =Results!AB149 -> 0 | AD65: =Results!AC149 -> -0.8555038615 | AE65: =Results!AD149 -> 0 | AF65: =Results!AE149 -> 0 | AG65: =Results!AF149 -> 0 | AH65: =Results!AG149 -> 0 | AI65: =Results!AH149 -> 0 | AJ65: =Results!AI149 -> 0 | AK65: =Results!AJ149 -> 0 | AL65: =Results!AK149 -> 0 | AM65: =Results!AL149 -> -0.9045727065 | AN65: =Results!AM149 -> 0 | AO65: =Results!AN149 -> 0 | AP65: =Results!AO149 -> 0 | AQ65: =Results!AP149 -> 0 | AR65: =Results!AQ149 -> 0 | AS65: =Results!AR149 -> 0 | AT65: =Results!AS149 -> 0 | AU65: 1
A66: =LEFT(MyDept,7) -> Vote 01 | B66: =RIGHT(Results!$D$5,LEN(Results!$D$5)-9) -> The Presidency | C66: 4 | D66: 5 | E66: =Results!D150 -> 0 | F66: =Results!E150 -> 0 | G66: =Results!F150 -> 0 | H66: =Results!G150 -> 0 | I66: =Results!H150 -> 14.64 | J66: =Results!I150 -> 0 | K66: =Results!J150 -> 0 | L66: =Results!K150 -> -0.77221608 | M66: =Results!L150 -> 0 | N66: =Results!M150 -> 0 | O66: =Results!N150 -> 0 | P66: =Results!O150 -> 0 | Q66: =Results!P150 -> 0 | R66: =Results!Q150 -> 0 | S66: =Results!R150 -> 0 | T66: =Results!S150 -> 0 | U66: =Results!T150 -> -0.8187711242 | V66: =Results!U150 -> 0 | W66: =Results!V150 -> 0 | X66: =Results!W150 -> 0 | Y66: =Results!X150 -> 0 | Z66: =Results!Y150 -> 0 | AA66: =Results!Z150 -> 0 | AB66: =Results!AA150 -> 0 | AC66: =Results!AB150 -> 0 | AD66: =Results!AC150 -> -0.8671986141 | AE66: =Results!AD150 -> 0 | AF66: =Results!AE150 -> 0 | AG66: =Results!AF150 -> 0 | AH66: =Results!AG150 -> 0 | AI66: =Results!AH150 -> 0 | AJ66: =Results!AI150 -> 0 | AK66: =Results!AJ150 -> 0 | AL66: =Results!AK150 -> 0 | AM66: =Results!AL150 -> -0.9174455841 | AN66: =Results!AM150 -> 0 | AO66: =Results!AN150 -> 0 | AP66: =Results!AO150 -> 0 | AQ66: =Results!AP150 -> 0 | AR66: =Results!AQ150 -> 0 | AS66: =Results!AR150 -> 0 | AT66: =Results!AS150 -> 0 | AU66: 1
A67: Vote 01 | B67: =RIGHT(Results!$D$5,LEN(Results!$D$5)-9) -> The Presidency | C67: 4 | D67: 6 | E67: =Results!D151 -> 0 | F67: =Results!E151 -> 0 | G67: =Results!F151 -> 0 | H67: =Results!G151 -> 0 | I67: =Results!H151 -> 16.224 | J67: =Results!I151 -> 0 | K67: =Results!J151 -> 0 | L67: =Results!K151 -> -0.838148064 | M67: =Results!L151 -> 0 | N67: =Results!M151 -> 0 | O67: =Results!N151 -> 0 | P67: =Results!O151 -> 0 | Q67: =Results!P151 -> 0 | R67: =Results!Q151 -> 0 | S67: =Results!R151 -> 0 | T67: =Results!S151 -> 0 | U67: =Results!T151 -> -0.8888307827 | V67: =Results!U151 -> 0 | W67: =Results!V151 -> 0 | X67: =Results!W151 -> 0 | Y67: =Results!X151 -> 0 | Z67: =Results!Y151 -> 0 | AA67: =Results!Z151 -> 0 | AB67: =Results!AA151 -> 0 | AC67: =Results!AB151 -> 0 | AD67: =Results!AC151 -> -0.9415630785 | AE67: =Results!AD151 -> 0 | AF67: =Results!AE151 -> 0 | AG67: =Results!AF151 -> 0 | AH67: =Results!AG151 -> 0 | AI67: =Results!AH151 -> 0 | AJ67: =Results!AI151 -> 0 | AK67: =Results!AJ151 -> 0 | AL67: =Results!AK151 -> 0 | AM67: =Results!AL151 -> -0.9962882885 | AN67: =Results!AM151 -> 0 | AO67: =Results!AN151 -> 0 | AP67: =Results!AO151 -> 0 | AQ67: =Results!AP151 -> 0 | AR67: =Results!AQ151 -> 0 | AS67: =Results!AR151 -> 0 | AT67: =Results!AS151 -> 0 | AU67: =IF(COUNTIF(E67:AT67,0)=42,0,1) -> 1
A68: Vote 01 | B68: =RIGHT(Results!$D$5,LEN(Results!$D$5)-9) -> The Presidency | C68: 4 | D68: 7 | E68: =Results!D152 -> 0 | F68: =Results!E152 -> 0 | G68: =Results!F152 -> 0 | H68: =Results!G152 -> 0 | I68: =Results!H152 -> 16.224 | J68: =Results!I152 -> 0 | K68: =Results!J152 -> 0 | L68: =Results!K152 -> -0.831674688 | M68: =Results!L152 -> 0 | N68: =Results!M152 -> 0 | O68: =Results!N152 -> 0 | P68: =Results!O152 -> 0 | Q68: =Results!P152 -> 0 | R68: =Results!Q152 -> 0 | S68: =Results!R152 -> 0 | T68: =Results!S152 -> 0 | U68: =Results!T152 -> -0.8822029897 | V68: =Results!U152 -> 0 | W68: =Results!V152 -> 0 | X68: =Results!W152 -> 0 | Y68: =Results!X152 -> 0 | Z68: =Results!Y152 -> 0 | AA68: =Results!Z152 -> 0 | AB68: =Results!AA152 -> 0 | AC68: =Results!AB152 -> 0 | AD68: =Results!AC152 -> -0.9347935015 | AE68: =Results!AD152 -> 0 | AF68: =Results!AE152 -> 0 | AG68: =Results!AF152 -> 0 | AH68: =Results!AG152 -> 0 | AI68: =Results!AH152 -> 0 | AJ68: =Results!AI152 -> 0 | AK68: =Results!AJ152 -> 0 | AL68: =Results!AK152 -> 0 | AM68: =Results!AL152 -> -0.9893916686 | AN68: =Results!AM152 -> 0 | AO68: =Results!AN152 -> 0 | AP68: =Results!AO152 -> 0 | AQ68: =Results!AP152 -> 0 | AR68: =Results!AQ152 -> 0 | AS68: =Results!AR152 -> 0 | AT68: =Results!AS152 -> 0 | AU68: 1
A69: Vote 01 | B69: =RIGHT(Results!$D$5,LEN(Results!$D$5)-9) -> The Presidency | C69: 4 | D69: 8 | E69: =Results!D153 -> 0 | F69: =Results!E153 -> 0 | G69: =Results!F153 -> 0 | H69: =Results!G153 -> 0 | I69: =Results!H153 -> 17.4 | J69: =Results!I153 -> 0 | K69: =Results!J153 -> 0 | L69: =Results!K153 -> -0.8827716 | M69: =Results!L153 -> 0 | N69: =Results!M153 -> 0 | O69: =Results!N153 -> 0 | P69: =Results!O153 -> 0 | Q69: =Results!P153 -> 0 | R69: =Results!Q153 -> 0 | S69: =Results!R153 -> 0 | T69: =Results!S153 -> 0 | U69: =Results!T153 -> -0.9363910472 | V69: =Results!U153 -> 0 | W69: =Results!V153 -> 0 | X69: =Results!W153 -> 0 | Y69: =Results!X153 -> 0 | Z69: =Results!Y153 -> 0 | AA69: =Results!Z153 -> 0 | AB69: =Results!AA153 -> 0 | AC69: =Results!AB153 -> 0 | AD69: =Results!AC153 -> -0.9921978102 | AE69: =Results!AD153 -> 0 | AF69: =Results!AE153 -> 0 | AG69: =Results!AF153 -> 0 | AH69: =Results!AG153 -> 0 | AI69: =Results!AH153 -> 0 | AJ69: =Results!AI153 -> 0 | AK69: =Results!AJ153 -> 0 | AL69: =Results!AK153 -> 0 | AM69: =Results!AL153 -> -1.050133888 | AN69: =Results!AM153 -> 0 | AO69: =Results!AN153 -> 0 | AP69: =Results!AO153 -> 0 | AQ69: =Results!AP153 -> 0 | AR69: =Results!AQ153 -> 0 | AS69: =Results!AR153 -> 0 | AT69: =Results!AS153 -> 0 | AU69: 1
A70: Vote 01 | B70: =RIGHT(Results!$D$5,LEN(Results!$D$5)-9) -> The Presidency | C70: 4 | D70: 9 | E70: =Results!D154 -> 0 | F70: =Results!E154 -> 0 | G70: =Results!F154 -> 0 | H70: =Results!G154 -> 0 | I70: =Results!H154 -> 17.4 | J70: =Results!I154 -> 0 | K70: =Results!J154 -> 0 | L70: =Results!K154 -> -0.8920632 | M70: =Results!L154 -> 0 | N70: =Results!M154 -> 0 | O70: =Results!N154 -> 0 | P70: =Results!O154 -> 0 | Q70: =Results!P154 -> 0 | R70: =Results!Q154 -> 0 | S70: =Results!R154 -> 0 | T70: =Results!S154 -> 0 | U70: =Results!T154 -> -0.9465835933 | V70: =Results!U154 -> 0 | W70: =Results!V154 -> 0 | X70: =Results!W154 -> 0 | Y70: =Results!X154 -> 0 | Z70: =Results!Y154 -> 0 | AA70: =Results!Z154 -> 0 | AB70: =Results!AA154 -> 0 | AC70: =Results!AB154 -> 0 | AD70: =Results!AC154 -> -1.003353873 | AE70: =Results!AD154 -> 0 | AF70: =Results!AE154 -> 0 | AG70: =Results!AF154 -> 0 | AH70: =Results!AG154 -> 0 | AI70: =Results!AH154 -> 0 | AJ70: =Results!AI154 -> 0 | AK70: =Results!AJ154 -> 0 | AL70: =Results!AK154 -> 0 | AM70: =Results!AL154 -> -1.062317582 | AN70: =Results!AM154 -> 0 | AO70: =Results!AN154 -> 0 | AP70: =Results!AO154 -> 0 | AQ70: =Results!AP154 -> 0 | AR70: =Results!AQ154 -> 0 | AS70: =Results!AR154 -> 0 | AT70: =Results!AS154 -> 0 | AU70: 1
A71: Vote 01 | B71: =RIGHT(Results!$D$5,LEN(Results!$D$5)-9) -> The Presidency | C71: 4 | D71: 10 | E71: =Results!D155 -> 0 | F71: =Results!E155 -> 0 | G71: =Results!F155 -> 0 | H71: =Results!G155 -> 0 | I71: =Results!H155 -> 19.68 | J71: =Results!I155 -> 0 | K71: =Results!J155 -> 0 | L71: =Results!K155 -> -0.98457072 | M71: =Results!L155 -> 0 | N71: =Results!M155 -> 0 | O71: =Results!N155 -> 0 | P71: =Results!O155 -> 0 | Q71: =Results!P155 -> 0 | R71: =Results!Q155 -> 0 | S71: =Results!R155 -> 0 | T71: =Results!S155 -> 0 | U71: =Results!T155 -> -1.045040284 | V71: =Results!U155 -> 0 | W71: =Results!V155 -> 0 | X71: =Results!W155 -> 0 | Y71: =Results!X155 -> 0 | Z71: =Results!Y155 -> 0 | AA71: =Results!Z155 -> 0 | AB71: =Results!AA155 -> 0 | AC71: =Results!AB155 -> 0 | AD71: =Results!AC155 -> -1.108028905 | AE71: =Results!AD155 -> 0 | AF71: =Results!AE155 -> 0 | AG71: =Results!AF155 -> 0 | AH71: =Results!AG155 -> 0 | AI71: =Results!AH155 -> 0 | AJ71: =Results!AI155 -> 0 | AK71: =Results!AJ155 -> 0 | AL71: =Results!AK155 -> 0 | AM71: =Results!AL155 -> -1.173476419 | AN71: =Results!AM155 -> 0 | AO71: =Results!AN155 -> 0 | AP71: =Results!AO155 -> 0 | AQ71: =Results!AP155 -> 0 | AR71: =Results!AQ155 -> 0 | AS71: =Results!AR155 -> 0 | AT71: =Results!AS155 -> 0 | AU71: 1
A72: Vote 01 | B72: =RIGHT(Results!$D$5,LEN(Results!$D$5)-9) -> The Presidency | C72: 4 | D72: 11 | E72: =Results!D156 -> 0 | F72: =Results!E156 -> 0 | G72: =Results!F156 -> 0 | H72: =Results!G156 -> 0 | I72: =Results!H156 -> 19.68 | J72: =Results!I156 -> 0 | K72: =Results!J156 -> 0 | L72: =Results!K156 -> -0.97124736 | M72: =Results!L156 -> 0 | N72: =Results!M156 -> 0 | O72: =Results!N156 -> 0 | P72: =Results!O156 -> 0 | Q72: =Results!P156 -> 0 | R72: =Results!Q156 -> 0 | S72: =Results!R156 -> 0 | T72: =Results!S156 -> 0 | U72: =Results!T156 -> -1.031578902 | V72: =Results!U156 -> 0 | W72: =Results!V156 -> 0 | X72: =Results!W156 -> 0 | Y72: =Results!X156 -> 0 | Z72: =Results!Y156 -> 0 | AA72: =Results!Z156 -> 0 | AB72: =Results!AA156 -> 0 | AC72: =Results!AB156 -> 0 | AD72: =Results!AC156 -> -1.094481028 | AE72: =Results!AD156 -> 0 | AF72: =Results!AE156 -> 0 | AG72: =Results!AF156 -> 0 | AH72: =Results!AG156 -> 0 | AI72: =Results!AH156 -> 0 | AJ72: =Results!AI156 -> 0 | AK72: =Results!AJ156 -> 0 | AL72: =Results!AK156 -> 0 | AM72: =Results!AL156 -> -1.15990003 | AN72: =Results!AM156 -> 0 | AO72: =Results!AN156 -> 0 | AP72: =Results!AO156 -> 0 | AQ72: =Results!AP156 -> 0 | AR72: =Results!AQ156 -> 0 | AS72: =Results!AR156 -> 0 | AT72: =Results!AS156 -> 0 | AU72: 1
A73: Vote 01 | B73: =RIGHT(Results!$D$5,LEN(Results!$D$5)-9) -> The Presidency | C73: 4 | D73: 12 | E73: =Results!D157 -> 0 | F73: =Results!E157 -> 0 | G73: =Results!F157 -> 0 | H73: =Results!G157 -> 0 | I73: =Results!H157 -> 20.34 | J73: =Results!I157 -> 0 | K73: =Results!J157 -> 0 | L73: =Results!K157 -> -0.98844264 | M73: =Results!L157 -> 0 | N73: =Results!M157 -> 0 | O73: =Results!N157 -> 0 | P73: =Results!O157 -> 0 | Q73: =Results!P157 -> 0 | R73: =Results!Q157 -> 0 | S73: =Results!R157 -> 0 | T73: =Results!S157 -> 0 | U73: =Results!T157 -> -1.049827485 | V73: =Results!U157 -> 0 | W73: =Results!V157 -> 0 | X73: =Results!W157 -> 0 | Y73: =Results!X157 -> 0 | Z73: =Results!Y157 -> 0 | AA73: =Results!Z157 -> 0 | AB73: =Results!AA157 -> 0 | AC73: =Results!AB157 -> 0 | AD73: =Results!AC157 -> -1.113826599 | AE73: =Results!AD157 -> 0 | AF73: =Results!AE157 -> 0 | AG73: =Results!AF157 -> 0 | AH73: =Results!AG157 -> 0 | AI73: =Results!AH157 -> 0 | AJ73: =Results!AI157 -> 0 | AK73: =Results!AJ157 -> 0 | AL73: =Results!AK157 -> 0 | AM73: =Results!AL157 -> -1.180385212 | AN73: =Results!AM157 -> 0 | AO73: =Results!AN157 -> 0 | AP73: =Results!AO157 -> 0 | AQ73: =Results!AP157 -> 0 | AR73: =Results!AQ157 -> 0 | AS73: =Results!AR157 -> 0 | AT73: =Results!AS157 -> 0 | AU73: 1
A74: Vote 01 | B74: =RIGHT(Results!$D$5,LEN(Results!$D$5)-9) -> The Presidency | C74: 4 | D74: 13 | E74: =Results!D158 -> 0 | F74: =Results!E158 -> 0 | G74: =Results!F158 -> 0 | H74: =Results!G158 -> 0 | I74: =Results!H158 -> 20.34 | J74: =Results!I158 -> 0 | K74: =Results!J158 -> 0 | L74: =Results!K158 -> -0.98712054 | M74: =Results!L158 -> 0 | N74: =Results!M158 -> 0 | O74: =Results!N158 -> 0 | P74: =Results!O158 -> 0 | Q74: =Results!P158 -> 0 | R74: =Results!Q158 -> 0 | S74: =Results!R158 -> 0 | T74: =Results!S158 -> 0 | U74: =Results!T158 -> -1.048410743 | V74: =Results!U158 -> 0 | W74: =Results!V158 -> 0 | X74: =Results!W158 -> 0 | Y74: =Results!X158 -> 0 | Z74: =Results!Y158 -> 0 | AA74: =Results!Z158 -> 0 | AB74: =Results!AA158 -> 0 | AC74: =Results!AB158 -> 0 | AD74: =Results!AC158 -> -1.112308978 | AE74: =Results!AD158 -> 0 | AF74: =Results!AE158 -> 0 | AG74: =Results!AF158 -> 0 | AH74: =Results!AG158 -> 0 | AI74: =Results!AH158 -> 0 | AJ74: =Results!AI158 -> 0 | AK74: =Results!AJ158 -> 0 | AL74: =Results!AK158 -> 0 | AM74: =Results!AL158 -> -1.178760164 | AN74: =Results!AM158 -> 0 | AO74: =Results!AN158 -> 0 | AP74: =Results!AO158 -> 0 | AQ74: =Results!AP158 -> 0 | AR74: =Results!AQ158 -> 0 | AS74: =Results!AR158 -> 0 | AT74: =Results!AS158 -> 0 | AU74: 1
A75: Vote 01 | B75: =RIGHT(Results!$D$5,LEN(Results!$D$5)-9) -> The Presidency | C75: 4 | D75: 14 | E75: =Results!D159 -> 0 | F75: =Results!E159 -> 0 | G75: =Results!F159 -> 0 | H75: =Results!G159 -> 0 | I75: =Results!H159 -> 20.34 | J75: =Results!I159 -> 0 | K75: =Results!J159 -> 0 | L75: =Results!K159 -> -0.98463906 | M75: =Results!L159 -> 0 | N75: =Results!M159 -> 0 | O75: =Results!N159 -> 0 | P75: =Results!O159 -> 0 | Q75: =Results!P159 -> 0 | R75: =Results!Q159 -> 0 | S75: =Results!R159 -> 0 | T75: =Results!S159 -> 0 | U75: =Results!T159 -> -1.045804727 | V75: =Results!U159 -> 0 | W75: =Results!V159 -> 0 | X75: =Results!W159 -> 0 | Y75: =Results!X159 -> 0 | Z75: =Results!Y159 -> 0 | AA75: =Results!Z159 -> 0 | AB75: =Results!AA159 -> 0 | AC75: =Results!AB159 -> 0 | AD75: =Results!AC159 -> -1.109575506 | AE75: =Results!AD159 -> 0 | AF75: =Results!AE159 -> 0 | AG75: =Results!AF159 -> 0 | AH75: =Results!AG159 -> 0 | AI75: =Results!AH159 -> 0 | AJ75: =Results!AI159 -> 0 | AK75: =Results!AJ159 -> 0 | AL75: =Results!AK159 -> 0 | AM75: =Results!AL159 -> -1.175896676 | AN75: =Results!AM159 -> 0 | AO75: =Results!AN159 -> 0 | AP75: =Results!AO159 -> 0 | AQ75: =Results!AP159 -> 0 | AR75: =Results!AQ159 -> 0 | AS75: =Results!AR159 -> 0 | AT75: =Results!AS159 -> 0 | AU75: 1
A76: Vote 01 | B76: =RIGHT(Results!$D$5,LEN(Results!$D$5)-9) -> The Presidency | C76: 4 | D76: 15 | E76: =Results!D160 -> 0 | F76: =Results!E160 -> 0 | G76: =Results!F160 -> 0 | H76: =Results!G160 -> 0 | I76: =Results!H160 -> 20.34 | J76: =Results!I160 -> 0 | K76: =Results!J160 -> 0 | L76: =Results!K160 -> -0.98858502 | M76: =Results!L160 -> 0 | N76: =Results!M160 -> 0 | O76: =Results!N160 -> 0 | P76: =Results!O160 -> 0 | Q76: =Results!P160 -> 0 | R76: =Results!Q160 -> 0 | S76: =Results!R160 -> 0 | T76: =Results!S160 -> 0 | U76: =Results!T160 -> -1.050023194 | V76: =Results!U160 -> 0 | W76: =Results!V160 -> 0 | X76: =Results!W160 -> 0 | Y76: =Results!X160 -> 0 | Z76: =Results!Y160 -> 0 | AA76: =Results!Z160 -> 0 | AB76: =Results!AA160 -> 0 | AC76: =Results!AB160 -> 0 | AD76: =Results!AC160 -> -1.11408149 | AE76: =Results!AD160 -> 0 | AF76: =Results!AE160 -> 0 | AG76: =Results!AF160 -> 0 | AH76: =Results!AG160 -> 0 | AI76: =Results!AH160 -> 0 | AJ76: =Results!AI160 -> 0 | AK76: =Results!AJ160 -> 0 | AL76: =Results!AK160 -> 0 | AM76: =Results!AL160 -> -1.180705467 | AN76: =Results!AM160 -> 0 | AO76: =Results!AN160 -> 0 | AP76: =Results!AO160 -> 0 | AQ76: =Results!AP160 -> 0 | AR76: =Results!AQ160 -> 0 | AS76: =Results!AR160 -> 0 | AT76: =Results!AS160 -> 0 | AU76: 1
A77: Vote 01 | B77: =RIGHT(Results!$D$5,LEN(Results!$D$5)-9) -> The Presidency | C77: 4 | D77: 16 | E77: =Results!D161 -> 0 | F77: =Results!E161 -> 0 | G77: =Results!F161 -> 0 | H77: =Results!G161 -> 0 | I77: =Results!H161 -> 21.816 | J77: =Results!I161 -> 0 | K77: =Results!J161 -> 0 | L77: =Results!K161 -> -1.04684076 | M77: =Results!L161 -> 0 | N77: =Results!M161 -> 0 | O77: =Results!N161 -> 0 | P77: =Results!O161 -> 0 | Q77: =Results!P161 -> 0 | R77: =Results!Q161 -> 0 | S77: =Results!R161 -> 0 | T77: =Results!S161 -> 0 | U77: =Results!T161 -> -1.112043118 | V77: =Results!U161 -> 0 | W77: =Results!V161 -> 0 | X77: =Results!W161 -> 0 | Y77: =Results!X161 -> 0 | Z77: =Results!Y161 -> 0 | AA77: =Results!Z161 -> 0 | AB77: =Results!AA161 -> 0 | AC77: =Results!AB161 -> 0 | AD77: =Results!AC161 -> -1.180036449 | AE77: =Results!AD161 -> 0 | AF77: =Results!AE161 -> 0 | AG77: =Results!AF161 -> 0 | AH77: =Results!AG161 -> 0 | AI77: =Results!AH161 -> 0 | AJ77: =Results!AI161 -> 0 | AK77: =Results!AJ161 -> 0 | AL77: =Results!AK161 -> 0 | AM77: =Results!AL161 -> -1.250763894 | AN77: =Results!AM161 -> 0 | AO77: =Results!AN161 -> 0 | AP77: =Results!AO161 -> 0 | AQ77: =Results!AP161 -> 0 | AR77: =Results!AQ161 -> 0 | AS77: =Results!AR161 -> 0 | AT77: =Results!AS161 -> 0 | AU77: 1
A78: Vote 01 | B78: =RIGHT(Results!$D$5,LEN(Results!$D$5)-9) -> The Presidency | C78: 4 | D78: Deputy Minister | E78: =Results!D162 -> 0 | F78: =Results!E162 -> 0 | G78: =Results!F162 -> 0 | H78: =Results!G162 -> 0 | I78: =Results!H162 -> 0 | J78: =Results!I162 -> 0 | K78: =Results!J162 -> 0 | L78: =Results!K162 -> 14.64 | M78: =Results!L162 -> 0 | N78: =Results!M162 -> 0 | O78: =Results!N162 -> 0 | P78: =Results!O162 -> 0 | Q78: =Results!P162 -> 0 | R78: =Results!Q162 -> 0 | S78: =Results!R162 -> 0 | T78: =Results!S162 -> 0 | U78: =Results!T162 -> 15.55207035 | V78: =Results!U162 -> 0 | W78: =Results!V162 -> 0 | X78: =Results!W162 -> 0 | Y78: =Results!X162 -> 0 | Z78: =Results!Y162 -> 0 | AA78: =Results!Z162 -> 0 | AB78: =Results!AA162 -> 0 | AC78: =Results!AB162 -> 0 | AD78: =Results!AC162 -> 16.50319937 | AE78: =Results!AD162 -> 0 | AF78: =Results!AE162 -> 0 | AG78: =Results!AF162 -> 0 | AH78: =Results!AG162 -> 0 | AI78: =Results!AH162 -> 0 | AJ78: =Results!AI162 -> 0 | AK78: =Results!AJ162 -> 0 | AL78: =Results!AK162 -> 0 | AM78: =Results!AL162 -> 17.49259358 | AN78: =Results!AM162 -> 0 | AO78: =Results!AN162 -> 0 | AP78: =Results!AO162 -> 0 | AQ78: =Results!AP162 -> 0 | AR78: =Results!AQ162 -> 0 | AS78: =Results!AR162 -> 0 | AT78: =Results!AS162 -> 0 | AU78: 1
A79: Vote 01 | B79: =RIGHT(Results!$D$5,LEN(Results!$D$5)-9) -> The Presidency | C79: 4 | D79: Minister | E79: =Results!D163 -> 0 | F79: =Results!E163 -> 0 | G79: =Results!F163 -> 0 | H79: =Results!G163 -> 0 | I79: =Results!H163 -> 0 | J79: =Results!I163 -> 0 | K79: =Results!J163 -> 0 | L79: =Results!K163 -> 14.64 | M79: =Results!L163 -> 0 | N79: =Results!M163 -> 0 | O79: =Results!N163 -> 0 | P79: =Results!O163 -> 0 | Q79: =Results!P163 -> 0 | R79: =Results!Q163 -> 0 | S79: =Results!R163 -> 0 | T79: =Results!S163 -> 0 | U79: =Results!T163 -> 15.55207035 | V79: =Results!U163 -> 0 | W79: =Results!V163 -> 0 | X79: =Results!W163 -> 0 | Y79: =Results!X163 -> 0 | Z79: =Results!Y163 -> 0 | AA79: =Results!Z163 -> 0 | AB79: =Results!AA163 -> 0 | AC79: =Results!AB163 -> 0 | AD79: =Results!AC163 -> 16.50319937 | AE79: =Results!AD163 -> 0 | AF79: =Results!AE163 -> 0 | AG79: =Results!AF163 -> 0 | AH79: =Results!AG163 -> 0 | AI79: =Results!AH163 -> 0 | AJ79: =Results!AI163 -> 0 | AK79: =Results!AJ163 -> 0 | AL79: =Results!AK163 -> 0 | AM79: =Results!AL163 -> 17.49259358 | AN79: =Results!AM163 -> 0 | AO79: =Results!AN163 -> 0 | AP79: =Results!AO163 -> 0 | AQ79: =Results!AP163 -> 0 | AR79: =Results!AQ163 -> 0 | AS79: =Results!AR163 -> 0 | AT79: =Results!AS163 -> 0 | AU79: 1
A80: Vote 01 | B80: =RIGHT(Results!$D$5,LEN(Results!$D$5)-9) -> The Presidency | C80: 4 | D80: Intern | E80: =Results!D164 -> 0 | F80: =Results!E164 -> 0 | G80: =Results!F164 -> 0 | H80: =Results!G164 -> 0 | I80: =Results!H164 -> 0 | J80: =Results!I164 -> 0 | K80: =Results!J164 -> 0 | L80: =Results!K164 -> 14.64 | M80: =Results!L164 -> 0 | N80: =Results!M164 -> 0 | O80: =Results!N164 -> 0 | P80: =Results!O164 -> 0 | Q80: =Results!P164 -> 0 | R80: =Results!Q164 -> 0 | S80: =Results!R164 -> 0 | T80: =Results!S164 -> 0 | U80: =Results!T164 -> 15.55207035 | V80: =Results!U164 -> 0 | W80: =Results!V164 -> 0 | X80: =Results!W164 -> 0 | Y80: =Results!X164 -> 0 | Z80: =Results!Y164 -> 0 | AA80: =Results!Z164 -> 0 | AB80: =Results!AA164 -> 0 | AC80: =Results!AB164 -> 0 | AD80: =Results!AC164 -> 16.50319937 | AE80: =Results!AD164 -> 0 | AF80: =Results!AE164 -> 0 | AG80: =Results!AF164 -> 0 | AH80: =Results!AG164 -> 0 | AI80: =Results!AH164 -> 0 | AJ80: =Results!AI164 -> 0 | AK80: =Results!AJ164 -> 0 | AL80: =Results!AK164 -> 0 | AM80: =Results!AL164 -> 17.49259358 | AN80: =Results!AM164 -> 0 | AO80: =Results!AN164 -> 0 | AP80: =Results!AO164 -> 0 | AQ80: =Results!AP164 -> 0 | AR80: =Results!AQ164 -> 0 | AS80: =Results!AR164 -> 0 | AT80: =Results!AS164 -> 0 | AU80: 1
A81: Vote 01 | B81: =RIGHT(Results!$D$5,LEN(Results!$D$5)-9) -> The Presidency | C81: 4 | D81: Other | E81: =Results!D165 -> 0 | F81: =Results!E165 -> 0 | G81: =Results!F165 -> 0 | H81: =Results!G165 -> 0 | I81: =Results!H165 -> 0 | J81: =Results!I165 -> 0 | K81: =Results!J165 -> 0 | L81: =Results!K165 -> 14.64 | M81: =Results!L165 -> 0 | N81: =Results!M165 -> 0 | O81: =Results!N165 -> 0 | P81: =Results!O165 -> 0 | Q81: =Results!P165 -> 0 | R81: =Results!Q165 -> 0 | S81: =Results!R165 -> 0 | T81: =Results!S165 -> 0 | U81: =Results!T165 -> 15.55207035 | V81: =Results!U165 -> 0 | W81: =Results!V165 -> 0 | X81: =Results!W165 -> 0 | Y81: =Results!X165 -> 0 | Z81: =Results!Y165 -> 0 | AA81: =Results!Z165 -> 0 | AB81: =Results!AA165 -> 0 | AC81: =Results!AB165 -> 0 | AD81: =Results!AC165 -> 16.50319937 | AE81: =Results!AD165 -> 0 | AF81: =Results!AE165 -> 0 | AG81: =Results!AF165 -> 0 | AH81: =Results!AG165 -> 0 | AI81: =Results!AH165 -> 0 | AJ81: =Results!AI165 -> 0 | AK81: =Results!AJ165 -> 0 | AL81: =Results!AK165 -> 0 | AM81: =Results!AL165 -> 17.49259358 | AN81: =Results!AM165 -> 0 | AO81: =Results!AN165 -> 0 | AP81: =Results!AO165 -> 0 | AQ81: =Results!AP165 -> 0 | AR81: =Results!AQ165 -> 0 | AS81: =Results!AR165 -> 0 | AT81: =Results!AS165 -> 0 | AU81: 1
A82: Vote 01 | B82: =RIGHT(Results!$D$5,LEN(Results!$D$5)-9) -> The Presidency | C82: 5 | D82: 1 | E82: =Results!D175 -> 0 | F82: =Results!E175 -> 0 | G82: =Results!F175 -> 0 | H82: =Results!G175 -> 0 | I82: =Results!H175 -> 14.64 | J82: =Results!I175 -> 0 | K82: =Results!J175 -> 0 | L82: =Results!K175 -> -0.7327463407 | M82: =Results!L175 -> 0 | N82: =Results!M175 -> 0 | O82: =Results!N175 -> 0 | P82: =Results!O175 -> 0 | Q82: =Results!P175 -> 0 | R82: =Results!Q175 -> 0 | S82: =Results!R175 -> 0 | T82: =Results!S175 -> 0 | U82: =Results!T175 -> -0.7783963549 | V82: =Results!U175 -> 0 | W82: =Results!V175 -> 0 | X82: =Results!W175 -> 0 | Y82: =Results!X175 -> 0 | Z82: =Results!Y175 -> 0 | AA82: =Results!Z175 -> 0 | AB82: =Results!AA175 -> 0 | AC82: =Results!AB175 -> 0 | AD82: =Results!AC175 -> -0.8260012942 | AE82: =Results!AD175 -> 0 | AF82: =Results!AE175 -> 0 | AG82: =Results!AF175 -> 0 | AH82: =Results!AG175 -> 0 | AI82: =Results!AH175 -> 0 | AJ82: =Results!AI175 -> 0 | AK82: =Results!AJ175 -> 0 | AL82: =Results!AK175 -> 0 | AM82: =Results!AL175 -> -0.8755214437 | AN82: =Results!AM175 -> 0 | AO82: =Results!AN175 -> 0 | AP82: =Results!AO175 -> 0 | AQ82: =Results!AP175 -> 0 | AR82: =Results!AQ175 -> 0 | AS82: =Results!AR175 -> 0 | AT82: =Results!AS175 -> 0 | AU82: 1
A83: Vote 01 | B83: =RIGHT(Results!$D$5,LEN(Results!$D$5)-9) -> The Presidency | C83: 5 | D83: 2 | E83: =Results!D176 -> 0 | F83: =Results!E176 -> 0 | G83: =Results!F176 -> 0 | H83: =Results!G176 -> 0 | I83: =Results!H176 -> 14.64 | J83: =Results!I176 -> 0 | K83: =Results!J176 -> 0 | L83: =Results!K176 -> -0.75852768 | M83: =Results!L176 -> 0 | N83: =Results!M176 -> 0 | O83: =Results!N176 -> 0 | P83: =Results!O176 -> 0 | Q83: =Results!P176 -> 0 | R83: =Results!Q176 -> 0 | S83: =Results!R176 -> 0 | T83: =Results!S176 -> 0 | U83: =Results!T176 -> -0.8033717507 | V83: =Results!U176 -> 0 | W83: =Results!V176 -> 0 | X83: =Results!W176 -> 0 | Y83: =Results!X176 -> 0 | Z83: =Results!Y176 -> 0 | AA83: =Results!Z176 -> 0 | AB83: =Results!AA176 -> 0 | AC83: =Results!AB176 -> 0 | AD83: =Results!AC176 -> -0.8499494059 | AE83: =Results!AD176 -> 0 | AF83: =Results!AE176 -> 0 | AG83: =Results!AF176 -> 0 | AH83: =Results!AG176 -> 0 | AI83: =Results!AH176 -> 0 | AJ83: =Results!AI176 -> 0 | AK83: =Results!AJ176 -> 0 | AL83: =Results!AK176 -> 0 | AM83: =Results!AL176 -> -0.8982024454 | AN83: =Results!AM176 -> 0 | AO83: =Results!AN176 -> 0 | AP83: =Results!AO176 -> 0 | AQ83: =Results!AP176 -> 0 | AR83: =Results!AQ176 -> 0 | AS83: =Results!AR176 -> 0 | AT83: =Results!AS176 -> 0 | AU83: 1
A84: Vote 01 | B84: =RIGHT(Results!$D$5,LEN(Results!$D$5)-9) -> The Presidency | C84: 5 | D84: 3 | E84: =Results!D177 -> 0 | F84: =Results!E177 -> 0 | G84: =Results!F177 -> 0 | H84: =Results!G177 -> 0 | I84: =Results!H177 -> 14.64 | J84: =Results!I177 -> 0 | K84: =Results!J177 -> 0 | L84: =Results!K177 -> -0.75003648 | M84: =Results!L177 -> 0 | N84: =Results!M177 -> 0 | O84: =Results!N177 -> 0 | P84: =Results!O177 -> 0 | Q84: =Results!P177 -> 0 | R84: =Results!Q177 -> 0 | S84: =Results!R177 -> 0 | T84: =Results!S177 -> 0 | U84: =Results!T177 -> -0.7945455851 | V84: =Results!U177 -> 0 | W84: =Results!V177 -> 0 | X84: =Results!W177 -> 0 | Y84: =Results!X177 -> 0 | Z84: =Results!Y177 -> 0 | AA84: =Results!Z177 -> 0 | AB84: =Results!AA177 -> 0 | AC84: =Results!AB177 -> 0 | AD84: =Results!AC177 -> -0.8407893723 | AE84: =Results!AD177 -> 0 | AF84: =Results!AE177 -> 0 | AG84: =Results!AF177 -> 0 | AH84: =Results!AG177 -> 0 | AI84: =Results!AH177 -> 0 | AJ84: =Results!AI177 -> 0 | AK84: =Results!AJ177 -> 0 | AL84: =Results!AK177 -> 0 | AM84: =Results!AL177 -> -0.8887115998 | AN84: =Results!AM177 -> 0 | AO84: =Results!AN177 -> 0 | AP84: =Results!AO177 -> 0 | AQ84: =Results!AP177 -> 0 | AR84: =Results!AQ177 -> 0 | AS84: =Results!AR177 -> 0 | AT84: =Results!AS177 -> 0 | AU84: 1
A85: Vote 01 | B85: =RIGHT(Results!$D$5,LEN(Results!$D$5)-9) -> The Presidency | C85: 5 | D85: 4 | E85: =Results!D178 -> 0 | F85: =Results!E178 -> 0 | G85: =Results!F178 -> 0 | H85: =Results!G178 -> 0 | I85: =Results!H178 -> 14.64 | J85: =Results!I178 -> 0 | K85: =Results!J178 -> 0 | L85: =Results!K178 -> -0.76264152 | M85: =Results!L178 -> 0 | N85: =Results!M178 -> 0 | O85: =Results!N178 -> 0 | P85: =Results!O178 -> 0 | Q85: =Results!P178 -> 0 | R85: =Results!Q178 -> 0 | S85: =Results!R178 -> 0 | T85: =Results!S178 -> 0 | U85: =Results!T178 -> -0.8081749457 | V85: =Results!U178 -> 0 | W85: =Results!V178 -> 0 | X85: =Results!W178 -> 0 | Y85: =Results!X178 -> 0 | Z85: =Results!Y178 -> 0 | AA85: =Results!Z178 -> 0 | AB85: =Results!AA178 -> 0 | AC85: =Results!AB178 -> 0 | AD85: =Results!AC178 -> -0.8555038615 | AE85: =Results!AD178 -> 0 | AF85: =Results!AE178 -> 0 | AG85: =Results!AF178 -> 0 | AH85: =Results!AG178 -> 0 | AI85: =Results!AH178 -> 0 | AJ85: =Results!AI178 -> 0 | AK85: =Results!AJ178 -> 0 | AL85: =Results!AK178 -> 0 | AM85: =Results!AL178 -> -0.9045727065 | AN85: =Results!AM178 -> 0 | AO85: =Results!AN178 -> 0 | AP85: =Results!AO178 -> 0 | AQ85: =Results!AP178 -> 0 | AR85: =Results!AQ178 -> 0 | AS85: =Results!AR178 -> 0 | AT85: =Results!AS178 -> 0 | AU85: 1
A86: Vote 01 | B86: =RIGHT(Results!$D$5,LEN(Results!$D$5)-9) -> The Presidency | C86: 5 | D86: 5 | E86: =Results!D179 -> 0 | F86: =Results!E179 -> 0 | G86: =Results!F179 -> 0 | H86: =Results!G179 -> 0 | I86: =Results!H179 -> 14.64 | J86: =Results!I179 -> 0 | K86: =Results!J179 -> 0 | L86: =Results!K179 -> -0.77221608 | M86: =Results!L179 -> 0 | N86: =Results!M179 -> 0 | O86: =Results!N179 -> 0 | P86: =Results!O179 -> 0 | Q86: =Results!P179 -> 0 | R86: =Results!Q179 -> 0 | S86: =Results!R179 -> 0 | T86: =Results!S179 -> 0 | U86: =Results!T179 -> -0.8187711242 | V86: =Results!U179 -> 0 | W86: =Results!V179 -> 0 | X86: =Results!W179 -> 0 | Y86: =Results!X179 -> 0 | Z86: =Results!Y179 -> 0 | AA86: =Results!Z179 -> 0 | AB86: =Results!AA179 -> 0 | AC86: =Results!AB179 -> 0 | AD86: =Results!AC179 -> -0.8671986141 | AE86: =Results!AD179 -> 0 | AF86: =Results!AE179 -> 0 | AG86: =Results!AF179 -> 0 | AH86: =Results!AG179 -> 0 | AI86: =Results!AH179 -> 0 | AJ86: =Results!AI179 -> 0 | AK86: =Results!AJ179 -> 0 | AL86: =Results!AK179 -> 0 | AM86: =Results!AL179 -> -0.9174455841 | AN86: =Results!AM179 -> 0 | AO86: =Results!AN179 -> 0 | AP86: =Results!AO179 -> 0 | AQ86: =Results!AP179 -> 0 | AR86: =Results!AQ179 -> 0 | AS86: =Results!AR179 -> 0 | AT86: =Results!AS179 -> 0 | AU86: 1
A87: Vote 01 | B87: =RIGHT(Results!$D$5,LEN(Results!$D$5)-9) -> The Presidency | C87: 5 | D87: 6 | E87: =Results!D180 -> 0 | F87: =Results!E180 -> 0 | G87: =Results!F180 -> 0 | H87: =Results!G180 -> 0 | I87: =Results!H180 -> 16.224 | J87: =Results!I180 -> 0 | K87: =Results!J180 -> 0 | L87: =Results!K180 -> -0.838148064 | M87: =Results!L180 -> 0 | N87: =Results!M180 -> 0 | O87: =Results!N180 -> 0 | P87: =Results!O180 -> 0 | Q87: =Results!P180 -> 0 | R87: =Results!Q180 -> 0 | S87: =Results!R180 -> 0 | T87: =Results!S180 -> 0 | U87: =Results!T180 -> -0.8888307827 | V87: =Results!U180 -> 0 | W87: =Results!V180 -> 0 | X87: =Results!W180 -> 0 | Y87: =Results!X180 -> 0 | Z87: =Results!Y180 -> 0 | AA87: =Results!Z180 -> 0 | AB87: =Results!AA180 -> 0 | AC87: =Results!AB180 -> 0 | AD87: =Results!AC180 -> -0.9415630785 | AE87: =Results!AD180 -> 0 | AF87: =Results!AE180 -> 0 | AG87: =Results!AF180 -> 0 | AH87: =Results!AG180 -> 0 | AI87: =Results!AH180 -> 0 | AJ87: =Results!AI180 -> 0 | AK87: =Results!AJ180 -> 0 | AL87: =Results!AK180 -> 0 | AM87: =Results!AL180 -> -0.9962882885 | AN87: =Results!AM180 -> 0 | AO87: =Results!AN180 -> 0 | AP87: =Results!AO180 -> 0 | AQ87: =Results!AP180 -> 0 | AR87: =Results!AQ180 -> 0 | AS87: =Results!AR180 -> 0 | AT87: =Results!AS180 -> 0 | AU87: 1
A88: Vote 01 | B88: =RIGHT(Results!$D$5,LEN(Results!$D$5)-9) -> The Presidency | C88: 5 | D88: 7 | E88: =Results!D181 -> 0 | F88: =Results!E181 -> 0 | G88: =Results!F181 -> 0 | H88: =Results!G181 -> 0 | I88: =Results!H181 -> 16.224 | J88: =Results!I181 -> 0 | K88: =Results!J181 -> 0 | L88: =Results!K181 -> -0.831674688 | M88: =Results!L181 -> 0 | N88: =Results!M181 -> 0 | O88: =Results!N181 -> 0 | P88: =Results!O181 -> 0 | Q88: =Results!P181 -> 0 | R88: =Results!Q181 -> 0 | S88: =Results!R181 -> 0 | T88: =Results!S181 -> 0 | U88: =Results!T181 -> -0.8822029897 | V88: =Results!U181 -> 0 | W88: =Results!V181 -> 0 | X88: =Results!W181 -> 0 | Y88: =Results!X181 -> 0 | Z88: =Results!Y181 -> 0 | AA88: =Results!Z181 -> 0 | AB88: =Results!AA181 -> 0 | AC88: =Results!AB181 -> 0 | AD88: =Results!AC181 -> -0.9347935015 | AE88: =Results!AD181 -> 0 | AF88: =Results!AE181 -> 0 | AG88: =Results!AF181 -> 0 | AH88: =Results!AG181 -> 0 | AI88: =Results!AH181 -> 0 | AJ88: =Results!AI181 -> 0 | AK88: =Results!AJ181 -> 0 | AL88: =Results!AK181 -> 0 | AM88: =Results!AL181 -> -0.9893916686 | AN88: =Results!AM181 -> 0 | AO88: =Results!AN181 -> 0 | AP88: =Results!AO181 -> 0 | AQ88: =Results!AP181 -> 0 | AR88: =Results!AQ181 -> 0 | AS88: =Results!AR181 -> 0 | AT88: =Results!AS181 -> 0 | AU88: 1
A89: Vote 01 | B89: =RIGHT(Results!$D$5,LEN(Results!$D$5)-9) -> The Presidency | C89: 5 | D89: 8 | E89: =Results!D182 -> 0 | F89: =Results!E182 -> 0 | G89: =Results!F182 -> 0 | H89: =Results!G182 -> 0 | I89: =Results!H182 -> 17.4 | J89: =Results!I182 -> 0 | K89: =Results!J182 -> 0 | L89: =Results!K182 -> -0.8827716 | M89: =Results!L182 -> 0 | N89: =Results!M182 -> 0 | O89: =Results!N182 -> 0 | P89: =Results!O182 -> 0 | Q89: =Results!P182 -> 0 | R89: =Results!Q182 -> 0 | S89: =Results!R182 -> 0 | T89: =Results!S182 -> 0 | U89: =Results!T182 -> -0.9363910472 | V89: =Results!U182 -> 0 | W89: =Results!V182 -> 0 | X89: =Results!W182 -> 0 | Y89: =Results!X182 -> 0 | Z89: =Results!Y182 -> 0 | AA89: =Results!Z182 -> 0 | AB89: =Results!AA182 -> 0 | AC89: =Results!AB182 -> 0 | AD89: =Results!AC182 -> -0.9921978102 | AE89: =Results!AD182 -> 0 | AF89: =Results!AE182 -> 0 | AG89: =Results!AF182 -> 0 | AH89: =Results!AG182 -> 0 | AI89: =Results!AH182 -> 0 | AJ89: =Results!AI182 -> 0 | AK89: =Results!AJ182 -> 0 | AL89: =Results!AK182 -> 0 | AM89: =Results!AL182 -> -1.050133888 | AN89: =Results!AM182 -> 0 | AO89: =Results!AN182 -> 0 | AP89: =Results!AO182 -> 0 | AQ89: =Results!AP182 -> 0 | AR89: =Results!AQ182 -> 0 | AS89: =Results!AR182 -> 0 | AT89: =Results!AS182 -> 0 | AU89: 1
A90: Vote 01 | B90: =RIGHT(Results!$D$5,LEN(Results!$D$5)-9) -> The Presidency | C90: 5 | D90: 9 | E90: =Results!D183 -> 0 | F90: =Results!E183 -> 0 | G90: =Results!F183 -> 0 | H90: =Results!G183 -> 0 | I90: =Results!H183 -> 17.4 | J90: =Results!I183 -> 0 | K90: =Results!J183 -> 0 | L90: =Results!K183 -> -0.8920632 | M90: =Results!L183 -> 0 | N90: =Results!M183 -> 0 | O90: =Results!N183 -> 0 | P90: =Results!O183 -> 0 | Q90: =Results!P183 -> 0 | R90: =Results!Q183 -> 0 | S90: =Results!R183 -> 0 | T90: =Results!S183 -> 0 | U90: =Results!T183 -> -0.9465835933 | V90: =Results!U183 -> 0 | W90: =Results!V183 -> 0 | X90: =Results!W183 -> 0 | Y90: =Results!X183 -> 0 | Z90: =Results!Y183 -> 0 | AA90: =Results!Z183 -> 0 | AB90: =Results!AA183 -> 0 | AC90: =Results!AB183 -> 0 | AD90: =Results!AC183 -> -1.003353873 | AE90: =Results!AD183 -> 0 | AF90: =Results!AE183 -> 0 | AG90: =Results!AF183 -> 0 | AH90: =Results!AG183 -> 0 | AI90: =Results!AH183 -> 0 | AJ90: =Results!AI183 -> 0 | AK90: =Results!AJ183 -> 0 | AL90: =Results!AK183 -> 0 | AM90: =Results!AL183 -> -1.062317582 | AN90: =Results!AM183 -> 0 | AO90: =Results!AN183 -> 0 | AP90: =Results!AO183 -> 0 | AQ90: =Results!AP183 -> 0 | AR90: =Results!AQ183 -> 0 | AS90: =Results!AR183 -> 0 | AT90: =Results!AS183 -> 0 | AU90: 1
A91: Vote 01 | B91: =RIGHT(Results!$D$5,LEN(Results!$D$5)-9) -> The Presidency | C91: 5 | D91: 10 | E91: =Results!D184 -> 0 | F91: =Results!E184 -> 0 | G91: =Results!F184 -> 0 | H91: =Results!G184 -> 0 | I91: =Results!H184 -> 19.68 | J91: =Results!I184 -> 0 | K91: =Results!J184 -> 0 | L91: =Results!K184 -> -0.98457072 | M91: =Results!L184 -> 0 | N91: =Results!M184 -> 0 | O91: =Results!N184 -> 0 | P91: =Results!O184 -> 0 | Q91: =Results!P184 -> 0 | R91: =Results!Q184 -> 0 | S91: =Results!R184 -> 0 | T91: =Results!S184 -> 0 | U91: =Results!T184 -> -1.045040284 | V91: =Results!U184 -> 0 | W91: =Results!V184 -> 0 | X91: =Results!W184 -> 0 | Y91: =Results!X184 -> 0 | Z91: =Results!Y184 -> 0 | AA91: =Results!Z184 -> 0 | AB91: =Results!AA184 -> 0 | AC91: =Results!AB184 -> 0 | AD91: =Results!AC184 -> -1.108028905 | AE91: =Results!AD184 -> 0 | AF91: =Results!AE184 -> 0 | AG91: =Results!AF184 -> 0 | AH91: =Results!AG184 -> 0 | AI91: =Results!AH184 -> 0 | AJ91: =Results!AI184 -> 0 | AK91: =Results!AJ184 -> 0 | AL91: =Results!AK184 -> 0 | AM91: =Results!AL184 -> -1.173476419 | AN91: =Results!AM184 -> 0 | AO91: =Results!AN184 -> 0 | AP91: =Results!AO184 -> 0 | AQ91: =Results!AP184 -> 0 | AR91: =Results!AQ184 -> 0 | AS91: =Results!AR184 -> 0 | AT91: =Results!AS184 -> 0 | AU91: 1
A92: Vote 01 | B92: =RIGHT(Results!$D$5,LEN(Results!$D$5)-9) -> The Presidency | C92: 5 | D92: 11 | E92: =Results!D185 -> 0 | F92: =Results!E185 -> 0 | G92: =Results!F185 -> 0 | H92: =Results!G185 -> 0 | I92: =Results!H185 -> 19.68 | J92: =Results!I185 -> 0 | K92: =Results!J185 -> 0 | L92: =Results!K185 -> -0.97124736 | M92: =Results!L185 -> 0 | N92: =Results!M185 -> 0 | O92: =Results!N185 -> 0 | P92: =Results!O185 -> 0 | Q92: =Results!P185 -> 0 | R92: =Results!Q185 -> 0 | S92: =Results!R185 -> 0 | T92: =Results!S185 -> 0 | U92: =Results!T185 -> -1.031578902 | V92: =Results!U185 -> 0 | W92: =Results!V185 -> 0 | X92: =Results!W185 -> 0 | Y92: =Results!X185 -> 0 | Z92: =Results!Y185 -> 0 | AA92: =Results!Z185 -> 0 | AB92: =Results!AA185 -> 0 | AC92: =Results!AB185 -> 0 | AD92: =Results!AC185 -> -1.094481028 | AE92: =Results!AD185 -> 0 | AF92: =Results!AE185 -> 0 | AG92: =Results!AF185 -> 0 | AH92: =Results!AG185 -> 0 | AI92: =Results!AH185 -> 0 | AJ92: =Results!AI185 -> 0 | AK92: =Results!AJ185 -> 0 | AL92: =Results!AK185 -> 0 | AM92: =Results!AL185 -> -1.15990003 | AN92: =Results!AM185 -> 0 | AO92: =Results!AN185 -> 0 | AP92: =Results!AO185 -> 0 | AQ92: =Results!AP185 -> 0 | AR92: =Results!AQ185 -> 0 | AS92: =Results!AR185 -> 0 | AT92: =Results!AS185 -> 0 | AU92: 1
A93: Vote 01 | B93: =RIGHT(Results!$D$5,LEN(Results!$D$5)-9) -> The Presidency | C93: 5 | D93: 12 | E93: =Results!D186 -> 0 | F93: =Results!E186 -> 0 | G93: =Results!F186 -> 0 | H93: =Results!G186 -> 0 | I93: =Results!H186 -> 20.34 | J93: =Results!I186 -> 0 | K93: =Results!J186 -> 0 | L93: =Results!K186 -> -0.98844264 | M93: =Results!L186 -> 0 | N93: =Results!M186 -> 0 | O93: =Results!N186 -> 0 | P93: =Results!O186 -> 0 | Q93: =Results!P186 -> 0 | R93: =Results!Q186 -> 0 | S93: =Results!R186 -> 0 | T93: =Results!S186 -> 0 | U93: =Results!T186 -> -1.049827485 | V93: =Results!U186 -> 0 | W93: =Results!V186 -> 0 | X93: =Results!W186 -> 0 | Y93: =Results!X186 -> 0 | Z93: =Results!Y186 -> 0 | AA93: =Results!Z186 -> 0 | AB93: =Results!AA186 -> 0 | AC93: =Results!AB186 -> 0 | AD93: =Results!AC186 -> -1.113826599 | AE93: =Results!AD186 -> 0 | AF93: =Results!AE186 -> 0 | AG93: =Results!AF186 -> 0 | AH93: =Results!AG186 -> 0 | AI93: =Results!AH186 -> 0 | AJ93: =Results!AI186 -> 0 | AK93: =Results!AJ186 -> 0 | AL93: =Results!AK186 -> 0 | AM93: =Results!AL186 -> -1.180385212 | AN93: =Results!AM186 -> 0 | AO93: =Results!AN186 -> 0 | AP93: =Results!AO186 -> 0 | AQ93: =Results!AP186 -> 0 | AR93: =Results!AQ186 -> 0 | AS93: =Results!AR186 -> 0 | AT93: =Results!AS186 -> 0 | AU93: 1
A94: Vote 01 | B94: =RIGHT(Results!$D$5,LEN(Results!$D$5)-9) -> The Presidency | C94: 5 | D94: 13 | E94: =Results!D187 -> 0 | F94: =Results!E187 -> 0 | G94: =Results!F187 -> 0 | H94: =Results!G187 -> 0 | I94: =Results!H187 -> 20.34 | J94: =Results!I187 -> 0 | K94: =Results!J187 -> 0 | L94: =Results!K187 -> -0.98712054 | M94: =Results!L187 -> 0 | N94: =Results!M187 -> 0 | O94: =Results!N187 -> 0 | P94: =Results!O187 -> 0 | Q94: =Results!P187 -> 0 | R94: =Results!Q187 -> 0 | S94: =Results!R187 -> 0 | T94: =Results!S187 -> 0 | U94: =Results!T187 -> -1.048410743 | V94: =Results!U187 -> 0 | W94: =Results!V187 -> 0 | X94: =Results!W187 -> 0 | Y94: =Results!X187 -> 0 | Z94: =Results!Y187 -> 0 | AA94: =Results!Z187 -> 0 | AB94: =Results!AA187 -> 0 | AC94: =Results!AB187 -> 0 | AD94: =Results!AC187 -> -1.112308978 | AE94: =Results!AD187 -> 0 | AF94: =Results!AE187 -> 0 | AG94: =Results!AF187 -> 0 | AH94: =Results!AG187 -> 0 | AI94: =Results!AH187 -> 0 | AJ94: =Results!AI187 -> 0 | AK94: =Results!AJ187 -> 0 | AL94: =Results!AK187 -> 0 | AM94: =Results!AL187 -> -1.178760164 | AN94: =Results!AM187 -> 0 | AO94: =Results!AN187 -> 0 | AP94: =Results!AO187 -> 0 | AQ94: =Results!AP187 -> 0 | AR94: =Results!AQ187 -> 0 | AS94: =Results!AR187 -> 0 | AT94: =Results!AS187 -> 0 | AU94: 1
A95: Vote 01 | B95: =RIGHT(Results!$D$5,LEN(Results!$D$5)-9) -> The Presidency | C95: 5 | D95: 14 | E95: =Results!D188 -> 0 | F95: =Results!E188 -> 0 | G95: =Results!F188 -> 0 | H95: =Results!G188 -> 0 | I95: =Results!H188 -> 20.34 | J95: =Results!I188 -> 0 | K95: =Results!J188 -> 0 | L95: =Results!K188 -> -0.98463906 | M95: =Results!L188 -> 0 | N95: =Results!M188 -> 0 | O95: =Results!N188 -> 0 | P95: =Results!O188 -> 0 | Q95: =Results!P188 -> 0 | R95: =Results!Q188 -> 0 | S95: =Results!R188 -> 0 | T95: =Results!S188 -> 0 | U95: =Results!T188 -> -1.045804727 | V95: =Results!U188 -> 0 | W95: =Results!V188 -> 0 | X95: =Results!W188 -> 0 | Y95: =Results!X188 -> 0 | Z95: =Results!Y188 -> 0 | AA95: =Results!Z188 -> 0 | AB95: =Results!AA188 -> 0 | AC95: =Results!AB188 -> 0 | AD95: =Results!AC188 -> -1.109575506 | AE95: =Results!AD188 -> 0 | AF95: =Results!AE188 -> 0 | AG95: =Results!AF188 -> 0 | AH95: =Results!AG188 -> 0 | AI95: =Results!AH188 -> 0 | AJ95: =Results!AI188 -> 0 | AK95: =Results!AJ188 -> 0 | AL95: =Results!AK188 -> 0 | AM95: =Results!AL188 -> -1.175896676 | AN95: =Results!AM188 -> 0 | AO95: =Results!AN188 -> 0 | AP95: =Results!AO188 -> 0 | AQ95: =Results!AP188 -> 0 | AR95: =Results!AQ188 -> 0 | AS95: =Results!AR188 -> 0 | AT95: =Results!AS188 -> 0 | AU95: 1
A96: Vote 01 | B96: =RIGHT(Results!$D$5,LEN(Results!$D$5)-9) -> The Presidency | C96: 5 | D96: 15 | E96: =Results!D189 -> 0 | F96: =Results!E189 -> 0 | G96: =Results!F189 -> 0 | H96: =Results!G189 -> 0 | I96: =Results!H189 -> 20.34 | J96: =Results!I189 -> 0 | K96: =Results!J189 -> 0 | L96: =Results!K189 -> -0.98858502 | M96: =Results!L189 -> 0 | N96: =Results!M189 -> 0 | O96: =Results!N189 -> 0 | P96: =Results!O189 -> 0 | Q96: =Results!P189 -> 0 | R96: =Results!Q189 -> 0 | S96: =Results!R189 -> 0 | T96: =Results!S189 -> 0 | U96: =Results!T189 -> -1.050023194 | V96: =Results!U189 -> 0 | W96: =Results!V189 -> 0 | X96: =Results!W189 -> 0 | Y96: =Results!X189 -> 0 | Z96: =Results!Y189 -> 0 | AA96: =Results!Z189 -> 0 | AB96: =Results!AA189 -> 0 | AC96: =Results!AB189 -> 0 | AD96: =Results!AC189 -> -1.11408149 | AE96: =Results!AD189 -> 0 | AF96: =Results!AE189 -> 0 | AG96: =Results!AF189 -> 0 | AH96: =Results!AG189 -> 0 | AI96: =Results!AH189 -> 0 | AJ96: =Results!AI189 -> 0 | AK96: =Results!AJ189 -> 0 | AL96: =Results!AK189 -> 0 | AM96: =Results!AL189 -> -1.180705467 | AN96: =Results!AM189 -> 0 | AO96: =Results!AN189 -> 0 | AP96: =Results!AO189 -> 0 | AQ96: =Results!AP189 -> 0 | AR96: =Results!AQ189 -> 0 | AS96: =Results!AR189 -> 0 | AT96: =Results!AS189 -> 0 | AU96: 1
A97: Vote 01 | B97: =RIGHT(Results!$D$5,LEN(Results!$D$5)-9) -> The Presidency | C97: 5 | D97: 16 | E97: =Results!D190 -> 0 | F97: =Results!E190 -> 0 | G97: =Results!F190 -> 0 | H97: =Results!G190 -> 0 | I97: =Results!H190 -> 21.816 | J97: =Results!I190 -> 0 | K97: =Results!J190 -> 0 | L97: =Results!K190 -> -1.04684076 | M97: =Results!L190 -> 0 | N97: =Results!M190 -> 0 | O97: =Results!N190 -> 0 | P97: =Results!O190 -> 0 | Q97: =Results!P190 -> 0 | R97: =Results!Q190 -> 0 | S97: =Results!R190 -> 0 | T97: =Results!S190 -> 0 | U97: =Results!T190 -> -1.112043118 | V97: =Results!U190 -> 0 | W97: =Results!V190 -> 0 | X97: =Results!W190 -> 0 | Y97: =Results!X190 -> 0 | Z97: =Results!Y190 -> 0 | AA97: =Results!Z190 -> 0 | AB97: =Results!AA190 -> 0 | AC97: =Results!AB190 -> 0 | AD97: =Results!AC190 -> -1.180036449 | AE97: =Results!AD190 -> 0 | AF97: =Results!AE190 -> 0 | AG97: =Results!AF190 -> 0 | AH97: =Results!AG190 -> 0 | AI97: =Results!AH190 -> 0 | AJ97: =Results!AI190 -> 0 | AK97: =Results!AJ190 -> 0 | AL97: =Results!AK190 -> 0 | AM97: =Results!AL190 -> -1.250763894 | AN97: =Results!AM190 -> 0 | AO97: =Results!AN190 -> 0 | AP97: =Results!AO190 -> 0 | AQ97: =Results!AP190 -> 0 | AR97: =Results!AQ190 -> 0 | AS97: =Results!AR190 -> 0 | AT97: =Results!AS190 -> 0 | AU97: 1
A98: Vote 01 | B98: =RIGHT(Results!$D$5,LEN(Results!$D$5)-9) -> The Presidency | C98: 5 | D98: Deputy Minister | E98: =Results!D191 -> 0 | F98: =Results!E191 -> 0 | G98: =Results!F191 -> 0 | H98: =Results!G191 -> 0 | I98: =Results!H191 -> 0 | J98: =Results!I191 -> 0 | K98: =Results!J191 -> 0 | L98: =Results!K191 -> 14.64 | M98: =Results!L191 -> 0 | N98: =Results!M191 -> 0 | O98: =Results!N191 -> 0 | P98: =Results!O191 -> 0 | Q98: =Results!P191 -> 0 | R98: =Results!Q191 -> 0 | S98: =Results!R191 -> 0 | T98: =Results!S191 -> 0 | U98: =Results!T191 -> 15.55207035 | V98: =Results!U191 -> 0 | W98: =Results!V191 -> 0 | X98: =Results!W191 -> 0 | Y98: =Results!X191 -> 0 | Z98: =Results!Y191 -> 0 | AA98: =Results!Z191 -> 0 | AB98: =Results!AA191 -> 0 | AC98: =Results!AB191 -> 0 | AD98: =Results!AC191 -> 16.50319937 | AE98: =Results!AD191 -> 0 | AF98: =Results!AE191 -> 0 | AG98: =Results!AF191 -> 0 | AH98: =Results!AG191 -> 0 | AI98: =Results!AH191 -> 0 | AJ98: =Results!AI191 -> 0 | AK98: =Results!AJ191 -> 0 | AL98: =Results!AK191 -> 0 | AM98: =Results!AL191 -> 17.49259358 | AN98: =Results!AM191 -> 0 | AO98: =Results!AN191 -> 0 | AP98: =Results!AO191 -> 0 | AQ98: =Results!AP191 -> 0 | AR98: =Results!AQ191 -> 0 | AS98: =Results!AR191 -> 0 | AT98: =Results!AS191 -> 0 | AU98: 1
A99: Vote 01 | B99: =RIGHT(Results!$D$5,LEN(Results!$D$5)-9) -> The Presidency | C99: 5 | D99: Minister | E99: =Results!D192 -> 0 | F99: =Results!E192 -> 0 | G99: =Results!F192 -> 0 | H99: =Results!G192 -> 0 | I99: =Results!H192 -> 0 | J99: =Results!I192 -> 0 | K99: =Results!J192 -> 0 | L99: =Results!K192 -> 14.64 | M99: =Results!L192 -> 0 | N99: =Results!M192 -> 0 | O99: =Results!N192 -> 0 | P99: =Results!O192 -> 0 | Q99: =Results!P192 -> 0 | R99: =Results!Q192 -> 0 | S99: =Results!R192 -> 0 | T99: =Results!S192 -> 0 | U99: =Results!T192 -> 15.55207035 | V99: =Results!U192 -> 0 | W99: =Results!V192 -> 0 | X99: =Results!W192 -> 0 | Y99: =Results!X192 -> 0 | Z99: =Results!Y192 -> 0 | AA99: =Results!Z192 -> 0 | AB99: =Results!AA192 -> 0 | AC99: =Results!AB192 -> 0 | AD99: =Results!AC192 -> 16.50319937 | AE99: =Results!AD192 -> 0 | AF99: =Results!AE192 -> 0 | AG99: =Results!AF192 -> 0 | AH99: =Results!AG192 -> 0 | AI99: =Results!AH192 -> 0 | AJ99: =Results!AI192 -> 0 | AK99: =Results!AJ192 -> 0 | AL99: =Results!AK192 -> 0 | AM99: =Results!AL192 -> 17.49259358 | AN99: =Results!AM192 -> 0 | AO99: =Results!AN192 -> 0 | AP99: =Results!AO192 -> 0 | AQ99: =Results!AP192 -> 0 | AR99: =Results!AQ192 -> 0 | AS99: =Results!AR192 -> 0 | AT99: =Results!AS192 -> 0 | AU99: 1
A100: Vote 01 | B100: =RIGHT(Results!$D$5,LEN(Results!$D$5)-9) -> The Presidency | C100: 5 | D100: Intern | E100: =Results!D193 -> 0 | F100: =Results!E193 -> 0 | G100: =Results!F193 -> 0 | H100: =Results!G193 -> 0 | I100: =Results!H193 -> 0 | J100: =Results!I193 -> 0 | K100: =Results!J193 -> 0 | L100: =Results!K193 -> 14.64 | M100: =Results!L193 -> 0 | N100: =Results!M193 -> 0 | O100: =Results!N193 -> 0 | P100: =Results!O193 -> 0 | Q100: =Results!P193 -> 0 | R100: =Results!Q193 -> 0 | S100: =Results!R193 -> 0 | T100: =Results!S193 -> 0 | U100: =Results!T193 -> 15.55207035 | V100: =Results!U193 -> 0 | W100: =Results!V193 -> 0 | X100: =Results!W193 -> 0 | Y100: =Results!X193 -> 0 | Z100: =Results!Y193 -> 0 | AA100: =Results!Z193 -> 0 | AB100: =Results!AA193 -> 0 | AC100: =Results!AB193 -> 0 | AD100: =Results!AC193 -> 16.50319937 | AE100: =Results!AD193 -> 0 | AF100: =Results!AE193 -> 0 | AG100: =Results!AF193 -> 0 | AH100: =Results!AG193 -> 0 | AI100: =Results!AH193 -> 0 | AJ100: =Results!AI193 -> 0 | AK100: =Results!AJ193 -> 0 | AL100: =Results!AK193 -> 0 | AM100: =Results!AL193 -> 17.49259358 | AN100: =Results!AM193 -> 0 | AO100: =Results!AN193 -> 0 | AP100: =Results!AO193 -> 0 | AQ100: =Results!AP193 -> 0 | AR100: =Results!AQ193 -> 0 | AS100: =Results!AR193 -> 0 | AT100: =Results!AS193 -> 0 | AU100: 1
A101: Vote 01 | B101: =RIGHT(Results!$D$5,LEN(Results!$D$5)-9) -> The Presidency | C101: 5 | D101: Other | E101: =Results!D194 -> 0 | F101: =Results!E194 -> 0 | G101: =Results!F194 -> 0 | H101: =Results!G194 -> 0 | I101: =Results!H194 -> 0 | J101: =Results!I194 -> 0 | K101: =Results!J194 -> 0 | L101: =Results!K194 -> 14.64 | M101: =Results!L194 -> 0 | N101: =Results!M194 -> 0 | O101: =Results!N194 -> 0 | P101: =Results!O194 -> 0 | Q101: =Results!P194 -> 0 | R101: =Results!Q194 -> 0 | S101: =Results!R194 -> 0 | T101: =Results!S194 -> 0 | U101: =Results!T194 -> 15.55207035 | V101: =Results!U194 -> 0 | W101: =Results!V194 -> 0 | X101: =Results!W194 -> 0 | Y101: =Results!X194 -> 0 | Z101: =Results!Y194 -> 0 | AA101: =Results!Z194 -> 0 | AB101: =Results!AA194 -> 0 | AC101: =Results!AB194 -> 0 | AD101: =Results!AC194 -> 16.50319937 | AE101: =Results!AD194 -> 0 | AF101: =Results!AE194 -> 0 | AG101: =Results!AF194 -> 0 | AH101: =Results!AG194 -> 0 | AI101: =Results!AH194 -> 0 | AJ101: =Results!AI194 -> 0 | AK101: =Results!AJ194 -> 0 | AL101: =Results!AK194 -> 0 | AM101: =Results!AL194 -> 17.49259358 | AN101: =Results!AM194 -> 0 | AO101: =Results!AN194 -> 0 | AP101: =Results!AO194 -> 0 | AQ101: =Results!AP194 -> 0 | AR101: =Results!AQ194 -> 0 | AS101: =Results!AR194 -> 0 | AT101: =Results!AS194 -> 0 | AU101: 1
A102: Vote 01 | B102: =RIGHT(Results!$D$5,LEN(Results!$D$5)-9) -> The Presidency | C102: 6 | D102: 1 | E102: =Results!D204 -> 0 | F102: =Results!E204 -> 0 | G102: =Results!F204 -> 0 | H102: =Results!G204 -> 0 | I102: =Results!H204 -> 14.64 | J102: =Results!I204 -> 0 | K102: =Results!J204 -> 0 | L102: =Results!K204 -> -0.7327463407 | M102: =Results!L204 -> 0 | N102: =Results!M204 -> 0 | O102: =Results!N204 -> 0 | P102: =Results!O204 -> 0 | Q102: =Results!P204 -> 0 | R102: =Results!Q204 -> 0 | S102: =Results!R204 -> 0 | T102: =Results!S204 -> 0 | U102: =Results!T204 -> -0.7783963549 | V102: =Results!U204 -> 0 | W102: =Results!V204 -> 0 | X102: =Results!W204 -> 0 | Y102: =Results!X204 -> 0 | Z102: =Results!Y204 -> 0 | AA102: =Results!Z204 -> 0 | AB102: =Results!AA204 -> 0 | AC102: =Results!AB204 -> 0 | AD102: =Results!AC204 -> -0.8260012942 | AE102: =Results!AD204 -> 0 | AF102: =Results!AE204 -> 0 | AG102: =Results!AF204 -> 0 | AH102: =Results!AG204 -> 0 | AI102: =Results!AH204 -> 0 | AJ102: =Results!AI204 -> 0 | AK102: =Results!AJ204 -> 0 | AL102: =Results!AK204 -> 0 | AM102: =Results!AL204 -> -0.8755214437 | AN102: =Results!AM204 -> 0 | AO102: =Results!AN204 -> 0 | AP102: =Results!AO204 -> 0 | AQ102: =Results!AP204 -> 0 | AR102: =Results!AQ204 -> 0 | AS102: =Results!AR204 -> 0 | AT102: =Results!AS204 -> 0 | AU102: 1
A103: Vote 01 | B103: =RIGHT(Results!$D$5,LEN(Results!$D$5)-9) -> The Presidency | C103: 6 | D103: 2 | E103: =Results!D205 -> 0 | F103: =Results!E205 -> 0 | G103: =Results!F205 -> 0 | H103: =Results!G205 -> 0 | I103: =Results!H205 -> 14.64 | J103: =Results!I205 -> 0 | K103: =Results!J205 -> 0 | L103: =Results!K205 -> -0.75852768 | M103: =Results!L205 -> 0 | N103: =Results!M205 -> 0 | O103: =Results!N205 -> 0 | P103: =Results!O205 -> 0 | Q103: =Results!P205 -> 0 | R103: =Results!Q205 -> 0 | S103: =Results!R205 -> 0 | T103: =Results!S205 -> 0 | U103: =Results!T205 -> -0.8033717507 | V103: =Results!U205 -> 0 | W103: =Results!V205 -> 0 | X103: =Results!W205 -> 0 | Y103: =Results!X205 -> 0 | Z103: =Results!Y205 -> 0 | AA103: =Results!Z205 -> 0 | AB103: =Results!AA205 -> 0 | AC103: =Results!AB205 -> 0 | AD103: =Results!AC205 -> -0.8499494059 | AE103: =Results!AD205 -> 0 | AF103: =Results!AE205 -> 0 | AG103: =Results!AF205 -> 0 | AH103: =Results!AG205 -> 0 | AI103: =Results!AH205 -> 0 | AJ103: =Results!AI205 -> 0 | AK103: =Results!AJ205 -> 0 | AL103: =Results!AK205 -> 0 | AM103: =Results!AL205 -> -0.8982024454 | AN103: =Results!AM205 -> 0 | AO103: =Results!AN205 -> 0 | AP103: =Results!AO205 -> 0 | AQ103: =Results!AP205 -> 0 | AR103: =Results!AQ205 -> 0 | AS103: =Results!AR205 -> 0 | AT103: =Results!AS205 -> 0 | AU103: 1
A104: Vote 01 | B104: =RIGHT(Results!$D$5,LEN(Results!$D$5)-9) -> The Presidency | C104: 6 | D104: 3 | E104: =Results!D206 -> 0 | F104: =Results!E206 -> 0 | G104: =Results!F206 -> 0 | H104: =Results!G206 -> 0 | I104: =Results!H206 -> 14.64 | J104: =Results!I206 -> 0 | K104: =Results!J206 -> 0 | L104: =Results!K206 -> -0.75003648 | M104: =Results!L206 -> 0 | N104: =Results!M206 -> 0 | O104: =Results!N206 -> 0 | P104: =Results!O206 -> 0 | Q104: =Results!P206 -> 0 | R104: =Results!Q206 -> 0 | S104: =Results!R206 -> 0 | T104: =Results!S206 -> 0 | U104: =Results!T206 -> -0.7945455851 | V104: =Results!U206 -> 0 | W104: =Results!V206 -> 0 | X104: =Results!W206 -> 0 | Y104: =Results!X206 -> 0 | Z104: =Results!Y206 -> 0 | AA104: =Results!Z206 -> 0 | AB104: =Results!AA206 -> 0 | AC104: =Results!AB206 -> 0 | AD104: =Results!AC206 -> -0.8407893723 | AE104: =Results!AD206 -> 0 | AF104: =Results!AE206 -> 0 | AG104: =Results!AF206 -> 0 | AH104: =Results!AG206 -> 0 | AI104: =Results!AH206 -> 0 | AJ104: =Results!AI206 -> 0 | AK104: =Results!AJ206 -> 0 | AL104: =Results!AK206 -> 0 | AM104: =Results!AL206 -> -0.8887115998 | AN104: =Results!AM206 -> 0 | AO104: =Results!AN206 -> 0 | AP104: =Results!AO206 -> 0 | AQ104: =Results!AP206 -> 0 | AR104: =Results!AQ206 -> 0 | AS104: =Results!AR206 -> 0 | AT104: =Results!AS206 -> 0 | AU104: 1
A105: Vote 01 | B105: =RIGHT(Results!$D$5,LEN(Results!$D$5)-9) -> The Presidency | C105: 6 | D105: 4 | E105: =Results!D207 -> 0 | F105: =Results!E207 -> 0 | G105: =Results!F207 -> 0 | H105: =Results!G207 -> 0 | I105: =Results!H207 -> 14.64 | J105: =Results!I207 -> 0 | K105: =Results!J207 -> 0 | L105: =Results!K207 -> -0.76264152 | M105: =Results!L207 -> 0 | N105: =Results!M207 -> 0 | O105: =Results!N207 -> 0 | P105: =Results!O207 -> 0 | Q105: =Results!P207 -> 0 | R105: =Results!Q207 -> 0 | S105: =Results!R207 -> 0 | T105: =Results!S207 -> 0 | U105: =Results!T207 -> -0.8081749457 | V105: =Results!U207 -> 0 | W105: =Results!V207 -> 0 | X105: =Results!W207 -> 0 | Y105: =Results!X207 -> 0 | Z105: =Results!Y207 -> 0 | AA105: =Results!Z207 -> 0 | AB105: =Results!AA207 -> 0 | AC105: =Results!AB207 -> 0 | AD105: =Results!AC207 -> -0.8555038615 | AE105: =Results!AD207 -> 0 | AF105: =Results!AE207 -> 0 | AG105: =Results!AF207 -> 0 | AH105: =Results!AG207 -> 0 | AI105: =Results!AH207 -> 0 | AJ105: =Results!AI207 -> 0 | AK105: =Results!AJ207 -> 0 | AL105: =Results!AK207 -> 0 | AM105: =Results!AL207 -> -0.9045727065 | AN105: =Results!AM207 -> 0 | AO105: =Results!AN207 -> 0 | AP105: =Results!AO207 -> 0 | AQ105: =Results!AP207 -> 0 | AR105: =Results!AQ207 -> 0 | AS105: =Results!AR207 -> 0 | AT105: =Results!AS207 -> 0 | AU105: 1
A106: Vote 01 | B106: =RIGHT(Results!$D$5,LEN(Results!$D$5)-9) -> The Presidency | C106: 6 | D106: 5 | E106: =Results!D208 -> 0 | F106: =Results!E208 -> 0 | G106: =Results!F208 -> 0 | H106: =Results!G208 -> 0 | I106: =Results!H208 -> 14.64 | J106: =Results!I208 -> 0 | K106: =Results!J208 -> 0 | L106: =Results!K208 -> -0.77221608 | M106: =Results!L208 -> 0 | N106: =Results!M208 -> 0 | O106: =Results!N208 -> 0 | P106: =Results!O208 -> 0 | Q106: =Results!P208 -> 0 | R106: =Results!Q208 -> 0 | S106: =Results!R208 -> 0 | T106: =Results!S208 -> 0 | U106: =Results!T208 -> -0.8187711242 | V106: =Results!U208 -> 0 | W106: =Results!V208 -> 0 | X106: =Results!W208 -> 0 | Y106: =Results!X208 -> 0 | Z106: =Results!Y208 -> 0 | AA106: =Results!Z208 -> 0 | AB106: =Results!AA208 -> 0 | AC106: =Results!AB208 -> 0 | AD106: =Results!AC208 -> -0.8671986141 | AE106: =Results!AD208 -> 0 | AF106: =Results!AE208 -> 0 | AG106: =Results!AF208 -> 0 | AH106: =Results!AG208 -> 0 | AI106: =Results!AH208 -> 0 | AJ106: =Results!AI208 -> 0 | AK106: =Results!AJ208 -> 0 | AL106: =Results!AK208 -> 0 | AM106: =Results!AL208 -> -0.9174455841 | AN106: =Results!AM208 -> 0 | AO106: =Results!AN208 -> 0 | AP106: =Results!AO208 -> 0 | AQ106: =Results!AP208 -> 0 | AR106: =Results!AQ208 -> 0 | AS106: =Results!AR208 -> 0 | AT106: =Results!AS208 -> 0 | AU106: 1
A107: Vote 01 | B107: =RIGHT(Results!$D$5,LEN(Results!$D$5)-9) -> The Presidency | C107: 6 | D107: 6 | E107: =Results!D209 -> 0 | F107: =Results!E209 -> 0 | G107: =Results!F209 -> 0 | H107: =Results!G209 -> 0 | I107: =Results!H209 -> 16.224 | J107: =Results!I209 -> 0 | K107: =Results!J209 -> 0 | L107: =Results!K209 -> -0.838148064 | M107: =Results!L209 -> 0 | N107: =Results!M209 -> 0 | O107: =Results!N209 -> 0 | P107: =Results!O209 -> 0 | Q107: =Results!P209 -> 0 | R107: =Results!Q209 -> 0 | S107: =Results!R209 -> 0 | T107: =Results!S209 -> 0 | U107: =Results!T209 -> -0.8888307827 | V107: =Results!U209 -> 0 | W107: =Results!V209 -> 0 | X107: =Results!W209 -> 0 | Y107: =Results!X209 -> 0 | Z107: =Results!Y209 -> 0 | AA107: =Results!Z209 -> 0 | AB107: =Results!AA209 -> 0 | AC107: =Results!AB209 -> 0 | AD107: =Results!AC209 -> -0.9415630785 | AE107: =Results!AD209 -> 0 | AF107: =Results!AE209 -> 0 | AG107: =Results!AF209 -> 0 | AH107: =Results!AG209 -> 0 | AI107: =Results!AH209 -> 0 | AJ107: =Results!AI209 -> 0 | AK107: =Results!AJ209 -> 0 | AL107: =Results!AK209 -> 0 | AM107: =Results!AL209 -> -0.9962882885 | AN107: =Results!AM209 -> 0 | AO107: =Results!AN209 -> 0 | AP107: =Results!AO209 -> 0 | AQ107: =Results!AP209 -> 0 | AR107: =Results!AQ209 -> 0 | AS107: =Results!AR209 -> 0 | AT107: =Results!AS209 -> 0 | AU107: 1
A108: Vote 01 | B108: =RIGHT(Results!$D$5,LEN(Results!$D$5)-9) -> The Presidency | C108: 6 | D108: 7 | E108: =Results!D210 -> 0 | F108: =Results!E210 -> 0 | G108: =Results!F210 -> 0 | H108: =Results!G210 -> 0 | I108: =Results!H210 -> 16.224 | J108: =Results!I210 -> 0 | K108: =Results!J210 -> 0 | L108: =Results!K210 -> -0.831674688 | M108: =Results!L210 -> 0 | N108: =Results!M210 -> 0 | O108: =Results!N210 -> 0 | P108: =Results!O210 -> 0 | Q108: =Results!P210 -> 0 | R108: =Results!Q210 -> 0 | S108: =Results!R210 -> 0 | T108: =Results!S210 -> 0 | U108: =Results!T210 -> -0.8822029897 | V108: =Results!U210 -> 0 | W108: =Results!V210 -> 0 | X108: =Results!W210 -> 0 | Y108: =Results!X210 -> 0 | Z108: =Results!Y210 -> 0 | AA108: =Results!Z210 -> 0 | AB108: =Results!AA210 -> 0 | AC108: =Results!AB210 -> 0 | AD108: =Results!AC210 -> -0.9347935015 | AE108: =Results!AD210 -> 0 | AF108: =Results!AE210 -> 0 | AG108: =Results!AF210 -> 0 | AH108: =Results!AG210 -> 0 | AI108: =Results!AH210 -> 0 | AJ108: =Results!AI210 -> 0 | AK108: =Results!AJ210 -> 0 | AL108: =Results!AK210 -> 0 | AM108: =Results!AL210 -> -0.9893916686 | AN108: =Results!AM210 -> 0 | AO108: =Results!AN210 -> 0 | AP108: =Results!AO210 -> 0 | AQ108: =Results!AP210 -> 0 | AR108: =Results!AQ210 -> 0 | AS108: =Results!AR210 -> 0 | AT108: =Results!AS210 -> 0 | AU108: 1
A109: Vote 01 | B109: =RIGHT(Results!$D$5,LEN(Results!$D$5)-9) -> The Presidency | C109: 6 | D109: 8 | E109: =Results!D211 -> 0 | F109: =Results!E211 -> 0 | G109: =Results!F211 -> 0 | H109: =Results!G211 -> 0 | I109: =Results!H211 -> 17.4 | J109: =Results!I211 -> 0 | K109: =Results!J211 -> 0 | L109: =Results!K211 -> -0.8827716 | M109: =Results!L211 -> 0 | N109: =Results!M211 -> 0 | O109: =Results!N211 -> 0 | P109: =Results!O211 -> 0 | Q109: =Results!P211 -> 0 | R109: =Results!Q211 -> 0 | S109: =Results!R211 -> 0 | T109: =Results!S211 -> 0 | U109: =Results!T211 -> -0.9363910472 | V109: =Results!U211 -> 0 | W109: =Results!V211 -> 0 | X109: =Results!W211 -> 0 | Y109: =Results!X211 -> 0 | Z109: =Results!Y211 -> 0 | AA109: =Results!Z211 -> 0 | AB109: =Results!AA211 -> 0 | AC109: =Results!AB211 -> 0 | AD109: =Results!AC211 -> -0.9921978102 | AE109: =Results!AD211 -> 0 | AF109: =Results!AE211 -> 0 | AG109: =Results!AF211 -> 0 | AH109: =Results!AG211 -> 0 | AI109: =Results!AH211 -> 0 | AJ109: =Results!AI211 -> 0 | AK109: =Results!AJ211 -> 0 | AL109: =Results!AK211 -> 0 | AM109: =Results!AL211 -> -1.050133888 | AN109: =Results!AM211 -> 0 | AO109: =Results!AN211 -> 0 | AP109: =Results!AO211 -> 0 | AQ109: =Results!AP211 -> 0 | AR109: =Results!AQ211 -> 0 | AS109: =Results!AR211 -> 0 | AT109: =Results!AS211 -> 0 | AU109: 1
A110: Vote 01 | B110: =RIGHT(Results!$D$5,LEN(Results!$D$5)-9) -> The Presidency | C110: 6 | D110: 9 | E110: =Results!D212 -> 0 | F110: =Results!E212 -> 0 | G110: =Results!F212 -> 0 | H110: =Results!G212 -> 0 | I110: =Results!H212 -> 17.4 | J110: =Results!I212 -> 0 | K110: =Results!J212 -> 0 | L110: =Results!K212 -> -0.8920632 | M110: =Results!L212 -> 0 | N110: =Results!M212 -> 0 | O110: =Results!N212 -> 0 | P110: =Results!O212 -> 0 | Q110: =Results!P212 -> 0 | R110: =Results!Q212 -> 0 | S110: =Results!R212 -> 0 | T110: =Results!S212 -> 0 | U110: =Results!T212 -> -0.9465835933 | V110: =Results!U212 -> 0 | W110: =Results!V212 -> 0 | X110: =Results!W212 -> 0 | Y110: =Results!X212 -> 0 | Z110: =Results!Y212 -> 0 | AA110: =Results!Z212 -> 0 | AB110: =Results!AA212 -> 0 | AC110: =Results!AB212 -> 0 | AD110: =Results!AC212 -> -1.003353873 | AE110: =Results!AD212 -> 0 | AF110: =Results!AE212 -> 0 | AG110: =Results!AF212 -> 0 | AH110: =Results!AG212 -> 0 | AI110: =Results!AH212 -> 0 | AJ110: =Results!AI212 -> 0 | AK110: =Results!AJ212 -> 0 | AL110: =Results!AK212 -> 0 | AM110: =Results!AL212 -> -1.062317582 | AN110: =Results!AM212 -> 0 | AO110: =Results!AN212 -> 0 | AP110: =Results!AO212 -> 0 | AQ110: =Results!AP212 -> 0 | AR110: =Results!AQ212 -> 0 | AS110: =Results!AR212 -> 0 | AT110: =Results!AS212 -> 0 | AU110: 1
A111: Vote 01 | B111: =RIGHT(Results!$D$5,LEN(Results!$D$5)-9) -> The Presidency | C111: 6 | D111: 10 | E111: =Results!D213 -> 0 | F111: =Results!E213 -> 0 | G111: =Results!F213 -> 0 | H111: =Results!G213 -> 0 | I111: =Results!H213 -> 19.68 | J111: =Results!I213 -> 0 | K111: =Results!J213 -> 0 | L111: =Results!K213 -> -0.98457072 | M111: =Results!L213 -> 0 | N111: =Results!M213 -> 0 | O111: =Results!N213 -> 0 | P111: =Results!O213 -> 0 | Q111: =Results!P213 -> 0 | R111: =Results!Q213 -> 0 | S111: =Results!R213 -> 0 | T111: =Results!S213 -> 0 | U111: =Results!T213 -> -1.045040284 | V111: =Results!U213 -> 0 | W111: =Results!V213 -> 0 | X111: =Results!W213 -> 0 | Y111: =Results!X213 -> 0 | Z111: =Results!Y213 -> 0 | AA111: =Results!Z213 -> 0 | AB111: =Results!AA213 -> 0 | AC111: =Results!AB213 -> 0 | AD111: =Results!AC213 -> -1.108028905 | AE111: =Results!AD213 -> 0 | AF111: =Results!AE213 -> 0 | AG111: =Results!AF213 -> 0 | AH111: =Results!AG213 -> 0 | AI111: =Results!AH213 -> 0 | AJ111: =Results!AI213 -> 0 | AK111: =Results!AJ213 -> 0 | AL111: =Results!AK213 -> 0 | AM111: =Results!AL213 -> -1.173476419 | AN111: =Results!AM213 -> 0 | AO111: =Results!AN213 -> 0 | AP111: =Results!AO213 -> 0 | AQ111: =Results!AP213 -> 0 | AR111: =Results!AQ213 -> 0 | AS111: =Results!AR213 -> 0 | AT111: =Results!AS213 -> 0 | AU111: 1
A112: Vote 01 | B112: =RIGHT(Results!$D$5,LEN(Results!$D$5)-9) -> The Presidency | C112: 6 | D112: 11 | E112: =Results!D214 -> 0 | F112: =Results!E214 -> 0 | G112: =Results!F214 -> 0 | H112: =Results!G214 -> 0 | I112: =Results!H214 -> 19.68 | J112: =Results!I214 -> 0 | K112: =Results!J214 -> 0 | L112: =Results!K214 -> -0.97124736 | M112: =Results!L214 -> 0 | N112: =Results!M214 -> 0 | O112: =Results!N214 -> 0 | P112: =Results!O214 -> 0 | Q112: =Results!P214 -> 0 | R112: =Results!Q214 -> 0 | S112: =Results!R214 -> 0 | T112: =Results!S214 -> 0 | U112: =Results!T214 -> -1.031578902 | V112: =Results!U214 -> 0 | W112: =Results!V214 -> 0 | X112: =Results!W214 -> 0 | Y112: =Results!X214 -> 0 | Z112: =Results!Y214 -> 0 | AA112: =Results!Z214 -> 0 | AB112: =Results!AA214 -> 0 | AC112: =Results!AB214 -> 0 | AD112: =Results!AC214 -> -1.094481028 | AE112: =Results!AD214 -> 0 | AF112: =Results!AE214 -> 0 | AG112: =Results!AF214 -> 0 | AH112: =Results!AG214 -> 0 | AI112: =Results!AH214 -> 0 | AJ112: =Results!AI214 -> 0 | AK112: =Results!AJ214 -> 0 | AL112: =Results!AK214 -> 0 | AM112: =Results!AL214 -> -1.15990003 | AN112: =Results!AM214 -> 0 | AO112: =Results!AN214 -> 0 | AP112: =Results!AO214 -> 0 | AQ112: =Results!AP214 -> 0 | AR112: =Results!AQ214 -> 0 | AS112: =Results!AR214 -> 0 | AT112: =Results!AS214 -> 0 | AU112: 1
A113: Vote 01 | B113: =RIGHT(Results!$D$5,LEN(Results!$D$5)-9) -> The Presidency | C113: 6 | D113: 12 | E113: =Results!D215 -> 0 | F113: =Results!E215 -> 0 | G113: =Results!F215 -> 0 | H113: =Results!G215 -> 0 | I113: =Results!H215 -> 20.34 | J113: =Results!I215 -> 0 | K113: =Results!J215 -> 0 | L113: =Results!K215 -> -0.98844264 | M113: =Results!L215 -> 0 | N113: =Results!M215 -> 0 | O113: =Results!N215 -> 0 | P113: =Results!O215 -> 0 | Q113: =Results!P215 -> 0 | R113: =Results!Q215 -> 0 | S113: =Results!R215 -> 0 | T113: =Results!S215 -> 0 | U113: =Results!T215 -> -1.049827485 | V113: =Results!U215 -> 0 | W113: =Results!V215 -> 0 | X113: =Results!W215 -> 0 | Y113: =Results!X215 -> 0 | Z113: =Results!Y215 -> 0 | AA113: =Results!Z215 -> 0 | AB113: =Results!AA215 -> 0 | AC113: =Results!AB215 -> 0 | AD113: =Results!AC215 -> -1.113826599 | AE113: =Results!AD215 -> 0 | AF113: =Results!AE215 -> 0 | AG113: =Results!AF215 -> 0 | AH113: =Results!AG215 -> 0 | AI113: =Results!AH215 -> 0 | AJ113: =Results!AI215 -> 0 | AK113: =Results!AJ215 -> 0 | AL113: =Results!AK215 -> 0 | AM113: =Results!AL215 -> -1.180385212 | AN113: =Results!AM215 -> 0 | AO113: =Results!AN215 -> 0 | AP113: =Results!AO215 -> 0 | AQ113: =Results!AP215 -> 0 | AR113: =Results!AQ215 -> 0 | AS113: =Results!AR215 -> 0 | AT113: =Results!AS215 -> 0 | AU113: 1
A114: Vote 01 | B114: =RIGHT(Results!$D$5,LEN(Results!$D$5)-9) -> The Presidency | C114: 6 | D114: 13 | E114: =Results!D216 -> 0 | F114: =Results!E216 -> 0 | G114: =Results!F216 -> 0 | H114: =Results!G216 -> 0 | I114: =Results!H216 -> 20.34 | J114: =Results!I216 -> 0 | K114: =Results!J216 -> 0 | L114: =Results!K216 -> -0.98712054 | M114: =Results!L216 -> 0 | N114: =Results!M216 -> 0 | O114: =Results!N216 -> 0 | P114: =Results!O216 -> 0 | Q114: =Results!P216 -> 0 | R114: =Results!Q216 -> 0 | S114: =Results!R216 -> 0 | T114: =Results!S216 -> 0 | U114: =Results!T216 -> -1.048410743 | V114: =Results!U216 -> 0 | W114: =Results!V216 -> 0 | X114: =Results!W216 -> 0 | Y114: =Results!X216 -> 0 | Z114: =Results!Y216 -> 0 | AA114: =Results!Z216 -> 0 | AB114: =Results!AA216 -> 0 | AC114: =Results!AB216 -> 0 | AD114: =Results!AC216 -> -1.112308978 | AE114: =Results!AD216 -> 0 | AF114: =Results!AE216 -> 0 | AG114: =Results!AF216 -> 0 | AH114: =Results!AG216 -> 0 | AI114: =Results!AH216 -> 0 | AJ114: =Results!AI216 -> 0 | AK114: =Results!AJ216 -> 0 | AL114: =Results!AK216 -> 0 | AM114: =Results!AL216 -> -1.178760164 | AN114: =Results!AM216 -> 0 | AO114: =Results!AN216 -> 0 | AP114: =Results!AO216 -> 0 | AQ114: =Results!AP216 -> 0 | AR114: =Results!AQ216 -> 0 | AS114: =Results!AR216 -> 0 | AT114: =Results!AS216 -> 0 | AU114: 1
A115: Vote 01 | B115: =RIGHT(Results!$D$5,LEN(Results!$D$5)-9) -> The Presidency | C115: 6 | D115: 14 | E115: =Results!D217 -> 0 | F115: =Results!E217 -> 0 | G115: =Results!F217 -> 0 | H115: =Results!G217 -> 0 | I115: =Results!H217 -> 20.34 | J115: =Results!I217 -> 0 | K115: =Results!J217 -> 0 | L115: =Results!K217 -> -0.98463906 | M115: =Results!L217 -> 0 | N115: =Results!M217 -> 0 | O115: =Results!N217 -> 0 | P115: =Results!O217 -> 0 | Q115: =Results!P217 -> 0 | R115: =Results!Q217 -> 0 | S115: =Results!R217 -> 0 | T115: =Results!S217 -> 0 | U115: =Results!T217 -> -1.045804727 | V115: =Results!U217 -> 0 | W115: =Results!V217 -> 0 | X115: =Results!W217 -> 0 | Y115: =Results!X217 -> 0 | Z115: =Results!Y217 -> 0 | AA115: =Results!Z217 -> 0 | AB115: =Results!AA217 -> 0 | AC115: =Results!AB217 -> 0 | AD115: =Results!AC217 -> -1.109575506 | AE115: =Results!AD217 -> 0 | AF115: =Results!AE217 -> 0 | AG115: =Results!AF217 -> 0 | AH115: =Results!AG217 -> 0 | AI115: =Results!AH217 -> 0 | AJ115: =Results!AI217 -> 0 | AK115: =Results!AJ217 -> 0 | AL115: =Results!AK217 -> 0 | AM115: =Results!AL217 -> -1.175896676 | AN115: =Results!AM217 -> 0 | AO115: =Results!AN217 -> 0 | AP115: =Results!AO217 -> 0 | AQ115: =Results!AP217 -> 0 | AR115: =Results!AQ217 -> 0 | AS115: =Results!AR217 -> 0 | AT115: =Results!AS217 -> 0 | AU115: 1
A116: Vote 01 | B116: =RIGHT(Results!$D$5,LEN(Results!$D$5)-9) -> The Presidency | C116: 6 | D116: 15 | E116: =Results!D218 -> 0 | F116: =Results!E218 -> 0 | G116: =Results!F218 -> 0 | H116: =Results!G218 -> 0 | I116: =Results!H218 -> 20.34 | J116: =Results!I218 -> 0 | K116: =Results!J218 -> 0 | L116: =Results!K218 -> -0.98858502 | M116: =Results!L218 -> 0 | N116: =Results!M218 -> 0 | O116: =Results!N218 -> 0 | P116: =Results!O218 -> 0 | Q116: =Results!P218 -> 0 | R116: =Results!Q218 -> 0 | S116: =Results!R218 -> 0 | T116: =Results!S218 -> 0 | U116: =Results!T218 -> -1.050023194 | V116: =Results!U218 -> 0 | W116: =Results!V218 -> 0 | X116: =Results!W218 -> 0 | Y116: =Results!X218 -> 0 | Z116: =Results!Y218 -> 0 | AA116: =Results!Z218 -> 0 | AB116: =Results!AA218 -> 0 | AC116: =Results!AB218 -> 0 | AD116: =Results!AC218 -> -1.11408149 | AE116: =Results!AD218 -> 0 | AF116: =Results!AE218 -> 0 | AG116: =Results!AF218 -> 0 | AH116: =Results!AG218 -> 0 | AI116: =Results!AH218 -> 0 | AJ116: =Results!AI218 -> 0 | AK116: =Results!AJ218 -> 0 | AL116: =Results!AK218 -> 0 | AM116: =Results!AL218 -> -1.180705467 | AN116: =Results!AM218 -> 0 | AO116: =Results!AN218 -> 0 | AP116: =Results!AO218 -> 0 | AQ116: =Results!AP218 -> 0 | AR116: =Results!AQ218 -> 0 | AS116: =Results!AR218 -> 0 | AT116: =Results!AS218 -> 0 | AU116: 1
A117: Vote 01 | B117: =RIGHT(Results!$D$5,LEN(Results!$D$5)-9) -> The Presidency | C117: 6 | D117: 16 | E117: =Results!D219 -> 0 | F117: =Results!E219 -> 0 | G117: =Results!F219 -> 0 | H117: =Results!G219 -> 0 | I117: =Results!H219 -> 21.816 | J117: =Results!I219 -> 0 | K117: =Results!J219 -> 0 | L117: =Results!K219 -> -1.04684076 | M117: =Results!L219 -> 0 | N117: =Results!M219 -> 0 | O117: =Results!N219 -> 0 | P117: =Results!O219 -> 0 | Q117: =Results!P219 -> 0 | R117: =Results!Q219 -> 0 | S117: =Results!R219 -> 0 | T117: =Results!S219 -> 0 | U117: =Results!T219 -> -1.112043118 | V117: =Results!U219 -> 0 | W117: =Results!V219 -> 0 | X117: =Results!W219 -> 0 | Y117: =Results!X219 -> 0 | Z117: =Results!Y219 -> 0 | AA117: =Results!Z219 -> 0 | AB117: =Results!AA219 -> 0 | AC117: =Results!AB219 -> 0 | AD117: =Results!AC219 -> -1.180036449 | AE117: =Results!AD219 -> 0 | AF117: =Results!AE219 -> 0 | AG117: =Results!AF219 -> 0 | AH117: =Results!AG219 -> 0 | AI117: =Results!AH219 -> 0 | AJ117: =Results!AI219 -> 0 | AK117: =Results!AJ219 -> 0 | AL117: =Results!AK219 -> 0 | AM117: =Results!AL219 -> -1.250763894 | AN117: =Results!AM219 -> 0 | AO117: =Results!AN219 -> 0 | AP117: =Results!AO219 -> 0 | AQ117: =Results!AP219 -> 0 | AR117: =Results!AQ219 -> 0 | AS117: =Results!AR219 -> 0 | AT117: =Results!AS219 -> 0 | AU117: 1
A118: Vote 01 | B118: =RIGHT(Results!$D$5,LEN(Results!$D$5)-9) -> The Presidency | C118: 6 | D118: Deputy Minister | E118: =Results!D220 -> 0 | F118: =Results!E220 -> 0 | G118: =Results!F220 -> 0 | H118: =Results!G220 -> 0 | I118: =Results!H220 -> 0 | J118: =Results!I220 -> 0 | K118: =Results!J220 -> 0 | L118: =Results!K220 -> 14.64 | M118: =Results!L220 -> 0 | N118: =Results!M220 -> 0 | O118: =Results!N220 -> 0 | P118: =Results!O220 -> 0 | Q118: =Results!P220 -> 0 | R118: =Results!Q220 -> 0 | S118: =Results!R220 -> 0 | T118: =Results!S220 -> 0 | U118: =Results!T220 -> 15.55207035 | V118: =Results!U220 -> 0 | W118: =Results!V220 -> 0 | X118: =Results!W220 -> 0 | Y118: =Results!X220 -> 0 | Z118: =Results!Y220 -> 0 | AA118: =Results!Z220 -> 0 | AB118: =Results!AA220 -> 0 | AC118: =Results!AB220 -> 0 | AD118: =Results!AC220 -> 16.50319937 | AE118: =Results!AD220 -> 0 | AF118: =Results!AE220 -> 0 | AG118: =Results!AF220 -> 0 | AH118: =Results!AG220 -> 0 | AI118: =Results!AH220 -> 0 | AJ118: =Results!AI220 -> 0 | AK118: =Results!AJ220 -> 0 | AL118: =Results!AK220 -> 0 | AM118: =Results!AL220 -> 17.49259358 | AN118: =Results!AM220 -> 0 | AO118: =Results!AN220 -> 0 | AP118: =Results!AO220 -> 0 | AQ118: =Results!AP220 -> 0 | AR118: =Results!AQ220 -> 0 | AS118: =Results!AR220 -> 0 | AT118: =Results!AS220 -> 0 | AU118: 1
A119: Vote 01 | B119: =RIGHT(Results!$D$5,LEN(Results!$D$5)-9) -> The Presidency | C119: 6 | D119: Minister | E119: =Results!D221 -> 0 | F119: =Results!E221 -> 0 | G119: =Results!F221 -> 0 | H119: =Results!G221 -> 0 | I119: =Results!H221 -> 0 | J119: =Results!I221 -> 0 | K119: =Results!J221 -> 0 | L119: =Results!K221 -> 14.64 | M119: =Results!L221 -> 0 | N119: =Results!M221 -> 0 | O119: =Results!N221 -> 0 | P119: =Results!O221 -> 0 | Q119: =Results!P221 -> 0 | R119: =Results!Q221 -> 0 | S119: =Results!R221 -> 0 | T119: =Results!S221 -> 0 | U119: =Results!T221 -> 15.55207035 | V119: =Results!U221 -> 0 | W119: =Results!V221 -> 0 | X119: =Results!W221 -> 0 | Y119: =Results!X221 -> 0 | Z119: =Results!Y221 -> 0 | AA119: =Results!Z221 -> 0 | AB119: =Results!AA221 -> 0 | AC119: =Results!AB221 -> 0 | AD119: =Results!AC221 -> 16.50319937 | AE119: =Results!AD221 -> 0 | AF119: =Results!AE221 -> 0 | AG119: =Results!AF221 -> 0 | AH119: =Results!AG221 -> 0 | AI119: =Results!AH221 -> 0 | AJ119: =Results!AI221 -> 0 | AK119: =Results!AJ221 -> 0 | AL119: =Results!AK221 -> 0 | AM119: =Results!AL221 -> 17.49259358 | AN119: =Results!AM221 -> 0 | AO119: =Results!AN221 -> 0 | AP119: =Results!AO221 -> 0 | AQ119: =Results!AP221 -> 0 | AR119: =Results!AQ221 -> 0 | AS119: =Results!AR221 -> 0 | AT119: =Results!AS221 -> 0 | AU119: 1
A120: Vote 01 | B120: =RIGHT(Results!$D$5,LEN(Results!$D$5)-9) -> The Presidency | C120: 6 | D120: Intern | E120: =Results!D222 -> 0 | F120: =Results!E222 -> 0 | G120: =Results!F222 -> 0 | H120: =Results!G222 -> 0 | I120: =Results!H222 -> 0 | J120: =Results!I222 -> 0 | K120: =Results!J222 -> 0 | L120: =Results!K222 -> 14.64 | M120: =Results!L222 -> 0 | N120: =Results!M222 -> 0 | O120: =Results!N222 -> 0 | P120: =Results!O222 -> 0 | Q120: =Results!P222 -> 0 | R120: =Results!Q222 -> 0 | S120: =Results!R222 -> 0 | T120: =Results!S222 -> 0 | U120: =Results!T222 -> 15.55207035 | V120: =Results!U222 -> 0 | W120: =Results!V222 -> 0 | X120: =Results!W222 -> 0 | Y120: =Results!X222 -> 0 | Z120: =Results!Y222 -> 0 | AA120: =Results!Z222 -> 0 | AB120: =Results!AA222 -> 0 | AC120: =Results!AB222 -> 0 | AD120: =Results!AC222 -> 16.50319937 | AE120: =Results!AD222 -> 0 | AF120: =Results!AE222 -> 0 | AG120: =Results!AF222 -> 0 | AH120: =Results!AG222 -> 0 | AI120: =Results!AH222 -> 0 | AJ120: =Results!AI222 -> 0 | AK120: =Results!AJ222 -> 0 | AL120: =Results!AK222 -> 0 | AM120: =Results!AL222 -> 17.49259358 | AN120: =Results!AM222 -> 0 | AO120: =Results!AN222 -> 0 | AP120: =Results!AO222 -> 0 | AQ120: =Results!AP222 -> 0 | AR120: =Results!AQ222 -> 0 | AS120: =Results!AR222 -> 0 | AT120: =Results!AS222 -> 0 | AU120: 1
A121: Vote 01 | B121: =RIGHT(Results!$D$5,LEN(Results!$D$5)-9) -> The Presidency | C121: 6 | D121: Other | E121: =Results!D223 -> 0 | F121: =Results!E223 -> 0 | G121: =Results!F223 -> 0 | H121: =Results!G223 -> 0 | I121: =Results!H223 -> 0 | J121: =Results!I223 -> 0 | K121: =Results!J223 -> 0 | L121: =Results!K223 -> 14.64 | M121: =Results!L223 -> 0 | N121: =Results!M223 -> 0 | O121: =Results!N223 -> 0 | P121: =Results!O223 -> 0 | Q121: =Results!P223 -> 0 | R121: =Results!Q223 -> 0 | S121: =Results!R223 -> 0 | T121: =Results!S223 -> 0 | U121: =Results!T223 -> 15.55207035 | V121: =Results!U223 -> 0 | W121: =Results!V223 -> 0 | X121: =Results!W223 -> 0 | Y121: =Results!X223 -> 0 | Z121: =Results!Y223 -> 0 | AA121: =Results!Z223 -> 0 | AB121: =Results!AA223 -> 0 | AC121: =Results!AB223 -> 0 | AD121: =Results!AC223 -> 16.50319937 | AE121: =Results!AD223 -> 0 | AF121: =Results!AE223 -> 0 | AG121: =Results!AF223 -> 0 | AH121: =Results!AG223 -> 0 | AI121: =Results!AH223 -> 0 | AJ121: =Results!AI223 -> 0 | AK121: =Results!AJ223 -> 0 | AL121: =Results!AK223 -> 0 | AM121: =Results!AL223 -> 17.49259358 | AN121: =Results!AM223 -> 0 | AO121: =Results!AN223 -> 0 | AP121: =Results!AO223 -> 0 | AQ121: =Results!AP223 -> 0 | AR121: =Results!AQ223 -> 0 | AS121: =Results!AR223 -> 0 | AT121: =Results!AS223 -> 0 | AU121: 1
A122: Vote 01 | B122: =RIGHT(Results!$D$5,LEN(Results!$D$5)-9) -> The Presidency | C122: 7 | D122: 1 | E122: =Results!D233 -> 0 | F122: =Results!E233 -> 0 | G122: =Results!F233 -> 0 | H122: =Results!G233 -> 0 | I122: =Results!H233 -> 14.64 | J122: =Results!I233 -> 0 | K122: =Results!J233 -> 0 | L122: =Results!K233 -> -0.7327463407 | M122: =Results!L233 -> 0 | N122: =Results!M233 -> 0 | O122: =Results!N233 -> 0 | P122: =Results!O233 -> 0 | Q122: =Results!P233 -> 0 | R122: =Results!Q233 -> 0 | S122: =Results!R233 -> 0 | T122: =Results!S233 -> 0 | U122: =Results!T233 -> -0.7783963549 | V122: =Results!U233 -> 0 | W122: =Results!V233 -> 0 | X122: =Results!W233 -> 0 | Y122: =Results!X233 -> 0 | Z122: =Results!Y233 -> 0 | AA122: =Results!Z233 -> 0 | AB122: =Results!AA233 -> 0 | AC122: =Results!AB233 -> 0 | AD122: =Results!AC233 -> -0.8260012942 | AE122: =Results!AD233 -> 0 | AF122: =Results!AE233 -> 0 | AG122: =Results!AF233 -> 0 | AH122: =Results!AG233 -> 0 | AI122: =Results!AH233 -> 0 | AJ122: =Results!AI233 -> 0 | AK122: =Results!AJ233 -> 0 | AL122: =Results!AK233 -> 0 | AM122: =Results!AL233 -> -0.8755214437 | AN122: =Results!AM233 -> 0 | AO122: =Results!AN233 -> 0 | AP122: =Results!AO233 -> 0 | AQ122: =Results!AP233 -> 0 | AR122: =Results!AQ233 -> 0 | AS122: =Results!AR233 -> 0 | AT122: =Results!AS233 -> 0 | AU122: 1
A123: Vote 01 | B123: =RIGHT(Results!$D$5,LEN(Results!$D$5)-9) -> The Presidency | C123: 7 | D123: 2 | E123: =Results!D234 -> 0 | F123: =Results!E234 -> 0 | G123: =Results!F234 -> 0 | H123: =Results!G234 -> 0 | I123: =Results!H234 -> 14.64 | J123: =Results!I234 -> 0 | K123: =Results!J234 -> 0 | L123: =Results!K234 -> -0.75852768 | M123: =Results!L234 -> 0 | N123: =Results!M234 -> 0 | O123: =Results!N234 -> 0 | P123: =Results!O234 -> 0 | Q123: =Results!P234 -> 0 | R123: =Results!Q234 -> 0 | S123: =Results!R234 -> 0 | T123: =Results!S234 -> 0 | U123: =Results!T234 -> -0.8033717507 | V123: =Results!U234 -> 0 | W123: =Results!V234 -> 0 | X123: =Results!W234 -> 0 | Y123: =Results!X234 -> 0 | Z123: =Results!Y234 -> 0 | AA123: =Results!Z234 -> 0 | AB123: =Results!AA234 -> 0 | AC123: =Results!AB234 -> 0 | AD123: =Results!AC234 -> -0.8499494059 | AE123: =Results!AD234 -> 0 | AF123: =Results!AE234 -> 0 | AG123: =Results!AF234 -> 0 | AH123: =Results!AG234 -> 0 | AI123: =Results!AH234 -> 0 | AJ123: =Results!AI234 -> 0 | AK123: =Results!AJ234 -> 0 | AL123: =Results!AK234 -> 0 | AM123: =Results!AL234 -> -0.8982024454 | AN123: =Results!AM234 -> 0 | AO123: =Results!AN234 -> 0 | AP123: =Results!AO234 -> 0 | AQ123: =Results!AP234 -> 0 | AR123: =Results!AQ234 -> 0 | AS123: =Results!AR234 -> 0 | AT123: =Results!AS234 -> 0 | AU123: 1
A124: Vote 01 | B124: =RIGHT(Results!$D$5,LEN(Results!$D$5)-9) -> The Presidency | C124: 7 | D124: 3 | E124: =Results!D235 -> 0 | F124: =Results!E235 -> 0 | G124: =Results!F235 -> 0 | H124: =Results!G235 -> 0 | I124: =Results!H235 -> 14.64 | J124: =Results!I235 -> 0 | K124: =Results!J235 -> 0 | L124: =Results!K235 -> -0.75003648 | M124: =Results!L235 -> 0 | N124: =Results!M235 -> 0 | O124: =Results!N235 -> 0 | P124: =Results!O235 -> 0 | Q124: =Results!P235 -> 0 | R124: =Results!Q235 -> 0 | S124: =Results!R235 -> 0 | T124: =Results!S235 -> 0 | U124: =Results!T235 -> -0.7945455851 | V124: =Results!U235 -> 0 | W124: =Results!V235 -> 0 | X124: =Results!W235 -> 0 | Y124: =Results!X235 -> 0 | Z124: =Results!Y235 -> 0 | AA124: =Results!Z235 -> 0 | AB124: =Results!AA235 -> 0 | AC124: =Results!AB235 -> 0 | AD124: =Results!AC235 -> -0.8407893723 | AE124: =Results!AD235 -> 0 | AF124: =Results!AE235 -> 0 | AG124: =Results!AF235 -> 0 | AH124: =Results!AG235 -> 0 | AI124: =Results!AH235 -> 0 | AJ124: =Results!AI235 -> 0 | AK124: =Results!AJ235 -> 0 | AL124: =Results!AK235 -> 0 | AM124: =Results!AL235 -> -0.8887115998 | AN124: =Results!AM235 -> 0 | AO124: =Results!AN235 -> 0 | AP124: =Results!AO235 -> 0 | AQ124: =Results!AP235 -> 0 | AR124: =Results!AQ235 -> 0 | AS124: =Results!AR235 -> 0 | AT124: =Results!AS235 -> 0 | AU124: 1
A125: Vote 01 | B125: =RIGHT(Results!$D$5,LEN(Results!$D$5)-9) -> The Presidency | C125: 7 | D125: 4 | E125: =Results!D236 -> 0 | F125: =Results!E236 -> 0 | G125: =Results!F236 -> 0 | H125: =Results!G236 -> 0 | I125: =Results!H236 -> 14.64 | J125: =Results!I236 -> 0 | K125: =Results!J236 -> 0 | L125: =Results!K236 -> -0.76264152 | M125: =Results!L236 -> 0 | N125: =Results!M236 -> 0 | O125: =Results!N236 -> 0 | P125: =Results!O236 -> 0 | Q125: =Results!P236 -> 0 | R125: =Results!Q236 -> 0 | S125: =Results!R236 -> 0 | T125: =Results!S236 -> 0 | U125: =Results!T236 -> -0.8081749457 | V125: =Results!U236 -> 0 | W125: =Results!V236 -> 0 | X125: =Results!W236 -> 0 | Y125: =Results!X236 -> 0 | Z125: =Results!Y236 -> 0 | AA125: =Results!Z236 -> 0 | AB125: =Results!AA236 -> 0 | AC125: =Results!AB236 -> 0 | AD125: =Results!AC236 -> -0.8555038615 | AE125: =Results!AD236 -> 0 | AF125: =Results!AE236 -> 0 | AG125: =Results!AF236 -> 0 | AH125: =Results!AG236 -> 0 | AI125: =Results!AH236 -> 0 | AJ125: =Results!AI236 -> 0 | AK125: =Results!AJ236 -> 0 | AL125: =Results!AK236 -> 0 | AM125: =Results!AL236 -> -0.9045727065 | AN125: =Results!AM236 -> 0 | AO125: =Results!AN236 -> 0 | AP125: =Results!AO236 -> 0 | AQ125: =Results!AP236 -> 0 | AR125: =Results!AQ236 -> 0 | AS125: =Results!AR236 -> 0 | AT125: =Results!AS236 -> 0 | AU125: 1
... 156 more rows

Sheet COVER

Sheet Assumptions (hidden)
E2: WAGE BILL ASSUMPTIONS
E4: Consumer Price Inflation (CPI) | I4: X = % Increase / Decrease of CPI | M4: Above / Below Inflation | R4: Pay Progression | V4: Pay Progression (Defence)
E5: 2023/24 | F5: 2024/25 | G5: 2025/26 | H5: 2026/27 | R5: =FY0 -> 2023/24 | S5: =MTEF1 -> 2024/25 | T5: =MTEF2 -> 2025/26 | U5: =MTEF3 -> 2026/27 | V5: =FY0 -> 2023/24 | W5: =MTEF1 -> 2024/25 | X5: =MTEF2 -> 2025/26 | Y5: =MTEF3 -> 2026/27
E6: 0.052 | F6: 0.04729988696 | G6: 0.04615771101 | H6: 0.04495166095 | R6: 0.015 | S6: 0.015 | T6: 0.015 | U6: 0.015 | V6: 0.02 | W6: 0.02 | X6: 0.02 | Y6: 0.02
B8: SALARY LEVEL | C8: COMPENSATION OF EMPLOYEES ITEMS | E8: FORECASTING | AA8: Salary | AB8: Translated
E9: CPI | I9: X | M9: Cost of Living Adjustment | R9: Pay Progression | V9: Pay Progression (Defence) | AA9: Level | AB9: Cash Gratuity (p.a.)
B10: Notch Level | C10: Persal Item Description | D10: Salary Item Description | E10: =FY0 -> 2023/24 | F10: =MTEF1 -> 2024/25 | G10: =MTEF2 -> 2025/26 | H10: =MTEF3 -> 2026/27 | I10: =FY0 -> 2023/24 | J10: =MTEF1 -> 2024/25 | K10: =MTEF2 -> 2025/26 | L10: =MTEF3 -> 2026/27 | M10: =FY0 -> 2023/24 | N10: =MTEF1 -> 2024/25 | O10: =MTEF2 -> 2025/26 | P10: =MTEF3 -> 2026/27 | R10: =FY0 -> 2023/24 | S10: =MTEF1 -> 2024/25 | T10: =MTEF2 -> 2025/26 | U10: =MTEF3 -> 2026/27 | V10: =FY0 -> 2023/24 | W10: =MTEF1 -> 2024/25 | X10: =MTEF2 -> 2025/26 | Y10: =MTEF3 -> 2026/27 | AA10: =FY0 -> 2023/24 | AB10: =FY0 -> 2023/24
B11: 1 | C11: EMPL CONTR:BARGAIN COUNCIL(RES) | D11: EMPL CONTR:BARGAIN COUNCIL(RES) | E11: =E$6 -> 0.052 | F11: =F$6 -> 0.04729988696 | G11: 0.04615771101 | H11: 0.04495166095 | I11: 0 | J11: 0 | K11: 0 | L11: 0 | M11: =E11+I11 -> 0.052 | N11: =F11+J11 -> 0.04729988696 | O11: =G11+K11 -> 0.04615771101 | P11: =H11+L11 -> 0.04495166095 | AA11: 1 | AB11: =1220*12 -> 14640
B12: =B11 -> 1 | C12: EMPL CONTR:MEDICAL (RES) | D12: EMPL CONTR:MEDICAL (RES) | E12: =E$6 -> 0.052 | F12: 0.04729988696 | G12: 0.04615771101 | H12: 0.04495166095 | I12: 0 | J12: 0 | K12: 0 | L12: 0 | M12: =E12+I12 -> 0.052 | N12: 0.04729988696 | O12: 0.04615771101 | P12: 0.04495166095 | AA12: 2 | AB12: =1220*12 -> 14640
B13: =B12 -> 1 | C13: EMPL CONTR:OFF UNIONS&ASS(RES) | D13: EMPL CONTR:OFF UNIONS&ASS(RES) | E13: 0.052 | F13: 0.04729988696 | G13: 0.04615771101 | H13: 0.04495166095 | I13: 0 | J13: 0 | K13: 0 | L13: 0 | M13: 0.052 | N13: 0.04729988696 | O13: 0.04615771101 | P13: 0.04495166095 | AA13: 3 | AB13: 14640
B14: =B13 -> 1 | C14: EMPL CONTR:PENSION (RES) | D14: EMPL CONTR:PENSION (RES) | E14: 0.052 | F14: 0.04729988696 | G14: 0.04615771101 | H14: 0.04495166095 | I14: -0.019 | J14: 0 | K14: 0 | L14: 0 | M14: 0.033 | N14: 0.04729988696 | O14: 0.04615771101 | P14: 0.04495166095 | R14: 0.015 | S14: 0.015 | T14: 0.015 | U14: 0.015 | V14: 0.02 | W14: 0.02 | X14: 0.02 | Y14: 0.02 | AA14: 4 | AB14: 14640
B15: =B14 -> 1 | C15: EMPL CONTR:UIF (RES) | D15: EMPL CONTR:UIF (RES) | E15: 0.052 | F15: 0.04729988696 | G15: 0.04615771101 | H15: 0.04495166095 | I15: 0 | J15: 0 | K15: 0 | L15: 0 | M15: 0.052 | N15: 0.04729988696 | O15: 0.04615771101 | P15: 0.04495166095 | AA15: 5 | AB15: 14640
B16: =B15 -> 1 | C16: EMPL CONTR:INSURANCE (RES) | D16: EMPL CONTR:INSURANCE (RES) | E16: 0.052 | F16: 0.04729988696 | G16: 0.04615771101 | H16: 0.04495166095 | I16: 0 | J16: 0 | K16: 0 | L16: 0 | M16: 0.052 | N16: 0.04729988696 | O16: 0.04615771101 | P16: 0.04495166095 | AA16: 6 | AB16: =1352*12 -> 16224
B17: =B15 -> 1 | C17: S&W: PERIODIC PAYMENTS OTH (RES) | D17: S&W: PERIODIC PAYMENTS OTH (RES) | E17: 0.052 | F17: 0.04729988696 | G17: 0.04615771101 | H17: 0.04495166095 | I17: 0 | J17: 0 | K17: 0 | L17: 0 | M17: 0.052 | N17: 0.04729988696 | O17: 0.04615771101 | P17: 0.04495166095 | R17: 0.015 | S17: 0.015 | T17: 0.015 | U17: 0.015 | V17: 0.02 | W17: 0.02 | X17: 0.02 | Y17: 0.02 | AA17: 7 | AB17: =1352*12 -> 16224
B18: =B17 -> 1 | C18: S&W:BASIC SALARY (RES) | D18: S&W:BASIC SALARY (RES) | E18: 0.052 | F18: 0.04729988696 | G18: 0.04615771101 | H18: 0.04495166095 | I18: -0.019 | J18: 0 | K18: 0 | L18: 0 | M18: 0.033 | N18: 0.04729988696 | O18: 0.04615771101 | P18: 0.04495166095 | R18: 0.015 | S18: 0.015 | T18: 0.015 | U18: 0.015 | V18: 0.02 | W18: 0.02 | X18: 0.02 | Y18: 0.02 | AA18: 8 | AB18: =1450*12 -> 17400
B19: 1 | C19: S&W:CAPITAL REMUNERATION (RES) | D19: S&W:CAPITAL REMUNERATION (RES) | E19: 0.052 | F19: 0.04729988696 | G19: 0.04615771101 | H19: 0.04495166095 | I19: 0 | J19: 0 | K19: 0 | L19: 0 | M19: 0.052 | N19: 0.04729988696 | O19: 0.04615771101 | P19: 0.04495166095 | R19: 0.015 | S19: 0.015 | T19: 0.015 | U19: 0.015 | V19: 0.02 | W19: 0.02 | X19: 0.02 | Y19: 0.02 | AA19: 9 | AB19: =1450*12 -> 17400
B20: 1 | C20: S&W:CMPNS/CIRCM (RES) | D20: S&W:CMPNS/CIRCM (RES) | E20: 0.052 | F20: 0.04729988696 | G20: 0.04615771101 | H20: 0.04495166095 | I20: 0 | J20: 0 | K20: 0 | L20: 0 | M20: 0.052 | N20: 0.04729988696 | O20: 0.04615771101 | P20: 0.04495166095 | R20: 0.015 | S20: 0.015 | T20: 0.015 | U20: 0.015 | V20: 0.02 | W20: 0.02 | X20: 0.02 | Y20: 0.02 | AA20: 10 | AB20: =1640*12 -> 19680
B21: 1 | C21: S&W:HOUSING ALLOWANCE (RES) | D21: S&W:HOUSING ALLOWANCE (RES) | E21: 0.052 | F21: 0.04729988696 | G21: 0.04615771101 | H21: 0.04495166095 | I21: 0 | J21: 0 | K21: 0 | L21: 0 | M21: 0.052 | N21: 0.04729988696 | O21: 0.04615771101 | P21: 0.04495166095 | AA21: 11 | AB21: =1640*12 -> 19680
B22: 1 | C22: S&W:LEAVE DISCOUNTING (RES) | D22: S&W:LEAVE DISCOUNTING (RES) | E22: 0.052 | F22: 0.04729988696 | G22: 0.04615771101 | H22: 0.04495166095 | I22: 0 | J22: 0 | K22: 0 | L22: 0 | M22: 0.052 | N22: 0.04729988696 | O22: 0.04615771101 | P22: 0.04495166095 | R22: 0.015 | S22: 0.015 | T22: 0.015 | U22: 0.015 | V22: 0.02 | W22: 0.02 | X22: 0.02 | Y22: 0.02 | AA22: 12 | AB22: =1695*12 -> 20340
B23: 1 | C23: S&W:LNRSP18.2/INTRN(RES) | D23: S&W:LNRSP18.2/INTRN(RES) | E23: 0.052 | F23: 0.04729988696 | G23: 0.04615771101 | H23: 0.04495166095 | I23: 0 | J23: 0 | K23: 0 | L23: 0 | M23: 0.052 | N23: 0.04729988696 | O23: 0.04615771101 | P23: 0.04495166095 | AA23: 13 | AB23: =1695*12 -> 20340
B24: 1 | C24: S&W:NON PENSIONABLE ALL OTH(RES | D24: S&W:NON PENSIONABLE ALL OTH(RES | E24: 0.052 | F24: 0.04729988696 | G24: 0.04615771101 | H24: 0.04495166095 | I24: 0 | J24: 0 | K24: 0 | L24: 0 | M24: 0.052 | N24: 0.04729988696 | O24: 0.04615771101 | P24: 0.04495166095 | R24: 0.015 | S24: 0.015 | T24: 0.015 | U24: 0.015 | V24: 0.02 | W24: 0.02 | X24: 0.02 | Y24: 0.02 | AA24: 14 | AB24: 20340
B25: 1 | C25: S&W:OVERTIME (RES) | D25: S&W:OVERTIME (RES) | E25: 0.052 | F25: 0.04729988696 | G25: 0.04615771101 | H25: 0.04495166095 | I25: 0 | J25: 0 | K25: 0 | L25: 0 | M25: 0.052 | N25: 0.04729988696 | O25: 0.04615771101 | P25: 0.04495166095 | R25: 0.015 | S25: 0.015 | T25: 0.015 | U25: 0.015 | V25: 0.02 | W25: 0.02 | X25: 0.02 | Y25: 0.02 | AA25: 15 | AB25: 20340
B26: 1 | C26: S&W:PERF AWARD OTHER (RES) | D26: S&W:PERF AWARD OTHER (RES) | E26: 0.052 | F26: 0.04729988696 | G26: 0.04615771101 | H26: 0.04495166095 | I26: 0 | J26: 0 | K26: 0 | L26: 0 | M26: 0.052 | N26: 0.04729988696 | O26: 0.04615771101 | P26: 0.04495166095 | AA26: 16 | AB26: =1818*12 -> 21816
B27: 1 | C27: S&W:PERFORMANCE BONUS (RES) | D27: S&W:PERFORMANCE BONUS (RES) | E27: 0.052 | F27: 0.04729988696 | G27: 0.04615771101 | H27: 0.04495166095 | I27: 0 | J27: 0 | K27: 0 | L27: 0 | M27: 0.052 | N27: 0.04729988696 | O27: 0.04615771101 | P27: 0.04495166095 | R27: 0.015 | S27: 0.015 | T27: 0.015 | U27: 0.015 | V27: 0.02 | W27: 0.02 | X27: 0.02 | Y27: 0.02
B28: 1 | C28: S&W:SERV BASED OTHER (RES) | D28: S&W:SERV BASED OTHER (RES) | E28: 0.052 | F28: 0.04729988696 | G28: 0.04615771101 | H28: 0.04495166095 | I28: 0 | J28: 0 | K28: 0 | L28: 0 | M28: 0.052 | N28: 0.04729988696 | O28: 0.04615771101 | P28: 0.04495166095 | R28: 0.015 | S28: 0.015 | T28: 0.015 | U28: 0.015 | V28: 0.02 | W28: 0.02 | X28: 0.02 | Y28: 0.02
B29: 1 | C29: S&W:SERVICE BONUS (RES) | D29: S&W:SERVICE BONUS (RES) | E29: 0.052 | F29: 0.04729988696 | G29: 0.04615771101 | H29: 0.04495166095 | I29: -0.019 | J29: 0 | K29: 0 | L29: 0 | M29: 0.033 | N29: 0.04729988696 | O29: 0.04615771101 | P29: 0.04495166095 | R29: 0.015 | S29: 0.015 | T29: 0.015 | U29: 0.015 | V29: 0.02 | W29: 0.02 | X29: 0.02 | Y29: 0.02
B30: 1 | C30: S&W:COL ADJUSTMENT-LOC RECR PERS | D30: S&W:NON-RES ITEMS | E30: 0.052 | F30: 0.04729988696 | G30: 0.04615771101 | H30: 0.04495166095 | I30: 0 | J30: 0 | K30: 0 | L30: 0 | M30: 0.052 | N30: 0.04729988696 | O30: 0.04615771101 | P30: 0.04495166095
B31: 1 | C31: S&W:FORGN ALL SA OFF:HR-DAY REM | D31: S&W:NON-RES ITEMS | E31: 0.052 | F31: 0.04729988696 | G31: 0.04615771101 | H31: 0.04495166095 | I31: 0 | J31: 0 | K31: 0 | L31: 0 | M31: 0.052 | N31: 0.04729988696 | O31: 0.04615771101 | P31: 0.04495166095
B32: 1 | C32: S&W:LOC RECRT PERS (NON-RES) | D32: S&W:NON-RES ITEMS | E32: =E$6 -> 0.052 | F32: 0.04729988696 | G32: 0.04615771101 | H32: 0.04495166095 | I32: 0 | J32: 0 | K32: 0 | L32: 0 | M32: 0.052 | N32: 0.04729988696 | O32: 0.04615771101 | P32: 0.04495166095
B33: 1 | C33: S&W:O/TIME LOC RECR PER(NON-RES | D33: S&W:NON-RES ITEMS | E33: 0.052 | F33: 0.04729988696 | G33: 0.04615771101 | H33: 0.04495166095 | I33: 0 | J33: 0 | K33: 0 | L33: 0 | M33: 0.052 | N33: 0.04729988696 | O33: 0.04615771101 | P33: 0.04495166095 | R33: 0.015 | S33: 0.015 | T33: 0.015 | U33: 0.015 | V33: 0.02 | W33: 0.02 | X33: 0.02 | Y33: 0.02
B34: 1 | C34: S&W:PERFORMANCE BONUS(NON-RES) | D34: S&W:NON-RES ITEMS | E34: 0.052 | F34: 0.04729988696 | G34: 0.04615771101 | H34: 0.04495166095 | I34: 0 | J34: 0 | K34: 0 | L34: 0 | M34: 0.052 | N34: 0.04729988696 | O34: 0.04615771101 | P34: 0.04495166095 | R34: 0.015 | S34: 0.015 | T34: 0.015 | U34: 0.015 | V34: 0.02 | W34: 0.02 | X34: 0.02 | Y34: 0.02
B35: 1 | C35: S&W:FORGN ALL OFF:CHILD | D35: S&W:NON-RES ITEMS | E35: 0.052 | F35: 0.04729988696 | G35: 0.04615771101 | H35: 0.04495166095 | I35: 0 | J35: 0 | K35: 0 | L35: 0 | M35: 0.052 | N35: 0.04729988696 | O35: 0.04615771101 | P35: 0.04495166095
B36: 1 | C36: S&W:FORGN ALL OFF:COL ALL | D36: S&W:NON-RES ITEMS | E36: 0.052 | F36: 0.04729988696 | G36: 0.04615771101 | H36: 0.04495166095 | I36: 0 | J36: 0 | K36: 0 | L36: 0 | M36: 0.052 | N36: 0.04729988696 | O36: 0.04615771101 | P36: 0.04495166095
B37: 1 | C37: S&W:FORGN ALL OFF:DIFPOST(DPACA) | D37: S&W:NON-RES ITEMS | E37: 0.052 | F37: 0.04729988696 | G37: 0.04615771101 | H37: 0.04495166095 | I37: 0 | J37: 0 | K37: 0 | L37: 0 | M37: 0.052 | N37: 0.04729988696 | O37: 0.04615771101 | P37: 0.04495166095
B38: 1 | C38: S&W:FORGN ALL OFF:RENT,GAS&ELE | D38: S&W:NON-RES ITEMS | E38: 0.052 | F38: 0.04729988696 | G38: 0.04615771101 | H38: 0.04495166095 | I38: 0 | J38: 0 | K38: 0 | L38: 0 | M38: 0.052 | N38: 0.04729988696 | O38: 0.04615771101 | P38: 0.04495166095
B39: 1 | C39: EMPL CONTR:MEDICAL LRP (N-RES) | D39: S&W:NON-RES ITEMS | E39: 0.052 | F39: 0.04729988696 | G39: 0.04615771101 | H39: 0.04495166095 | I39: 0 | J39: 0 | K39: 0 | L39: 0 | M39: 0.052 | N39: 0.04729988696 | O39: 0.04615771101 | P39: 0.04495166095
B40: 1 | C40: EMPL CONTR:PENSION LRP (N-RES) | D40: S&W:NON-RES ITEMS | E40: 0.052 | F40: 0.04729988696 | G40: 0.04615771101 | H40: 0.04495166095 | I40: -0.019 | J40: 0 | K40: 0 | L40: 0 | M40: 0.033 | N40: 0.04729988696 | O40: 0.04615771101 | P40: 0.04495166095 | R40: 0.015 | S40: 0.015 | T40: 0.015 | U40: 0.015 | V40: 0.02 | W40: 0.02 | X40: 0.02 | Y40: 0.02
B41: 1 | C41: EMPL CONTR:SOC CON OT LRP(N-RES) | D41: S&W:NON-RES ITEMS | E41: 0.052 | F41: 0.04729988696 | G41: 0.04615771101 | H41: 0.04495166095 | I41: 0 | J41: 0 | K41: 0 | L41: 0 | M41: 0.052 | N41: 0.04729988696 | O41: 0.04615771101 | P41: 0.04495166095 | R41: 0.015 | S41: 0.015 | T41: 0.015 | U41: 0.015 | V41: 0.02 | W41: 0.02 | X41: 0.02 | Y41: 0.02
B42: 1 | C42: SAL:GEHS REFUND CONTROL ACC:CL | D42: SAL:GEHS REFUND CONTROL ACC:CL | E42: 0.052 | F42: 0.04729988696 | G42: 0.04615771101 | H42: 0.04495166095 | I42: 0 | J42: 0 | K42: 0 | L42: 0 | M42: =E42+I42 -> 0.052 | N42: =F42+J42 -> 0.04729988696 | O42: =G42+K42 -> 0.04615771101 | P42: =H42+L42 -> 0.04495166095
B43: 2 | C43: EMPL CONTR:BARGAIN COUNCIL(RES) | D43: EMPL CONTR:BARGAIN COUNCIL(RES) | E43: 0.052 | F43: 0.04729988696 | G43: 0.04615771101 | H43: 0.04495166095 | I43: 0 | J43: 0 | K43: 0 | L43: 0 | M43: =E43+I43 -> 0.052 | N43: =F43+J43 -> 0.04729988696 | O43: =G43+K43 -> 0.04615771101 | P43: =H43+L43 -> 0.04495166095
B44: =B43 -> 2 | C44: EMPL CONTR:MEDICAL (RES) | D44: EMPL CONTR:MEDICAL (RES) | E44: 0.052 | F44: 0.04729988696 | G44: 0.04615771101 | H44: 0.04495166095 | I44: 0 | J44: 0 | K44: 0 | L44: 0 | M44: 0.052 | N44: 0.04729988696 | O44: 0.04615771101 | P44: 0.04495166095
B45: =B44 -> 2 | C45: EMPL CONTR:OFF UNIONS&ASS(RES) | D45: EMPL CONTR:OFF UNIONS&ASS(RES) | E45: 0.052 | F45: 0.04729988696 | G45: 0.04615771101 | H45: 0.04495166095 | I45: 0 | J45: 0 | K45: 0 | L45: 0 | M45: 0.052 | N45: 0.04729988696 | O45: 0.04615771101 | P45: 0.04495166095
B46: =B45 -> 2 | C46: EMPL CONTR:PENSION (RES) | D46: EMPL CONTR:PENSION (RES) | E46: 0.052 | F46: 0.04729988696 | G46: 0.04615771101 | H46: 0.04495166095 | I46: -0.019 | J46: 0 | K46: 0 | L46: 0 | M46: 0.033 | N46: 0.04729988696 | O46: 0.04615771101 | P46: 0.04495166095 | R46: 0.015 | S46: 0.015 | T46: 0.015 | U46: 0.015 | V46: 0.02 | W46: 0.02 | X46: 0.02 | Y46: 0.02
B47: =B46 -> 2 | C47: EMPL CONTR:UIF (RES) | D47: EMPL CONTR:UIF (RES) | E47: 0.052 | F47: 0.04729988696 | G47: 0.04615771101 | H47: 0.04495166095 | I47: 0 | J47: 0 | K47: 0 | L47: 0 | M47: 0.052 | N47: 0.04729988696 | O47: 0.04615771101 | P47: 0.04495166095
B48: =B47 -> 2 | C48: EMPL CONTR:INSURANCE (RES) | D48: EMPL CONTR:INSURANCE (RES) | E48: 0.052 | F48: 0.04729988696 | G48: 0.04615771101 | H48: 0.04495166095 | I48: 0 | J48: 0 | K48: 0 | L48: 0 | M48: 0.052 | N48: 0.04729988696 | O48: 0.04615771101 | P48: 0.04495166095
B49: =B47 -> 2 | C49: S&W: PERIODIC PAYMENTS OTH (RES) | D49: S&W: PERIODIC PAYMENTS OTH (RES) | E49: 0.052 | F49: 0.04729988696 | G49: 0.04615771101 | H49: 0.04495166095 | I49: 0 | J49: 0 | K49: 0 | L49: 0 | M49: 0.052 | N49: 0.04729988696 | O49: 0.04615771101 | P49: 0.04495166095 | R49: 0.015 | S49: 0.015 | T49: 0.015 | U49: 0.015 | V49: 0.02 | W49: 0.02 | X49: 0.02 | Y49: 0.02
B50: =B49 -> 2 | C50: S&W:BASIC SALARY (RES) | D50: S&W:BASIC SALARY (RES) | E50: 0.052 | F50: 0.04729988696 | G50: 0.04615771101 | H50: 0.04495166095 | I50: -0.019 | J50: 0 | K50: 0 | L50: 0 | M50: 0.033 | N50: 0.04729988696 | O50: 0.04615771101 | P50: 0.04495166095 | R50: 0.015 | S50: 0.015 | T50: 0.015 | U50: 0.015 | V50: 0.02 | W50: 0.02 | X50: 0.02 | Y50: 0.02
B51: 2 | C51: S&W:CAPITAL REMUNERATION (RES) | D51: S&W:CAPITAL REMUNERATION (RES) | E51: 0.052 | F51: 0.04729988696 | G51: 0.04615771101 | H51: 0.04495166095 | I51: 0 | J51: 0 | K51: 0 | L51: 0 | M51: 0.052 | N51: 0.04729988696 | O51: 0.04615771101 | P51: 0.04495166095 | R51: 0.015 | S51: 0.015 | T51: 0.015 | U51: 0.015 | V51: 0.02 | W51: 0.02 | X51: 0.02 | Y51: 0.02
B52: 2 | C52: S&W:CMPNS/CIRCM (RES) | D52: S&W:CMPNS/CIRCM (RES) | E52: 0.052 | F52: 0.04729988696 | G52: 0.04615771101 | H52: 0.04495166095 | I52: 0 | J52: 0 | K52: 0 | L52: 0 | M52: 0.052 | N52: 0.04729988696 | O52: 0.04615771101 | P52: 0.04495166095 | R52: 0.015 | S52: 0.015 | T52: 0.015 | U52: 0.015 | V52: 0.02 | W52: 0.02 | X52: 0.02 | Y52: 0.02
B53: 2 | C53: S&W:HOUSING ALLOWANCE (RES) | D53: S&W:HOUSING ALLOWANCE (RES) | E53: =E$6 -> 0.052 | F53: 0.04729988696 | G53: 0.04615771101 | H53: 0.04495166095 | I53: 0 | J53: 0 | K53: 0 | L53: 0 | M53: 0.052 | N53: 0.04729988696 | O53: 0.04615771101 | P53: 0.04495166095
B54: 2 | C54: S&W:LEAVE DISCOUNTING (RES) | D54: S&W:LEAVE DISCOUNTING (RES) | E54: 0.052 | F54: 0.04729988696 | G54: 0.04615771101 | H54: 0.04495166095 | I54: 0 | J54: 0 | K54: 0 | L54: 0 | M54: 0.052 | N54: 0.04729988696 | O54: 0.04615771101 | P54: 0.04495166095 | R54: 0.015 | S54: 0.015 | T54: 0.015 | U54: 0.015 | V54: 0.02 | W54: 0.02 | X54: 0.02 | Y54: 0.02
B55: 2 | C55: S&W:LNRSP18.2/INTRN(RES) | D55: S&W:LNRSP18.2/INTRN(RES) | E55: 0.052 | F55: 0.04729988696 | G55: 0.04615771101 | H55: 0.04495166095 | I55: 0 | J55: 0 | K55: 0 | L55: 0 | M55: 0.052 | N55: 0.04729988696 | O55: 0.04615771101 | P55: 0.04495166095
B56: 2 | C56: S&W:NON PENSIONABLE ALL OTH(RES | D56: S&W:NON PENSIONABLE ALL OTH(RES | E56: 0.052 | F56: 0.04729988696 | G56: 0.04615771101 | H56: 0.04495166095 | I56: 0 | J56: 0 | K56: 0 | L56: 0 | M56: 0.052 | N56: 0.04729988696 | O56: 0.04615771101 | P56: 0.04495166095 | R56: 0.015 | S56: 0.015 | T56: 0.015 | U56: 0.015 | V56: 0.02 | W56: 0.02 | X56: 0.02 | Y56: 0.02
B57: 2 | C57: S&W:OVERTIME (RES) | D57: S&W:OVERTIME (RES) | E57: 0.052 | F57: 0.04729988696 | G57: 0.04615771101 | H57: 0.04495166095 | I57: 0 | J57: 0 | K57: 0 | L57: 0 | M57: 0.052 | N57: 0.04729988696 | O57: 0.04615771101 | P57: 0.04495166095 | R57: 0.015 | S57: 0.015 | T57: 0.015 | U57: 0.015 | V57: 0.02 | W57: 0.02 | X57: 0.02 | Y57: 0.02
B58: 2 | C58: S&W:PERF AWARD OTHER (RES) | D58: S&W:PERF AWARD OTHER (RES) | E58: 0.052 | F58: 0.04729988696 | G58: 0.04615771101 | H58: 0.04495166095 | I58: 0 | J58: 0 | K58: 0 | L58: 0 | M58: 0.052 | N58: 0.04729988696 | O58: 0.04615771101 | P58: 0.04495166095
B59: 2 | C59: S&W:PERFORMANCE BONUS (RES) | D59: S&W:PERFORMANCE BONUS (RES) | E59: 0.052 | F59: 0.04729988696 | G59: 0.04615771101 | H59: 0.04495166095 | I59: 0 | J59: 0 | K59: 0 | L59: 0 | M59: 0.052 | N59: 0.04729988696 | O59: 0.04615771101 | P59: 0.04495166095 | R59: 0.015 | S59: 0.015 | T59: 0.015 | U59: 0.015 | V59: 0.02 | W59: 0.02 | X59: 0.02 | Y59: 0.02
B60: 2 | C60: S&W:SERV BASED OTHER (RES) | D60: S&W:SERV BASED OTHER (RES) | E60: 0.052 | F60: 0.04729988696 | G60: 0.04615771101 | H60: 0.04495166095 | I60: 0 | J60: 0 | K60: 0 | L60: 0 | M60: 0.052 | N60: 0.04729988696 | O60: 0.04615771101 | P60: 0.04495166095 | R60: 0.015 | S60: 0.015 | T60: 0.015 | U60: 0.015 | V60: 0.02 | W60: 0.02 | X60: 0.02 | Y60: 0.02
B61: 2 | C61: S&W:SERVICE BONUS (RES) | D61: S&W:SERVICE BONUS (RES) | E61: 0.052 | F61: 0.04729988696 | G61: 0.04615771101 | H61: 0.04495166095 | I61: -0.019 | J61: 0 | K61: 0 | L61: 0 | M61: 0.033 | N61: 0.04729988696 | O61: 0.04615771101 | P61: 0.04495166095 | R61: 0.015 | S61: 0.015 | T61: 0.015 | U61: 0.015 | V61: 0.02 | W61: 0.02 | X61: 0.02 | Y61: 0.02
B62: 2 | C62: S&W:COL ADJUSTMENT-LOC RECR PERS | D62: S&W:NON-RES ITEMS | E62: 0.052 | F62: 0.04729988696 | G62: 0.04615771101 | H62: 0.04495166095 | I62: 0 | J62: 0 | K62: 0 | L62: 0 | M62: 0.052 | N62: 0.04729988696 | O62: 0.04615771101 | P62: 0.04495166095
B63: 2 | C63: S&W:FORGN ALL SA OFF:HR-DAY REM | D63: S&W:NON-RES ITEMS | E63: 0.052 | F63: 0.04729988696 | G63: 0.04615771101 | H63: 0.04495166095 | I63: 0 | J63: 0 | K63: 0 | L63: 0 | M63: 0.052 | N63: 0.04729988696 | O63: 0.04615771101 | P63: 0.04495166095
B64: 2 | C64: S&W:LOC RECRT PERS (NON-RES) | D64: S&W:NON-RES ITEMS | E64: 0.052 | F64: 0.04729988696 | G64: 0.04615771101 | H64: 0.04495166095 | I64: 0 | J64: 0 | K64: 0 | L64: 0 | M64: 0.052 | N64: 0.04729988696 | O64: 0.04615771101 | P64: 0.04495166095
B65: 2 | C65: S&W:O/TIME LOC RECR PER(NON-RES | D65: S&W:NON-RES ITEMS | E65: 0.052 | F65: 0.04729988696 | G65: 0.04615771101 | H65: 0.04495166095 | I65: 0 | J65: 0 | K65: 0 | L65: 0 | M65: 0.052 | N65: 0.04729988696 | O65: 0.04615771101 | P65: 0.04495166095 | R65: 0.015 | S65: 0.015 | T65: 0.015 | U65: 0.015 | V65: 0.02 | W65: 0.02 | X65: 0.02 | Y65: 0.02
B66: 2 | C66: S&W:PERFORMANCE BONUS(NON-RES) | D66: S&W:NON-RES ITEMS | E66: 0.052 | F66: 0.04729988696 | G66: 0.04615771101 | H66: 0.04495166095 | I66: 0 | J66: 0 | K66: 0 | L66: 0 | M66: 0.052 | N66: 0.04729988696 | O66: 0.04615771101 | P66: 0.04495166095 | R66: 0.015 | S66: 0.015 | T66: 0.015 | U66: 0.015 | V66: 0.02 | W66: 0.02 | X66: 0.02 | Y66: 0.02
B67: 2 | C67: S&W:FORGN ALL OFF:CHILD | D67: S&W:NON-RES ITEMS | E67: 0.052 | F67: 0.04729988696 | G67: 0.04615771101 | H67: 0.04495166095 | I67: 0 | J67: 0 | K67: 0 | L67: 0 | M67: 0.052 | N67: 0.04729988696 | O67: 0.04615771101 | P67: 0.04495166095
B68: 2 | C68: S&W:FORGN ALL OFF:COL ALL | D68: S&W:NON-RES ITEMS | E68: 0.052 | F68: 0.04729988696 | G68: 0.04615771101 | H68: 0.04495166095 | I68: 0 | J68: 0 | K68: 0 | L68: 0 | M68: 0.052 | N68: 0.04729988696 | O68: 0.04615771101 | P68: 0.04495166095
B69: 2 | C69: S&W:FORGN ALL OFF:DIFPOST(DPACA) | D69: S&W:NON-RES ITEMS | E69: 0.052 | F69: 0.04729988696 | G69: 0.04615771101 | H69: 0.04495166095 | I69: 0 | J69: 0 | K69: 0 | L69: 0 | M69: 0.052 | N69: 0.04729988696 | O69: 0.04615771101 | P69: 0.04495166095
B70: 2 | C70: S&W:FORGN ALL OFF:RENT,GAS&ELE | D70: S&W:NON-RES ITEMS | E70: 0.052 | F70: 0.04729988696 | G70: 0.04615771101 | H70: 0.04495166095 | I70: 0 | J70: 0 | K70: 0 | L70: 0 | M70: 0.052 | N70: 0.04729988696 | O70: 0.04615771101 | P70: 0.04495166095
B71: 2 | C71: EMPL CONTR:MEDICAL LRP (N-RES) | D71: S&W:NON-RES ITEMS | E71: 0.052 | F71: 0.04729988696 | G71: 0.04615771101 | H71: 0.04495166095 | I71: 0 | J71: 0 | K71: 0 | L71: 0 | M71: 0.052 | N71: 0.04729988696 | O71: 0.04615771101 | P71: 0.04495166095
B72: 2 | C72: EMPL CONTR:PENSION LRP (N-RES) | D72: S&W:NON-RES ITEMS | E72: 0.052 | F72: 0.04729988696 | G72: 0.04615771101 | H72: 0.04495166095 | I72: -0.019 | J72: 0 | K72: 0 | L72: 0 | M72: 0.033 | N72: 0.04729988696 | O72: 0.04615771101 | P72: 0.04495166095 | R72: 0.015 | S72: 0.015 | T72: 0.015 | U72: 0.015 | V72: 0.02 | W72: 0.02 | X72: 0.02 | Y72: 0.02
B73: 2 | C73: EMPL CONTR:SOC CON OT LRP(N-RES) | D73: S&W:NON-RES ITEMS | E73: 0.052 | F73: 0.04729988696 | G73: 0.04615771101 | H73: 0.04495166095 | I73: 0 | J73: 0 | K73: 0 | L73: 0 | M73: 0.052 | N73: 0.04729988696 | O73: 0.04615771101 | P73: 0.04495166095 | R73: 0.015 | S73: 0.015 | T73: 0.015 | U73: 0.015 | V73: 0.02 | W73: 0.02 | X73: 0.02 | Y73: 0.02
B74: 2 | C74: SAL:GEHS REFUND CONTROL ACC:CL | D74: SAL:GEHS REFUND CONTROL ACC:CL | E74: 0.052 | F74: 0.04729988696 | G74: 0.04615771101 | H74: 0.04495166095 | I74: 0 | J74: 0 | K74: 0 | L74: 0 | M74: 0.052 | N74: 0.04729988696 | O74: 0.04615771101 | P74: 0.04495166095
B75: 3 | C75: EMPL CONTR:BARGAIN COUNCIL(RES) | D75: EMPL CONTR:BARGAIN COUNCIL(RES) | E75: 0.052 | F75: 0.04729988696 | G75: 0.04615771101 | H75: 0.04495166095 | I75: 0 | J75: 0 | K75: 0 | L75: 0 | M75: =E75+I75 -> 0.052 | N75: =F75+J75 -> 0.04729988696 | O75: =G75+K75 -> 0.04615771101 | P75: =H75+L75 -> 0.04495166095
B76: =B75 -> 3 | C76: EMPL CONTR:MEDICAL (RES) | D76: EMPL CONTR:MEDICAL (RES) | E76: 0.052 | F76: 0.04729988696 | G76: 0.04615771101 | H76: 0.04495166095 | I76: 0 | J76: 0 | K76: 0 | L76: 0 | M76: 0.052 | N76: 0.04729988696 | O76: 0.04615771101 | P76: 0.04495166095
B77: =B76 -> 3 | C77: EMPL CONTR:OFF UNIONS&ASS(RES) | D77: EMPL CONTR:OFF UNIONS&ASS(RES) | E77: 0.052 | F77: 0.04729988696 | G77: 0.04615771101 | H77: 0.04495166095 | I77: 0 | J77: 0 | K77: 0 | L77: 0 | M77: 0.052 | N77: 0.04729988696 | O77: 0.04615771101 | P77: 0.04495166095
B78: =B77 -> 3 | C78: EMPL CONTR:PENSION (RES) | D78: EMPL CONTR:PENSION (RES) | E78: 0.052 | F78: 0.04729988696 | G78: 0.04615771101 | H78: 0.04495166095 | I78: -0.019 | J78: 0 | K78: 0 | L78: 0 | M78: 0.033 | N78: 0.04729988696 | O78: 0.04615771101 | P78: 0.04495166095 | R78: 0.015 | S78: 0.015 | T78: 0.015 | U78: 0.015 | V78: 0.02 | W78: 0.02 | X78: 0.02 | Y78: 0.02
B79: =B78 -> 3 | C79: EMPL CONTR:UIF (RES) | D79: EMPL CONTR:UIF (RES) | E79: 0.052 | F79: 0.04729988696 | G79: 0.04615771101 | H79: 0.04495166095 | I79: 0 | J79: 0 | K79: 0 | L79: 0 | M79: 0.052 | N79: 0.04729988696 | O79: 0.04615771101 | P79: 0.04495166095
B80: =B79 -> 3 | C80: EMPL CONTR:INSURANCE (RES) | D80: EMPL CONTR:INSURANCE (RES) | E80: 0.052 | F80: 0.04729988696 | G80: 0.04615771101 | H80: 0.04495166095 | I80: 0 | J80: 0 | K80: 0 | L80: 0 | M80: 0.052 | N80: 0.04729988696 | O80: 0.04615771101 | P80: 0.04495166095
B81: =B79 -> 3 | C81: S&W: PERIODIC PAYMENTS OTH (RES) | D81: S&W: PERIODIC PAYMENTS OTH (RES) | E81: 0.052 | F81: 0.04729988696 | G81: 0.04615771101 | H81: 0.04495166095 | I81: 0 | J81: 0 | K81: 0 | L81: 0 | M81: 0.052 | N81: 0.04729988696 | O81: 0.04615771101 | P81: 0.04495166095 | R81: 0.015 | S81: 0.015 | T81: 0.015 | U81: 0.015 | V81: 0.02 | W81: 0.02 | X81: 0.02 | Y81: 0.02
B82: =B81 -> 3 | C82: S&W:BASIC SALARY (RES) | D82: S&W:BASIC SALARY (RES) | E82: 0.052 | F82: 0.04729988696 | G82: 0.04615771101 | H82: 0.04495166095 | I82: -0.019 | J82: 0 | K82: 0 | L82: 0 | M82: 0.033 | N82: 0.04729988696 | O82: 0.04615771101 | P82: 0.04495166095 | R82: 0.015 | S82: 0.015 | T82: 0.015 | U82: 0.015 | V82: 0.02 | W82: 0.02 | X82: 0.02 | Y82: 0.02
B83: 3 | C83: S&W:CAPITAL REMUNERATION (RES) | D83: S&W:CAPITAL REMUNERATION (RES) | E83: 0.052 | F83: 0.04729988696 | G83: 0.04615771101 | H83: 0.04495166095 | I83: 0 | J83: 0 | K83: 0 | L83: 0 | M83: 0.052 | N83: 0.04729988696 | O83: 0.04615771101 | P83: 0.04495166095 | R83: 0.015 | S83: 0.015 | T83: 0.015 | U83: 0.015 | V83: 0.02 | W83: 0.02 | X83: 0.02 | Y83: 0.02
B84: 3 | C84: S&W:CMPNS/CIRCM (RES) | D84: S&W:CMPNS/CIRCM (RES) | E84: 0.052 | F84: 0.04729988696 | G84: 0.04615771101 | H84: 0.04495166095 | I84: 0 | J84: 0 | K84: 0 | L84: 0 | M84: 0.052 | N84: 0.04729988696 | O84: 0.04615771101 | P84: 0.04495166095 | R84: 0.015 | S84: 0.015 | T84: 0.015 | U84: 0.015 | V84: 0.02 | W84: 0.02 | X84: 0.02 | Y84: 0.02
B85: 3 | C85: S&W:HOUSING ALLOWANCE (RES) | D85: S&W:HOUSING ALLOWANCE (RES) | E85: 0.052 | F85: 0.04729988696 | G85: 0.04615771101 | H85: 0.04495166095 | I85: 0 | J85: 0 | K85: 0 | L85: 0 | M85: 0.052 | N85: 0.04729988696 | O85: 0.04615771101 | P85: 0.04495166095
B86: 3 | C86: S&W:LEAVE DISCOUNTING (RES) | D86: S&W:LEAVE DISCOUNTING (RES) | E86: 0.052 | F86: 0.04729988696 | G86: 0.04615771101 | H86: 0.04495166095 | I86: 0 | J86: 0 | K86: 0 | L86: 0 | M86: 0.052 | N86: 0.04729988696 | O86: 0.04615771101 | P86: 0.04495166095 | R86: 0.015 | S86: 0.015 | T86: 0.015 | U86: 0.015 | V86: 0.02 | W86: 0.02 | X86: 0.02 | Y86: 0.02
B87: 3 | C87: S&W:LNRSP18.2/INTRN(RES) | D87: S&W:LNRSP18.2/INTRN(RES) | E87: 0.052 | F87: 0.04729988696 | G87: 0.04615771101 | H87: 0.04495166095 | I87: 0 | J87: 0 | K87: 0 | L87: 0 | M87: 0.052 | N87: 0.04729988696 | O87: 0.04615771101 | P87: 0.04495166095
B88: 3 | C88: S&W:NON PENSIONABLE ALL OTH(RES | D88: S&W:NON PENSIONABLE ALL OTH(RES | E88: 0.052 | F88: 0.04729988696 | G88: 0.04615771101 | H88: 0.04495166095 | I88: 0 | J88: 0 | K88: 0 | L88: 0 | M88: 0.052 | N88: 0.04729988696 | O88: 0.04615771101 | P88: 0.04495166095 | R88: 0.015 | S88: 0.015 | T88: 0.015 | U88: 0.015 | V88: 0.02 | W88: 0.02 | X88: 0.02 | Y88: 0.02
B89: 3 | C89: S&W:OVERTIME (RES) | D89: S&W:OVERTIME (RES) | E89: 0.052 | F89: 0.04729988696 | G89: 0.04615771101 | H89: 0.04495166095 | I89: 0 | J89: 0 | K89: 0 | L89: 0 | M89: 0.052 | N89: 0.04729988696 | O89: 0.04615771101 | P89: 0.04495166095 | R89: 0.015 | S89: 0.015 | T89: 0.015 | U89: 0.015 | V89: 0.02 | W89: 0.02 | X89: 0.02 | Y89: 0.02
B90: 3 | C90: S&W:PERF AWARD OTHER (RES) | D90: S&W:PERF AWARD OTHER (RES) | E90: 0.052 | F90: 0.04729988696 | G90: 0.04615771101 | H90: 0.04495166095 | I90: 0 | J90: 0 | K90: 0 | L90: 0 | M90: 0.052 | N90: 0.04729988696 | O90: 0.04615771101 | P90: 0.04495166095
B91: 3 | C91: S&W:PERFORMANCE BONUS (RES) | D91: S&W:PERFORMANCE BONUS (RES) | E91: 0.052 | F91: 0.04729988696 | G91: 0.04615771101 | H91: 0.04495166095 | I91: 0 | J91: 0 | K91: 0 | L91: 0 | M91: 0.052 | N91: 0.04729988696 | O91: 0.04615771101 | P91: 0.04495166095 | R91: 0.015 | S91: 0.015 | T91: 0.015 | U91: 0.015 | V91: 0.02 | W91: 0.02 | X91: 0.02 | Y91: 0.02
B92: 3 | C92: S&W:SERV BASED OTHER (RES) | D92: S&W:SERV BASED OTHER (RES) | E92: 0.052 | F92: 0.04729988696 | G92: 0.04615771101 | H92: 0.04495166095 | I92: 0 | J92: 0 | K92: 0 | L92: 0 | M92: 0.052 | N92: 0.04729988696 | O92: 0.04615771101 | P92: 0.04495166095 | R92: 0.015 | S92: 0.015 | T92: 0.015 | U92: 0.015 | V92: 0.02 | W92: 0.02 | X92: 0.02 | Y92: 0.02
B93: 3 | C93: S&W:SERVICE BONUS (RES) | D93: S&W:SERVICE BONUS (RES) | E93: 0.052 | F93: 0.04729988696 | G93: 0.04615771101 | H93: 0.04495166095 | I93: -0.019 | J93: 0 | K93: 0 | L93: 0 | M93: 0.033 | N93: 0.04729988696 | O93: 0.04615771101 | P93: 0.04495166095 | R93: 0.015 | S93: 0.015 | T93: 0.015 | U93: 0.015 | V93: 0.02 | W93: 0.02 | X93: 0.02 | Y93: 0.02
B94: 3 | C94: S&W:COL ADJUSTMENT-LOC RECR PERS | D94: S&W:NON-RES ITEMS | E94: 0.052 | F94: 0.04729988696 | G94: 0.04615771101 | H94: 0.04495166095 | I94: 0 | J94: 0 | K94: 0 | L94: 0 | M94: 0.052 | N94: 0.04729988696 | O94: 0.04615771101 | P94: 0.04495166095
B95: 3 | C95: S&W:FORGN ALL SA OFF:HR-DAY REM | D95: S&W:NON-RES ITEMS | E95: 0.052 | F95: 0.04729988696 | G95: 0.04615771101 | H95: 0.04495166095 | I95: 0 | J95: 0 | K95: 0 | L95: 0 | M95: 0.052 | N95: 0.04729988696 | O95: 0.04615771101 | P95: 0.04495166095
B96: 3 | C96: S&W:LOC RECRT PERS (NON-RES) | D96: S&W:NON-RES ITEMS | E96: 0.052 | F96: 0.04729988696 | G96: 0.04615771101 | H96: 0.04495166095 | I96: 0 | J96: 0 | K96: 0 | L96: 0 | M96: 0.052 | N96: 0.04729988696 | O96: 0.04615771101 | P96: 0.04495166095
B97: 3 | C97: S&W:O/TIME LOC RECR PER(NON-RES | D97: S&W:NON-RES ITEMS | E97: 0.052 | F97: 0.04729988696 | G97: 0.04615771101 | H97: 0.04495166095 | I97: 0 | J97: 0 | K97: 0 | L97: 0 | M97: 0.052 | N97: 0.04729988696 | O97: 0.04615771101 | P97: 0.04495166095 | R97: 0.015 | S97: 0.015 | T97: 0.015 | U97: 0.015 | V97: 0.02 | W97: 0.02 | X97: 0.02 | Y97: 0.02
B98: 3 | C98: S&W:PERFORMANCE BONUS(NON-RES) | D98: S&W:NON-RES ITEMS | E98: 0.052 | F98: 0.04729988696 | G98: 0.04615771101 | H98: 0.04495166095 | I98: 0 | J98: 0 | K98: 0 | L98: 0 | M98: 0.052 | N98: 0.04729988696 | O98: 0.04615771101 | P98: 0.04495166095 | R98: 0.015 | S98: 0.015 | T98: 0.015 | U98: 0.015 | V98: 0.02 | W98: 0.02 | X98: 0.02 | Y98: 0.02
B99: 3 | C99: S&W:FORGN ALL OFF:CHILD | D99: S&W:NON-RES ITEMS | E99: 0.052 | F99: 0.04729988696 | G99: 0.04615771101 | H99: 0.04495166095 | I99: 0 | J99: 0 | K99: 0 | L99: 0 | M99: 0.052 | N99: 0.04729988696 | O99: 0.04615771101 | P99: 0.04495166095
B100: 3 | C100: S&W:FORGN ALL OFF:COL ALL | D100: S&W:NON-RES ITEMS | E100: 0.052 | F100: 0.04729988696 | G100: 0.04615771101 | H100: 0.04495166095 | I100: 0 | J100: 0 | K100: 0 | L100: 0 | M100: 0.052 | N100: 0.04729988696 | O100: 0.04615771101 | P100: 0.04495166095
B101: 3 | C101: S&W:FORGN ALL OFF:DIFPOST(DPACA) | D101: S&W:NON-RES ITEMS | E101: 0.052 | F101: 0.04729988696 | G101: 0.04615771101 | H101: 0.04495166095 | I101: 0 | J101: 0 | K101: 0 | L101: 0 | M101: 0.052 | N101: 0.04729988696 | O101: 0.04615771101 | P101: 0.04495166095
B102: 3 | C102: S&W:FORGN ALL OFF:RENT,GAS&ELE | D102: S&W:NON-RES ITEMS | E102: 0.052 | F102: 0.04729988696 | G102: 0.04615771101 | H102: 0.04495166095 | I102: 0 | J102: 0 | K102: 0 | L102: 0 | M102: 0.052 | N102: 0.04729988696 | O102: 0.04615771101 | P102: 0.04495166095
B103: 3 | C103: EMPL CONTR:MEDICAL LRP (N-RES) | D103: S&W:NON-RES ITEMS | E103: 0.052 | F103: 0.04729988696 | G103: 0.04615771101 | H103: 0.04495166095 | I103: 0 | J103: 0 | K103: 0 | L103: 0 | M103: 0.052 | N103: 0.04729988696 | O103: 0.04615771101 | P103: 0.04495166095
B104: 3 | C104: EMPL CONTR:PENSION LRP (N-RES) | D104: S&W:NON-RES ITEMS | E104: 0.052 | F104: 0.04729988696 | G104: 0.04615771101 | H104: 0.04495166095 | I104: -0.019 | J104: 0 | K104: 0 | L104: 0 | M104: 0.033 | N104: 0.04729988696 | O104: 0.04615771101 | P104: 0.04495166095 | R104: 0.015 | S104: 0.015 | T104: 0.015 | U104: 0.015 | V104: 0.02 | W104: 0.02 | X104: 0.02 | Y104: 0.02
B105: 3 | C105: EMPL CONTR:SOC CON OT LRP(N-RES) | D105: S&W:NON-RES ITEMS | E105: 0.052 | F105: 0.04729988696 | G105: 0.04615771101 | H105: 0.04495166095 | I105: 0 | J105: 0 | K105: 0 | L105: 0 | M105: 0.052 | N105: 0.04729988696 | O105: 0.04615771101 | P105: 0.04495166095 | R105: 0.015 | S105: 0.015 | T105: 0.015 | U105: 0.015 | V105: 0.02 | W105: 0.02 | X105: 0.02 | Y105: 0.02
B106: 3 | C106: SAL:GEHS REFUND CONTROL ACC:CL | D106: SAL:GEHS REFUND CONTROL ACC:CL | E106: 0.052 | F106: 0.04729988696 | G106: 0.04615771101 | H106: 0.04495166095 | I106: 0 | J106: 0 | K106: 0 | L106: 0 | M106: 0.052 | N106: 0.04729988696 | O106: 0.04615771101 | P106: 0.04495166095
B107: 4 | C107: EMPL CONTR:BARGAIN COUNCIL(RES) | D107: EMPL CONTR:BARGAIN COUNCIL(RES) | E107: 0.052 | F107: 0.04729988696 | G107: 0.04615771101 | H107: 0.04495166095 | I107: 0 | J107: 0 | K107: 0 | L107: 0 | M107: =E107+I107 -> 0.052 | N107: =F107+J107 -> 0.04729988696 | O107: =G107+K107 -> 0.04615771101 | P107: =H107+L107 -> 0.04495166095
B108: =B107 -> 4 | C108: EMPL CONTR:MEDICAL (RES) | D108: EMPL CONTR:MEDICAL (RES) | E108: 0.052 | F108: 0.04729988696 | G108: 0.04615771101 | H108: 0.04495166095 | I108: 0 | J108: 0 | K108: 0 | L108: 0 | M108: 0.052 | N108: 0.04729988696 | O108: 0.04615771101 | P108: 0.04495166095
B109: =B108 -> 4 | C109: EMPL CONTR:OFF UNIONS&ASS(RES) | D109: EMPL CONTR:OFF UNIONS&ASS(RES) | E109: 0.052 | F109: 0.04729988696 | G109: 0.04615771101 | H109: 0.04495166095 | I109: 0 | J109: 0 | K109: 0 | L109: 0 | M109: 0.052 | N109: 0.04729988696 | O109: 0.04615771101 | P109: 0.04495166095
B110: =B109 -> 4 | C110: EMPL CONTR:PENSION (RES) | D110: EMPL CONTR:PENSION (RES) | E110: 0.052 | F110: 0.04729988696 | G110: 0.04615771101 | H110: 0.04495166095 | I110: -0.019 | J110: 0 | K110: 0 | L110: 0 | M110: 0.033 | N110: 0.04729988696 | O110: 0.04615771101 | P110: 0.04495166095 | R110: 0.015 | S110: 0.015 | T110: 0.015 | U110: 0.015 | V110: 0.02 | W110: 0.02 | X110: 0.02 | Y110: 0.02
B111: =B110 -> 4 | C111: EMPL CONTR:UIF (RES) | D111: EMPL CONTR:UIF (RES) | E111: 0.052 | F111: 0.04729988696 | G111: 0.04615771101 | H111: 0.04495166095 | I111: 0 | J111: 0 | K111: 0 | L111: 0 | M111: 0.052 | N111: 0.04729988696 | O111: 0.04615771101 | P111: 0.04495166095
B112: =B111 -> 4 | C112: EMPL CONTR:INSURANCE (RES) | D112: EMPL CONTR:INSURANCE (RES) | E112: 0.052 | F112: 0.04729988696 | G112: 0.04615771101 | H112: 0.04495166095 | I112: 0 | J112: 0 | K112: 0 | L112: 0 | M112: 0.052 | N112: 0.04729988696 | O112: 0.04615771101 | P112: 0.04495166095
B113: =B111 -> 4 | C113: S&W: PERIODIC PAYMENTS OTH (RES) | D113: S&W: PERIODIC PAYMENTS OTH (RES) | E113: 0.052 | F113: 0.04729988696 | G113: 0.04615771101 | H113: 0.04495166095 | I113: 0 | J113: 0 | K113: 0 | L113: 0 | M113: 0.052 | N113: 0.04729988696 | O113: 0.04615771101 | P113: 0.04495166095 | R113: 0.015 | S113: 0.015 | T113: 0.015 | U113: 0.015 | V113: 0.02 | W113: 0.02 | X113: 0.02 | Y113: 0.02
B114: =B113 -> 4 | C114: S&W:BASIC SALARY (RES) | D114: S&W:BASIC SALARY (RES) | E114: 0.052 | F114: 0.04729988696 | G114: 0.04615771101 | H114: 0.04495166095 | I114: -0.019 | J114: 0 | K114: 0 | L114: 0 | M114: 0.033 | N114: 0.04729988696 | O114: 0.04615771101 | P114: 0.04495166095 | R114: 0.015 | S114: 0.015 | T114: 0.015 | U114: 0.015 | V114: 0.02 | W114: 0.02 | X114: 0.02 | Y114: 0.02
B115: 4 | C115: S&W:CAPITAL REMUNERATION (RES) | D115: S&W:CAPITAL REMUNERATION (RES) | E115: 0.052 | F115: 0.04729988696 | G115: 0.04615771101 | H115: 0.04495166095 | I115: 0 | J115: 0 | K115: 0 | L115: 0 | M115: 0.052 | N115: 0.04729988696 | O115: 0.04615771101 | P115: 0.04495166095 | R115: 0.015 | S115: 0.015 | T115: 0.015 | U115: 0.015 | V115: 0.02 | W115: 0.02 | X115: 0.02 | Y115: 0.02
B116: 4 | C116: S&W:CMPNS/CIRCM (RES) | D116: S&W:CMPNS/CIRCM (RES) | E116: 0.052 | F116: 0.04729988696 | G116: 0.04615771101 | H116: =H$6 -> 0.04495166095 | I116: 0 | J116: 0 | K116: 0 | L116: 0 | M116: 0.052 | N116: 0.04729988696 | O116: 0.04615771101 | P116: 0.04495166095 | R116: 0.015 | S116: 0.015 | T116: 0.015 | U116: 0.015 | V116: 0.02 | W116: 0.02 | X116: 0.02 | Y116: 0.02
B117: 4 | C117: S&W:HOUSING ALLOWANCE (RES) | D117: S&W:HOUSING ALLOWANCE (RES) | E117: =E$6 -> 0.052 | F117: 0.04729988696 | G117: 0.04615771101 | H117: 0.04495166095 | I117: 0 | J117: 0 | K117: 0 | L117: 0 | M117: 0.052 | N117: 0.04729988696 | O117: 0.04615771101 | P117: 0.04495166095
B118: 4 | C118: S&W:LEAVE DISCOUNTING (RES) | D118: S&W:LEAVE DISCOUNTING (RES) | E118: 0.052 | F118: 0.04729988696 | G118: 0.04615771101 | H118: 0.04495166095 | I118: 0 | J118: 0 | K118: 0 | L118: 0 | M118: 0.052 | N118: 0.04729988696 | O118: 0.04615771101 | P118: 0.04495166095 | R118: 0.015 | S118: 0.015 | T118: 0.015 | U118: 0.015 | V118: 0.02 | W118: 0.02 | X118: 0.02 | Y118: 0.02
B119: 4 | C119: S&W:LNRSP18.2/INTRN(RES) | D119: S&W:LNRSP18.2/INTRN(RES) | E119: 0.052 | F119: 0.04729988696 | G119: 0.04615771101 | H119: 0.04495166095 | I119: 0 | J119: 0 | K119: 0 | L119: 0 | M119: 0.052 | N119: 0.04729988696 | O119: 0.04615771101 | P119: 0.04495166095
B120: 4 | C120: S&W:NON PENSIONABLE ALL OTH(RES | D120: S&W:NON PENSIONABLE ALL OTH(RES | E120: 0.052 | F120: 0.04729988696 | G120: 0.04615771101 | H120: 0.04495166095 | I120: 0 | J120: 0 | K120: 0 | L120: 0 | M120: 0.052 | N120: 0.04729988696 | O120: 0.04615771101 | P120: 0.04495166095 | R120: 0.015 | S120: 0.015 | T120: 0.015 | U120: 0.015 | V120: 0.02 | W120: 0.02 | X120: 0.02 | Y120: 0.02
B121: 4 | C121: S&W:OVERTIME (RES) | D121: S&W:OVERTIME (RES) | E121: 0.052 | F121: 0.04729988696 | G121: 0.04615771101 | H121: 0.04495166095 | I121: 0 | J121: 0 | K121: 0 | L121: 0 | M121: 0.052 | N121: 0.04729988696 | O121: 0.04615771101 | P121: 0.04495166095 | R121: 0.015 | S121: 0.015 | T121: 0.015 | U121: 0.015 | V121: 0.02 | W121: 0.02 | X121: 0.02 | Y121: 0.02
B122: 4 | C122: S&W:PERF AWARD OTHER (RES) | D122: S&W:PERF AWARD OTHER (RES) | E122: 0.052 | F122: 0.04729988696 | G122: 0.04615771101 | H122: 0.04495166095 | I122: 0 | J122: 0 | K122: 0 | L122: 0 | M122: 0.052 | N122: 0.04729988696 | O122: 0.04615771101 | P122: 0.04495166095
B123: 4 | C123: S&W:PERFORMANCE BONUS (RES) | D123: S&W:PERFORMANCE BONUS (RES) | E123: 0.052 | F123: 0.04729988696 | G123: 0.04615771101 | H123: 0.04495166095 | I123: 0 | J123: 0 | K123: 0 | L123: 0 | M123: 0.052 | N123: 0.04729988696 | O123: 0.04615771101 | P123: 0.04495166095 | R123: 0.015 | S123: 0.015 | T123: 0.015 | U123: 0.015 | V123: 0.02 | W123: 0.02 | X123: 0.02 | Y123: 0.02
B124: 4 | C124: S&W:SERV BASED OTHER (RES) | D124: S&W:SERV BASED OTHER (RES) | E124: 0.052 | F124: 0.04729988696 | G124: 0.04615771101 | H124: 0.04495166095 | I124: 0 | J124: 0 | K124: 0 | L124: 0 | M124: 0.052 | N124: 0.04729988696 | O124: 0.04615771101 | P124: 0.04495166095 | R124: 0.015 | S124: 0.015 | T124: 0.015 | U124: 0.015 | V124: 0.02 | W124: 0.02 | X124: 0.02 | Y124: 0.02
B125: 4 | C125: S&W:SERVICE BONUS (RES) | D125: S&W:SERVICE BONUS (RES) | E125: 0.052 | F125: 0.04729988696 | G125: 0.04615771101 | H125: 0.04495166095 | I125: -0.019 | J125: 0 | K125: 0 | L125: 0 | M125: 0.033 | N125: 0.04729988696 | O125: 0.04615771101 | P125: 0.04495166095 | R125: 0.015 | S125: 0.015 | T125: 0.015 | U125: 0.015 | V125: 0.02 | W125: 0.02 | X125: 0.02 | Y125: 0.02
... 156 more rows

Sheet Results
A1: Filter | C1: HUMAN RESOURCE BUDGET PLAN | J1: 1 | K1: 1
A2: 1
A3: 1 | C3: Financial Year: | D3: =FY0 -> 2023/24
A4: 1 | C4: Sphere of Government: | D4: National
A5: 1 | C5: Name of Department: | D5: Vote 01: The Presidency
A6: 1 | C6: Name of Compiling Officer:
A7: 1 | C7: Contact No. of Compiling Officer:
A8: 1
A9: 1
A10: 1 | C10: Strategies to Reduce Headcounts
A11: 1
A12: 1 | C12: Indicators | D12: =FY0 -> 2023/24 | E12: =MTEF1 -> 2024/25 | F12: =MTEF2 -> 2025/26 | G12: =MTEF3 -> 2026/27
A13: 1 | C13: 1. Employee initiated severance package
A14: 1 | C14: 2. Early retirement
A15: 1 | C15: 3. Natural attrition
A16: 1 | C16: 4. Retirement
A17: 1 | C17: 5. Contract termination
A18: 1 | C18: 6. Redeployments (transfers to other departments)
A19: 1 | C19: Total | D19: =SUM(D13:D18) -> 0 | E19: =SUM(E13:E18) -> 0 | F19: 0 | G19: 0
A20: 1 | C20: Checks | D20: =ROUND(D19-N50,0) -> 0 | E20: =ROUND(E19-W50,0) -> 0 | F20: =ROUND(F19-AF50,0) -> 0 | G20: =ROUND(G19-AO50,0) -> 0
A21: 1
A22: 1 | C22: Department Summary Details
A23: 1
A24: 1 | D24: Establishment Structure | F24: Previous Financial Year | J24: Medium-term expenditure estimates
A25: 1 | D25: As at 31 March 2023 | F25: =LEFT($D$3,4)-1 & "/" & RIGHT($D$3,2)-1 -> 2022/23 | O25: =FY0 -> 2023/24 | X25: =MTEF1 -> 2024/25 | AG25: =MTEF2 -> 2025/26 | AP25: =MTEF3 -> 2026/27
A26: 1 | C26: Programmes | D26: Total number of funded posts | E26: of which: number of funded posts additional to the establishment | F26: FTE Headcount | G26: Unit Costs | H26: of which: Once-off Payments per person | I26: Total Annual Cost | J26: Initial Headcount | K26: Unit Costs | L26: of which: Once-off Payments per person | M26: Vacant funded posts to be filled | N26: Headcount reductions to be made | O26: Revised Headcount | P26: Cost of vacant posts to be filled | Q26: Savings from headcount reductions | R26: Projected Annual Cost | S26: Initial Headcount | T26: Unit Costs | U26: of which: Once-off Payments per person | V26: Vacant funded posts to be filled | W26: Headcount reductions to be made | X26: Revised Headcount | Y26: Cost of vacant posts to be filled | Z26: Savings from headcount reductions | AA26: Projected Annual Cost | AB26: Initial Headcount | AC26: Unit Costs | AD26: of which: Once-off Payments per person | AE26: Vacant funded posts to be filled | AF26: Headcount reductions to be made | AG26: Revised Headcount | AH26: Cost of vacant posts to be filled | AI26: Savings from headcount reductions | AJ26: Projected Annual Cost | AK26: Initial Headcount | AL26: Unit Costs | AM26: of which: Once-off Payments per person | AN26: Vacant funded posts to be filled | AO26: Headcount reductions to be made | AP26: Revised Headcount | AQ26: Cost of vacant posts to be filled | AR26: Savings from headcount reductions | AS26: Projected Annual Cost
A27: 1 | B27: =IF(LEN(C27)>2,ROW()-26,"") -> 1 | C27: Unit 1 | D27: =IF($C27="",0,OFFSET($C55,MATCH($C27,$C$55:$C$514,0)+24-SUM($A$27:$A27),COLUMN(D$1)-3)) -> 0 | E27: =IF($C27="",0,OFFSET($C55,MATCH($C27,$C$55:$C$514,0)+24-SUM($A$27:$A27),COLUMN(E$1)-3)) -> 0 | F27: =IF($C27="",0,OFFSET($C55,MATCH($C27,$C$55:$C$514,0)+24-SUM($A$27:$A27),COLUMN(F$1)-3)) -> 0 | G27: =IF($C27="",0,OFFSET($C55,MATCH($C27,$C$55:$C$514,0)+24-SUM($A$27:$A27),COLUMN(G$1)-3)) -> 0 | H27: =IF($C27="",0,OFFSET($C55,MATCH($C27,$C$55:$C$514,0)+24-SUM($A$27:$A27),COLUMN(H$1)-3)) -> 0 | I27: =IF($C27="",0,OFFSET($C55,MATCH($C27,$C$55:$C$514,0)+24-SUM($A$27:$A27),COLUMN(I$1)-3)) -> 0 | J27: =IF($C27="",0,OFFSET($C55,MATCH($C27,$C$55:$C$514,0)+24-SUM($A$27:$A27),COLUMN(J$1)-3)) -> 0 | K27: =IF($C27="",0,OFFSET($C55,MATCH($C27,$C$55:$C$514,0)+24-SUM($A$27:$A27),COLUMN(K$1)-3)) -> 0 | L27: =IF($C27="",0,OFFSET($C55,MATCH($C27,$C$55:$C$514,0)+24-SUM($A$27:$A27),COLUMN(L$1)-3)) -> 0 | M27: =IF($C27="",0,OFFSET($C55,MATCH($C27,$C$55:$C$514,0)+24-SUM($A$27:$A27),COLUMN(M$1)-3)) -> 0 | N27: =IF($C27="",0,OFFSET($C55,MATCH($C27,$C$55:$C$514,0)+24-SUM($A$27:$A27),COLUMN(N$1)-3)) -> 0 | O27: =J27+M27-N27 -> 0 | P27: =IF($C27="",0,OFFSET($C55,MATCH($C27,$C$55:$C$514,0)+24-SUM($A$27:$A27),COLUMN(P$1)-3)) -> 0 | Q27: =IF($C27="",0,OFFSET($C55,MATCH($C27,$C$55:$C$514,0)+24-SUM($A$27:$A27),COLUMN(Q$1)-3)) -> 0 | R27: =IF($C27="",0,OFFSET($C55,MATCH($C27,$C$55:$C$514,0)+24-SUM($A$27:$A27),COLUMN(R$1)-3)) -> 0 | S27: =IF($C27="",0,OFFSET($C55,MATCH($C27,$C$55:$C$514,0)+24-SUM($A$27:$A27),COLUMN(S$1)-3)) -> 0 | T27: =IF($C27="",0,OFFSET($C55,MATCH($C27,$C$55:$C$514,0)+24-SUM($A$27:$A27),COLUMN(T$1)-3)) -> 0 | U27: =IF($C27="",0,OFFSET($C55,MATCH($C27,$C$55:$C$514,0)+24-SUM($A$27:$A27),COLUMN(U$1)-3)) -> 0 | V27: =IF($C27="",0,OFFSET($C55,MATCH($C27,$C$55:$C$514,0)+24-SUM($A$27:$A27),COLUMN(V$1)-3)) -> 0 | W27: =IF($C27="",0,OFFSET($C55,MATCH($C27,$C$55:$C$514,0)+24-SUM($A$27:$A27),COLUMN(W$1)-3)) -> 0 | X27: =S27+V27-W27 -> 0 | Y27: =IF($C27="",0,OFFSET($C55,MATCH($C27,$C$55:$C$514,0)+24-SUM($A$27:$A27),COLUMN(Y$1)-3)) -> 0 | Z27: =IF($C27="",0,OFFSET($C55,MATCH($C27,$C$55:$C$514,0)+24-SUM($A$27:$A27),COLUMN(Z$1)-3)) -> 0 | AA27: =IF($C27="",0,OFFSET($C55,MATCH($C27,$C$55:$C$514,0)+24-SUM($A$27:$A27),COLUMN(AA$1)-3)) -> 0 | AB27: =IF($C27="",0,OFFSET($C55,MATCH($C27,$C$55:$C$514,0)+24-SUM($A$27:$A27),COLUMN(AB$1)-3)) -> 0 | AC27: =IF($C27="",0,OFFSET($C55,MATCH($C27,$C$55:$C$514,0)+24-SUM($A$27:$A27),COLUMN(AC$1)-3)) -> 0 | AD27: =IF($C27="",0,OFFSET($C55,MATCH($C27,$C$55:$C$514,0)+24-SUM($A$27:$A27),COLUMN(AD$1)-3)) -> 0 | AE27: =IF($C27="",0,OFFSET($C55,MATCH($C27,$C$55:$C$514,0)+24-SUM($A$27:$A27),COLUMN(AE$1)-3)) -> 0 | AF27: =IF($C27="",0,OFFSET($C55,MATCH($C27,$C$55:$C$514,0)+24-SUM($A$27:$A27),COLUMN(AF$1)-3)) -> 0 | AG27: =AB27+AE27-AF27 -> 0 | AH27: =IF($C27="",0,OFFSET($C55,MATCH($C27,$C$55:$C$514,0)+24-SUM($A$27:$A27),COLUMN(AH$1)-3)) -> 0 | AI27: =IF($C27="",0,OFFSET($C55,MATCH($C27,$C$55:$C$514,0)+24-SUM($A$27:$A27),COLUMN(AI$1)-3)) -> 0 | AJ27: =IF($C27="",0,OFFSET($C55,MATCH($C27,$C$55:$C$514,0)+24-SUM($A$27:$A27),COLUMN(AJ$1)-3)) -> 0 | AK27: =IF($C27="",0,OFFSET($C55,MATCH($C27,$C$55:$C$514,0)+24-SUM($A$27:$A27),COLUMN(AK$1)-3)) -> 0 | AL27: =IF($C27="",0,OFFSET($C55,MATCH($C27,$C$55:$C$514,0)+24-SUM($A$27:$A27),COLUMN(AL$1)-3)) -> 0 | AM27: =IF($C27="",0,OFFSET($C55,MATCH($C27,$C$55:$C$514,0)+24-SUM($A$27:$A27),COLUMN(AM$1)-3)) -> 0 | AN27: =IF($C27="",0,OFFSET($C55,MATCH($C27,$C$55:$C$514,0)+24-SUM($A$27:$A27),COLUMN(AN$1)-3)) -> 0 | AO27: =IF($C27="",0,OFFSET($C55,MATCH($C27,$C$55:$C$514,0)+24-SUM($A$27:$A27),COLUMN(AO$1)-3)) -> 0 | AP27: =AK27+AN27-AO27 -> 0 | AQ27: =IF($C27="",0,OFFSET($C55,MATCH($C27,$C$55:$C$514,0)+24-SUM($A$27:$A27),COLUMN(AQ$1)-3)) -> 0 | AR27: =IF($C27="",0,OFFSET($C55,MATCH($C27,$C$55:$C$514,0)+24-SUM($A$27:$A27),COLUMN(AR$1)-3)) -> 0 | AS27: =IF($C27="",0,OFFSET($C55,MATCH($C27,$C$55:$C$514,0)+24-SUM($A$27:$A27),COLUMN(AS$1)-3)) -> 0
A28: =IF(LEN(C28)>1,1,0) -> 0 | B28: =IF(LEN(C28)>2,ROW()-26,"") ->  | D28: =IF($C28="",0,OFFSET($C56,MATCH($C28,$C$55:$C$514,0)+24-SUM($A$27:$A28),COLUMN(D$1)-3)) -> 0 | E28: =IF($C28="",0,OFFSET($C56,MATCH($C28,$C$55:$C$514,0)+24-SUM($A$27:$A28),COLUMN(E$1)-3)) -> 0 | F28: =IF($C28="",0,OFFSET($C56,MATCH($C28,$C$55:$C$514,0)+24-SUM($A$27:$A28),COLUMN(F$1)-3)) -> 0 | G28: =IF($C28="",0,OFFSET($C56,MATCH($C28,$C$55:$C$514,0)+24-SUM($A$27:$A28),COLUMN(G$1)-3)) -> 0 | H28: =IF($C28="",0,OFFSET($C56,MATCH($C28,$C$55:$C$514,0)+24-SUM($A$27:$A28),COLUMN(H$1)-3)) -> 0 | I28: =IF($C28="",0,OFFSET($C56,MATCH($C28,$C$55:$C$514,0)+24-SUM($A$27:$A28),COLUMN(I$1)-3)) -> 0 | J28: =IF($C28="",0,OFFSET($C56,MATCH($C28,$C$55:$C$514,0)+24-SUM($A$27:$A28),COLUMN(J$1)-3)) -> 0 | K28: =IF($C28="",0,OFFSET($C56,MATCH($C28,$C$55:$C$514,0)+24-SUM($A$27:$A28),COLUMN(K$1)-3)) -> 0 | L28: =IF($C28="",0,OFFSET($C56,MATCH($C28,$C$55:$C$514,0)+24-SUM($A$27:$A28),COLUMN(L$1)-3)) -> 0 | M28: =IF($C28="",0,OFFSET($C56,MATCH($C28,$C$55:$C$514,0)+24-SUM($A$27:$A28),COLUMN(M$1)-3)) -> 0 | N28: =IF($C28="",0,OFFSET($C56,MATCH($C28,$C$55:$C$514,0)+24-SUM($A$27:$A28),COLUMN(N$1)-3)) -> 0 | O28: =J28+M28-N28 -> 0 | P28: =IF($C28="",0,OFFSET($C56,MATCH($C28,$C$55:$C$514,0)+24-SUM($A$27:$A28),COLUMN(P$1)-3)) -> 0 | Q28: =IF($C28="",0,OFFSET($C56,MATCH($C28,$C$55:$C$514,0)+24-SUM($A$27:$A28),COLUMN(Q$1)-3)) -> 0 | R28: =IF($C28="",0,OFFSET($C56,MATCH($C28,$C$55:$C$514,0)+24-SUM($A$27:$A28),COLUMN(R$1)-3)) -> 0 | S28: =IF($C28="",0,OFFSET($C56,MATCH($C28,$C$55:$C$514,0)+24-SUM($A$27:$A28),COLUMN(S$1)-3)) -> 0 | T28: =IF($C28="",0,OFFSET($C56,MATCH($C28,$C$55:$C$514,0)+24-SUM($A$27:$A28),COLUMN(T$1)-3)) -> 0 | U28: =IF($C28="",0,OFFSET($C56,MATCH($C28,$C$55:$C$514,0)+24-SUM($A$27:$A28),COLUMN(U$1)-3)) -> 0 | V28: =IF($C28="",0,OFFSET($C56,MATCH($C28,$C$55:$C$514,0)+24-SUM($A$27:$A28),COLUMN(V$1)-3)) -> 0 | W28: =IF($C28="",0,OFFSET($C56,MATCH($C28,$C$55:$C$514,0)+24-SUM($A$27:$A28),COLUMN(W$1)-3)) -> 0 | X28: =S28+V28-W28 -> 0 | Y28: =IF($C28="",0,OFFSET($C56,MATCH($C28,$C$55:$C$514,0)+24-SUM($A$27:$A28),COLUMN(Y$1)-3)) -> 0 | Z28: =IF($C28="",0,OFFSET($C56,MATCH($C28,$C$55:$C$514,0)+24-SUM($A$27:$A28),COLUMN(Z$1)-3)) -> 0 | AA28: =IF($C28="",0,OFFSET($C56,MATCH($C28,$C$55:$C$514,0)+24-SUM($A$27:$A28),COLUMN(AA$1)-3)) -> 0 | AB28: =IF($C28="",0,OFFSET($C56,MATCH($C28,$C$55:$C$514,0)+24-SUM($A$27:$A28),COLUMN(AB$1)-3)) -> 0 | AC28: =IF($C28="",0,OFFSET($C56,MATCH($C28,$C$55:$C$514,0)+24-SUM($A$27:$A28),COLUMN(AC$1)-3)) -> 0 | AD28: =IF($C28="",0,OFFSET($C56,MATCH($C28,$C$55:$C$514,0)+24-SUM($A$27:$A28),COLUMN(AD$1)-3)) -> 0 | AE28: =IF($C28="",0,OFFSET($C56,MATCH($C28,$C$55:$C$514,0)+24-SUM($A$27:$A28),COLUMN(AE$1)-3)) -> 0 | AF28: =IF($C28="",0,OFFSET($C56,MATCH($C28,$C$55:$C$514,0)+24-SUM($A$27:$A28),COLUMN(AF$1)-3)) -> 0 | AG28: =AB28+AE28-AF28 -> 0 | AH28: =IF($C28="",0,OFFSET($C56,MATCH($C28,$C$55:$C$514,0)+24-SUM($A$27:$A28),COLUMN(AH$1)-3)) -> 0 | AI28: =IF($C28="",0,OFFSET($C56,MATCH($C28,$C$55:$C$514,0)+24-SUM($A$27:$A28),COLUMN(AI$1)-3)) -> 0 | AJ28: =IF($C28="",0,OFFSET($C56,MATCH($C28,$C$55:$C$514,0)+24-SUM($A$27:$A28),COLUMN(AJ$1)-3)) -> 0 | AK28: =IF($C28="",0,OFFSET($C56,MATCH($C28,$C$55:$C$514,0)+24-SUM($A$27:$A28),COLUMN(AK$1)-3)) -> 0 | AL28: =IF($C28="",0,OFFSET($C56,MATCH($C28,$C$55:$C$514,0)+24-SUM($A$27:$A28),COLUMN(AL$1)-3)) -> 0 | AM28: =IF($C28="",0,OFFSET($C56,MATCH($C28,$C$55:$C$514,0)+24-SUM($A$27:$A28),COLUMN(AM$1)-3)) -> 0 | AN28: =IF($C28="",0,OFFSET($C56,MATCH($C28,$C$55:$C$514,0)+24-SUM($A$27:$A28),COLUMN(AN$1)-3)) -> 0 | AO28: =IF($C28="",0,OFFSET($C56,MATCH($C28,$C$55:$C$514,0)+24-SUM($A$27:$A28),COLUMN(AO$1)-3)) -> 0 | AP28: =AK28+AN28-AO28 -> 0 | AQ28: =IF($C28="",0,OFFSET($C56,MATCH($C28,$C$55:$C$514,0)+24-SUM($A$27:$A28),COLUMN(AQ$1)-3)) -> 0 | AR28: =IF($C28="",0,OFFSET($C56,MATCH($C28,$C$55:$C$514,0)+24-SUM($A$27:$A28),COLUMN(AR$1)-3)) -> 0 | AS28: =IF($C28="",0,OFFSET($C56,MATCH($C28,$C$55:$C$514,0)+24-SUM($A$27:$A28),COLUMN(AS$1)-3)) -> 0
A29: 0 | D29: =IF($C29="",0,OFFSET($C57,MATCH($C29,$C$55:$C$514,0)+24-SUM($A$27:$A29),COLUMN(D$1)-3)) -> 0 | E29: =IF($C29="",0,OFFSET($C57,MATCH($C29,$C$55:$C$514,0)+24-SUM($A$27:$A29),COLUMN(E$1)-3)) -> 0 | F29: =IF($C29="",0,OFFSET($C57,MATCH($C29,$C$55:$C$514,0)+24-SUM($A$27:$A29),COLUMN(F$1)-3)) -> 0 | G29: =IF($C29="",0,OFFSET($C57,MATCH($C29,$C$55:$C$514,0)+24-SUM($A$27:$A29),COLUMN(G$1)-3)) -> 0 | H29: =IF($C29="",0,OFFSET($C57,MATCH($C29,$C$55:$C$514,0)+24-SUM($A$27:$A29),COLUMN(H$1)-3)) -> 0 | I29: =IF($C29="",0,OFFSET($C57,MATCH($C29,$C$55:$C$514,0)+24-SUM($A$27:$A29),COLUMN(I$1)-3)) -> 0 | J29: =IF($C29="",0,OFFSET($C57,MATCH($C29,$C$55:$C$514,0)+24-SUM($A$27:$A29),COLUMN(J$1)-3)) -> 0 | K29: =IF($C29="",0,OFFSET($C57,MATCH($C29,$C$55:$C$514,0)+24-SUM($A$27:$A29),COLUMN(K$1)-3)) -> 0 | L29: =IF($C29="",0,OFFSET($C57,MATCH($C29,$C$55:$C$514,0)+24-SUM($A$27:$A29),COLUMN(L$1)-3)) -> 0 | M29: =IF($C29="",0,OFFSET($C57,MATCH($C29,$C$55:$C$514,0)+24-SUM($A$27:$A29),COLUMN(M$1)-3)) -> 0 | N29: =IF($C29="",0,OFFSET($C57,MATCH($C29,$C$55:$C$514,0)+24-SUM($A$27:$A29),COLUMN(N$1)-3)) -> 0 | O29: 0 | P29: =IF($C29="",0,OFFSET($C57,MATCH($C29,$C$55:$C$514,0)+24-SUM($A$27:$A29),COLUMN(P$1)-3)) -> 0 | Q29: =IF($C29="",0,OFFSET($C57,MATCH($C29,$C$55:$C$514,0)+24-SUM($A$27:$A29),COLUMN(Q$1)-3)) -> 0 | R29: =IF($C29="",0,OFFSET($C57,MATCH($C29,$C$55:$C$514,0)+24-SUM($A$27:$A29),COLUMN(R$1)-3)) -> 0 | S29: =IF($C29="",0,OFFSET($C57,MATCH($C29,$C$55:$C$514,0)+24-SUM($A$27:$A29),COLUMN(S$1)-3)) -> 0 | T29: =IF($C29="",0,OFFSET($C57,MATCH($C29,$C$55:$C$514,0)+24-SUM($A$27:$A29),COLUMN(T$1)-3)) -> 0 | U29: =IF($C29="",0,OFFSET($C57,MATCH($C29,$C$55:$C$514,0)+24-SUM($A$27:$A29),COLUMN(U$1)-3)) -> 0 | V29: =IF($C29="",0,OFFSET($C57,MATCH($C29,$C$55:$C$514,0)+24-SUM($A$27:$A29),COLUMN(V$1)-3)) -> 0 | W29: =IF($C29="",0,OFFSET($C57,MATCH($C29,$C$55:$C$514,0)+24-SUM($A$27:$A29),COLUMN(W$1)-3)) -> 0 | X29: 0 | Y29: =IF($C29="",0,OFFSET($C57,MATCH($C29,$C$55:$C$514,0)+24-SUM($A$27:$A29),COLUMN(Y$1)-3)) -> 0 | Z29: =IF($C29="",0,OFFSET($C57,MATCH($C29,$C$55:$C$514,0)+24-SUM($A$27:$A29),COLUMN(Z$1)-3)) -> 0 | AA29: =IF($C29="",0,OFFSET($C57,MATCH($C29,$C$55:$C$514,0)+24-SUM($A$27:$A29),COLUMN(AA$1)-3)) -> 0 | AB29: =IF($C29="",0,OFFSET($C57,MATCH($C29,$C$55:$C$514,0)+24-SUM($A$27:$A29),COLUMN(AB$1)-3)) -> 0 | AC29: =IF($C29="",0,OFFSET($C57,MATCH($C29,$C$55:$C$514,0)+24-SUM($A$27:$A29),COLUMN(AC$1)-3)) -> 0 | AD29: =IF($C29="",0,OFFSET($C57,MATCH($C29,$C$55:$C$514,0)+24-SUM($A$27:$A29),COLUMN(AD$1)-3)) -> 0 | AE29: =IF($C29="",0,OFFSET($C57,MATCH($C29,$C$55:$C$514,0)+24-SUM($A$27:$A29),COLUMN(AE$1)-3)) -> 0 | AF29: =IF($C29="",0,OFFSET($C57,MATCH($C29,$C$55:$C$514,0)+24-SUM($A$27:$A29),COLUMN(AF$1)-3)) -> 0 | AG29: 0 | AH29: =IF($C29="",0,OFFSET($C57,MATCH($C29,$C$55:$C$514,0)+24-SUM($A$27:$A29),COLUMN(AH$1)-3)) -> 0 | AI29: =IF($C29="",0,OFFSET($C57,MATCH($C29,$C$55:$C$514,0)+24-SUM($A$27:$A29),COLUMN(AI$1)-3)) -> 0 | AJ29: =IF($C29="",0,OFFSET($C57,MATCH($C29,$C$55:$C$514,0)+24-SUM($A$27:$A29),COLUMN(AJ$1)-3)) -> 0 | AK29: =IF($C29="",0,OFFSET($C57,MATCH($C29,$C$55:$C$514,0)+24-SUM($A$27:$A29),COLUMN(AK$1)-3)) -> 0 | AL29: =IF($C29="",0,OFFSET($C57,MATCH($C29,$C$55:$C$514,0)+24-SUM($A$27:$A29),COLUMN(AL$1)-3)) -> 0 | AM29: =IF($C29="",0,OFFSET($C57,MATCH($C29,$C$55:$C$514,0)+24-SUM($A$27:$A29),COLUMN(AM$1)-3)) -> 0 | AN29: =IF($C29="",0,OFFSET($C57,MATCH($C29,$C$55:$C$514,0)+24-SUM($A$27:$A29),COLUMN(AN$1)-3)) -> 0 | AO29: =IF($C29="",0,OFFSET($C57,MATCH($C29,$C$55:$C$514,0)+24-SUM($A$27:$A29),COLUMN(AO$1)-3)) -> 0 | AP29: 0 | AQ29: =IF($C29="",0,OFFSET($C57,MATCH($C29,$C$55:$C$514,0)+24-SUM($A$27:$A29),COLUMN(AQ$1)-3)) -> 0 | AR29: =IF($C29="",0,OFFSET($C57,MATCH($C29,$C$55:$C$514,0)+24-SUM($A$27:$A29),COLUMN(AR$1)-3)) -> 0 | AS29: =IF($C29="",0,OFFSET($C57,MATCH($C29,$C$55:$C$514,0)+24-SUM($A$27:$A29),COLUMN(AS$1)-3)) -> 0
A30: 0 | D30: =IF($C30="",0,OFFSET($C58,MATCH($C30,$C$55:$C$514,0)+24-SUM($A$27:$A30),COLUMN(D$1)-3)) -> 0 | E30: =IF($C30="",0,OFFSET($C58,MATCH($C30,$C$55:$C$514,0)+24-SUM($A$27:$A30),COLUMN(E$1)-3)) -> 0 | F30: =IF($C30="",0,OFFSET($C58,MATCH($C30,$C$55:$C$514,0)+24-SUM($A$27:$A30),COLUMN(F$1)-3)) -> 0 | G30: =IF($C30="",0,OFFSET($C58,MATCH($C30,$C$55:$C$514,0)+24-SUM($A$27:$A30),COLUMN(G$1)-3)) -> 0 | H30: =IF($C30="",0,OFFSET($C58,MATCH($C30,$C$55:$C$514,0)+24-SUM($A$27:$A30),COLUMN(H$1)-3)) -> 0 | I30: =IF($C30="",0,OFFSET($C58,MATCH($C30,$C$55:$C$514,0)+24-SUM($A$27:$A30),COLUMN(I$1)-3)) -> 0 | J30: =IF($C30="",0,OFFSET($C58,MATCH($C30,$C$55:$C$514,0)+24-SUM($A$27:$A30),COLUMN(J$1)-3)) -> 0 | K30: =IF($C30="",0,OFFSET($C58,MATCH($C30,$C$55:$C$514,0)+24-SUM($A$27:$A30),COLUMN(K$1)-3)) -> 0 | L30: =IF($C30="",0,OFFSET($C58,MATCH($C30,$C$55:$C$514,0)+24-SUM($A$27:$A30),COLUMN(L$1)-3)) -> 0 | M30: =IF($C30="",0,OFFSET($C58,MATCH($C30,$C$55:$C$514,0)+24-SUM($A$27:$A30),COLUMN(M$1)-3)) -> 0 | N30: =IF($C30="",0,OFFSET($C58,MATCH($C30,$C$55:$C$514,0)+24-SUM($A$27:$A30),COLUMN(N$1)-3)) -> 0 | O30: 0 | P30: =IF($C30="",0,OFFSET($C58,MATCH($C30,$C$55:$C$514,0)+24-SUM($A$27:$A30),COLUMN(P$1)-3)) -> 0 | Q30: =IF($C30="",0,OFFSET($C58,MATCH($C30,$C$55:$C$514,0)+24-SUM($A$27:$A30),COLUMN(Q$1)-3)) -> 0 | R30: =IF($C30="",0,OFFSET($C58,MATCH($C30,$C$55:$C$514,0)+24-SUM($A$27:$A30),COLUMN(R$1)-3)) -> 0 | S30: =IF($C30="",0,OFFSET($C58,MATCH($C30,$C$55:$C$514,0)+24-SUM($A$27:$A30),COLUMN(S$1)-3)) -> 0 | T30: =IF($C30="",0,OFFSET($C58,MATCH($C30,$C$55:$C$514,0)+24-SUM($A$27:$A30),COLUMN(T$1)-3)) -> 0 | U30: =IF($C30="",0,OFFSET($C58,MATCH($C30,$C$55:$C$514,0)+24-SUM($A$27:$A30),COLUMN(U$1)-3)) -> 0 | V30: =IF($C30="",0,OFFSET($C58,MATCH($C30,$C$55:$C$514,0)+24-SUM($A$27:$A30),COLUMN(V$1)-3)) -> 0 | W30: =IF($C30="",0,OFFSET($C58,MATCH($C30,$C$55:$C$514,0)+24-SUM($A$27:$A30),COLUMN(W$1)-3)) -> 0 | X30: 0 | Y30: =IF($C30="",0,OFFSET($C58,MATCH($C30,$C$55:$C$514,0)+24-SUM($A$27:$A30),COLUMN(Y$1)-3)) -> 0 | Z30: =IF($C30="",0,OFFSET($C58,MATCH($C30,$C$55:$C$514,0)+24-SUM($A$27:$A30),COLUMN(Z$1)-3)) -> 0 | AA30: =IF($C30="",0,OFFSET($C58,MATCH($C30,$C$55:$C$514,0)+24-SUM($A$27:$A30),COLUMN(AA$1)-3)) -> 0 | AB30: =IF($C30="",0,OFFSET($C58,MATCH($C30,$C$55:$C$514,0)+24-SUM($A$27:$A30),COLUMN(AB$1)-3)) -> 0 | AC30: =IF($C30="",0,OFFSET($C58,MATCH($C30,$C$55:$C$514,0)+24-SUM($A$27:$A30),COLUMN(AC$1)-3)) -> 0 | AD30: =IF($C30="",0,OFFSET($C58,MATCH($C30,$C$55:$C$514,0)+24-SUM($A$27:$A30),COLUMN(AD$1)-3)) -> 0 | AE30: =IF($C30="",0,OFFSET($C58,MATCH($C30,$C$55:$C$514,0)+24-SUM($A$27:$A30),COLUMN(AE$1)-3)) -> 0 | AF30: =IF($C30="",0,OFFSET($C58,MATCH($C30,$C$55:$C$514,0)+24-SUM($A$27:$A30),COLUMN(AF$1)-3)) -> 0 | AG30: 0 | AH30: =IF($C30="",0,OFFSET($C58,MATCH($C30,$C$55:$C$514,0)+24-SUM($A$27:$A30),COLUMN(AH$1)-3)) -> 0 | AI30: =IF($C30="",0,OFFSET($C58,MATCH($C30,$C$55:$C$514,0)+24-SUM($A$27:$A30),COLUMN(AI$1)-3)) -> 0 | AJ30: =IF($C30="",0,OFFSET($C58,MATCH($C30,$C$55:$C$514,0)+24-SUM($A$27:$A30),COLUMN(AJ$1)-3)) -> 0 | AK30: =IF($C30="",0,OFFSET($C58,MATCH($C30,$C$55:$C$514,0)+24-SUM($A$27:$A30),COLUMN(AK$1)-3)) -> 0 | AL30: =IF($C30="",0,OFFSET($C58,MATCH($C30,$C$55:$C$514,0)+24-SUM($A$27:$A30),COLUMN(AL$1)-3)) -> 0 | AM30: =IF($C30="",0,OFFSET($C58,MATCH($C30,$C$55:$C$514,0)+24-SUM($A$27:$A30),COLUMN(AM$1)-3)) -> 0 | AN30: =IF($C30="",0,OFFSET($C58,MATCH($C30,$C$55:$C$514,0)+24-SUM($A$27:$A30),COLUMN(AN$1)-3)) -> 0 | AO30: =IF($C30="",0,OFFSET($C58,MATCH($C30,$C$55:$C$514,0)+24-SUM($A$27:$A30),COLUMN(AO$1)-3)) -> 0 | AP30: 0 | AQ30: =IF($C30="",0,OFFSET($C58,MATCH($C30,$C$55:$C$514,0)+24-SUM($A$27:$A30),COLUMN(AQ$1)-3)) -> 0 | AR30: =IF($C30="",0,OFFSET($C58,MATCH($C30,$C$55:$C$514,0)+24-SUM($A$27:$A30),COLUMN(AR$1)-3)) -> 0 | AS30: =IF($C30="",0,OFFSET($C58,MATCH($C30,$C$55:$C$514,0)+24-SUM($A$27:$A30),COLUMN(AS$1)-3)) -> 0
A31: 0 | D31: =IF($C31="",0,OFFSET($C59,MATCH($C31,$C$55:$C$514,0)+24-SUM($A$27:$A31),COLUMN(D$1)-3)) -> 0 | E31: =IF($C31="",0,OFFSET($C59,MATCH($C31,$C$55:$C$514,0)+24-SUM($A$27:$A31),COLUMN(E$1)-3)) -> 0 | F31: =IF($C31="",0,OFFSET($C59,MATCH($C31,$C$55:$C$514,0)+24-SUM($A$27:$A31),COLUMN(F$1)-3)) -> 0 | G31: =IF($C31="",0,OFFSET($C59,MATCH($C31,$C$55:$C$514,0)+24-SUM($A$27:$A31),COLUMN(G$1)-3)) -> 0 | H31: =IF($C31="",0,OFFSET($C59,MATCH($C31,$C$55:$C$514,0)+24-SUM($A$27:$A31),COLUMN(H$1)-3)) -> 0 | I31: =IF($C31="",0,OFFSET($C59,MATCH($C31,$C$55:$C$514,0)+24-SUM($A$27:$A31),COLUMN(I$1)-3)) -> 0 | J31: =IF($C31="",0,OFFSET($C59,MATCH($C31,$C$55:$C$514,0)+24-SUM($A$27:$A31),COLUMN(J$1)-3)) -> 0 | K31: =IF($C31="",0,OFFSET($C59,MATCH($C31,$C$55:$C$514,0)+24-SUM($A$27:$A31),COLUMN(K$1)-3)) -> 0 | L31: =IF($C31="",0,OFFSET($C59,MATCH($C31,$C$55:$C$514,0)+24-SUM($A$27:$A31),COLUMN(L$1)-3)) -> 0 | M31: =IF($C31="",0,OFFSET($C59,MATCH($C31,$C$55:$C$514,0)+24-SUM($A$27:$A31),COLUMN(M$1)-3)) -> 0 | N31: =IF($C31="",0,OFFSET($C59,MATCH($C31,$C$55:$C$514,0)+24-SUM($A$27:$A31),COLUMN(N$1)-3)) -> 0 | O31: 0 | P31: =IF($C31="",0,OFFSET($C59,MATCH($C31,$C$55:$C$514,0)+24-SUM($A$27:$A31),COLUMN(P$1)-3)) -> 0 | Q31: =IF($C31="",0,OFFSET($C59,MATCH($C31,$C$55:$C$514,0)+24-SUM($A$27:$A31),COLUMN(Q$1)-3)) -> 0 | R31: =IF($C31="",0,OFFSET($C59,MATCH($C31,$C$55:$C$514,0)+24-SUM($A$27:$A31),COLUMN(R$1)-3)) -> 0 | S31: =IF($C31="",0,OFFSET($C59,MATCH($C31,$C$55:$C$514,0)+24-SUM($A$27:$A31),COLUMN(S$1)-3)) -> 0 | T31: =IF($C31="",0,OFFSET($C59,MATCH($C31,$C$55:$C$514,0)+24-SUM($A$27:$A31),COLUMN(T$1)-3)) -> 0 | U31: =IF($C31="",0,OFFSET($C59,MATCH($C31,$C$55:$C$514,0)+24-SUM($A$27:$A31),COLUMN(U$1)-3)) -> 0 | V31: =IF($C31="",0,OFFSET($C59,MATCH($C31,$C$55:$C$514,0)+24-SUM($A$27:$A31),COLUMN(V$1)-3)) -> 0 | W31: =IF($C31="",0,OFFSET($C59,MATCH($C31,$C$55:$C$514,0)+24-SUM($A$27:$A31),COLUMN(W$1)-3)) -> 0 | X31: 0 | Y31: =IF($C31="",0,OFFSET($C59,MATCH($C31,$C$55:$C$514,0)+24-SUM($A$27:$A31),COLUMN(Y$1)-3)) -> 0 | Z31: =IF($C31="",0,OFFSET($C59,MATCH($C31,$C$55:$C$514,0)+24-SUM($A$27:$A31),COLUMN(Z$1)-3)) -> 0 | AA31: =IF($C31="",0,OFFSET($C59,MATCH($C31,$C$55:$C$514,0)+24-SUM($A$27:$A31),COLUMN(AA$1)-3)) -> 0 | AB31: =IF($C31="",0,OFFSET($C59,MATCH($C31,$C$55:$C$514,0)+24-SUM($A$27:$A31),COLUMN(AB$1)-3)) -> 0 | AC31: =IF($C31="",0,OFFSET($C59,MATCH($C31,$C$55:$C$514,0)+24-SUM($A$27:$A31),COLUMN(AC$1)-3)) -> 0 | AD31: =IF($C31="",0,OFFSET($C59,MATCH($C31,$C$55:$C$514,0)+24-SUM($A$27:$A31),COLUMN(AD$1)-3)) -> 0 | AE31: =IF($C31="",0,OFFSET($C59,MATCH($C31,$C$55:$C$514,0)+24-SUM($A$27:$A31),COLUMN(AE$1)-3)) -> 0 | AF31: =IF($C31="",0,OFFSET($C59,MATCH($C31,$C$55:$C$514,0)+24-SUM($A$27:$A31),COLUMN(AF$1)-3)) -> 0 | AG31: 0 | AH31: =IF($C31="",0,OFFSET($C59,MATCH($C31,$C$55:$C$514,0)+24-SUM($A$27:$A31),COLUMN(AH$1)-3)) -> 0 | AI31: =IF($C31="",0,OFFSET($C59,MATCH($C31,$C$55:$C$514,0)+24-SUM($A$27:$A31),COLUMN(AI$1)-3)) -> 0 | AJ31: =IF($C31="",0,OFFSET($C59,MATCH($C31,$C$55:$C$514,0)+24-SUM($A$27:$A31),COLUMN(AJ$1)-3)) -> 0 | AK31: =IF($C31="",0,OFFSET($C59,MATCH($C31,$C$55:$C$514,0)+24-SUM($A$27:$A31),COLUMN(AK$1)-3)) -> 0 | AL31: =IF($C31="",0,OFFSET($C59,MATCH($C31,$C$55:$C$514,0)+24-SUM($A$27:$A31),COLUMN(AL$1)-3)) -> 0 | AM31: =IF($C31="",0,OFFSET($C59,MATCH($C31,$C$55:$C$514,0)+24-SUM($A$27:$A31),COLUMN(AM$1)-3)) -> 0 | AN31: =IF($C31="",0,OFFSET($C59,MATCH($C31,$C$55:$C$514,0)+24-SUM($A$27:$A31),COLUMN(AN$1)-3)) -> 0 | AO31: =IF($C31="",0,OFFSET($C59,MATCH($C31,$C$55:$C$514,0)+24-SUM($A$27:$A31),COLUMN(AO$1)-3)) -> 0 | AP31: 0 | AQ31: =IF($C31="",0,OFFSET($C59,MATCH($C31,$C$55:$C$514,0)+24-SUM($A$27:$A31),COLUMN(AQ$1)-3)) -> 0 | AR31: =IF($C31="",0,OFFSET($C59,MATCH($C31,$C$55:$C$514,0)+24-SUM($A$27:$A31),COLUMN(AR$1)-3)) -> 0 | AS31: =IF($C31="",0,OFFSET($C59,MATCH($C31,$C$55:$C$514,0)+24-SUM($A$27:$A31),COLUMN(AS$1)-3)) -> 0
A32: 0 | D32: =IF($C32="",0,OFFSET($C60,MATCH($C32,$C$55:$C$514,0)+24-SUM($A$27:$A32),COLUMN(D$1)-3)) -> 0 | E32: =IF($C32="",0,OFFSET($C60,MATCH($C32,$C$55:$C$514,0)+24-SUM($A$27:$A32),COLUMN(E$1)-3)) -> 0 | F32: =IF($C32="",0,OFFSET($C60,MATCH($C32,$C$55:$C$514,0)+24-SUM($A$27:$A32),COLUMN(F$1)-3)) -> 0 | G32: =IF($C32="",0,OFFSET($C60,MATCH($C32,$C$55:$C$514,0)+24-SUM($A$27:$A32),COLUMN(G$1)-3)) -> 0 | H32: =IF($C32="",0,OFFSET($C60,MATCH($C32,$C$55:$C$514,0)+24-SUM($A$27:$A32),COLUMN(H$1)-3)) -> 0 | I32: =IF($C32="",0,OFFSET($C60,MATCH($C32,$C$55:$C$514,0)+24-SUM($A$27:$A32),COLUMN(I$1)-3)) -> 0 | J32: =IF($C32="",0,OFFSET($C60,MATCH($C32,$C$55:$C$514,0)+24-SUM($A$27:$A32),COLUMN(J$1)-3)) -> 0 | K32: =IF($C32="",0,OFFSET($C60,MATCH($C32,$C$55:$C$514,0)+24-SUM($A$27:$A32),COLUMN(K$1)-3)) -> 0 | L32: =IF($C32="",0,OFFSET($C60,MATCH($C32,$C$55:$C$514,0)+24-SUM($A$27:$A32),COLUMN(L$1)-3)) -> 0 | M32: =IF($C32="",0,OFFSET($C60,MATCH($C32,$C$55:$C$514,0)+24-SUM($A$27:$A32),COLUMN(M$1)-3)) -> 0 | N32: =IF($C32="",0,OFFSET($C60,MATCH($C32,$C$55:$C$514,0)+24-SUM($A$27:$A32),COLUMN(N$1)-3)) -> 0 | O32: 0 | P32: =IF($C32="",0,OFFSET($C60,MATCH($C32,$C$55:$C$514,0)+24-SUM($A$27:$A32),COLUMN(P$1)-3)) -> 0 | Q32: =IF($C32="",0,OFFSET($C60,MATCH($C32,$C$55:$C$514,0)+24-SUM($A$27:$A32),COLUMN(Q$1)-3)) -> 0 | R32: =IF($C32="",0,OFFSET($C60,MATCH($C32,$C$55:$C$514,0)+24-SUM($A$27:$A32),COLUMN(R$1)-3)) -> 0 | S32: =IF($C32="",0,OFFSET($C60,MATCH($C32,$C$55:$C$514,0)+24-SUM($A$27:$A32),COLUMN(S$1)-3)) -> 0 | T32: =IF($C32="",0,OFFSET($C60,MATCH($C32,$C$55:$C$514,0)+24-SUM($A$27:$A32),COLUMN(T$1)-3)) -> 0 | U32: =IF($C32="",0,OFFSET($C60,MATCH($C32,$C$55:$C$514,0)+24-SUM($A$27:$A32),COLUMN(U$1)-3)) -> 0 | V32: =IF($C32="",0,OFFSET($C60,MATCH($C32,$C$55:$C$514,0)+24-SUM($A$27:$A32),COLUMN(V$1)-3)) -> 0 | W32: =IF($C32="",0,OFFSET($C60,MATCH($C32,$C$55:$C$514,0)+24-SUM($A$27:$A32),COLUMN(W$1)-3)) -> 0 | X32: 0 | Y32: =IF($C32="",0,OFFSET($C60,MATCH($C32,$C$55:$C$514,0)+24-SUM($A$27:$A32),COLUMN(Y$1)-3)) -> 0 | Z32: =IF($C32="",0,OFFSET($C60,MATCH($C32,$C$55:$C$514,0)+24-SUM($A$27:$A32),COLUMN(Z$1)-3)) -> 0 | AA32: =IF($C32="",0,OFFSET($C60,MATCH($C32,$C$55:$C$514,0)+24-SUM($A$27:$A32),COLUMN(AA$1)-3)) -> 0 | AB32: =IF($C32="",0,OFFSET($C60,MATCH($C32,$C$55:$C$514,0)+24-SUM($A$27:$A32),COLUMN(AB$1)-3)) -> 0 | AC32: =IF($C32="",0,OFFSET($C60,MATCH($C32,$C$55:$C$514,0)+24-SUM($A$27:$A32),COLUMN(AC$1)-3)) -> 0 | AD32: =IF($C32="",0,OFFSET($C60,MATCH($C32,$C$55:$C$514,0)+24-SUM($A$27:$A32),COLUMN(AD$1)-3)) -> 0 | AE32: =IF($C32="",0,OFFSET($C60,MATCH($C32,$C$55:$C$514,0)+24-SUM($A$27:$A32),COLUMN(AE$1)-3)) -> 0 | AF32: =IF($C32="",0,OFFSET($C60,MATCH($C32,$C$55:$C$514,0)+24-SUM($A$27:$A32),COLUMN(AF$1)-3)) -> 0 | AG32: 0 | AH32: =IF($C32="",0,OFFSET($C60,MATCH($C32,$C$55:$C$514,0)+24-SUM($A$27:$A32),COLUMN(AH$1)-3)) -> 0 | AI32: =IF($C32="",0,OFFSET($C60,MATCH($C32,$C$55:$C$514,0)+24-SUM($A$27:$A32),COLUMN(AI$1)-3)) -> 0 | AJ32: =IF($C32="",0,OFFSET($C60,MATCH($C32,$C$55:$C$514,0)+24-SUM($A$27:$A32),COLUMN(AJ$1)-3)) -> 0 | AK32: =IF($C32="",0,OFFSET($C60,MATCH($C32,$C$55:$C$514,0)+24-SUM($A$27:$A32),COLUMN(AK$1)-3)) -> 0 | AL32: =IF($C32="",0,OFFSET($C60,MATCH($C32,$C$55:$C$514,0)+24-SUM($A$27:$A32),COLUMN(AL$1)-3)) -> 0 | AM32: =IF($C32="",0,OFFSET($C60,MATCH($C32,$C$55:$C$514,0)+24-SUM($A$27:$A32),COLUMN(AM$1)-3)) -> 0 | AN32: =IF($C32="",0,OFFSET($C60,MATCH($C32,$C$55:$C$514,0)+24-SUM($A$27:$A32),COLUMN(AN$1)-3)) -> 0 | AO32: =IF($C32="",0,OFFSET($C60,MATCH($C32,$C$55:$C$514,0)+24-SUM($A$27:$A32),COLUMN(AO$1)-3)) -> 0 | AP32: 0 | AQ32: =IF($C32="",0,OFFSET($C60,MATCH($C32,$C$55:$C$514,0)+24-SUM($A$27:$A32),COLUMN(AQ$1)-3)) -> 0 | AR32: =IF($C32="",0,OFFSET($C60,MATCH($C32,$C$55:$C$514,0)+24-SUM($A$27:$A32),COLUMN(AR$1)-3)) -> 0 | AS32: =IF($C32="",0,OFFSET($C60,MATCH($C32,$C$55:$C$514,0)+24-SUM($A$27:$A32),COLUMN(AS$1)-3)) -> 0
A33: 0 | D33: =IF($C33="",0,OFFSET($C61,MATCH($C33,$C$55:$C$514,0)+24-SUM($A$27:$A33),COLUMN(D$1)-3)) -> 0 | E33: =IF($C33="",0,OFFSET($C61,MATCH($C33,$C$55:$C$514,0)+24-SUM($A$27:$A33),COLUMN(E$1)-3)) -> 0 | F33: =IF($C33="",0,OFFSET($C61,MATCH($C33,$C$55:$C$514,0)+24-SUM($A$27:$A33),COLUMN(F$1)-3)) -> 0 | G33: =IF($C33="",0,OFFSET($C61,MATCH($C33,$C$55:$C$514,0)+24-SUM($A$27:$A33),COLUMN(G$1)-3)) -> 0 | H33: =IF($C33="",0,OFFSET($C61,MATCH($C33,$C$55:$C$514,0)+24-SUM($A$27:$A33),COLUMN(H$1)-3)) -> 0 | I33: =IF($C33="",0,OFFSET($C61,MATCH($C33,$C$55:$C$514,0)+24-SUM($A$27:$A33),COLUMN(I$1)-3)) -> 0 | J33: =IF($C33="",0,OFFSET($C61,MATCH($C33,$C$55:$C$514,0)+24-SUM($A$27:$A33),COLUMN(J$1)-3)) -> 0 | K33: =IF($C33="",0,OFFSET($C61,MATCH($C33,$C$55:$C$514,0)+24-SUM($A$27:$A33),COLUMN(K$1)-3)) -> 0 | L33: =IF($C33="",0,OFFSET($C61,MATCH($C33,$C$55:$C$514,0)+24-SUM($A$27:$A33),COLUMN(L$1)-3)) -> 0 | M33: =IF($C33="",0,OFFSET($C61,MATCH($C33,$C$55:$C$514,0)+24-SUM($A$27:$A33),COLUMN(M$1)-3)) -> 0 | N33: =IF($C33="",0,OFFSET($C61,MATCH($C33,$C$55:$C$514,0)+24-SUM($A$27:$A33),COLUMN(N$1)-3)) -> 0 | O33: 0 | P33: =IF($C33="",0,OFFSET($C61,MATCH($C33,$C$55:$C$514,0)+24-SUM($A$27:$A33),COLUMN(P$1)-3)) -> 0 | Q33: =IF($C33="",0,OFFSET($C61,MATCH($C33,$C$55:$C$514,0)+24-SUM($A$27:$A33),COLUMN(Q$1)-3)) -> 0 | R33: =IF($C33="",0,OFFSET($C61,MATCH($C33,$C$55:$C$514,0)+24-SUM($A$27:$A33),COLUMN(R$1)-3)) -> 0 | S33: =IF($C33="",0,OFFSET($C61,MATCH($C33,$C$55:$C$514,0)+24-SUM($A$27:$A33),COLUMN(S$1)-3)) -> 0 | T33: =IF($C33="",0,OFFSET($C61,MATCH($C33,$C$55:$C$514,0)+24-SUM($A$27:$A33),COLUMN(T$1)-3)) -> 0 | U33: =IF($C33="",0,OFFSET($C61,MATCH($C33,$C$55:$C$514,0)+24-SUM($A$27:$A33),COLUMN(U$1)-3)) -> 0 | V33: =IF($C33="",0,OFFSET($C61,MATCH($C33,$C$55:$C$514,0)+24-SUM($A$27:$A33),COLUMN(V$1)-3)) -> 0 | W33: =IF($C33="",0,OFFSET($C61,MATCH($C33,$C$55:$C$514,0)+24-SUM($A$27:$A33),COLUMN(W$1)-3)) -> 0 | X33: 0 | Y33: =IF($C33="",0,OFFSET($C61,MATCH($C33,$C$55:$C$514,0)+24-SUM($A$27:$A33),COLUMN(Y$1)-3)) -> 0 | Z33: =IF($C33="",0,OFFSET($C61,MATCH($C33,$C$55:$C$514,0)+24-SUM($A$27:$A33),COLUMN(Z$1)-3)) -> 0 | AA33: =IF($C33="",0,OFFSET($C61,MATCH($C33,$C$55:$C$514,0)+24-SUM($A$27:$A33),COLUMN(AA$1)-3)) -> 0 | AB33: =IF($C33="",0,OFFSET($C61,MATCH($C33,$C$55:$C$514,0)+24-SUM($A$27:$A33),COLUMN(AB$1)-3)) -> 0 | AC33: =IF($C33="",0,OFFSET($C61,MATCH($C33,$C$55:$C$514,0)+24-SUM($A$27:$A33),COLUMN(AC$1)-3)) -> 0 | AD33: =IF($C33="",0,OFFSET($C61,MATCH($C33,$C$55:$C$514,0)+24-SUM($A$27:$A33),COLUMN(AD$1)-3)) -> 0 | AE33: =IF($C33="",0,OFFSET($C61,MATCH($C33,$C$55:$C$514,0)+24-SUM($A$27:$A33),COLUMN(AE$1)-3)) -> 0 | AF33: =IF($C33="",0,OFFSET($C61,MATCH($C33,$C$55:$C$514,0)+24-SUM($A$27:$A33),COLUMN(AF$1)-3)) -> 0 | AG33: 0 | AH33: =IF($C33="",0,OFFSET($C61,MATCH($C33,$C$55:$C$514,0)+24-SUM($A$27:$A33),COLUMN(AH$1)-3)) -> 0 | AI33: =IF($C33="",0,OFFSET($C61,MATCH($C33,$C$55:$C$514,0)+24-SUM($A$27:$A33),COLUMN(AI$1)-3)) -> 0 | AJ33: =IF($C33="",0,OFFSET($C61,MATCH($C33,$C$55:$C$514,0)+24-SUM($A$27:$A33),COLUMN(AJ$1)-3)) -> 0 | AK33: =IF($C33="",0,OFFSET($C61,MATCH($C33,$C$55:$C$514,0)+24-SUM($A$27:$A33),COLUMN(AK$1)-3)) -> 0 | AL33: =IF($C33="",0,OFFSET($C61,MATCH($C33,$C$55:$C$514,0)+24-SUM($A$27:$A33),COLUMN(AL$1)-3)) -> 0 | AM33: =IF($C33="",0,OFFSET($C61,MATCH($C33,$C$55:$C$514,0)+24-SUM($A$27:$A33),COLUMN(AM$1)-3)) -> 0 | AN33: =IF($C33="",0,OFFSET($C61,MATCH($C33,$C$55:$C$514,0)+24-SUM($A$27:$A33),COLUMN(AN$1)-3)) -> 0 | AO33: =IF($C33="",0,OFFSET($C61,MATCH($C33,$C$55:$C$514,0)+24-SUM($A$27:$A33),COLUMN(AO$1)-3)) -> 0 | AP33: 0 | AQ33: =IF($C33="",0,OFFSET($C61,MATCH($C33,$C$55:$C$514,0)+24-SUM($A$27:$A33),COLUMN(AQ$1)-3)) -> 0 | AR33: =IF($C33="",0,OFFSET($C61,MATCH($C33,$C$55:$C$514,0)+24-SUM($A$27:$A33),COLUMN(AR$1)-3)) -> 0 | AS33: =IF($C33="",0,OFFSET($C61,MATCH($C33,$C$55:$C$514,0)+24-SUM($A$27:$A33),COLUMN(AS$1)-3)) -> 0
A34: 0 | D34: =IF($C34="",0,OFFSET($C62,MATCH($C34,$C$55:$C$514,0)+24-SUM($A$27:$A34),COLUMN(D$1)-3)) -> 0 | E34: =IF($C34="",0,OFFSET($C62,MATCH($C34,$C$55:$C$514,0)+24-SUM($A$27:$A34),COLUMN(E$1)-3)) -> 0 | F34: =IF($C34="",0,OFFSET($C62,MATCH($C34,$C$55:$C$514,0)+24-SUM($A$27:$A34),COLUMN(F$1)-3)) -> 0 | G34: =IF($C34="",0,OFFSET($C62,MATCH($C34,$C$55:$C$514,0)+24-SUM($A$27:$A34),COLUMN(G$1)-3)) -> 0 | H34: =IF($C34="",0,OFFSET($C62,MATCH($C34,$C$55:$C$514,0)+24-SUM($A$27:$A34),COLUMN(H$1)-3)) -> 0 | I34: =IF($C34="",0,OFFSET($C62,MATCH($C34,$C$55:$C$514,0)+24-SUM($A$27:$A34),COLUMN(I$1)-3)) -> 0 | J34: =IF($C34="",0,OFFSET($C62,MATCH($C34,$C$55:$C$514,0)+24-SUM($A$27:$A34),COLUMN(J$1)-3)) -> 0 | K34: =IF($C34="",0,OFFSET($C62,MATCH($C34,$C$55:$C$514,0)+24-SUM($A$27:$A34),COLUMN(K$1)-3)) -> 0 | L34: =IF($C34="",0,OFFSET($C62,MATCH($C34,$C$55:$C$514,0)+24-SUM($A$27:$A34),COLUMN(L$1)-3)) -> 0 | M34: =IF($C34="",0,OFFSET($C62,MATCH($C34,$C$55:$C$514,0)+24-SUM($A$27:$A34),COLUMN(M$1)-3)) -> 0 | N34: =IF($C34="",0,OFFSET($C62,MATCH($C34,$C$55:$C$514,0)+24-SUM($A$27:$A34),COLUMN(N$1)-3)) -> 0 | O34: 0 | P34: =IF($C34="",0,OFFSET($C62,MATCH($C34,$C$55:$C$514,0)+24-SUM($A$27:$A34),COLUMN(P$1)-3)) -> 0 | Q34: =IF($C34="",0,OFFSET($C62,MATCH($C34,$C$55:$C$514,0)+24-SUM($A$27:$A34),COLUMN(Q$1)-3)) -> 0 | R34: =IF($C34="",0,OFFSET($C62,MATCH($C34,$C$55:$C$514,0)+24-SUM($A$27:$A34),COLUMN(R$1)-3)) -> 0 | S34: =IF($C34="",0,OFFSET($C62,MATCH($C34,$C$55:$C$514,0)+24-SUM($A$27:$A34),COLUMN(S$1)-3)) -> 0 | T34: =IF($C34="",0,OFFSET($C62,MATCH($C34,$C$55:$C$514,0)+24-SUM($A$27:$A34),COLUMN(T$1)-3)) -> 0 | U34: =IF($C34="",0,OFFSET($C62,MATCH($C34,$C$55:$C$514,0)+24-SUM($A$27:$A34),COLUMN(U$1)-3)) -> 0 | V34: =IF($C34="",0,OFFSET($C62,MATCH($C34,$C$55:$C$514,0)+24-SUM($A$27:$A34),COLUMN(V$1)-3)) -> 0 | W34: =IF($C34="",0,OFFSET($C62,MATCH($C34,$C$55:$C$514,0)+24-SUM($A$27:$A34),COLUMN(W$1)-3)) -> 0 | X34: 0 | Y34: =IF($C34="",0,OFFSET($C62,MATCH($C34,$C$55:$C$514,0)+24-SUM($A$27:$A34),COLUMN(Y$1)-3)) -> 0 | Z34: =IF($C34="",0,OFFSET($C62,MATCH($C34,$C$55:$C$514,0)+24-SUM($A$27:$A34),COLUMN(Z$1)-3)) -> 0 | AA34: =IF($C34="",0,OFFSET($C62,MATCH($C34,$C$55:$C$514,0)+24-SUM($A$27:$A34),COLUMN(AA$1)-3)) -> 0 | AB34: =IF($C34="",0,OFFSET($C62,MATCH($C34,$C$55:$C$514,0)+24-SUM($A$27:$A34),COLUMN(AB$1)-3)) -> 0 | AC34: =IF($C34="",0,OFFSET($C62,MATCH($C34,$C$55:$C$514,0)+24-SUM($A$27:$A34),COLUMN(AC$1)-3)) -> 0 | AD34: =IF($C34="",0,OFFSET($C62,MATCH($C34,$C$55:$C$514,0)+24-SUM($A$27:$A34),COLUMN(AD$1)-3)) -> 0 | AE34: =IF($C34="",0,OFFSET($C62,MATCH($C34,$C$55:$C$514,0)+24-SUM($A$27:$A34),COLUMN(AE$1)-3)) -> 0 | AF34: =IF($C34="",0,OFFSET($C62,MATCH($C34,$C$55:$C$514,0)+24-SUM($A$27:$A34),COLUMN(AF$1)-3)) -> 0 | AG34: 0 | AH34: =IF($C34="",0,OFFSET($C62,MATCH($C34,$C$55:$C$514,0)+24-SUM($A$27:$A34),COLUMN(AH$1)-3)) -> 0 | AI34: =IF($C34="",0,OFFSET($C62,MATCH($C34,$C$55:$C$514,0)+24-SUM($A$27:$A34),COLUMN(AI$1)-3)) -> 0 | AJ34: =IF($C34="",0,OFFSET($C62,MATCH($C34,$C$55:$C$514,0)+24-SUM($A$27:$A34),COLUMN(AJ$1)-3)) -> 0 | AK34: =IF($C34="",0,OFFSET($C62,MATCH($C34,$C$55:$C$514,0)+24-SUM($A$27:$A34),COLUMN(AK$1)-3)) -> 0 | AL34: =IF($C34="",0,OFFSET($C62,MATCH($C34,$C$55:$C$514,0)+24-SUM($A$27:$A34),COLUMN(AL$1)-3)) -> 0 | AM34: =IF($C34="",0,OFFSET($C62,MATCH($C34,$C$55:$C$514,0)+24-SUM($A$27:$A34),COLUMN(AM$1)-3)) -> 0 | AN34: =IF($C34="",0,OFFSET($C62,MATCH($C34,$C$55:$C$514,0)+24-SUM($A$27:$A34),COLUMN(AN$1)-3)) -> 0 | AO34: =IF($C34="",0,OFFSET($C62,MATCH($C34,$C$55:$C$514,0)+24-SUM($A$27:$A34),COLUMN(AO$1)-3)) -> 0 | AP34: 0 | AQ34: =IF($C34="",0,OFFSET($C62,MATCH($C34,$C$55:$C$514,0)+24-SUM($A$27:$A34),COLUMN(AQ$1)-3)) -> 0 | AR34: =IF($C34="",0,OFFSET($C62,MATCH($C34,$C$55:$C$514,0)+24-SUM($A$27:$A34),COLUMN(AR$1)-3)) -> 0 | AS34: =IF($C34="",0,OFFSET($C62,MATCH($C34,$C$55:$C$514,0)+24-SUM($A$27:$A34),COLUMN(AS$1)-3)) -> 0
A35: =IF(LEN(C35)>1,1,0) -> 0 | D35: =IF($C35="",0,OFFSET($C63,MATCH($C35,$C$55:$C$514,0)+24-SUM($A$27:$A35),COLUMN(D$1)-3)) -> 0 | E35: =IF($C35="",0,OFFSET($C63,MATCH($C35,$C$55:$C$514,0)+24-SUM($A$27:$A35),COLUMN(E$1)-3)) -> 0 | F35: =IF($C35="",0,OFFSET($C63,MATCH($C35,$C$55:$C$514,0)+24-SUM($A$27:$A35),COLUMN(F$1)-3)) -> 0 | G35: =IF($C35="",0,OFFSET($C63,MATCH($C35,$C$55:$C$514,0)+24-SUM($A$27:$A35),COLUMN(G$1)-3)) -> 0 | H35: =IF($C35="",0,OFFSET($C63,MATCH($C35,$C$55:$C$514,0)+24-SUM($A$27:$A35),COLUMN(H$1)-3)) -> 0 | I35: =IF($C35="",0,OFFSET($C63,MATCH($C35,$C$55:$C$514,0)+24-SUM($A$27:$A35),COLUMN(I$1)-3)) -> 0 | J35: =IF($C35="",0,OFFSET($C63,MATCH($C35,$C$55:$C$514,0)+24-SUM($A$27:$A35),COLUMN(J$1)-3)) -> 0 | K35: =IF($C35="",0,OFFSET($C63,MATCH($C35,$C$55:$C$514,0)+24-SUM($A$27:$A35),COLUMN(K$1)-3)) -> 0 | L35: =IF($C35="",0,OFFSET($C63,MATCH($C35,$C$55:$C$514,0)+24-SUM($A$27:$A35),COLUMN(L$1)-3)) -> 0 | M35: =IF($C35="",0,OFFSET($C63,MATCH($C35,$C$55:$C$514,0)+24-SUM($A$27:$A35),COLUMN(M$1)-3)) -> 0 | N35: =IF($C35="",0,OFFSET($C63,MATCH($C35,$C$55:$C$514,0)+24-SUM($A$27:$A35),COLUMN(N$1)-3)) -> 0 | O35: 0 | P35: =IF($C35="",0,OFFSET($C63,MATCH($C35,$C$55:$C$514,0)+24-SUM($A$27:$A35),COLUMN(P$1)-3)) -> 0 | Q35: =IF($C35="",0,OFFSET($C63,MATCH($C35,$C$55:$C$514,0)+24-SUM($A$27:$A35),COLUMN(Q$1)-3)) -> 0 | R35: =IF($C35="",0,OFFSET($C63,MATCH($C35,$C$55:$C$514,0)+24-SUM($A$27:$A35),COLUMN(R$1)-3)) -> 0 | S35: =IF($C35="",0,OFFSET($C63,MATCH($C35,$C$55:$C$514,0)+24-SUM($A$27:$A35),COLUMN(S$1)-3)) -> 0 | T35: =IF($C35="",0,OFFSET($C63,MATCH($C35,$C$55:$C$514,0)+24-SUM($A$27:$A35),COLUMN(T$1)-3)) -> 0 | U35: =IF($C35="",0,OFFSET($C63,MATCH($C35,$C$55:$C$514,0)+24-SUM($A$27:$A35),COLUMN(U$1)-3)) -> 0 | V35: =IF($C35="",0,OFFSET($C63,MATCH($C35,$C$55:$C$514,0)+24-SUM($A$27:$A35),COLUMN(V$1)-3)) -> 0 | W35: =IF($C35="",0,OFFSET($C63,MATCH($C35,$C$55:$C$514,0)+24-SUM($A$27:$A35),COLUMN(W$1)-3)) -> 0 | X35: 0 | Y35: =IF($C35="",0,OFFSET($C63,MATCH($C35,$C$55:$C$514,0)+24-SUM($A$27:$A35),COLUMN(Y$1)-3)) -> 0 | Z35: =IF($C35="",0,OFFSET($C63,MATCH($C35,$C$55:$C$514,0)+24-SUM($A$27:$A35),COLUMN(Z$1)-3)) -> 0 | AA35: =IF($C35="",0,OFFSET($C63,MATCH($C35,$C$55:$C$514,0)+24-SUM($A$27:$A35),COLUMN(AA$1)-3)) -> 0 | AB35: =IF($C35="",0,OFFSET($C63,MATCH($C35,$C$55:$C$514,0)+24-SUM($A$27:$A35),COLUMN(AB$1)-3)) -> 0 | AC35: =IF($C35="",0,OFFSET($C63,MATCH($C35,$C$55:$C$514,0)+24-SUM($A$27:$A35),COLUMN(AC$1)-3)) -> 0 | AD35: =IF($C35="",0,OFFSET($C63,MATCH($C35,$C$55:$C$514,0)+24-SUM($A$27:$A35),COLUMN(AD$1)-3)) -> 0 | AE35: =IF($C35="",0,OFFSET($C63,MATCH($C35,$C$55:$C$514,0)+24-SUM($A$27:$A35),COLUMN(AE$1)-3)) -> 0 | AF35: =IF($C35="",0,OFFSET($C63,MATCH($C35,$C$55:$C$514,0)+24-SUM($A$27:$A35),COLUMN(AF$1)-3)) -> 0 | AG35: 0 | AH35: =IF($C35="",0,OFFSET($C63,MATCH($C35,$C$55:$C$514,0)+24-SUM($A$27:$A35),COLUMN(AH$1)-3)) -> 0 | AI35: =IF($C35="",0,OFFSET($C63,MATCH($C35,$C$55:$C$514,0)+24-SUM($A$27:$A35),COLUMN(AI$1)-3)) -> 0 | AJ35: =IF($C35="",0,OFFSET($C63,MATCH($C35,$C$55:$C$514,0)+24-SUM($A$27:$A35),COLUMN(AJ$1)-3)) -> 0 | AK35: =IF($C35="",0,OFFSET($C63,MATCH($C35,$C$55:$C$514,0)+24-SUM($A$27:$A35),COLUMN(AK$1)-3)) -> 0 | AL35: =IF($C35="",0,OFFSET($C63,MATCH($C35,$C$55:$C$514,0)+24-SUM($A$27:$A35),COLUMN(AL$1)-3)) -> 0 | AM35: =IF($C35="",0,OFFSET($C63,MATCH($C35,$C$55:$C$514,0)+24-SUM($A$27:$A35),COLUMN(AM$1)-3)) -> 0 | AN35: =IF($C35="",0,OFFSET($C63,MATCH($C35,$C$55:$C$514,0)+24-SUM($A$27:$A35),COLUMN(AN$1)-3)) -> 0 | AO35: =IF($C35="",0,OFFSET($C63,MATCH($C35,$C$55:$C$514,0)+24-SUM($A$27:$A35),COLUMN(AO$1)-3)) -> 0 | AP35: 0 | AQ35: =IF($C35="",0,OFFSET($C63,MATCH($C35,$C$55:$C$514,0)+24-SUM($A$27:$A35),COLUMN(AQ$1)-3)) -> 0 | AR35: =IF($C35="",0,OFFSET($C63,MATCH($C35,$C$55:$C$514,0)+24-SUM($A$27:$A35),COLUMN(AR$1)-3)) -> 0 | AS35: =IF($C35="",0,OFFSET($C63,MATCH($C35,$C$55:$C$514,0)+24-SUM($A$27:$A35),COLUMN(AS$1)-3)) -> 0
A36: 0 | D36: =IF($C36="",0,OFFSET($C64,MATCH($C36,$C$55:$C$514,0)+24-SUM($A$27:$A36),COLUMN(D$1)-3)) -> 0 | E36: =IF($C36="",0,OFFSET($C64,MATCH($C36,$C$55:$C$514,0)+24-SUM($A$27:$A36),COLUMN(E$1)-3)) -> 0 | F36: =IF($C36="",0,OFFSET($C64,MATCH($C36,$C$55:$C$514,0)+24-SUM($A$27:$A36),COLUMN(F$1)-3)) -> 0 | G36: =IF($C36="",0,OFFSET($C64,MATCH($C36,$C$55:$C$514,0)+24-SUM($A$27:$A36),COLUMN(G$1)-3)) -> 0 | H36: =IF($C36="",0,OFFSET($C64,MATCH($C36,$C$55:$C$514,0)+24-SUM($A$27:$A36),COLUMN(H$1)-3)) -> 0 | I36: =IF($C36="",0,OFFSET($C64,MATCH($C36,$C$55:$C$514,0)+24-SUM($A$27:$A36),COLUMN(I$1)-3)) -> 0 | J36: =IF($C36="",0,OFFSET($C64,MATCH($C36,$C$55:$C$514,0)+24-SUM($A$27:$A36),COLUMN(J$1)-3)) -> 0 | K36: =IF($C36="",0,OFFSET($C64,MATCH($C36,$C$55:$C$514,0)+24-SUM($A$27:$A36),COLUMN(K$1)-3)) -> 0 | L36: =IF($C36="",0,OFFSET($C64,MATCH($C36,$C$55:$C$514,0)+24-SUM($A$27:$A36),COLUMN(L$1)-3)) -> 0 | M36: =IF($C36="",0,OFFSET($C64,MATCH($C36,$C$55:$C$514,0)+24-SUM($A$27:$A36),COLUMN(M$1)-3)) -> 0 | N36: =IF($C36="",0,OFFSET($C64,MATCH($C36,$C$55:$C$514,0)+24-SUM($A$27:$A36),COLUMN(N$1)-3)) -> 0 | O36: 0 | P36: =IF($C36="",0,OFFSET($C64,MATCH($C36,$C$55:$C$514,0)+24-SUM($A$27:$A36),COLUMN(P$1)-3)) -> 0 | Q36: =IF($C36="",0,OFFSET($C64,MATCH($C36,$C$55:$C$514,0)+24-SUM($A$27:$A36),COLUMN(Q$1)-3)) -> 0 | R36: =IF($C36="",0,OFFSET($C64,MATCH($C36,$C$55:$C$514,0)+24-SUM($A$27:$A36),COLUMN(R$1)-3)) -> 0 | S36: =IF($C36="",0,OFFSET($C64,MATCH($C36,$C$55:$C$514,0)+24-SUM($A$27:$A36),COLUMN(S$1)-3)) -> 0 | T36: =IF($C36="",0,OFFSET($C64,MATCH($C36,$C$55:$C$514,0)+24-SUM($A$27:$A36),COLUMN(T$1)-3)) -> 0 | U36: =IF($C36="",0,OFFSET($C64,MATCH($C36,$C$55:$C$514,0)+24-SUM($A$27:$A36),COLUMN(U$1)-3)) -> 0 | V36: =IF($C36="",0,OFFSET($C64,MATCH($C36,$C$55:$C$514,0)+24-SUM($A$27:$A36),COLUMN(V$1)-3)) -> 0 | W36: =IF($C36="",0,OFFSET($C64,MATCH($C36,$C$55:$C$514,0)+24-SUM($A$27:$A36),COLUMN(W$1)-3)) -> 0 | X36: 0 | Y36: =IF($C36="",0,OFFSET($C64,MATCH($C36,$C$55:$C$514,0)+24-SUM($A$27:$A36),COLUMN(Y$1)-3)) -> 0 | Z36: =IF($C36="",0,OFFSET($C64,MATCH($C36,$C$55:$C$514,0)+24-SUM($A$27:$A36),COLUMN(Z$1)-3)) -> 0 | AA36: =IF($C36="",0,OFFSET($C64,MATCH($C36,$C$55:$C$514,0)+24-SUM($A$27:$A36),COLUMN(AA$1)-3)) -> 0 | AB36: =IF($C36="",0,OFFSET($C64,MATCH($C36,$C$55:$C$514,0)+24-SUM($A$27:$A36),COLUMN(AB$1)-3)) -> 0 | AC36: =IF($C36="",0,OFFSET($C64,MATCH($C36,$C$55:$C$514,0)+24-SUM($A$27:$A36),COLUMN(AC$1)-3)) -> 0 | AD36: =IF($C36="",0,OFFSET($C64,MATCH($C36,$C$55:$C$514,0)+24-SUM($A$27:$A36),COLUMN(AD$1)-3)) -> 0 | AE36: =IF($C36="",0,OFFSET($C64,MATCH($C36,$C$55:$C$514,0)+24-SUM($A$27:$A36),COLUMN(AE$1)-3)) -> 0 | AF36: =IF($C36="",0,OFFSET($C64,MATCH($C36,$C$55:$C$514,0)+24-SUM($A$27:$A36),COLUMN(AF$1)-3)) -> 0 | AG36: 0 | AH36: =IF($C36="",0,OFFSET($C64,MATCH($C36,$C$55:$C$514,0)+24-SUM($A$27:$A36),COLUMN(AH$1)-3)) -> 0 | AI36: =IF($C36="",0,OFFSET($C64,MATCH($C36,$C$55:$C$514,0)+24-SUM($A$27:$A36),COLUMN(AI$1)-3)) -> 0 | AJ36: =IF($C36="",0,OFFSET($C64,MATCH($C36,$C$55:$C$514,0)+24-SUM($A$27:$A36),COLUMN(AJ$1)-3)) -> 0 | AK36: =IF($C36="",0,OFFSET($C64,MATCH($C36,$C$55:$C$514,0)+24-SUM($A$27:$A36),COLUMN(AK$1)-3)) -> 0 | AL36: =IF($C36="",0,OFFSET($C64,MATCH($C36,$C$55:$C$514,0)+24-SUM($A$27:$A36),COLUMN(AL$1)-3)) -> 0 | AM36: =IF($C36="",0,OFFSET($C64,MATCH($C36,$C$55:$C$514,0)+24-SUM($A$27:$A36),COLUMN(AM$1)-3)) -> 0 | AN36: =IF($C36="",0,OFFSET($C64,MATCH($C36,$C$55:$C$514,0)+24-SUM($A$27:$A36),COLUMN(AN$1)-3)) -> 0 | AO36: =IF($C36="",0,OFFSET($C64,MATCH($C36,$C$55:$C$514,0)+24-SUM($A$27:$A36),COLUMN(AO$1)-3)) -> 0 | AP36: 0 | AQ36: =IF($C36="",0,OFFSET($C64,MATCH($C36,$C$55:$C$514,0)+24-SUM($A$27:$A36),COLUMN(AQ$1)-3)) -> 0 | AR36: =IF($C36="",0,OFFSET($C64,MATCH($C36,$C$55:$C$514,0)+24-SUM($A$27:$A36),COLUMN(AR$1)-3)) -> 0 | AS36: =IF($C36="",0,OFFSET($C64,MATCH($C36,$C$55:$C$514,0)+24-SUM($A$27:$A36),COLUMN(AS$1)-3)) -> 0
A37: 0 | D37: =IF($C37="",0,OFFSET($C65,MATCH($C37,$C$55:$C$514,0)+24-SUM($A$27:$A37),COLUMN(D$1)-3)) -> 0 | E37: =IF($C37="",0,OFFSET($C65,MATCH($C37,$C$55:$C$514,0)+24-SUM($A$27:$A37),COLUMN(E$1)-3)) -> 0 | F37: =IF($C37="",0,OFFSET($C65,MATCH($C37,$C$55:$C$514,0)+24-SUM($A$27:$A37),COLUMN(F$1)-3)) -> 0 | G37: =IF($C37="",0,OFFSET($C65,MATCH($C37,$C$55:$C$514,0)+24-SUM($A$27:$A37),COLUMN(G$1)-3)) -> 0 | H37: =IF($C37="",0,OFFSET($C65,MATCH($C37,$C$55:$C$514,0)+24-SUM($A$27:$A37),COLUMN(H$1)-3)) -> 0 | I37: =IF($C37="",0,OFFSET($C65,MATCH($C37,$C$55:$C$514,0)+24-SUM($A$27:$A37),COLUMN(I$1)-3)) -> 0 | J37: =IF($C37="",0,OFFSET($C65,MATCH($C37,$C$55:$C$514,0)+24-SUM($A$27:$A37),COLUMN(J$1)-3)) -> 0 | K37: =IF($C37="",0,OFFSET($C65,MATCH($C37,$C$55:$C$514,0)+24-SUM($A$27:$A37),COLUMN(K$1)-3)) -> 0 | L37: =IF($C37="",0,OFFSET($C65,MATCH($C37,$C$55:$C$514,0)+24-SUM($A$27:$A37),COLUMN(L$1)-3)) -> 0 | M37: =IF($C37="",0,OFFSET($C65,MATCH($C37,$C$55:$C$514,0)+24-SUM($A$27:$A37),COLUMN(M$1)-3)) -> 0 | N37: =IF($C37="",0,OFFSET($C65,MATCH($C37,$C$55:$C$514,0)+24-SUM($A$27:$A37),COLUMN(N$1)-3)) -> 0 | O37: 0 | P37: =IF($C37="",0,OFFSET($C65,MATCH($C37,$C$55:$C$514,0)+24-SUM($A$27:$A37),COLUMN(P$1)-3)) -> 0 | Q37: =IF($C37="",0,OFFSET($C65,MATCH($C37,$C$55:$C$514,0)+24-SUM($A$27:$A37),COLUMN(Q$1)-3)) -> 0 | R37: =IF($C37="",0,OFFSET($C65,MATCH($C37,$C$55:$C$514,0)+24-SUM($A$27:$A37),COLUMN(R$1)-3)) -> 0 | S37: =IF($C37="",0,OFFSET($C65,MATCH($C37,$C$55:$C$514,0)+24-SUM($A$27:$A37),COLUMN(S$1)-3)) -> 0 | T37: =IF($C37="",0,OFFSET($C65,MATCH($C37,$C$55:$C$514,0)+24-SUM($A$27:$A37),COLUMN(T$1)-3)) -> 0 | U37: =IF($C37="",0,OFFSET($C65,MATCH($C37,$C$55:$C$514,0)+24-SUM($A$27:$A37),COLUMN(U$1)-3)) -> 0 | V37: =IF($C37="",0,OFFSET($C65,MATCH($C37,$C$55:$C$514,0)+24-SUM($A$27:$A37),COLUMN(V$1)-3)) -> 0 | W37: =IF($C37="",0,OFFSET($C65,MATCH($C37,$C$55:$C$514,0)+24-SUM($A$27:$A37),COLUMN(W$1)-3)) -> 0 | X37: 0 | Y37: =IF($C37="",0,OFFSET($C65,MATCH($C37,$C$55:$C$514,0)+24-SUM($A$27:$A37),COLUMN(Y$1)-3)) -> 0 | Z37: =IF($C37="",0,OFFSET($C65,MATCH($C37,$C$55:$C$514,0)+24-SUM($A$27:$A37),COLUMN(Z$1)-3)) -> 0 | AA37: =IF($C37="",0,OFFSET($C65,MATCH($C37,$C$55:$C$514,0)+24-SUM($A$27:$A37),COLUMN(AA$1)-3)) -> 0 | AB37: =IF($C37="",0,OFFSET($C65,MATCH($C37,$C$55:$C$514,0)+24-SUM($A$27:$A37),COLUMN(AB$1)-3)) -> 0 | AC37: =IF($C37="",0,OFFSET($C65,MATCH($C37,$C$55:$C$514,0)+24-SUM($A$27:$A37),COLUMN(AC$1)-3)) -> 0 | AD37: =IF($C37="",0,OFFSET($C65,MATCH($C37,$C$55:$C$514,0)+24-SUM($A$27:$A37),COLUMN(AD$1)-3)) -> 0 | AE37: =IF($C37="",0,OFFSET($C65,MATCH($C37,$C$55:$C$514,0)+24-SUM($A$27:$A37),COLUMN(AE$1)-3)) -> 0 | AF37: =IF($C37="",0,OFFSET($C65,MATCH($C37,$C$55:$C$514,0)+24-SUM($A$27:$A37),COLUMN(AF$1)-3)) -> 0 | AG37: 0 | AH37: =IF($C37="",0,OFFSET($C65,MATCH($C37,$C$55:$C$514,0)+24-SUM($A$27:$A37),COLUMN(AH$1)-3)) -> 0 | AI37: =IF($C37="",0,OFFSET($C65,MATCH($C37,$C$55:$C$514,0)+24-SUM($A$27:$A37),COLUMN(AI$1)-3)) -> 0 | AJ37: =IF($C37="",0,OFFSET($C65,MATCH($C37,$C$55:$C$514,0)+24-SUM($A$27:$A37),COLUMN(AJ$1)-3)) -> 0 | AK37: =IF($C37="",0,OFFSET($C65,MATCH($C37,$C$55:$C$514,0)+24-SUM($A$27:$A37),COLUMN(AK$1)-3)) -> 0 | AL37: =IF($C37="",0,OFFSET($C65,MATCH($C37,$C$55:$C$514,0)+24-SUM($A$27:$A37),COLUMN(AL$1)-3)) -> 0 | AM37: =IF($C37="",0,OFFSET($C65,MATCH($C37,$C$55:$C$514,0)+24-SUM($A$27:$A37),COLUMN(AM$1)-3)) -> 0 | AN37: =IF($C37="",0,OFFSET($C65,MATCH($C37,$C$55:$C$514,0)+24-SUM($A$27:$A37),COLUMN(AN$1)-3)) -> 0 | AO37: =IF($C37="",0,OFFSET($C65,MATCH($C37,$C$55:$C$514,0)+24-SUM($A$27:$A37),COLUMN(AO$1)-3)) -> 0 | AP37: 0 | AQ37: =IF($C37="",0,OFFSET($C65,MATCH($C37,$C$55:$C$514,0)+24-SUM($A$27:$A37),COLUMN(AQ$1)-3)) -> 0 | AR37: =IF($C37="",0,OFFSET($C65,MATCH($C37,$C$55:$C$514,0)+24-SUM($A$27:$A37),COLUMN(AR$1)-3)) -> 0 | AS37: =IF($C37="",0,OFFSET($C65,MATCH($C37,$C$55:$C$514,0)+24-SUM($A$27:$A37),COLUMN(AS$1)-3)) -> 0
A38: 0 | D38: =IF($C38="",0,OFFSET($C66,MATCH($C38,$C$55:$C$514,0)+24-SUM($A$27:$A38),COLUMN(D$1)-3)) -> 0 | E38: =IF($C38="",0,OFFSET($C66,MATCH($C38,$C$55:$C$514,0)+24-SUM($A$27:$A38),COLUMN(E$1)-3)) -> 0 | F38: =IF($C38="",0,OFFSET($C66,MATCH($C38,$C$55:$C$514,0)+24-SUM($A$27:$A38),COLUMN(F$1)-3)) -> 0 | G38: =IF($C38="",0,OFFSET($C66,MATCH($C38,$C$55:$C$514,0)+24-SUM($A$27:$A38),COLUMN(G$1)-3)) -> 0 | H38: =IF($C38="",0,OFFSET($C66,MATCH($C38,$C$55:$C$514,0)+24-SUM($A$27:$A38),COLUMN(H$1)-3)) -> 0 | I38: =IF($C38="",0,OFFSET($C66,MATCH($C38,$C$55:$C$514,0)+24-SUM($A$27:$A38),COLUMN(I$1)-3)) -> 0 | J38: =IF($C38="",0,OFFSET($C66,MATCH($C38,$C$55:$C$514,0)+24-SUM($A$27:$A38),COLUMN(J$1)-3)) -> 0 | K38: =IF($C38="",0,OFFSET($C66,MATCH($C38,$C$55:$C$514,0)+24-SUM($A$27:$A38),COLUMN(K$1)-3)) -> 0 | L38: =IF($C38="",0,OFFSET($C66,MATCH($C38,$C$55:$C$514,0)+24-SUM($A$27:$A38),COLUMN(L$1)-3)) -> 0 | M38: =IF($C38="",0,OFFSET($C66,MATCH($C38,$C$55:$C$514,0)+24-SUM($A$27:$A38),COLUMN(M$1)-3)) -> 0 | N38: =IF($C38="",0,OFFSET($C66,MATCH($C38,$C$55:$C$514,0)+24-SUM($A$27:$A38),COLUMN(N$1)-3)) -> 0 | O38: 0 | P38: =IF($C38="",0,OFFSET($C66,MATCH($C38,$C$55:$C$514,0)+24-SUM($A$27:$A38),COLUMN(P$1)-3)) -> 0 | Q38: =IF($C38="",0,OFFSET($C66,MATCH($C38,$C$55:$C$514,0)+24-SUM($A$27:$A38),COLUMN(Q$1)-3)) -> 0 | R38: =IF($C38="",0,OFFSET($C66,MATCH($C38,$C$55:$C$514,0)+24-SUM($A$27:$A38),COLUMN(R$1)-3)) -> 0 | S38: =IF($C38="",0,OFFSET($C66,MATCH($C38,$C$55:$C$514,0)+24-SUM($A$27:$A38),COLUMN(S$1)-3)) -> 0 | T38: =IF($C38="",0,OFFSET($C66,MATCH($C38,$C$55:$C$514,0)+24-SUM($A$27:$A38),COLUMN(T$1)-3)) -> 0 | U38: =IF($C38="",0,OFFSET($C66,MATCH($C38,$C$55:$C$514,0)+24-SUM($A$27:$A38),COLUMN(U$1)-3)) -> 0 | V38: =IF($C38="",0,OFFSET($C66,MATCH($C38,$C$55:$C$514,0)+24-SUM($A$27:$A38),COLUMN(V$1)-3)) -> 0 | W38: =IF($C38="",0,OFFSET($C66,MATCH($C38,$C$55:$C$514,0)+24-SUM($A$27:$A38),COLUMN(W$1)-3)) -> 0 | X38: 0 | Y38: =IF($C38="",0,OFFSET($C66,MATCH($C38,$C$55:$C$514,0)+24-SUM($A$27:$A38),COLUMN(Y$1)-3)) -> 0 | Z38: =IF($C38="",0,OFFSET($C66,MATCH($C38,$C$55:$C$514,0)+24-SUM($A$27:$A38),COLUMN(Z$1)-3)) -> 0 | AA38: =IF($C38="",0,OFFSET($C66,MATCH($C38,$C$55:$C$514,0)+24-SUM($A$27:$A38),COLUMN(AA$1)-3)) -> 0 | AB38: =IF($C38="",0,OFFSET($C66,MATCH($C38,$C$55:$C$514,0)+24-SUM($A$27:$A38),COLUMN(AB$1)-3)) -> 0 | AC38: =IF($C38="",0,OFFSET($C66,MATCH($C38,$C$55:$C$514,0)+24-SUM($A$27:$A38),COLUMN(AC$1)-3)) -> 0 | AD38: =IF($C38="",0,OFFSET($C66,MATCH($C38,$C$55:$C$514,0)+24-SUM($A$27:$A38),COLUMN(AD$1)-3)) -> 0 | AE38: =IF($C38="",0,OFFSET($C66,MATCH($C38,$C$55:$C$514,0)+24-SUM($A$27:$A38),COLUMN(AE$1)-3)) -> 0 | AF38: =IF($C38="",0,OFFSET($C66,MATCH($C38,$C$55:$C$514,0)+24-SUM($A$27:$A38),COLUMN(AF$1)-3)) -> 0 | AG38: 0 | AH38: =IF($C38="",0,OFFSET($C66,MATCH($C38,$C$55:$C$514,0)+24-SUM($A$27:$A38),COLUMN(AH$1)-3)) -> 0 | AI38: =IF($C38="",0,OFFSET($C66,MATCH($C38,$C$55:$C$514,0)+24-SUM($A$27:$A38),COLUMN(AI$1)-3)) -> 0 | AJ38: =IF($C38="",0,OFFSET($C66,MATCH($C38,$C$55:$C$514,0)+24-SUM($A$27:$A38),COLUMN(AJ$1)-3)) -> 0 | AK38: =IF($C38="",0,OFFSET($C66,MATCH($C38,$C$55:$C$514,0)+24-SUM($A$27:$A38),COLUMN(AK$1)-3)) -> 0 | AL38: =IF($C38="",0,OFFSET($C66,MATCH($C38,$C$55:$C$514,0)+24-SUM($A$27:$A38),COLUMN(AL$1)-3)) -> 0 | AM38: =IF($C38="",0,OFFSET($C66,MATCH($C38,$C$55:$C$514,0)+24-SUM($A$27:$A38),COLUMN(AM$1)-3)) -> 0 | AN38: =IF($C38="",0,OFFSET($C66,MATCH($C38,$C$55:$C$514,0)+24-SUM($A$27:$A38),COLUMN(AN$1)-3)) -> 0 | AO38: =IF($C38="",0,OFFSET($C66,MATCH($C38,$C$55:$C$514,0)+24-SUM($A$27:$A38),COLUMN(AO$1)-3)) -> 0 | AP38: 0 | AQ38: =IF($C38="",0,OFFSET($C66,MATCH($C38,$C$55:$C$514,0)+24-SUM($A$27:$A38),COLUMN(AQ$1)-3)) -> 0 | AR38: =IF($C38="",0,OFFSET($C66,MATCH($C38,$C$55:$C$514,0)+24-SUM($A$27:$A38),COLUMN(AR$1)-3)) -> 0 | AS38: =IF($C38="",0,OFFSET($C66,MATCH($C38,$C$55:$C$514,0)+24-SUM($A$27:$A38),COLUMN(AS$1)-3)) -> 0
A39: 0 | D39: =IF($C39="",0,OFFSET($C67,MATCH($C39,$C$55:$C$514,0)+24-SUM($A$27:$A39),COLUMN(D$1)-3)) -> 0 | E39: =IF($C39="",0,OFFSET($C67,MATCH($C39,$C$55:$C$514,0)+24-SUM($A$27:$A39),COLUMN(E$1)-3)) -> 0 | F39: =IF($C39="",0,OFFSET($C67,MATCH($C39,$C$55:$C$514,0)+24-SUM($A$27:$A39),COLUMN(F$1)-3)) -> 0 | G39: =IF($C39="",0,OFFSET($C67,MATCH($C39,$C$55:$C$514,0)+24-SUM($A$27:$A39),COLUMN(G$1)-3)) -> 0 | H39: =IF($C39="",0,OFFSET($C67,MATCH($C39,$C$55:$C$514,0)+24-SUM($A$27:$A39),COLUMN(H$1)-3)) -> 0 | I39: =IF($C39="",0,OFFSET($C67,MATCH($C39,$C$55:$C$514,0)+24-SUM($A$27:$A39),COLUMN(I$1)-3)) -> 0 | J39: =IF($C39="",0,OFFSET($C67,MATCH($C39,$C$55:$C$514,0)+24-SUM($A$27:$A39),COLUMN(J$1)-3)) -> 0 | K39: =IF($C39="",0,OFFSET($C67,MATCH($C39,$C$55:$C$514,0)+24-SUM($A$27:$A39),COLUMN(K$1)-3)) -> 0 | L39: =IF($C39="",0,OFFSET($C67,MATCH($C39,$C$55:$C$514,0)+24-SUM($A$27:$A39),COLUMN(L$1)-3)) -> 0 | M39: =IF($C39="",0,OFFSET($C67,MATCH($C39,$C$55:$C$514,0)+24-SUM($A$27:$A39),COLUMN(M$1)-3)) -> 0 | N39: =IF($C39="",0,OFFSET($C67,MATCH($C39,$C$55:$C$514,0)+24-SUM($A$27:$A39),COLUMN(N$1)-3)) -> 0 | O39: 0 | P39: =IF($C39="",0,OFFSET($C67,MATCH($C39,$C$55:$C$514,0)+24-SUM($A$27:$A39),COLUMN(P$1)-3)) -> 0 | Q39: =IF($C39="",0,OFFSET($C67,MATCH($C39,$C$55:$C$514,0)+24-SUM($A$27:$A39),COLUMN(Q$1)-3)) -> 0 | R39: =IF($C39="",0,OFFSET($C67,MATCH($C39,$C$55:$C$514,0)+24-SUM($A$27:$A39),COLUMN(R$1)-3)) -> 0 | S39: =IF($C39="",0,OFFSET($C67,MATCH($C39,$C$55:$C$514,0)+24-SUM($A$27:$A39),COLUMN(S$1)-3)) -> 0 | T39: =IF($C39="",0,OFFSET($C67,MATCH($C39,$C$55:$C$514,0)+24-SUM($A$27:$A39),COLUMN(T$1)-3)) -> 0 | U39: =IF($C39="",0,OFFSET($C67,MATCH($C39,$C$55:$C$514,0)+24-SUM($A$27:$A39),COLUMN(U$1)-3)) -> 0 | V39: =IF($C39="",0,OFFSET($C67,MATCH($C39,$C$55:$C$514,0)+24-SUM($A$27:$A39),COLUMN(V$1)-3)) -> 0 | W39: =IF($C39="",0,OFFSET($C67,MATCH($C39,$C$55:$C$514,0)+24-SUM($A$27:$A39),COLUMN(W$1)-3)) -> 0 | X39: 0 | Y39: =IF($C39="",0,OFFSET($C67,MATCH($C39,$C$55:$C$514,0)+24-SUM($A$27:$A39),COLUMN(Y$1)-3)) -> 0 | Z39: =IF($C39="",0,OFFSET($C67,MATCH($C39,$C$55:$C$514,0)+24-SUM($A$27:$A39),COLUMN(Z$1)-3)) -> 0 | AA39: =IF($C39="",0,OFFSET($C67,MATCH($C39,$C$55:$C$514,0)+24-SUM($A$27:$A39),COLUMN(AA$1)-3)) -> 0 | AB39: =IF($C39="",0,OFFSET($C67,MATCH($C39,$C$55:$C$514,0)+24-SUM($A$27:$A39),COLUMN(AB$1)-3)) -> 0 | AC39: =IF($C39="",0,OFFSET($C67,MATCH($C39,$C$55:$C$514,0)+24-SUM($A$27:$A39),COLUMN(AC$1)-3)) -> 0 | AD39: =IF($C39="",0,OFFSET($C67,MATCH($C39,$C$55:$C$514,0)+24-SUM($A$27:$A39),COLUMN(AD$1)-3)) -> 0 | AE39: =IF($C39="",0,OFFSET($C67,MATCH($C39,$C$55:$C$514,0)+24-SUM($A$27:$A39),COLUMN(AE$1)-3)) -> 0 | AF39: =IF($C39="",0,OFFSET($C67,MATCH($C39,$C$55:$C$514,0)+24-SUM($A$27:$A39),COLUMN(AF$1)-3)) -> 0 | AG39: 0 | AH39: =IF($C39="",0,OFFSET($C67,MATCH($C39,$C$55:$C$514,0)+24-SUM($A$27:$A39),COLUMN(AH$1)-3)) -> 0 | AI39: =IF($C39="",0,OFFSET($C67,MATCH($C39,$C$55:$C$514,0)+24-SUM($A$27:$A39),COLUMN(AI$1)-3)) -> 0 | AJ39: =IF($C39="",0,OFFSET($C67,MATCH($C39,$C$55:$C$514,0)+24-SUM($A$27:$A39),COLUMN(AJ$1)-3)) -> 0 | AK39: =IF($C39="",0,OFFSET($C67,MATCH($C39,$C$55:$C$514,0)+24-SUM($A$27:$A39),COLUMN(AK$1)-3)) -> 0 | AL39: =IF($C39="",0,OFFSET($C67,MATCH($C39,$C$55:$C$514,0)+24-SUM($A$27:$A39),COLUMN(AL$1)-3)) -> 0 | AM39: =IF($C39="",0,OFFSET($C67,MATCH($C39,$C$55:$C$514,0)+24-SUM($A$27:$A39),COLUMN(AM$1)-3)) -> 0 | AN39: =IF($C39="",0,OFFSET($C67,MATCH($C39,$C$55:$C$514,0)+24-SUM($A$27:$A39),COLUMN(AN$1)-3)) -> 0 | AO39: =IF($C39="",0,OFFSET($C67,MATCH($C39,$C$55:$C$514,0)+24-SUM($A$27:$A39),COLUMN(AO$1)-3)) -> 0 | AP39: 0 | AQ39: =IF($C39="",0,OFFSET($C67,MATCH($C39,$C$55:$C$514,0)+24-SUM($A$27:$A39),COLUMN(AQ$1)-3)) -> 0 | AR39: =IF($C39="",0,OFFSET($C67,MATCH($C39,$C$55:$C$514,0)+24-SUM($A$27:$A39),COLUMN(AR$1)-3)) -> 0 | AS39: =IF($C39="",0,OFFSET($C67,MATCH($C39,$C$55:$C$514,0)+24-SUM($A$27:$A39),COLUMN(AS$1)-3)) -> 0
A40: 0 | D40: =IF($C40="",0,OFFSET($C68,MATCH($C40,$C$55:$C$514,0)+24-SUM($A$27:$A40),COLUMN(D$1)-3)) -> 0 | E40: =IF($C40="",0,OFFSET($C68,MATCH($C40,$C$55:$C$514,0)+24-SUM($A$27:$A40),COLUMN(E$1)-3)) -> 0 | F40: =IF($C40="",0,OFFSET($C68,MATCH($C40,$C$55:$C$514,0)+24-SUM($A$27:$A40),COLUMN(F$1)-3)) -> 0 | G40: =IF($C40="",0,OFFSET($C68,MATCH($C40,$C$55:$C$514,0)+24-SUM($A$27:$A40),COLUMN(G$1)-3)) -> 0 | H40: =IF($C40="",0,OFFSET($C68,MATCH($C40,$C$55:$C$514,0)+24-SUM($A$27:$A40),COLUMN(H$1)-3)) -> 0 | I40: =IF($C40="",0,OFFSET($C68,MATCH($C40,$C$55:$C$514,0)+24-SUM($A$27:$A40),COLUMN(I$1)-3)) -> 0 | J40: =IF($C40="",0,OFFSET($C68,MATCH($C40,$C$55:$C$514,0)+24-SUM($A$27:$A40),COLUMN(J$1)-3)) -> 0 | K40: =IF($C40="",0,OFFSET($C68,MATCH($C40,$C$55:$C$514,0)+24-SUM($A$27:$A40),COLUMN(K$1)-3)) -> 0 | L40: =IF($C40="",0,OFFSET($C68,MATCH($C40,$C$55:$C$514,0)+24-SUM($A$27:$A40),COLUMN(L$1)-3)) -> 0 | M40: =IF($C40="",0,OFFSET($C68,MATCH($C40,$C$55:$C$514,0)+24-SUM($A$27:$A40),COLUMN(M$1)-3)) -> 0 | N40: =IF($C40="",0,OFFSET($C68,MATCH($C40,$C$55:$C$514,0)+24-SUM($A$27:$A40),COLUMN(N$1)-3)) -> 0 | O40: 0 | P40: =IF($C40="",0,OFFSET($C68,MATCH($C40,$C$55:$C$514,0)+24-SUM($A$27:$A40),COLUMN(P$1)-3)) -> 0 | Q40: =IF($C40="",0,OFFSET($C68,MATCH($C40,$C$55:$C$514,0)+24-SUM($A$27:$A40),COLUMN(Q$1)-3)) -> 0 | R40: =IF($C40="",0,OFFSET($C68,MATCH($C40,$C$55:$C$514,0)+24-SUM($A$27:$A40),COLUMN(R$1)-3)) -> 0 | S40: =IF($C40="",0,OFFSET($C68,MATCH($C40,$C$55:$C$514,0)+24-SUM($A$27:$A40),COLUMN(S$1)-3)) -> 0 | T40: =IF($C40="",0,OFFSET($C68,MATCH($C40,$C$55:$C$514,0)+24-SUM($A$27:$A40),COLUMN(T$1)-3)) -> 0 | U40: =IF($C40="",0,OFFSET($C68,MATCH($C40,$C$55:$C$514,0)+24-SUM($A$27:$A40),COLUMN(U$1)-3)) -> 0 | V40: =IF($C40="",0,OFFSET($C68,MATCH($C40,$C$55:$C$514,0)+24-SUM($A$27:$A40),COLUMN(V$1)-3)) -> 0 | W40: =IF($C40="",0,OFFSET($C68,MATCH($C40,$C$55:$C$514,0)+24-SUM($A$27:$A40),COLUMN(W$1)-3)) -> 0 | X40: 0 | Y40: =IF($C40="",0,OFFSET($C68,MATCH($C40,$C$55:$C$514,0)+24-SUM($A$27:$A40),COLUMN(Y$1)-3)) -> 0 | Z40: =IF($C40="",0,OFFSET($C68,MATCH($C40,$C$55:$C$514,0)+24-SUM($A$27:$A40),COLUMN(Z$1)-3)) -> 0 | AA40: =IF($C40="",0,OFFSET($C68,MATCH($C40,$C$55:$C$514,0)+24-SUM($A$27:$A40),COLUMN(AA$1)-3)) -> 0 | AB40: =IF($C40="",0,OFFSET($C68,MATCH($C40,$C$55:$C$514,0)+24-SUM($A$27:$A40),COLUMN(AB$1)-3)) -> 0 | AC40: =IF($C40="",0,OFFSET($C68,MATCH($C40,$C$55:$C$514,0)+24-SUM($A$27:$A40),COLUMN(AC$1)-3)) -> 0 | AD40: =IF($C40="",0,OFFSET($C68,MATCH($C40,$C$55:$C$514,0)+24-SUM($A$27:$A40),COLUMN(AD$1)-3)) -> 0 | AE40: =IF($C40="",0,OFFSET($C68,MATCH($C40,$C$55:$C$514,0)+24-SUM($A$27:$A40),COLUMN(AE$1)-3)) -> 0 | AF40: =IF($C40="",0,OFFSET($C68,MATCH($C40,$C$55:$C$514,0)+24-SUM($A$27:$A40),COLUMN(AF$1)-3)) -> 0 | AG40: 0 | AH40: =IF($C40="",0,OFFSET($C68,MATCH($C40,$C$55:$C$514,0)+24-SUM($A$27:$A40),COLUMN(AH$1)-3)) -> 0 | AI40: =IF($C40="",0,OFFSET($C68,MATCH($C40,$C$55:$C$514,0)+24-SUM($A$27:$A40),COLUMN(AI$1)-3)) -> 0 | AJ40: =IF($C40="",0,OFFSET($C68,MATCH($C40,$C$55:$C$514,0)+24-SUM($A$27:$A40),COLUMN(AJ$1)-3)) -> 0 | AK40: =IF($C40="",0,OFFSET($C68,MATCH($C40,$C$55:$C$514,0)+24-SUM($A$27:$A40),COLUMN(AK$1)-3)) -> 0 | AL40: =IF($C40="",0,OFFSET($C68,MATCH($C40,$C$55:$C$514,0)+24-SUM($A$27:$A40),COLUMN(AL$1)-3)) -> 0 | AM40: =IF($C40="",0,OFFSET($C68,MATCH($C40,$C$55:$C$514,0)+24-SUM($A$27:$A40),COLUMN(AM$1)-3)) -> 0 | AN40: =IF($C40="",0,OFFSET($C68,MATCH($C40,$C$55:$C$514,0)+24-SUM($A$27:$A40),COLUMN(AN$1)-3)) -> 0 | AO40: =IF($C40="",0,OFFSET($C68,MATCH($C40,$C$55:$C$514,0)+24-SUM($A$27:$A40),COLUMN(AO$1)-3)) -> 0 | AP40: 0 | AQ40: =IF($C40="",0,OFFSET($C68,MATCH($C40,$C$55:$C$514,0)+24-SUM($A$27:$A40),COLUMN(AQ$1)-3)) -> 0 | AR40: =IF($C40="",0,OFFSET($C68,MATCH($C40,$C$55:$C$514,0)+24-SUM($A$27:$A40),COLUMN(AR$1)-3)) -> 0 | AS40: =IF($C40="",0,OFFSET($C68,MATCH($C40,$C$55:$C$514,0)+24-SUM($A$27:$A40),COLUMN(AS$1)-3)) -> 0
A41: 0 | D41: =IF($C41="",0,OFFSET($C69,MATCH($C41,$C$55:$C$514,0)+24-SUM($A$27:$A41),COLUMN(D$1)-3)) -> 0 | E41: =IF($C41="",0,OFFSET($C69,MATCH($C41,$C$55:$C$514,0)+24-SUM($A$27:$A41),COLUMN(E$1)-3)) -> 0 | F41: =IF($C41="",0,OFFSET($C69,MATCH($C41,$C$55:$C$514,0)+24-SUM($A$27:$A41),COLUMN(F$1)-3)) -> 0 | G41: =IF($C41="",0,OFFSET($C69,MATCH($C41,$C$55:$C$514,0)+24-SUM($A$27:$A41),COLUMN(G$1)-3)) -> 0 | H41: =IF($C41="",0,OFFSET($C69,MATCH($C41,$C$55:$C$514,0)+24-SUM($A$27:$A41),COLUMN(H$1)-3)) -> 0 | I41: =IF($C41="",0,OFFSET($C69,MATCH($C41,$C$55:$C$514,0)+24-SUM($A$27:$A41),COLUMN(I$1)-3)) -> 0 | J41: =IF($C41="",0,OFFSET($C69,MATCH($C41,$C$55:$C$514,0)+24-SUM($A$27:$A41),COLUMN(J$1)-3)) -> 0 | K41: =IF($C41="",0,OFFSET($C69,MATCH($C41,$C$55:$C$514,0)+24-SUM($A$27:$A41),COLUMN(K$1)-3)) -> 0 | L41: =IF($C41="",0,OFFSET($C69,MATCH($C41,$C$55:$C$514,0)+24-SUM($A$27:$A41),COLUMN(L$1)-3)) -> 0 | M41: =IF($C41="",0,OFFSET($C69,MATCH($C41,$C$55:$C$514,0)+24-SUM($A$27:$A41),COLUMN(M$1)-3)) -> 0 | N41: =IF($C41="",0,OFFSET($C69,MATCH($C41,$C$55:$C$514,0)+24-SUM($A$27:$A41),COLUMN(N$1)-3)) -> 0 | O41: 0 | P41: =IF($C41="",0,OFFSET($C69,MATCH($C41,$C$55:$C$514,0)+24-SUM($A$27:$A41),COLUMN(P$1)-3)) -> 0 | Q41: =IF($C41="",0,OFFSET($C69,MATCH($C41,$C$55:$C$514,0)+24-SUM($A$27:$A41),COLUMN(Q$1)-3)) -> 0 | R41: =IF($C41="",0,OFFSET($C69,MATCH($C41,$C$55:$C$514,0)+24-SUM($A$27:$A41),COLUMN(R$1)-3)) -> 0 | S41: =IF($C41="",0,OFFSET($C69,MATCH($C41,$C$55:$C$514,0)+24-SUM($A$27:$A41),COLUMN(S$1)-3)) -> 0 | T41: =IF($C41="",0,OFFSET($C69,MATCH($C41,$C$55:$C$514,0)+24-SUM($A$27:$A41),COLUMN(T$1)-3)) -> 0 | U41: =IF($C41="",0,OFFSET($C69,MATCH($C41,$C$55:$C$514,0)+24-SUM($A$27:$A41),COLUMN(U$1)-3)) -> 0 | V41: =IF($C41="",0,OFFSET($C69,MATCH($C41,$C$55:$C$514,0)+24-SUM($A$27:$A41),COLUMN(V$1)-3)) -> 0 | W41: =IF($C41="",0,OFFSET($C69,MATCH($C41,$C$55:$C$514,0)+24-SUM($A$27:$A41),COLUMN(W$1)-3)) -> 0 | X41: 0 | Y41: =IF($C41="",0,OFFSET($C69,MATCH($C41,$C$55:$C$514,0)+24-SUM($A$27:$A41),COLUMN(Y$1)-3)) -> 0 | Z41: =IF($C41="",0,OFFSET($C69,MATCH($C41,$C$55:$C$514,0)+24-SUM($A$27:$A41),COLUMN(Z$1)-3)) -> 0 | AA41: =IF($C41="",0,OFFSET($C69,MATCH($C41,$C$55:$C$514,0)+24-SUM($A$27:$A41),COLUMN(AA$1)-3)) -> 0 | AB41: =IF($C41="",0,OFFSET($C69,MATCH($C41,$C$55:$C$514,0)+24-SUM($A$27:$A41),COLUMN(AB$1)-3)) -> 0 | AC41: =IF($C41="",0,OFFSET($C69,MATCH($C41,$C$55:$C$514,0)+24-SUM($A$27:$A41),COLUMN(AC$1)-3)) -> 0 | AD41: =IF($C41="",0,OFFSET($C69,MATCH($C41,$C$55:$C$514,0)+24-SUM($A$27:$A41),COLUMN(AD$1)-3)) -> 0 | AE41: =IF($C41="",0,OFFSET($C69,MATCH($C41,$C$55:$C$514,0)+24-SUM($A$27:$A41),COLUMN(AE$1)-3)) -> 0 | AF41: =IF($C41="",0,OFFSET($C69,MATCH($C41,$C$55:$C$514,0)+24-SUM($A$27:$A41),COLUMN(AF$1)-3)) -> 0 | AG41: 0 | AH41: =IF($C41="",0,OFFSET($C69,MATCH($C41,$C$55:$C$514,0)+24-SUM($A$27:$A41),COLUMN(AH$1)-3)) -> 0 | AI41: =IF($C41="",0,OFFSET($C69,MATCH($C41,$C$55:$C$514,0)+24-SUM($A$27:$A41),COLUMN(AI$1)-3)) -> 0 | AJ41: =IF($C41="",0,OFFSET($C69,MATCH($C41,$C$55:$C$514,0)+24-SUM($A$27:$A41),COLUMN(AJ$1)-3)) -> 0 | AK41: =IF($C41="",0,OFFSET($C69,MATCH($C41,$C$55:$C$514,0)+24-SUM($A$27:$A41),COLUMN(AK$1)-3)) -> 0 | AL41: =IF($C41="",0,OFFSET($C69,MATCH($C41,$C$55:$C$514,0)+24-SUM($A$27:$A41),COLUMN(AL$1)-3)) -> 0 | AM41: =IF($C41="",0,OFFSET($C69,MATCH($C41,$C$55:$C$514,0)+24-SUM($A$27:$A41),COLUMN(AM$1)-3)) -> 0 | AN41: =IF($C41="",0,OFFSET($C69,MATCH($C41,$C$55:$C$514,0)+24-SUM($A$27:$A41),COLUMN(AN$1)-3)) -> 0 | AO41: =IF($C41="",0,OFFSET($C69,MATCH($C41,$C$55:$C$514,0)+24-SUM($A$27:$A41),COLUMN(AO$1)-3)) -> 0 | AP41: 0 | AQ41: =IF($C41="",0,OFFSET($C69,MATCH($C41,$C$55:$C$514,0)+24-SUM($A$27:$A41),COLUMN(AQ$1)-3)) -> 0 | AR41: =IF($C41="",0,OFFSET($C69,MATCH($C41,$C$55:$C$514,0)+24-SUM($A$27:$A41),COLUMN(AR$1)-3)) -> 0 | AS41: =IF($C41="",0,OFFSET($C69,MATCH($C41,$C$55:$C$514,0)+24-SUM($A$27:$A41),COLUMN(AS$1)-3)) -> 0
A42: 0 | D42: =IF($C42="",0,OFFSET($C70,MATCH($C42,$C$55:$C$514,0)+24-SUM($A$27:$A42),COLUMN(D$1)-3)) -> 0 | E42: =IF($C42="",0,OFFSET($C70,MATCH($C42,$C$55:$C$514,0)+24-SUM($A$27:$A42),COLUMN(E$1)-3)) -> 0 | F42: =IF($C42="",0,OFFSET($C70,MATCH($C42,$C$55:$C$514,0)+24-SUM($A$27:$A42),COLUMN(F$1)-3)) -> 0 | G42: =IF($C42="",0,OFFSET($C70,MATCH($C42,$C$55:$C$514,0)+24-SUM($A$27:$A42),COLUMN(G$1)-3)) -> 0 | H42: =IF($C42="",0,OFFSET($C70,MATCH($C42,$C$55:$C$514,0)+24-SUM($A$27:$A42),COLUMN(H$1)-3)) -> 0 | I42: =IF($C42="",0,OFFSET($C70,MATCH($C42,$C$55:$C$514,0)+24-SUM($A$27:$A42),COLUMN(I$1)-3)) -> 0 | J42: =IF($C42="",0,OFFSET($C70,MATCH($C42,$C$55:$C$514,0)+24-SUM($A$27:$A42),COLUMN(J$1)-3)) -> 0 | K42: =IF($C42="",0,OFFSET($C70,MATCH($C42,$C$55:$C$514,0)+24-SUM($A$27:$A42),COLUMN(K$1)-3)) -> 0 | L42: =IF($C42="",0,OFFSET($C70,MATCH($C42,$C$55:$C$514,0)+24-SUM($A$27:$A42),COLUMN(L$1)-3)) -> 0 | M42: =IF($C42="",0,OFFSET($C70,MATCH($C42,$C$55:$C$514,0)+24-SUM($A$27:$A42),COLUMN(M$1)-3)) -> 0 | N42: =IF($C42="",0,OFFSET($C70,MATCH($C42,$C$55:$C$514,0)+24-SUM($A$27:$A42),COLUMN(N$1)-3)) -> 0 | O42: 0 | P42: =IF($C42="",0,OFFSET($C70,MATCH($C42,$C$55:$C$514,0)+24-SUM($A$27:$A42),COLUMN(P$1)-3)) -> 0 | Q42: =IF($C42="",0,OFFSET($C70,MATCH($C42,$C$55:$C$514,0)+24-SUM($A$27:$A42),COLUMN(Q$1)-3)) -> 0 | R42: =IF($C42="",0,OFFSET($C70,MATCH($C42,$C$55:$C$514,0)+24-SUM($A$27:$A42),COLUMN(R$1)-3)) -> 0 | S42: =IF($C42="",0,OFFSET($C70,MATCH($C42,$C$55:$C$514,0)+24-SUM($A$27:$A42),COLUMN(S$1)-3)) -> 0 | T42: =IF($C42="",0,OFFSET($C70,MATCH($C42,$C$55:$C$514,0)+24-SUM($A$27:$A42),COLUMN(T$1)-3)) -> 0 | U42: =IF($C42="",0,OFFSET($C70,MATCH($C42,$C$55:$C$514,0)+24-SUM($A$27:$A42),COLUMN(U$1)-3)) -> 0 | V42: =IF($C42="",0,OFFSET($C70,MATCH($C42,$C$55:$C$514,0)+24-SUM($A$27:$A42),COLUMN(V$1)-3)) -> 0 | W42: =IF($C42="",0,OFFSET($C70,MATCH($C42,$C$55:$C$514,0)+24-SUM($A$27:$A42),COLUMN(W$1)-3)) -> 0 | X42: 0 | Y42: =IF($C42="",0,OFFSET($C70,MATCH($C42,$C$55:$C$514,0)+24-SUM($A$27:$A42),COLUMN(Y$1)-3)) -> 0 | Z42: =IF($C42="",0,OFFSET($C70,MATCH($C42,$C$55:$C$514,0)+24-SUM($A$27:$A42),COLUMN(Z$1)-3)) -> 0 | AA42: =IF($C42="",0,OFFSET($C70,MATCH($C42,$C$55:$C$514,0)+24-SUM($A$27:$A42),COLUMN(AA$1)-3)) -> 0 | AB42: =IF($C42="",0,OFFSET($C70,MATCH($C42,$C$55:$C$514,0)+24-SUM($A$27:$A42),COLUMN(AB$1)-3)) -> 0 | AC42: =IF($C42="",0,OFFSET($C70,MATCH($C42,$C$55:$C$514,0)+24-SUM($A$27:$A42),COLUMN(AC$1)-3)) -> 0 | AD42: =IF($C42="",0,OFFSET($C70,MATCH($C42,$C$55:$C$514,0)+24-SUM($A$27:$A42),COLUMN(AD$1)-3)) -> 0 | AE42: =IF($C42="",0,OFFSET($C70,MATCH($C42,$C$55:$C$514,0)+24-SUM($A$27:$A42),COLUMN(AE$1)-3)) -> 0 | AF42: =IF($C42="",0,OFFSET($C70,MATCH($C42,$C$55:$C$514,0)+24-SUM($A$27:$A42),COLUMN(AF$1)-3)) -> 0 | AG42: 0 | AH42: =IF($C42="",0,OFFSET($C70,MATCH($C42,$C$55:$C$514,0)+24-SUM($A$27:$A42),COLUMN(AH$1)-3)) -> 0 | AI42: =IF($C42="",0,OFFSET($C70,MATCH($C42,$C$55:$C$514,0)+24-SUM($A$27:$A42),COLUMN(AI$1)-3)) -> 0 | AJ42: =IF($C42="",0,OFFSET($C70,MATCH($C42,$C$55:$C$514,0)+24-SUM($A$27:$A42),COLUMN(AJ$1)-3)) -> 0 | AK42: =IF($C42="",0,OFFSET($C70,MATCH($C42,$C$55:$C$514,0)+24-SUM($A$27:$A42),COLUMN(AK$1)-3)) -> 0 | AL42: =IF($C42="",0,OFFSET($C70,MATCH($C42,$C$55:$C$514,0)+24-SUM($A$27:$A42),COLUMN(AL$1)-3)) -> 0 | AM42: =IF($C42="",0,OFFSET($C70,MATCH($C42,$C$55:$C$514,0)+24-SUM($A$27:$A42),COLUMN(AM$1)-3)) -> 0 | AN42: =IF($C42="",0,OFFSET($C70,MATCH($C42,$C$55:$C$514,0)+24-SUM($A$27:$A42),COLUMN(AN$1)-3)) -> 0 | AO42: =IF($C42="",0,OFFSET($C70,MATCH($C42,$C$55:$C$514,0)+24-SUM($A$27:$A42),COLUMN(AO$1)-3)) -> 0 | AP42: 0 | AQ42: =IF($C42="",0,OFFSET($C70,MATCH($C42,$C$55:$C$514,0)+24-SUM($A$27:$A42),COLUMN(AQ$1)-3)) -> 0 | AR42: =IF($C42="",0,OFFSET($C70,MATCH($C42,$C$55:$C$514,0)+24-SUM($A$27:$A42),COLUMN(AR$1)-3)) -> 0 | AS42: =IF($C42="",0,OFFSET($C70,MATCH($C42,$C$55:$C$514,0)+24-SUM($A$27:$A42),COLUMN(AS$1)-3)) -> 0
A43: 1 | C43: Total | D43: =SUM(D23:D42) -> 0 | E43: =SUM(E23:E42) -> 0 | F43: =SUM(F23:F42) -> 0 | G43: =IFERROR(I43/F43,0) -> 0 | H43: =IFERROR(SUM(H27:H42)/COUNTIF(H27:H42,">0"),0) -> 0 | I43: =SUM(I23:I42) -> 0 | J43: =SUM(J23:J42) -> 0 | K43: =IFERROR(R43/O43,0) -> 0 | L43: =IFERROR(SUM(L27:L42)/COUNTIF(L27:L42,">0"),0) -> 0 | M43: =SUM(M23:M42) -> 0 | N43: =SUM(N23:N42) -> 0 | O43: =SUM(O23:O42) -> 0 | P43: =SUM(P23:P42) -> 0 | Q43: =SUM(Q23:Q42) -> 0 | R43: 0 | S43: =SUM(S23:S42) -> 0 | T43: =IFERROR(AA43/X43,0) -> 0 | U43: =IFERROR(SUM(U27:U42)/COUNTIF(U27:U42,">0"),0) -> 0 | V43: =SUM(V23:V42) -> 0 | W43: =SUM(W23:W42) -> 0 | X43: =SUM(X23:X42) -> 0 | Y43: =SUM(Y23:Y42) -> 0 | Z43: =SUM(Z23:Z42) -> 0 | AA43: 0 | AB43: =SUM(AB23:AB42) -> 0 | AC43: =IFERROR(AJ43/AG43,0) -> 0 | AD43: =IFERROR(SUM(AD27:AD42)/COUNTIF(AD27:AD42,">0"),0) -> 0 | AE43: =SUM(AE23:AE42) -> 0 | AF43: =SUM(AF23:AF42) -> 0 | AG43: =SUM(AG23:AG42) -> 0 | AH43: =SUM(AH23:AH42) -> 0 | AI43: =SUM(AI23:AI42) -> 0 | AJ43: 0 | AK43: =SUM(AK23:AK42) -> 0 | AL43: =IFERROR(AS43/AP43,0) -> 0 | AM43: =IFERROR(SUM(AM27:AM42)/COUNTIF(AM27:AM42,">0"),0) -> 0 | AN43: =SUM(AN23:AN42) -> 0 | AO43: =SUM(AO23:AO42) -> 0 | AP43: =SUM(AP23:AP42) -> 0 | AQ43: =SUM(AQ23:AQ42) -> 0 | AR43: =SUM(AR23:AR42) -> 0 | AS43: 0
A44: 1 | C44: Salary Bands
A45: 1 | C45: 1 - 6 | D45: =SUMIFS(D$55:D$514,$C$55:$C$514,">=1",$C$55:$C$514,"<=6") -> 0 | E45: 0 | F45: 0 | G45: =IFERROR(I45/F45,0) -> 0 | H45: =IFERROR(SUMIFS(H$55:H$514,$B$55:$B$514,">=1",$C$55:$C$514,"<>Total",$C$55:$C$514,">=1",$C$55:$C$514,"<=6")/COUNTIFS($B$55:$B$514,">=1",$C$55:$C$514,">=1",$C$55:$C$514,"<=6",$O$55:$O$514,">0"),0) -> 0 | I45: 0 | J45: 0 | K45: =IFERROR(R45/O45,0) -> 0 | L45: =IFERROR(SUMIFS(L$55:L$514,$B$55:$B$514,">=1",$C$55:$C$514,"<>Total",$C$55:$C$514,">=1",$C$55:$C$514,"<=6")/COUNTIFS($B$55:$B$514,">=1",$C$55:$C$514,">=1",$C$55:$C$514,"<=6",$O$55:$O$514,">0"),0) -> 0 | M45: 0 | N45: 0 | O45: =J45+M45-N45 -> 0 | P45: =SUMIFS(P$55:P$514,$C$55:$C$514,">=1",$C$55:$C$514,"<=6") -> 0 | Q45: =SUMIFS(Q$55:Q$514,$C$55:$C$514,">=1",$C$55:$C$514,"<=6") -> 0 | R45: =SUMIFS(R$55:R$514,$C$55:$C$514,">=1",$C$55:$C$514,"<=6") -> 0 | S45: =SUMIFS(S$55:S$514,$C$55:$C$514,">=1",$C$55:$C$514,"<=6") -> 0 | T45: =IFERROR(AA45/X45,0) -> 0 | U45: =IFERROR(SUMIFS(U$55:U$514,$B$55:$B$514,">=1",$C$55:$C$514,"<>Total",$C$55:$C$514,">=1",$C$55:$C$514,"<=6")/COUNTIFS($B$55:$B$514,">=1",$C$55:$C$514,">=1",$C$55:$C$514,"<=6",$O$55:$O$514,">0"),0) -> 0 | V45: =SUMIFS(V$55:V$514,$C$55:$C$514,">=1",$C$55:$C$514,"<=6") -> 0 | W45: =SUMIFS(W$55:W$514,$C$55:$C$514,">=1",$C$55:$C$514,"<=6") -> 0 | X45: =S45+V45-W45 -> 0 | Y45: =SUMIFS(Y$55:Y$514,$C$55:$C$514,">=1",$C$55:$C$514,"<=6") -> 0 | Z45: =SUMIFS(Z$55:Z$514,$C$55:$C$514,">=1",$C$55:$C$514,"<=6") -> 0 | AA45: =SUMIFS(AA$55:AA$514,$C$55:$C$514,">=1",$C$55:$C$514,"<=6") -> 0 | AB45: =SUMIFS(AB$55:AB$514,$C$55:$C$514,">=1",$C$55:$C$514,"<=6") -> 0 | AC45: =IFERROR(AJ45/AG45,0) -> 0 | AD45: =IFERROR(SUMIFS(AD$55:AD$514,$B$55:$B$514,">=1",$C$55:$C$514,"<>Total",$C$55:$C$514,">=1",$C$55:$C$514,"<=6")/COUNTIFS($B$55:$B$514,">=1",$C$55:$C$514,">=1",$C$55:$C$514,"<=6",$O$55:$O$514,">0"),0) -> 0 | AE45: =SUMIFS(AE$55:AE$514,$C$55:$C$514,">=1",$C$55:$C$514,"<=6") -> 0 | AF45: =SUMIFS(AF$55:AF$514,$C$55:$C$514,">=1",$C$55:$C$514,"<=6") -> 0 | AG45: =AB45+AE45-AF45 -> 0 | AH45: =SUMIFS(AH$55:AH$514,$C$55:$C$514,">=1",$C$55:$C$514,"<=6") -> 0 | AI45: =SUMIFS(AI$55:AI$514,$C$55:$C$514,">=1",$C$55:$C$514,"<=6") -> 0 | AJ45: =SUMIFS(AJ$55:AJ$514,$C$55:$C$514,">=1",$C$55:$C$514,"<=6") -> 0 | AK45: =SUMIFS(AK$55:AK$514,$C$55:$C$514,">=1",$C$55:$C$514,"<=6") -> 0 | AL45: =IFERROR(AS45/AP45,0) -> 0 | AM45: =IFERROR(SUMIFS(AM$55:AM$514,$B$55:$B$514,">=1",$C$55:$C$514,"<>Total",$C$55:$C$514,">=1",$C$55:$C$514,"<=6")/COUNTIFS($B$55:$B$514,">=1",$C$55:$C$514,">=1",$C$55:$C$514,"<=6",$O$55:$O$514,">0"),0) -> 0 | AN45: =SUMIFS(AN$55:AN$514,$C$55:$C$514,">=1",$C$55:$C$514,"<=6") -> 0 | AO45: =SUMIFS(AO$55:AO$514,$C$55:$C$514,">=1",$C$55:$C$514,"<=6") -> 0 | AP45: =AK45+AN45-AO45 -> 0 | AQ45: =SUMIFS(AQ$55:AQ$514,$C$55:$C$514,">=1",$C$55:$C$514,"<=6") -> 0 | AR45: =SUMIFS(AR$55:AR$514,$C$55:$C$514,">=1",$C$55:$C$514,"<=6") -> 0 | AS45: =SUMIFS(AS$55:AS$514,$C$55:$C$514,">=1",$C$55:$C$514,"<=6") -> 0
A46: 1 | C46: 7 - 10 | D46: =SUMIFS(D$55:D$514,$C$55:$C$514,">=7",$C$55:$C$514,"<=10") -> 0 | E46: 0 | F46: 0 | G46: 0 | H46: =IFERROR(SUMIFS(H$55:H$514,$B$55:$B$514,">=1",$C$55:$C$514,"<>Total",$C$55:$C$514,">=7",$C$55:$C$514,"<=10")/COUNTIFS($B$55:$B$514,">=1",$C$55:$C$514,">=7",$C$55:$C$514,"<=10",$O$55:$O$514,">0"),0) -> 0 | I46: 0 | J46: 0 | K46: =IFERROR(R46/O46,0) -> 0 | L46: =IFERROR(SUMIFS(L$55:L$514,$B$55:$B$514,">=1",$C$55:$C$514,"<>Total",$C$55:$C$514,">=7",$C$55:$C$514,"<=10")/COUNTIFS($B$55:$B$514,">=1",$C$55:$C$514,">=7",$C$55:$C$514,"<=10",$O$55:$O$514,">0"),0) -> 0 | M46: 0 | N46: 0 | O46: 0 | P46: =SUMIFS(P$55:P$514,$C$55:$C$514,">=7",$C$55:$C$514,"<=10") -> 0 | Q46: =SUMIFS(Q$55:Q$514,$C$55:$C$514,">=7",$C$55:$C$514,"<=10") -> 0 | R46: =SUMIFS(R$55:R$514,$C$55:$C$514,">=7",$C$55:$C$514,"<=10") -> 0 | S46: =SUMIFS(S$55:S$514,$C$55:$C$514,">=7",$C$55:$C$514,"<=10") -> 0 | T46: =IFERROR(AA46/X46,0) -> 0 | U46: =IFERROR(SUMIFS(U$55:U$514,$B$55:$B$514,">=1",$C$55:$C$514,"<>Total",$C$55:$C$514,">=7",$C$55:$C$514,"<=10")/COUNTIFS($B$55:$B$514,">=1",$C$55:$C$514,">=7",$C$55:$C$514,"<=10",$O$55:$O$514,">0"),0) -> 0 | V46: =SUMIFS(V$55:V$514,$C$55:$C$514,">=7",$C$55:$C$514,"<=10") -> 0 | W46: =SUMIFS(W$55:W$514,$C$55:$C$514,">=7",$C$55:$C$514,"<=10") -> 0 | X46: 0 | Y46: =SUMIFS(Y$55:Y$514,$C$55:$C$514,">=7",$C$55:$C$514,"<=10") -> 0 | Z46: =SUMIFS(Z$55:Z$514,$C$55:$C$514,">=7",$C$55:$C$514,"<=10") -> 0 | AA46: =SUMIFS(AA$55:AA$514,$C$55:$C$514,">=7",$C$55:$C$514,"<=10") -> 0 | AB46: =SUMIFS(AB$55:AB$514,$C$55:$C$514,">=7",$C$55:$C$514,"<=10") -> 0 | AC46: =IFERROR(AJ46/AG46,0) -> 0 | AD46: =IFERROR(SUMIFS(AD$55:AD$514,$B$55:$B$514,">=1",$C$55:$C$514,"<>Total",$C$55:$C$514,">=7",$C$55:$C$514,"<=10")/COUNTIFS($B$55:$B$514,">=1",$C$55:$C$514,">=7",$C$55:$C$514,"<=10",$O$55:$O$514,">0"),0) -> 0 | AE46: =SUMIFS(AE$55:AE$514,$C$55:$C$514,">=7",$C$55:$C$514,"<=10") -> 0 | AF46: =SUMIFS(AF$55:AF$514,$C$55:$C$514,">=7",$C$55:$C$514,"<=10") -> 0 | AG46: 0 | AH46: =SUMIFS(AH$55:AH$514,$C$55:$C$514,">=7",$C$55:$C$514,"<=10") -> 0 | AI46: =SUMIFS(AI$55:AI$514,$C$55:$C$514,">=7",$C$55:$C$514,"<=10") -> 0 | AJ46: =SUMIFS(AJ$55:AJ$514,$C$55:$C$514,">=7",$C$55:$C$514,"<=10") -> 0 | AK46: =SUMIFS(AK$55:AK$514,$C$55:$C$514,">=7",$C$55:$C$514,"<=10") -> 0 | AL46: =IFERROR(AS46/AP46,0) -> 0 | AM46: =IFERROR(SUMIFS(AM$55:AM$514,$B$55:$B$514,">=1",$C$55:$C$514,"<>Total",$C$55:$C$514,">=7",$C$55:$C$514,"<=10")/COUNTIFS($B$55:$B$514,">=1",$C$55:$C$514,">=7",$C$55:$C$514,"<=10",$O$55:$O$514,">0"),0) -> 0 | AN46: =SUMIFS(AN$55:AN$514,$C$55:$C$514,">=7",$C$55:$C$514,"<=10") -> 0 | AO46: =SUMIFS(AO$55:AO$514,$C$55:$C$514,">=7",$C$55:$C$514,"<=10") -> 0 | AP46: 0 | AQ46: =SUMIFS(AQ$55:AQ$514,$C$55:$C$514,">=7",$C$55:$C$514,"<=10") -> 0 | AR46: =SUMIFS(AR$55:AR$514,$C$55:$C$514,">=7",$C$55:$C$514,"<=10") -> 0 | AS46: =SUMIFS(AS$55:AS$514,$C$55:$C$514,">=7",$C$55:$C$514,"<=10") -> 0
A47: 1 | C47: 11 - 12 | D47: =SUMIFS(D$55:D$514,$C$55:$C$514,">=11",$C$55:$C$514,"<=12") -> 0 | E47: 0 | F47: 0 | G47: 0 | H47: =IFERROR(SUMIFS(H$55:H$514,$B$55:$B$514,">=1",$C$55:$C$514,"<>Total",$C$55:$C$514,">=11",$C$55:$C$514,"<=12")/COUNTIFS($B$55:$B$514,">=1",$C$55:$C$514,">=11",$C$55:$C$514,"<=12",$O$55:$O$514,">0"),0) -> 0 | I47: 0 | J47: 0 | K47: 0 | L47: =IFERROR(SUMIFS(L$55:L$514,$B$55:$B$514,">=1",$C$55:$C$514,"<>Total",$C$55:$C$514,">=11",$C$55:$C$514,"<=12")/COUNTIFS($B$55:$B$514,">=1",$C$55:$C$514,">=11",$C$55:$C$514,"<=12",$O$55:$O$514,">0"),0) -> 0 | M47: 0 | N47: 0 | O47: 0 | P47: =SUMIFS(P$55:P$514,$C$55:$C$514,">=11",$C$55:$C$514,"<=12") -> 0 | Q47: =SUMIFS(Q$55:Q$514,$C$55:$C$514,">=11",$C$55:$C$514,"<=12") -> 0 | R47: =SUMIFS(R$55:R$514,$C$55:$C$514,">=11",$C$55:$C$514,"<=12") -> 0 | S47: =SUMIFS(S$55:S$514,$C$55:$C$514,">=11",$C$55:$C$514,"<=12") -> 0 | T47: 0 | U47: =IFERROR(SUMIFS(U$55:U$514,$B$55:$B$514,">=1",$C$55:$C$514,"<>Total",$C$55:$C$514,">=11",$C$55:$C$514,"<=12")/COUNTIFS($B$55:$B$514,">=1",$C$55:$C$514,">=11",$C$55:$C$514,"<=12",$O$55:$O$514,">0"),0) -> 0 | V47: =SUMIFS(V$55:V$514,$C$55:$C$514,">=11",$C$55:$C$514,"<=12") -> 0 | W47: =SUMIFS(W$55:W$514,$C$55:$C$514,">=11",$C$55:$C$514,"<=12") -> 0 | X47: 0 | Y47: =SUMIFS(Y$55:Y$514,$C$55:$C$514,">=11",$C$55:$C$514,"<=12") -> 0 | Z47: =SUMIFS(Z$55:Z$514,$C$55:$C$514,">=11",$C$55:$C$514,"<=12") -> 0 | AA47: =SUMIFS(AA$55:AA$514,$C$55:$C$514,">=11",$C$55:$C$514,"<=12") -> 0 | AB47: =SUMIFS(AB$55:AB$514,$C$55:$C$514,">=11",$C$55:$C$514,"<=12") -> 0 | AC47: 0 | AD47: =IFERROR(SUMIFS(AD$55:AD$514,$B$55:$B$514,">=1",$C$55:$C$514,"<>Total",$C$55:$C$514,">=11",$C$55:$C$514,"<=12")/COUNTIFS($B$55:$B$514,">=1",$C$55:$C$514,">=11",$C$55:$C$514,"<=12",$O$55:$O$514,">0"),0) -> 0 | AE47: =SUMIFS(AE$55:AE$514,$C$55:$C$514,">=11",$C$55:$C$514,"<=12") -> 0 | AF47: =SUMIFS(AF$55:AF$514,$C$55:$C$514,">=11",$C$55:$C$514,"<=12") -> 0 | AG47: 0 | AH47: =SUMIFS(AH$55:AH$514,$C$55:$C$514,">=11",$C$55:$C$514,"<=12") -> 0 | AI47: =SUMIFS(AI$55:AI$514,$C$55:$C$514,">=11",$C$55:$C$514,"<=12") -> 0 | AJ47: =SUMIFS(AJ$55:AJ$514,$C$55:$C$514,">=11",$C$55:$C$514,"<=12") -> 0 | AK47: =SUMIFS(AK$55:AK$514,$C$55:$C$514,">=11",$C$55:$C$514,"<=12") -> 0 | AL47: 0 | AM47: =IFERROR(SUMIFS(AM$55:AM$514,$B$55:$B$514,">=1",$C$55:$C$514,"<>Total",$C$55:$C$514,">=11",$C$55:$C$514,"<=12")/COUNTIFS($B$55:$B$514,">=1",$C$55:$C$514,">=11",$C$55:$C$514,"<=12",$O$55:$O$514,">0"),0) -> 0 | AN47: =SUMIFS(AN$55:AN$514,$C$55:$C$514,">=11",$C$55:$C$514,"<=12") -> 0 | AO47: =SUMIFS(AO$55:AO$514,$C$55:$C$514,">=11",$C$55:$C$514,"<=12") -> 0 | AP47: 0 | AQ47: =SUMIFS(AQ$55:AQ$514,$C$55:$C$514,">=11",$C$55:$C$514,"<=12") -> 0 | AR47: =SUMIFS(AR$55:AR$514,$C$55:$C$514,">=11",$C$55:$C$514,"<=12") -> 0 | AS47: =SUMIFS(AS$55:AS$514,$C$55:$C$514,">=11",$C$55:$C$514,"<=12") -> 0
A48: 1 | C48: 13 - 16 | D48: =SUMIFS(D$55:D$514,$C$55:$C$514,">=13",$C$55:$C$514,"<=16") -> 0 | E48: 0 | F48: 0 | G48: 0 | H48: =IFERROR(SUMIFS(H$55:H$514,$B$55:$B$514,">=1",$C$55:$C$514,"<>Total",$C$55:$C$514,">=13",$C$55:$C$514,"<=16")/COUNTIFS($B$55:$B$514,">=1",$C$55:$C$514,">=13",$C$55:$C$514,"<=16",$O$55:$O$514,">0"),0) -> 0 | I48: 0 | J48: 0 | K48: 0 | L48: =IFERROR(SUMIFS(L$55:L$514,$B$55:$B$514,">=1",$C$55:$C$514,"<>Total",$C$55:$C$514,">=13",$C$55:$C$514,"<=16")/COUNTIFS($B$55:$B$514,">=1",$C$55:$C$514,">=13",$C$55:$C$514,"<=16",$O$55:$O$514,">0"),0) -> 0 | M48: 0 | N48: 0 | O48: 0 | P48: =SUMIFS(P$55:P$514,$C$55:$C$514,">=13",$C$55:$C$514,"<=16") -> 0 | Q48: =SUMIFS(Q$55:Q$514,$C$55:$C$514,">=13",$C$55:$C$514,"<=16") -> 0 | R48: =SUMIFS(R$55:R$514,$C$55:$C$514,">=13",$C$55:$C$514,"<=16") -> 0 | S48: =SUMIFS(S$55:S$514,$C$55:$C$514,">=13",$C$55:$C$514,"<=16") -> 0 | T48: 0 | U48: =IFERROR(SUMIFS(U$55:U$514,$B$55:$B$514,">=1",$C$55:$C$514,"<>Total",$C$55:$C$514,">=13",$C$55:$C$514,"<=16")/COUNTIFS($B$55:$B$514,">=1",$C$55:$C$514,">=13",$C$55:$C$514,"<=16",$O$55:$O$514,">0"),0) -> 0 | V48: =SUMIFS(V$55:V$514,$C$55:$C$514,">=13",$C$55:$C$514,"<=16") -> 0 | W48: =SUMIFS(W$55:W$514,$C$55:$C$514,">=13",$C$55:$C$514,"<=16") -> 0 | X48: 0 | Y48: =SUMIFS(Y$55:Y$514,$C$55:$C$514,">=13",$C$55:$C$514,"<=16") -> 0 | Z48: =SUMIFS(Z$55:Z$514,$C$55:$C$514,">=13",$C$55:$C$514,"<=16") -> 0 | AA48: =SUMIFS(AA$55:AA$514,$C$55:$C$514,">=13",$C$55:$C$514,"<=16") -> 0 | AB48: =SUMIFS(AB$55:AB$514,$C$55:$C$514,">=13",$C$55:$C$514,"<=16") -> 0 | AC48: 0 | AD48: =IFERROR(SUMIFS(AD$55:AD$514,$B$55:$B$514,">=1",$C$55:$C$514,"<>Total",$C$55:$C$514,">=13",$C$55:$C$514,"<=16")/COUNTIFS($B$55:$B$514,">=1",$C$55:$C$514,">=13",$C$55:$C$514,"<=16",$O$55:$O$514,">0"),0) -> 0 | AE48: =SUMIFS(AE$55:AE$514,$C$55:$C$514,">=13",$C$55:$C$514,"<=16") -> 0 | AF48: =SUMIFS(AF$55:AF$514,$C$55:$C$514,">=13",$C$55:$C$514,"<=16") -> 0 | AG48: 0 | AH48: =SUMIFS(AH$55:AH$514,$C$55:$C$514,">=13",$C$55:$C$514,"<=16") -> 0 | AI48: =SUMIFS(AI$55:AI$514,$C$55:$C$514,">=13",$C$55:$C$514,"<=16") -> 0 | AJ48: =SUMIFS(AJ$55:AJ$514,$C$55:$C$514,">=13",$C$55:$C$514,"<=16") -> 0 | AK48: =SUMIFS(AK$55:AK$514,$C$55:$C$514,">=13",$C$55:$C$514,"<=16") -> 0 | AL48: 0 | AM48: =IFERROR(SUMIFS(AM$55:AM$514,$B$55:$B$514,">=1",$C$55:$C$514,"<>Total",$C$55:$C$514,">=13",$C$55:$C$514,"<=16")/COUNTIFS($B$55:$B$514,">=1",$C$55:$C$514,">=13",$C$55:$C$514,"<=16",$O$55:$O$514,">0"),0) -> 0 | AN48: =SUMIFS(AN$55:AN$514,$C$55:$C$514,">=13",$C$55:$C$514,"<=16") -> 0 | AO48: =SUMIFS(AO$55:AO$514,$C$55:$C$514,">=13",$C$55:$C$514,"<=16") -> 0 | AP48: 0 | AQ48: =SUMIFS(AQ$55:AQ$514,$C$55:$C$514,">=13",$C$55:$C$514,"<=16") -> 0 | AR48: =SUMIFS(AR$55:AR$514,$C$55:$C$514,">=13",$C$55:$C$514,"<=16") -> 0 | AS48: =SUMIFS(AS$55:AS$514,$C$55:$C$514,">=13",$C$55:$C$514,"<=16") -> 0
A49: 1 | C49: Other | D49: =D43-SUM(D45:D48) -> 0 | E49: =E43-SUM(E45:E48) -> 0 | F49: 0 | G49: 0 | H49: =IFERROR((SUMIFS(H$55:H$514,$B$55:$B$514,">=1",$C$55:$C$514,"<>Total")-SUMIFS(H$55:H$514,$B$55:$B$514,">=1",$C$55:$C$514,"<=16"))/(COUNTIFS($B$55:$B$514,">=1",$C$55:$C$514,"<>Total",$O$55:$O$514,">0")-COUNTIFS($B$55:$B$514,">=1",$C$55:$C$514,"<=16",$O$55:$O$514,">0"=(SUMIFS(H$55:H$514,$B$55:$B$514,">=1",$C$55:$C$514,"<>Total")-SUMIFS(H$55:H$514,$B$55:$B$514,">=1",$C$55:$C$514,"<=16"))/(COUNTIFS($B$55:$B$514,">=1",$C$55:$C$514,"<>Total",$O$55:$O$514,">0")-COUNTIFS($B$55:$B$514,">=1",$C$55:$C$514,"<=16",$O$55:$O$514,">0")))),0) -> 0 | I49: 0 | J49: 0 | K49: 0 | L49: =IFERROR((SUMIFS(L$55:L$514,$B$55:$B$514,">=1",$C$55:$C$514,"<>Total")-SUMIFS(L$55:L$514,$B$55:$B$514,">=1",$C$55:$C$514,"<=16"))/(COUNTIFS($B$55:$B$514,">=1",$C$55:$C$514,"<>Total",$O$55:$O$514,">0")-COUNTIFS($B$55:$B$514,">=1",$C$55:$C$514,"<=16",$O$55:$O$514,">0"=(SUMIFS(L$55:L$514,$B$55:$B$514,">=1",$C$55:$C$514,"<>Total")-SUMIFS(L$55:L$514,$B$55:$B$514,">=1",$C$55:$C$514,"<=16"))/(COUNTIFS($B$55:$B$514,">=1",$C$55:$C$514,"<>Total",$O$55:$O$514,">0")-COUNTIFS($B$55:$B$514,">=1",$C$55:$C$514,"<=16",$O$55:$O$514,">0")))),0) -> 0 | M49: 0 | N49: 0 | O49: 0 | P49: =P43-SUM(P45:P48) -> 0 | Q49: =Q43-SUM(Q45:Q48) -> 0 | R49: 0 | S49: =S43-SUM(S45:S48) -> 0 | T49: 0 | U49: =IFERROR((SUMIFS(U$55:U$514,$B$55:$B$514,">=1",$C$55:$C$514,"<>Total")-SUMIFS(U$55:U$514,$B$55:$B$514,">=1",$C$55:$C$514,"<=16"))/(COUNTIFS($B$55:$B$514,">=1",$C$55:$C$514,"<>Total",$O$55:$O$514,">0")-COUNTIFS($B$55:$B$514,">=1",$C$55:$C$514,"<=16",$O$55:$O$514,">0"=(SUMIFS(U$55:U$514,$B$55:$B$514,">=1",$C$55:$C$514,"<>Total")-SUMIFS(U$55:U$514,$B$55:$B$514,">=1",$C$55:$C$514,"<=16"))/(COUNTIFS($B$55:$B$514,">=1",$C$55:$C$514,"<>Total",$O$55:$O$514,">0")-COUNTIFS($B$55:$B$514,">=1",$C$55:$C$514,"<=16",$O$55:$O$514,">0")))),0) -> 0 | V49: =V43-SUM(V45:V48) -> 0 | W49: =W43-SUM(W45:W48) -> 0 | X49: 0 | Y49: =Y43-SUM(Y45:Y48) -> 0 | Z49: =Z43-SUM(Z45:Z48) -> 0 | AA49: 0 | AB49: =AB43-SUM(AB45:AB48) -> 0 | AC49: 0 | AD49: =IFERROR((SUMIFS(AD$55:AD$514,$B$55:$B$514,">=1",$C$55:$C$514,"<>Total")-SUMIFS(AD$55:AD$514,$B$55:$B$514,">=1",$C$55:$C$514,"<=16"))/(COUNTIFS($B$55:$B$514,">=1",$C$55:$C$514,"<>Total",$O$55:$O$514,">0")-COUNTIFS($B$55:$B$514,">=1",$C$55:$C$514,"<=16",$O$55:$O$514,">0"=(SUMIFS(AD$55:AD$514,$B$55:$B$514,">=1",$C$55:$C$514,"<>Total")-SUMIFS(AD$55:AD$514,$B$55:$B$514,">=1",$C$55:$C$514,"<=16"))/(COUNTIFS($B$55:$B$514,">=1",$C$55:$C$514,"<>Total",$O$55:$O$514,">0")-COUNTIFS($B$55:$B$514,">=1",$C$55:$C$514,"<=16",$O$55:$O$514,">0")))),0) -> 0 | AE49: =AE43-SUM(AE45:AE48) -> 0 | AF49: =AF43-SUM(AF45:AF48) -> 0 | AG49: 0 | AH49: =AH43-SUM(AH45:AH48) -> 0 | AI49: =AI43-SUM(AI45:AI48) -> 0 | AJ49: 0 | AK49: =AK43-SUM(AK45:AK48) -> 0 | AL49: 0 | AM49: =IFERROR((SUMIFS(AM$55:AM$514,$B$55:$B$514,">=1",$C$55:$C$514,"<>Total")-SUMIFS(AM$55:AM$514,$B$55:$B$514,">=1",$C$55:$C$514,"<=16"))/(COUNTIFS($B$55:$B$514,">=1",$C$55:$C$514,"<>Total",$O$55:$O$514,">0")-COUNTIFS($B$55:$B$514,">=1",$C$55:$C$514,"<=16",$O$55:$O$514,">0"=(SUMIFS(AM$55:AM$514,$B$55:$B$514,">=1",$C$55:$C$514,"<>Total")-SUMIFS(AM$55:AM$514,$B$55:$B$514,">=1",$C$55:$C$514,"<=16"))/(COUNTIFS($B$55:$B$514,">=1",$C$55:$C$514,"<>Total",$O$55:$O$514,">0")-COUNTIFS($B$55:$B$514,">=1",$C$55:$C$514,"<=16",$O$55:$O$514,">0")))),0) -> 0 | AN49: =AN43-SUM(AN45:AN48) -> 0 | AO49: =AO43-SUM(AO45:AO48) -> 0 | AP49: 0 | AQ49: =AQ43-SUM(AQ45:AQ48) -> 0 | AR49: =AR43-SUM(AR45:AR48) -> 0 | AS49: 0
A50: 1 | C50: Total | D50: =SUM(D45:D49) -> 0 | E50: 0 | F50: =SUM(F45:F49) -> 0 | G50: 0 | H50: =IFERROR(SUMIF($C$55:$C$514,"Total",H$55:H$514)/COUNTIF(H27:H42,">0"),0) -> 0 | I50: =SUM(I45:I49) -> 0 | J50: =SUM(J45:J49) -> 0 | K50: =IFERROR(R50/O50,0) -> 0 | L50: =IFERROR(SUMIF($C$55:$C$514,"Total",L$55:L$514)/COUNTIF(L27:L42,">0"),0) -> 0 | M50: =SUM(M45:M49) -> 0 | N50: =SUM(N45:N49) -> 0 | O50: =SUM(O45:O49) -> 0 | P50: 0 | Q50: 0 | R50: 0 | S50: =SUM(S45:S49) -> 0 | T50: =IFERROR(AA50/X50,0) -> 0 | U50: =IFERROR(SUMIF($C$55:$C$514,"Total",U$55:U$514)/COUNTIF(U27:U42,">0"),0) -> 0 | V50: =SUM(V45:V49) -> 0 | W50: 0 | X50: 0 | Y50: 0 | Z50: 0 | AA50: 0 | AB50: 0 | AC50: =IFERROR(AJ50/AG50,0) -> 0 | AD50: =IFERROR(SUMIF($C$55:$C$514,"Total",AD$55:AD$514)/COUNTIF(AD27:AD42,">0"),0) -> 0 | AE50: =SUM(AE44:AE49) -> 0 | AF50: =SUM(AF45:AF49) -> 0 | AG50: 0 | AH50: 0 | AI50: 0 | AJ50: 0 | AK50: 0 | AL50: =IFERROR(AS50/AP50,0) -> 0 | AM50: =IFERROR(SUMIF($C$55:$C$514,"Total",AM$55:AM$514)/COUNTIF(AM27:AM42,">0"),0) -> 0 | AN50: =SUM(AN45:AN49) -> 0 | AO50: 0 | AP50: 0 | AQ50: 0 | AR50: 0 | AS50: 0
A51: 1 | C51: Checks | D51: =D43-D50 -> 0 | E51: =E43-E50 -> 0 | F51: 0 | G51: 0 | H51: 0 | I51: 0 | J51: 0 | K51: 0 | L51: =L43-L50 -> 0 | M51: 0 | N51: 0 | O51: 0 | P51: 0 | Q51: 0 | R51: 0 | S51: 0 | T51: 0 | V51: 0 | W51: 0 | X51: 0 | Y51: 0 | Z51: 0 | AA51: 0 | AB51: 0 | AC51: 0 | AE51: 0 | AF51: 0 | AG51: 0 | AH51: 0 | AI51: 0 | AJ51: 0 | AK51: 0 | AL51: 0 | AN51: 0 | AO51: 0 | AP51: 0 | AQ51: 0 | AR51: 0 | AS51: 0
A52: 1 | P52: =O$25 & " ENE Ceiling" -> 2023/24 ENE Ceiling | R52: =IFERROR(INDEX('Department Ceilings'!$J$2:$N$43,MATCH(MyDept,'Department Ceilings'!$I$2:$I$43,0),1),0) -> 378959 | Y52: =X$25 & " ENE Ceiling" -> 2024/25 ENE Ceiling | AA52: =IFERROR(INDEX('Department Ceilings'!$J$2:$N$43,MATCH(MyDept,'Department Ceilings'!$I$2:$I$43,0),2),0) -> 408025 | AH52: =AG$25 & " ENE Ceiling" -> 2025/26 ENE Ceiling | AJ52: =IFERROR(INDEX('Department Ceilings'!$J$2:$N$43,MATCH(MyDept,'Department Ceilings'!$I$2:$I$43,0),3),0) -> 425818 | AQ52: =AP$25 & " ENE Ceiling" -> 2026/27 ENE Ceiling | AS52: =IFERROR(INDEX('Department Ceilings'!$J$2:$N$43,MATCH(MyDept,'Department Ceilings'!$I$2:$I$43,0),4),0) -> 445327
A53: 1 | C53: Department Programme Details | P53: Over/Under Ceiling | R53: =R52-R43 -> 378959 | Y53: Over/Under Ceiling | AA53: =AA52-AA43 -> 408025 | AH53: Over/Under Ceiling | AJ53: =AJ52-AJ43 -> 425818 | AQ53: Over/Under Ceiling | AS53: =AS52-AS43 -> 445327
A54: 1
A55: =$A$27 -> 1 | C55: =$C$27 -> Unit 1 | P55: % Over/Under Ceiling | R55: =R53/R52 -> 1 | Y55: % Over/Under Ceiling | AA55: =AA53/AA52 -> 1 | AH55: % Over/Under Ceiling | AJ55: =AJ53/AJ52 -> 1 | AQ55: % Over/Under Ceiling | AS55: =AS53/AS52 -> 1
A56: =A$55 -> 1 | D56: Establishment Structure | F56: Previous Financial Year | J56: Medium-term expenditure estimates
A57: =A$55 -> 1 | D57: As at 31 March 2023 | F57: =LEFT($D$3,4)-1 & "/" & RIGHT($D$3,2)-1 -> 2022/23 | O57: =FY0 -> 2023/24 | X57: =MTEF1 -> 2024/25 | AG57: =MTEF2 -> 2025/26 | AP57: =MTEF3 -> 2026/27
A58: 1 | B58: ProgNo. | C58: Salary level | D58: Total number of funded posts | E58: of which: number of funded posts additional to the establishment | F58: FTE Headcount | G58: Unit Costs | H58: of which: Once-off Payments per person | I58: Total Annual Cost | J58: Initial Headcount | K58: Unit Costs | L58: of which: Once-off Payments per person | M58: Vacant funded posts to be filled | N58: Headcount reductions to be made | O58: Revised Headcount | P58: Cost of vacant posts to be filled | Q58: Savings from headcount reductions | R58: Projected Annual Cost | S58: Initial Headcount | T58: Unit Costs | U58: of which: Once-off Payments per person | V58: Vacant funded posts to be filled | W58: Headcount reductions to be made | X58: Revised Headcount | Y58: Cost of vacant posts to be filled | Z58: Savings from headcount reductions | AA58: Projected Annual Cost | AB58: Initial Headcount | AC58: Unit Costs | AD58: of which: Once-off Payments per person | AE58: Vacant funded posts to be filled | AF58: Headcount reductions to be made | AG58: Revised Headcount | AH58: Cost of vacant posts to be filled | AI58: Savings from headcount reductions | AJ58: Projected Annual Cost | AK58: Initial Headcount | AL58: Unit Costs | AM58: of which: Once-off Payments per person | AN58: Vacant funded posts to be filled | AO58: Headcount reductions to be made | AP58: Revised Headcount | AQ58: Cost of vacant posts to be filled | AR58: Savings from headcount reductions | AS58: Projected Annual Cost
A59: 1 | B59: 1 | C59: 1 | G59: =IFERROR(IF(I59=0,IF(SUM(O59,X59,AG59,AP59)=0,0,BB59),I59/F59),0) -> 0 | H59: =1220/1000*12 -> 14.64 | K59: =IFERROR((1+INDEX('Weighted UnitCost'!$A$3:$CI$1000,MATCH(MyDept&$C59,'Weighted UnitCost'!$B$3:$B$1000&'Weighted UnitCost'!$C$3:$C$1000,0),24))*(G59-H59)+L59+1220/1000*12, (1+INDEX('Weighted UnitCost'!$A$3:$CI$1000,MATCH("General"&"Other",'Weighted UnitCost'!$B$3:$B$1000&'Weighted UnitCost'!$C$3:$C$1000,0),24))*(G59-H59)+L59+1220/1000*12) -> -0.7327463407 | O59: =J59+M59-N59 -> 0 | P59: =K59*M59 -> 0 | Q59: =K59*(-N59) -> 0 | R59: =ROUND(K59*O59,0) -> 0 | S59: =O59 -> 0 | T59: =IFERROR((1+INDEX('Weighted UnitCost'!$A$3:$CI$1000,MATCH(MyDept&$C59,'Weighted UnitCost'!$B$3:$B$1000&'Weighted UnitCost'!$C$3:$C$1000,0),45))*(K59-L59)+U59, (1+INDEX('Weighted UnitCost'!$A$3:$CI$1000,MATCH("General"&"Other",'Weighted UnitCost'!$B$3:$B$1000&'Weighted UnitCost'!$C$3:$C$1000,0),45))*(K59-L59)+U59) -> -0.7783963549 | X59: =S59+V59-W59 -> 0 | Y59: =T59*V59 -> 0 | Z59: =T59*(-W59) -> 0 | AA59: =ROUND(T59*X59,0) -> 0 | AB59: =X59 -> 0 | AC59: =IFERROR((1+INDEX('Weighted UnitCost'!$A$3:$CI$1000,MATCH(MyDept&$C59,'Weighted UnitCost'!$B$3:$B$1000&'Weighted UnitCost'!$C$3:$C$1000,0),66))*(T59-U59)+AD59, (1+INDEX('Weighted UnitCost'!$A$3:$CI$1000,MATCH("General"&"Other",'Weighted UnitCost'!$B$3:$B$1000&'Weighted UnitCost'!$C$3:$C$1000,0),66))*(T59-U59)+AD59) -> -0.8260012942 | AG59: =AB59+AE59-AF59 -> 0 | AH59: =AC59*AE59 -> 0 | AI59: =AC59*(-AF59) -> 0 | AJ59: =ROUND(AC59*AG59,0) -> 0 | AK59: =AG59 -> 0 | AL59: =IFERROR((1+INDEX('Weighted UnitCost'!$A$3:$CI$1000,MATCH(MyDept&$C59,'Weighted UnitCost'!$B$3:$B$1000&'Weighted UnitCost'!$C$3:$C$1000,0),87))*(AC59-AD59)+AM59, (1+INDEX('Weighted UnitCost'!$A$3:$CI$1000,MATCH("General"&"Other",'Weighted UnitCost'!$B$3:$B$1000&'Weighted UnitCost'!$C$3:$C$1000,0),87))*(AC59-AD59)+AM59) -> -0.8755214437 | AP59: =AK59+AN59-AO59 -> 0 | AQ59: =AL59*AN59 -> 0 | AR59: =AL59*(-AO59) -> 0 | AS59: =ROUND(AL59*AP59,0) -> 0 | BB59: 98.47395
A60: 1 | B60: 1 | C60: 2 | G60: =IFERROR(IF(I60=0,IF(SUM(O60,X60,AG60,AP60)=0,0,BB60),I60/F60),0) -> 0 | H60: =1220/1000*12 -> 14.64 | K60: =IFERROR((1+INDEX('Weighted UnitCost'!$A$3:$CI$1000,MATCH(MyDept&$C60,'Weighted UnitCost'!$B$3:$B$1000&'Weighted UnitCost'!$C$3:$C$1000,0),24))*(G60-H60)+L60+1220/1000*12, (1+INDEX('Weighted UnitCost'!$A$3:$CI$1000,MATCH("General"&"Other",'Weighted UnitCost'!$B$3:$B$1000&'Weighted UnitCost'!$C$3:$C$1000,0),24))*(G60-H60)+L60+1220/1000*12) -> -0.75852768 | O60: =J60+M60-N60 -> 0 | P60: =K60*M60 -> 0 | Q60: =K60*(-N60) -> 0 | R60: =ROUND(K60*O60,0) -> 0 | S60: =O60 -> 0 | T60: =IFERROR((1+INDEX('Weighted UnitCost'!$A$3:$CI$1000,MATCH(MyDept&$C60,'Weighted UnitCost'!$B$3:$B$1000&'Weighted UnitCost'!$C$3:$C$1000,0),45))*(K60-L60)+U60, (1+INDEX('Weighted UnitCost'!$A$3:$CI$1000,MATCH("General"&"Other",'Weighted UnitCost'!$B$3:$B$1000&'Weighted UnitCost'!$C$3:$C$1000,0),45))*(K60-L60)+U60) -> -0.8033717507 | X60: =S60+V60-W60 -> 0 | Y60: =T60*V60 -> 0 | Z60: =T60*(-W60) -> 0 | AA60: =ROUND(T60*X60,0) -> 0 | AB60: =X60 -> 0 | AC60: =IFERROR((1+INDEX('Weighted UnitCost'!$A$3:$CI$1000,MATCH(MyDept&$C60,'Weighted UnitCost'!$B$3:$B$1000&'Weighted UnitCost'!$C$3:$C$1000,0),66))*(T60-U60)+AD60, (1+INDEX('Weighted UnitCost'!$A$3:$CI$1000,MATCH("General"&"Other",'Weighted UnitCost'!$B$3:$B$1000&'Weighted UnitCost'!$C$3:$C$1000,0),66))*(T60-U60)+AD60) -> -0.8499494059 | AG60: =AB60+AE60-AF60 -> 0 | AH60: =AC60*AE60 -> 0 | AI60: =AC60*(-AF60) -> 0 | AJ60: =ROUND(AC60*AG60,0) -> 0 | AK60: =AG60 -> 0 | AL60: =IFERROR((1+INDEX('Weighted UnitCost'!$A$3:$CI$1000,MATCH(MyDept&$C60,'Weighted UnitCost'!$B$3:$B$1000&'Weighted UnitCost'!$C$3:$C$1000,0),87))*(AC60-AD60)+AM60, (1+INDEX('Weighted UnitCost'!$A$3:$CI$1000,MATCH("General"&"Other",'Weighted UnitCost'!$B$3:$B$1000&'Weighted UnitCost'!$C$3:$C$1000,0),87))*(AC60-AD60)+AM60) -> -0.8982024454 | AP60: =AK60+AN60-AO60 -> 0 | AQ60: =AL60*AN60 -> 0 | AR60: =AL60*(-AO60) -> 0 | AS60: =ROUND(AL60*AP60,0) -> 0 | BB60: 176.8618161
A61: 1 | B61: 1 | C61: 3 | G61: 0 | H61: =1220/1000*12 -> 14.64 | K61: =IFERROR((1+INDEX('Weighted UnitCost'!$A$3:$CI$1000,MATCH(MyDept&$C61,'Weighted UnitCost'!$B$3:$B$1000&'Weighted UnitCost'!$C$3:$C$1000,0),24))*(G61-H61)+L61+1220/1000*12, (1+INDEX('Weighted UnitCost'!$A$3:$CI$1000,MATCH("General"&"Other",'Weighted UnitCost'!$B$3:$B$1000&'Weighted UnitCost'!$C$3:$C$1000,0),24))*(G61-H61)+L61+1220/1000*12) -> -0.75003648 | O61: 0 | P61: 0 | Q61: 0 | R61: 0 | S61: 0 | T61: =IFERROR((1+INDEX('Weighted UnitCost'!$A$3:$CI$1000,MATCH(MyDept&$C61,'Weighted UnitCost'!$B$3:$B$1000&'Weighted UnitCost'!$C$3:$C$1000,0),45))*(K61-L61)+U61, (1+INDEX('Weighted UnitCost'!$A$3:$CI$1000,MATCH("General"&"Other",'Weighted UnitCost'!$B$3:$B$1000&'Weighted UnitCost'!$C$3:$C$1000,0),45))*(K61-L61)+U61) -> -0.7945455851 | X61: 0 | Y61: 0 | Z61: 0 | AA61: 0 | AB61: 0 | AC61: =IFERROR((1+INDEX('Weighted UnitCost'!$A$3:$CI$1000,MATCH(MyDept&$C61,'Weighted UnitCost'!$B$3:$B$1000&'Weighted UnitCost'!$C$3:$C$1000,0),66))*(T61-U61)+AD61, (1+INDEX('Weighted UnitCost'!$A$3:$CI$1000,MATCH("General"&"Other",'Weighted UnitCost'!$B$3:$B$1000&'Weighted UnitCost'!$C$3:$C$1000,0),66))*(T61-U61)+AD61) -> -0.8407893723 | AG61: 0 | AH61: 0 | AI61: 0 | AJ61: 0 | AK61: 0 | AL61: =IFERROR((1+INDEX('Weighted UnitCost'!$A$3:$CI$1000,MATCH(MyDept&$C61,'Weighted UnitCost'!$B$3:$B$1000&'Weighted UnitCost'!$C$3:$C$1000,0),87))*(AC61-AD61)+AM61, (1+INDEX('Weighted UnitCost'!$A$3:$CI$1000,MATCH("General"&"Other",'Weighted UnitCost'!$B$3:$B$1000&'Weighted UnitCost'!$C$3:$C$1000,0),87))*(AC61-AD61)+AM61) -> -0.8887115998 | AP61: 0 | AQ61: 0 | AR61: 0 | AS61: 0 | BB61: 213.4702408
A62: 1 | B62: 1 | C62: 4 | G62: 0 | H62: =1220/1000*12 -> 14.64 | K62: =IFERROR((1+INDEX('Weighted UnitCost'!$A$3:$CI$1000,MATCH(MyDept&$C62,'Weighted UnitCost'!$B$3:$B$1000&'Weighted UnitCost'!$C$3:$C$1000,0),24))*(G62-H62)+L62+1220/1000*12, (1+INDEX('Weighted UnitCost'!$A$3:$CI$1000,MATCH("General"&"Other",'Weighted UnitCost'!$B$3:$B$1000&'Weighted UnitCost'!$C$3:$C$1000,0),24))*(G62-H62)+L62+1220/1000*12) -> -0.76264152 | O62: 0 | P62: 0 | Q62: 0 | R62: 0 | S62: 0 | T62: =IFERROR((1+INDEX('Weighted UnitCost'!$A$3:$CI$1000,MATCH(MyDept&$C62,'Weighted UnitCost'!$B$3:$B$1000&'Weighted UnitCost'!$C$3:$C$1000,0),45))*(K62-L62)+U62, (1+INDEX('Weighted UnitCost'!$A$3:$CI$1000,MATCH("General"&"Other",'Weighted UnitCost'!$B$3:$B$1000&'Weighted UnitCost'!$C$3:$C$1000,0),45))*(K62-L62)+U62) -> -0.8081749457 | X62: 0 | Y62: 0 | Z62: 0 | AA62: 0 | AB62: 0 | AC62: =IFERROR((1+INDEX('Weighted UnitCost'!$A$3:$CI$1000,MATCH(MyDept&$C62,'Weighted UnitCost'!$B$3:$B$1000&'Weighted UnitCost'!$C$3:$C$1000,0),66))*(T62-U62)+AD62, (1+INDEX('Weighted UnitCost'!$A$3:$CI$1000,MATCH("General"&"Other",'Weighted UnitCost'!$B$3:$B$1000&'Weighted UnitCost'!$C$3:$C$1000,0),66))*(T62-U62)+AD62) -> -0.8555038615 | AG62: 0 | AH62: 0 | AI62: 0 | AJ62: 0 | AK62: 0 | AL62: =IFERROR((1+INDEX('Weighted UnitCost'!$A$3:$CI$1000,MATCH(MyDept&$C62,'Weighted UnitCost'!$B$3:$B$1000&'Weighted UnitCost'!$C$3:$C$1000,0),87))*(AC62-AD62)+AM62, (1+INDEX('Weighted UnitCost'!$A$3:$CI$1000,MATCH("General"&"Other",'Weighted UnitCost'!$B$3:$B$1000&'Weighted UnitCost'!$C$3:$C$1000,0),87))*(AC62-AD62)+AM62) -> -0.9045727065 | AP62: 0 | AQ62: 0 | AR62: 0 | AS62: 0 | BB62: 232.550946
A63: 1 | B63: 1 | C63: 5 | G63: 0 | H63: =1220/1000*12 -> 14.64 | K63: =IFERROR((1+INDEX('Weighted UnitCost'!$A$3:$CI$1000,MATCH(MyDept&$C63,'Weighted UnitCost'!$B$3:$B$1000&'Weighted UnitCost'!$C$3:$C$1000,0),24))*(G63-H63)+L63+1220/1000*12, (1+INDEX('Weighted UnitCost'!$A$3:$CI$1000,MATCH("General"&"Other",'Weighted UnitCost'!$B$3:$B$1000&'Weighted UnitCost'!$C$3:$C$1000,0),24))*(G63-H63)+L63+1220/1000*12) -> -0.77221608 | O63: 0 | P63: 0 | Q63: 0 | R63: 0 | S63: 0 | T63: =IFERROR((1+INDEX('Weighted UnitCost'!$A$3:$CI$1000,MATCH(MyDept&$C63,'Weighted UnitCost'!$B$3:$B$1000&'Weighted UnitCost'!$C$3:$C$1000,0),45))*(K63-L63)+U63, (1+INDEX('Weighted UnitCost'!$A$3:$CI$1000,MATCH("General"&"Other",'Weighted UnitCost'!$B$3:$B$1000&'Weighted UnitCost'!$C$3:$C$1000,0),45))*(K63-L63)+U63) -> -0.8187711242 | X63: 0 | Y63: 0 | Z63: 0 | AA63: 0 | AB63: 0 | AC63: =IFERROR((1+INDEX('Weighted UnitCost'!$A$3:$CI$1000,MATCH(MyDept&$C63,'Weighted UnitCost'!$B$3:$B$1000&'Weighted UnitCost'!$C$3:$C$1000,0),66))*(T63-U63)+AD63, (1+INDEX('Weighted UnitCost'!$A$3:$CI$1000,MATCH("General"&"Other",'Weighted UnitCost'!$B$3:$B$1000&'Weighted UnitCost'!$C$3:$C$1000,0),66))*(T63-U63)+AD63) -> -0.8671986141 | AG63: 0 | AH63: 0 | AI63: 0 | AJ63: 0 | AK63: 0 | AL63: =IFERROR((1+INDEX('Weighted UnitCost'!$A$3:$CI$1000,MATCH(MyDept&$C63,'Weighted UnitCost'!$B$3:$B$1000&'Weighted UnitCost'!$C$3:$C$1000,0),87))*(AC63-AD63)+AM63, (1+INDEX('Weighted UnitCost'!$A$3:$CI$1000,MATCH("General"&"Other",'Weighted UnitCost'!$B$3:$B$1000&'Weighted UnitCost'!$C$3:$C$1000,0),87))*(AC63-AD63)+AM63) -> -0.9174455841 | AP63: 0 | AQ63: 0 | AR63: 0 | AS63: 0 | BB63: 286.2149308
A64: 1 | B64: 1 | C64: 6 | G64: 0 | H64: =1352/1000*12 -> 16.224 | K64: =IFERROR((1+INDEX('Weighted UnitCost'!$A$3:$CI$1000,MATCH(MyDept&$C64,'Weighted UnitCost'!$B$3:$B$1000&'Weighted UnitCost'!$C$3:$C$1000,0),24))*(G64-H64)+L64+1352/1000*12, (1+INDEX('Weighted UnitCost'!$A$3:$CI$1000,MATCH("General"&"Other",'Weighted UnitCost'!$B$3:$B$1000&'Weighted UnitCost'!$C$3:$C$1000,0),24))*(G64-H64)+L64+1352/1000*12) -> -0.838148064 | O64: 0 | P64: 0 | Q64: 0 | R64: 0 | S64: 0 | T64: =IFERROR((1+INDEX('Weighted UnitCost'!$A$3:$CI$1000,MATCH(MyDept&$C64,'Weighted UnitCost'!$B$3:$B$1000&'Weighted UnitCost'!$C$3:$C$1000,0),45))*(K64-L64)+U64, (1+INDEX('Weighted UnitCost'!$A$3:$CI$1000,MATCH("General"&"Other",'Weighted UnitCost'!$B$3:$B$1000&'Weighted UnitCost'!$C$3:$C$1000,0),45))*(K64-L64)+U64) -> -0.8888307827 | X64: 0 | Y64: 0 | Z64: 0 | AA64: 0 | AB64: 0 | AC64: =IFERROR((1+INDEX('Weighted UnitCost'!$A$3:$CI$1000,MATCH(MyDept&$C64,'Weighted UnitCost'!$B$3:$B$1000&'Weighted UnitCost'!$C$3:$C$1000,0),66))*(T64-U64)+AD64, (1+INDEX('Weighted UnitCost'!$A$3:$CI$1000,MATCH("General"&"Other",'Weighted UnitCost'!$B$3:$B$1000&'Weighted UnitCost'!$C$3:$C$1000,0),66))*(T64-U64)+AD64) -> -0.9415630785 | AG64: 0 | AH64: 0 | AI64: 0 | AJ64: 0 | AK64: 0 | AL64: =IFERROR((1+INDEX('Weighted UnitCost'!$A$3:$CI$1000,MATCH(MyDept&$C64,'Weighted UnitCost'!$B$3:$B$1000&'Weighted UnitCost'!$C$3:$C$1000,0),87))*(AC64-AD64)+AM64, (1+INDEX('Weighted UnitCost'!$A$3:$CI$1000,MATCH("General"&"Other",'Weighted UnitCost'!$B$3:$B$1000&'Weighted UnitCost'!$C$3:$C$1000,0),87))*(AC64-AD64)+AM64) -> -0.9962882885 | AP64: 0 | AQ64: 0 | AR64: 0 | AS64: 0 | BB64: 336.6586904
A65: 1 | B65: 1 | C65: 7 | G65: 0 | H65: =1352/1000*12 -> 16.224 | K65: =IFERROR((1+INDEX('Weighted UnitCost'!$A$3:$CI$1000,MATCH(MyDept&$C65,'Weighted UnitCost'!$B$3:$B$1000&'Weighted UnitCost'!$C$3:$C$1000,0),24))*(G65-H65)+L65+1352/1000*12, (1+INDEX('Weighted UnitCost'!$A$3:$CI$1000,MATCH("General"&"Other",'Weighted UnitCost'!$B$3:$B$1000&'Weighted UnitCost'!$C$3:$C$1000,0),24))*(G65-H65)+L65+1352/1000*12) -> -0.831674688 | O65: 0 | P65: 0 | Q65: 0 | R65: 0 | S65: 0 | T65: =IFERROR((1+INDEX('Weighted UnitCost'!$A$3:$CI$1000,MATCH(MyDept&$C65,'Weighted UnitCost'!$B$3:$B$1000&'Weighted UnitCost'!$C$3:$C$1000,0),45))*(K65-L65)+U65, (1+INDEX('Weighted UnitCost'!$A$3:$CI$1000,MATCH("General"&"Other",'Weighted UnitCost'!$B$3:$B$1000&'Weighted UnitCost'!$C$3:$C$1000,0),45))*(K65-L65)+U65) -> -0.8822029897 | X65: 0 | Y65: 0 | Z65: 0 | AA65: 0 | AB65: 0 | AC65: =IFERROR((1+INDEX('Weighted UnitCost'!$A$3:$CI$1000,MATCH(MyDept&$C65,'Weighted UnitCost'!$B$3:$B$1000&'Weighted UnitCost'!$C$3:$C$1000,0),66))*(T65-U65)+AD65, (1+INDEX('Weighted UnitCost'!$A$3:$CI$1000,MATCH("General"&"Other",'Weighted UnitCost'!$B$3:$B$1000&'Weighted UnitCost'!$C$3:$C$1000,0),66))*(T65-U65)+AD65) -> -0.9347935015 | AG65: 0 | AH65: 0 | AI65: 0 | AJ65: 0 | AK65: 0 | AL65: =IFERROR((1+INDEX('Weighted UnitCost'!$A$3:$CI$1000,MATCH(MyDept&$C65,'Weighted UnitCost'!$B$3:$B$1000&'Weighted UnitCost'!$C$3:$C$1000,0),87))*(AC65-AD65)+AM65, (1+INDEX('Weighted UnitCost'!$A$3:$CI$1000,MATCH("General"&"Other",'Weighted UnitCost'!$B$3:$B$1000&'Weighted UnitCost'!$C$3:$C$1000,0),87))*(AC65-AD65)+AM65) -> -0.9893916686 | AP65: 0 | AQ65: 0 | AR65: 0 | AS65: 0 | BB65: 448.7689082
